{"text_format":"1","workbook":"xlsx","n_sheets":1,"sheets":["16_LandtagBW"],"not_rendered":{"charts":0,"images":0,"macros":1,"external_links":0,"defined_names":1,"comments":0,"pivot_tables":0},"unopened":[],"bounds":{"document_bytes":16777216,"sheet_cells":100000,"rows_first":2000,"rows_last":500,"rows_between":2000,"halvings":0,"cell_chars":16384,"cell_head_chars":4096},"cells_cut":0,"cells_raw":0,"read":"whole","date_system":"1900"}

{"sheet":"16_LandtagBW","index":0,"n_rows":1519,"n_cols":6,"rows_kept":1519,"cut":false,"hidden":false,"merged":[]}
["Thema","Nummer","Datum","Art","Fraktion","Sortierung"]
["Bericht der Landesregierung zu einem Beschluss des Landtags; hier: Gesetz zur Umsetzung der Polizeistrukturreform (Polizeistrukturreformgesetz – PolRG)","16/31","Datum: 25.05.2016","Art: Alle","Urheber: LRG",{"$f":"RIGHT(C2, 10)","v":"25.05.2016"}]
["Gesetz zur Änderung des Bildungszeitgesetzes Baden-Württemberg (BzGBW)","16/54","Datum: 08.06.2016","Art: Gesetzentwurf","Urheber: FDP/DVP",{"$f":"RIGHT(C3, 10)","v":"08.06.2016"}]
["Bericht der Landesregierung zu einem Beschluss des Landtags;hier: Jahresbericht zur Telekommunikationsüberwachung 2015(Untersuchungsausschuss „Praxis der Telefonüberwachung“)","16/87","Datum: 17.06.2016","Art: Alle","Urheber: LRG",{"$f":"RIGHT(C4, 10)","v":"17.06.2016"}]
["Polizeiposten und Polizeibeamte im Ostalbkreis und im Landkreis Heidenheim","16/38","Datum: 21.06.2016","Art: Kleine Anfrage","Urheber: AfD",{"$f":"RIGHT(C5, 10)","v":"21.06.2016"}]
["Einsatz halbautomatischer Waffen bei der Jagd","16/7","Datum: 22.06.2016","Art: Kleine Anfrage","Urheber: FDP/DVP",{"$f":"RIGHT(C6, 10)","v":"22.06.2016"}]
["Beschlussempfehlung und Berichtdes Ausschusses für Inneres, Digitalisierung und Migrationzu der Mitteilung der Landesregierung vom 5. April 2016– Drucksache 15/8109Jährliche Unterrichtung des Landtags gemäß § 23 a Absatz 10 Polizeigesetz (PolG) über den e","16/164","Datum: 24.06.2016","Art: Beschlussempfehlung","Urheber: Ausschüsse",{"$f":"RIGHT(C7, 10)","v":"24.06.2016"}]
["Doping-Aufarbeitung an der Universität Freiburg","16/132","Datum: 04.07.2016","Art: Antrag","Urheber: GRÜNE",{"$f":"RIGHT(C8, 10)","v":"04.07.2016"}]
["Bericht der Landesregierung zu einem Beschluss des Landtags;hier: Denkschrift 2015 des Rechnungshofs zur Haushalts- und Wirtschaftsführung des Landes Baden-Württem-berg– Beitrag Nr. 7: Polizeikostenersatz bei kommerziellen Großveranstaltungen","16/188","Datum: 04.07.2016","Art: Alle","Urheber: LRG",{"$f":"RIGHT(C9, 10)","v":"04.07.2016"}]
["Konzept für den Freiwilligen Polizeidienst","16/60","Datum: 05.07.2016","Art: Antrag","Urheber: SPD",{"$f":"RIGHT(C10, 10)","v":"05.07.2016"}]
["Gesetz über die Feststellung eines Dritten Nachtrags zum Staatshaushaltsplan von Baden-Württemberg für das Haushaltsjahr 2016","16/240","Datum: 07.07.2016","Art: Gesetzentwurf","Urheber: LRG",{"$f":"RIGHT(C11, 10)","v":"07.07.2016"}]
["Innere Sicherheit im Schwarzwald-Baar-Kreis","16/56","Datum: 07.07.2016","Art: Kleine Anfrage","Urheber: CDU",{"$f":"RIGHT(C12, 10)","v":"07.07.2016"}]
["Mobiltelefone und andere verbotene Gegenstände in der Justizvollzugsanstalt Heimsheim – Umgang der Landesregierung mit dem Phänomen insgesamt","16/71","Datum: 08.07.2016","Art: Antrag","Urheber: FDP/DVP",{"$f":"RIGHT(C13, 10)","v":"08.07.2016"}]
["Besuch des Hasspredigers M. in Stuttgarter Moschee","16/78","Datum: 11.07.2016","Art: Antrag","Urheber: SPD",{"$f":"RIGHT(C14, 10)","v":"11.07.2016"}]
["Polizeibeamte und deren Überstunden in den Landkreisen Tuttlingen und Schwarzwald-Baar-Kreis","16/97","Datum: 12.07.2016","Art: Kleine Anfrage","Urheber: AfD",{"$f":"RIGHT(C15, 10)","v":"12.07.2016"}]
["Steuerehrlichkeit und die strafbefreiende Selbstanzeige im Steuerrecht","16/139","Datum: 14.07.2016","Art: Antrag","Urheber: SPD",{"$f":"RIGHT(C16, 10)","v":"14.07.2016"}]
["Gesetz zur Änderung des Polizeigesetzes","16/308","Datum: 14.07.2016","Art: Gesetzentwurf","Urheber: SPD",{"$f":"RIGHT(C17, 10)","v":"14.07.2016"}]
["[Hassprediger] M. in Stuttgart","16/93","Datum: 14.07.2016","Art: Kleine Anfrage","Urheber: AfD",{"$f":"RIGHT(C18, 10)","v":"14.07.2016"}]
["Einsetzung und Auftrag des Untersuchungsausschusses „Das Unterstützerumfeld  des  Nationalsozialistischen  Untergrunds  (NSU) in Baden-Württemberg und Fortsetzung der Aufarbei-tung  des  Terroranschlags  auf  die  Polizeibeamten  M.  K.  und  M. A. (Rechtsterrorismus/NSU BW II)“ ","16/311","Datum: 15.07.2016","Art: Antrag","Urheber: IFR",{"$f":"RIGHT(C19, 10)","v":"15.07.2016"}]
["Potenziale des legalen Cannabis-Anbaus zu medizinischen Zwecken für die baden-württembergische Landwirtschaft","16/155","Datum: 20.07.2016","Art: Antrag","Urheber: GRÜNE",{"$f":"RIGHT(C20, 10)","v":"20.07.2016"}]
["Einführung einer Wachpolizei in Baden-Württemberg","16/163","Datum: 20.07.2016","Art: Antrag","Urheber: SPD",{"$f":"RIGHT(C21, 10)","v":"20.07.2016"}]
["Gesetz zur Änderung des Polizeigesetzes","16/334","Datum: 21.07.2016","Art: Gesetzentwurf","Urheber: GRÜNE, CDU",{"$f":"RIGHT(C22, 10)","v":"21.07.2016"}]
["Spione unter Asylbewerbern und Flüchtlingen","16/180","Datum: 22.07.2016","Art: Kleine Anfrage","Urheber: AfD",{"$f":"RIGHT(C23, 10)","v":"22.07.2016"}]
["Zukunft des Konzepts „sicherer Herkunftsländer“ unter Grün-Schwarz","16/151","Datum: 25.07.2016","Art: Antrag","Urheber: FDP/DVP",{"$f":"RIGHT(C24, 10)","v":"25.07.2016"}]
["Gesetzesbeschluss des Landtags - Gesetz über die Feststellung eines Dritten Nachtrags zumStaatshaushaltsplan von Baden-Württemberg für das Haus-haltsjahr 2016","16/344","Datum: 26.07.2016","Art: Gesetzesbeschluss","Urheber: LRG",{"$f":"RIGHT(C25, 10)","v":"26.07.2016"}]
["Gesetz zur Änderung des Landesbeamtengesetzes und zur Änderung des Landesbesoldungsgesetzes Baden-Württemberg","16/348","Datum: 26.07.2016","Art: Gesetzentwurf","Urheber: GRÜNE, CDU",{"$f":"RIGHT(C26, 10)","v":"26.07.2016"}]
["Auftrag des Untersuchungsausschusses „Das Unterstützerumfeld des Nationalsozialistischen Untergrunds (NSU) in Baden-Württemberg und Fortsetzung der Aufarbeitung des Terroranschlags auf die Polizeibeamten M. K. und M. A. (Rechtsterrorismus/NSU BW II)“","16/362","Datum: 28.07.2016","Art: Alle","Urheber: LRG",{"$f":"RIGHT(C27, 10)","v":"28.07.2016"}]
["Nach § 175 Strafgesetzbuch (StGB) verurteilte Homosexuelle endlich rehabilitieren und entschädigen","16/249","Datum: 02.08.2016","Art: Antrag","Urheber: SPD",{"$f":"RIGHT(C28, 10)","v":"02.08.2016"}]
["Polizeistrukturreform: Vorläufige Aussetzung von reformbedingten Maßnahmen und Ziele der angekündigten Evaluierung","16/91","Datum: 02.08.2016","Art: Große Anfrage","Urheber: SPD",{"$f":"RIGHT(C29, 10)","v":"02.08.2016"}]
["Staatsangehörigkeit, Religion und Migrationshintergrund der in Baden-Württemberg inhaftierten Straftäter","16/204","Datum: 03.08.2016","Art: Kleine Anfrage","Urheber: AfD",{"$f":"RIGHT(C30, 10)","v":"03.08.2016"}]
["Beschlussempfehlung und Berichtdes Ausschusses für Finanzenzu dem Gesetzentwurf der Landesregierung– Drucksache 16/240Gesetz über die Feststellung eines Dritten Nachtrags zum Staatshaushaltsplan von Baden-Württemberg für das Haushaltsjahr 2016","16/300","Datum: 03.08.2016","Art: Beschlussempfehlung","Urheber: Ausschüsse",{"$f":"RIGHT(C31, 10)","v":"03.08.2016"}]
["Verbot von links- oder rechtsextremistischen Organisationen","16/190","Datum: 05.08.2016","Art: Kleine Anfrage","Urheber: AfD",{"$f":"RIGHT(C32, 10)","v":"05.08.2016"}]
["Wirtschaftlichkeit der Polizeireform","16/235","Datum: 05.08.2016","Art: Antrag","Urheber: CDU",{"$f":"RIGHT(C33, 10)","v":"05.08.2016"}]
["Extremismus in Baden-Württemberg – zukünftige Ausrichtung des Landesamts für Verfassungsschutz und Engagement der Landesregierung gegen extremistische Bestrebungen","16/171","Datum: 10.08.2016","Art: Große Anfrage","Urheber: FDP/DVP",{"$f":"RIGHT(C34, 10)","v":"10.08.2016"}]
["Rechtsextreme Aktivitäten und Gruppierungen im Landkreis Konstanz","16/253","Datum: 10.08.2016","Art: Kleine Anfrage","Urheber: FDP/DVP",{"$f":"RIGHT(C35, 10)","v":"10.08.2016"}]
["Lehrgänge für die Kriminalpolizei","16/282","Datum: 11.08.2016","Art: Kleine Anfrage","Urheber: CDU",{"$f":"RIGHT(C36, 10)","v":"11.08.2016"}]
["Einsetzung und Auftrag des Untersuchungsausschusses „Linksextremismus in Baden-Württemberg“","16/423","Datum: 11.08.2016","Art: Antrag","Urheber: ABW, AfD",{"$f":"RIGHT(C37, 10)","v":"11.08.2016"}]
["Weitere Nebenabreden der grün-schwarzen Koalition","16/347","Datum: 22.08.2016","Art: Antrag","Urheber: FDP/DVP",{"$f":"RIGHT(C38, 10)","v":"22.08.2016"}]
["Bericht der Landesregierung zu einem Beschluss des Landtags;hier: Untersuchungsausschuss „Aufklärung einer politischen Einflussnahme der CDU-geführten Landesregierung Mappus auf den Polizeieinsatz vom 30. September 2010 im Stuttgarter Schlossgarten und au","16/444","Datum: 22.08.2016","Art: Alle","Urheber: LRG",{"$f":"RIGHT(C39, 10)","v":"22.08.2016"}]
["Halbwaisen- und Waisengeld für Hinterbliebene von Beamtinnen und Beamten in Baden-Württemberg","16/178","Datum: 23.08.2016","Art: Kleine Anfrage","Urheber: SPD",{"$f":"RIGHT(C40, 10)","v":"23.08.2016"}]
["Hausbesetzungen in Baden-Württemberg","16/191","Datum: 23.08.2016","Art: Kleine Anfrage","Urheber: Fraktionslos",{"$f":"RIGHT(C41, 10)","v":"23.08.2016"}]
["Allianz deutscher Demokraten (ADD)","16/327","Datum: 23.08.2016","Art: Kleine Anfrage","Urheber: Fraktionslos",{"$f":"RIGHT(C42, 10)","v":"23.08.2016"}]
["Sportförderung in Baden-Württemberg mit Blick auf die Polizei","16/328","Datum: 23.08.2016","Art: Kleine Anfrage","Urheber: Fraktionslos",{"$f":"RIGHT(C43, 10)","v":"23.08.2016"}]
["Straftaten und Sicherheit an Bahnhöfen","16/335","Datum: 23.08.2016","Art: Antrag","Urheber: FDP/DVP",{"$f":"RIGHT(C44, 10)","v":"23.08.2016"}]
["Auswirkungen der gestoppten Baumaßnahmen in den Polizeipräsidien","16/383","Datum: 01.09.2016","Art: Antrag","Urheber: SPD",{"$f":"RIGHT(C45, 10)","v":"01.09.2016"}]
["Maßnahmen gegen den Links- und Rechtsextremismus","16/189","Datum: 02.09.2016","Art: Kleine Anfrage","Urheber: Fraktionslos",{"$f":"RIGHT(C46, 10)","v":"02.09.2016"}]
["Polizeiposten und Polizeibeamte im Alb-Donau-Kreis","16/380","Datum: 06.09.2016","Art: Kleine Anfrage","Urheber: ABW",{"$f":"RIGHT(C47, 10)","v":"06.09.2016"}]
["Aufenthaltsstatus und ihre Folgen","16/402","Datum: 07.09.2016","Art: Antrag","Urheber: FDP/DVP",{"$f":"RIGHT(C48, 10)","v":"07.09.2016"}]
["Politisch motivierte Kriminalität in Baden-Württemberg","16/411","Datum: 12.09.2016","Art: Kleine Anfrage","Urheber: AfD",{"$f":"RIGHT(C49, 10)","v":"12.09.2016"}]
["Islamistisch motivierte Ausreisen nach Syrien und in den Irak","16/418","Datum: 12.09.2016","Art: Kleine Anfrage","Urheber: ABW",{"$f":"RIGHT(C50, 10)","v":"12.09.2016"}]
["Sicherheit für Fußgänger im Straßenverkehr","16/424","Datum: 12.09.2016","Art: Antrag","Urheber: SPD",{"$f":"RIGHT(C51, 10)","v":"12.09.2016"}]
["„Pokémon Go“ aus sicherheitspolitischer und datenschutzrechtlicher Sicht","16/431","Datum: 13.09.2016","Art: Kleine Anfrage","Urheber: ABW",{"$f":"RIGHT(C52, 10)","v":"13.09.2016"}]
["Kinderehen in Baden-Württemberg","16/417","Datum: 14.09.2016","Art: Kleine Anfrage","Urheber: ABW",{"$f":"RIGHT(C53, 10)","v":"14.09.2016"}]
["Gefängnisinsassen in Baden-Württemberg","16/426","Datum: 14.09.2016","Art: Kleine Anfrage","Urheber: AfD",{"$f":"RIGHT(C54, 10)","v":"14.09.2016"}]
["Islamistische Radikalisierung unter Flüchtlingen, anerkannten Asylanten und Asylbewerbern in Baden-Württemberg","16/429","Datum: 14.09.2016","Art: Kleine Anfrage","Urheber: ABW",{"$f":"RIGHT(C55, 10)","v":"14.09.2016"}]
["Islamisten im politischen Geschehen in Baden-Württemberg","16/430","Datum: 14.09.2016","Art: Kleine Anfrage","Urheber: ABW",{"$f":"RIGHT(C56, 10)","v":"14.09.2016"}]
["Zuständigkeit, Anerkennung und Vollstreckung von Entscheidungen in Ehesachen, in Verfahren betreffend die elterliche Verantwortung und über internationale Kindesentführungen","16/501","Datum: 14.09.2016","Art: Alle","Urheber: LRG",{"$f":"RIGHT(C57, 10)","v":"14.09.2016"}]
["Belastungssituation in der Strafjustiz und im Justizvollzug","16/420","Datum: 15.09.2016","Art: Antrag","Urheber: CDU",{"$f":"RIGHT(C58, 10)","v":"15.09.2016"}]
["Vorzeitige Entlassung von M. S.","16/439","Datum: 15.09.2016","Art: Kleine Anfrage","Urheber: FDP/DVP",{"$f":"RIGHT(C59, 10)","v":"15.09.2016"}]
["Länderübergreifende Polizeieinsätze","16/432","Datum: 19.09.2016","Art: Antrag","Urheber: FDP/DVP",{"$f":"RIGHT(C60, 10)","v":"19.09.2016"}]
["Grün-schwarze Geheimpapiere zu Sparmaßnahmen und Personalvorschlägen","16/457","Datum: 22.09.2016","Art: Antrag","Urheber: SPD",{"$f":"RIGHT(C61, 10)","v":"22.09.2016"}]
["Gemeinsame Übung von Polizei und Bundeswehr in Baden-Württemberg","16/460","Datum: 22.09.2016","Art: Antrag","Urheber: SPD",{"$f":"RIGHT(C62, 10)","v":"22.09.2016"}]
["Gesetz zur Änderung des Landesbeamtengesetzes und zur Än-derung des Landesbesoldungsgesetzes Baden-Württemberghier: Anhörung zu dem Gesetzentwurf der Fraktion GRÜNEund der Fraktion der CDU– Drucksache 16/348","16/577","Datum: 22.09.2016","Art: Alle","Urheber: LRG",{"$f":"RIGHT(C63, 10)","v":"22.09.2016"}]
["Gesetz zur Änderung des Polizeigesetzeshier: Anhörung zu dem Gesetzentwurf der Fraktion GRÜNEund der Fraktion der CDU– Drucksache 16/334","16/580","Datum: 22.09.2016","Art: Alle","Urheber: LRG",{"$f":"RIGHT(C64, 10)","v":"22.09.2016"}]
["Gesetz zur Änderung des Polizeigesetzes - hier Anhörung zu dem Gesetzentwurf der Fraktion der SPD","16/581","Datum: 22.09.2016","Art: Alle","Urheber: LRG",{"$f":"RIGHT(C65, 10)","v":"22.09.2016"}]
["Innere Sicherheit – Polizei in den Landkreisen Calw, Freudenstadt und Böblingen","16/452","Datum: 26.09.2016","Art: Kleine Anfrage","Urheber: ABW",{"$f":"RIGHT(C66, 10)","v":"26.09.2016"}]
["Überstunden und Krankenstand der Polizei in Baden-Württemberg und in den Landkreisen Calw, Freudenstadt und Böblingen","16/467","Datum: 27.09.2016","Art: Kleine Anfrage","Urheber: ABW",{"$f":"RIGHT(C67, 10)","v":"27.09.2016"}]
["Beschlussempfehlung und Berichtdes Ausschusses für Finanzenzu der Mitteilung der Landesregierung vom 24. Juni 2016– Drucksache 16/188Bericht der Landesregierung zu einem Beschluss des Landtags;hier: Denkschrift 2015 des Rechnungshofs zur Haushalts- und Wi","16/602","Datum: 30.09.2016","Art: Beschlussempfehlung","Urheber: Ausschüsse",{"$f":"RIGHT(C68, 10)","v":"30.09.2016"}]
["Gesetzesbeschluss des Landtags - Gesetz zur Änderung des Landesbesoldungsgesetzes Baden-Württemberg","16/666","Datum: 30.09.2016","Art: Gesetzesbeschluss","Urheber: GRÜNE, CDU",{"$f":"RIGHT(C69, 10)","v":"30.09.2016"}]
["Beschlussempfehlung und Berichtdes Ausschusses für Inneres, Digitalisierung und Migrationzua) dem Gesetzentwurf der Fraktion der SPD– Gesetz zur Änderung des Polizeigesetzes– Drucksache 16/308b) dem Gesetzentwurf der Fraktion GRÜNE und der Fraktion der CD","16/588","Datum: 05.10.2016","Art: Beschlussempfehlung","Urheber: Ausschüsse",{"$f":"RIGHT(C70, 10)","v":"05.10.2016"}]
["Gesetz zur Ausführung des Gesetzes über die psychosoziale Prozessbegleitung im Strafverfahren","16/712","Datum: 11.10.2016","Art: Gesetzentwurf","Urheber: LRG",{"$f":"RIGHT(C71, 10)","v":"11.10.2016"}]
["Baustopp des neuen Führungs- und Lagezentrums im Polizeipräsidium Mannheim","16/500","Datum: 13.10.2016","Art: Kleine Anfrage","Urheber: SPD",{"$f":"RIGHT(C72, 10)","v":"13.10.2016"}]
["Mögliche Sprachregelungen und Strafverfolgung bei Flüchtlingen durch Polizei und Landesbehörden","16/489","Datum: 14.10.2016","Art: Kleine Anfrage","Urheber: ABW",{"$f":"RIGHT(C73, 10)","v":"14.10.2016"}]
["(Fehlende) Erwähnung des „Muslim-Markt“ im Verfassungsschutzbericht","16/493","Datum: 14.10.2016","Art: Kleine Anfrage","Urheber: ABW",{"$f":"RIGHT(C74, 10)","v":"14.10.2016"}]
["Aktivitäten des türkischen Geheimdienstes Millî İstihbarat Teşkilâtı (MIT) in Baden-Württemberg","16/497","Datum: 14.10.2016","Art: Kleine Anfrage","Urheber: AfD",{"$f":"RIGHT(C75, 10)","v":"14.10.2016"}]
["Gesetzesbeschluss des Landtags - Gesetz zur Änderung des Polizeigesetzes","16/828","Datum: 14.10.2016","Art: Gesetzesbeschluss","Urheber: GRÜNE, CDU",{"$f":"RIGHT(C76, 10)","v":"14.10.2016"}]
["Berichterstattung über Gewalttaten in Baden-Württemberg im Südwestrundfunk (SWR)","16/490","Datum: 17.10.2016","Art: Kleine Anfrage","Urheber: ABW",{"$f":"RIGHT(C77, 10)","v":"17.10.2016"}]
["Gemeinsame Übungen der Polizei und der Bundeswehr in Baden-Württemberg","16/520","Datum: 17.10.2016","Art: Kleine Anfrage","Urheber: AfD",{"$f":"RIGHT(C78, 10)","v":"17.10.2016"}]
["Straftaten gegen Polizeibeamte im Zuständigkeitsbereich des Polizeipräsidiums Tuttlingen","16/502","Datum: 18.10.2016","Art: Kleine Anfrage","Urheber: ABW",{"$f":"RIGHT(C79, 10)","v":"18.10.2016"}]
["Situation der Polizei im Landkreis Biberach","16/539","Datum: 19.10.2016","Art: Kleine Anfrage","Urheber: CDU",{"$f":"RIGHT(C80, 10)","v":"19.10.2016"}]
["Identitäre Bewegung (IB) in Baden-Württemberg","16/555","Datum: 19.10.2016","Art: Kleine Anfrage","Urheber: AfD",{"$f":"RIGHT(C81, 10)","v":"19.10.2016"}]
["Praktiken des türkischen Geheimdienstes Millî İstihbarat Teşkilâtı (MIT) in Baden-Württemberg","16/517","Datum: 20.10.2016","Art: Kleine Anfrage","Urheber: ABW",{"$f":"RIGHT(C82, 10)","v":"20.10.2016"}]
["Umgang mit dem erhöhten Bedarf an dauerhaften Betreuungsplätzen in Jugendhilfeeinrichtungen durch den Zustrom nichtbegleiteter Minderjähriger","16/571","Datum: 20.10.2016","Art: Kleine Anfrage","Urheber: ABW",{"$f":"RIGHT(C83, 10)","v":"20.10.2016"}]
["Terrorverdächtige in Baden-Württemberg","16/595","Datum: 24.10.2016","Art: Antrag","Urheber: AfD",{"$f":"RIGHT(C84, 10)","v":"24.10.2016"}]
["Raub durch Sprengstoffanschläge auf Automaten","16/623","Datum: 24.10.2016","Art: Antrag","Urheber: ABW",{"$f":"RIGHT(C85, 10)","v":"24.10.2016"}]
["Gleichstellungsbeauftragte in Baden-Württemberg","16/406","Datum: 26.10.2016","Art: Kleine Anfrage","Urheber: AfD",{"$f":"RIGHT(C86, 10)","v":"26.10.2016"}]
["Gefälschte Identitäten von eingereisten Migranten in Baden-Württemberg","16/585","Datum: 27.10.2016","Art: Kleine Anfrage","Urheber: ABW",{"$f":"RIGHT(C87, 10)","v":"27.10.2016"}]
["Polizeiposten und Polizeibeamte im Landkreis Schwäbisch Hall","16/586","Datum: 27.10.2016","Art: Kleine Anfrage","Urheber: ABW",{"$f":"RIGHT(C88, 10)","v":"27.10.2016"}]
["Gutachtliche Äußerungdes Ständigen Ausschusseszu dem Antrag der Fraktion der ABW und der Fraktion der AfD– Drucksache 16/423Einsetzung und Auftrag des Untersuchungsausschusses „Linksextremismus in Baden-Württemberg“","16/730","Datum: 27.10.2016","Art: Alle","Urheber: Ausschüsse",{"$f":"RIGHT(C89, 10)","v":"27.10.2016"}]
["Gewalt in Gefängnissen in Baden-Württemberg","16/624","Datum: 31.10.2016","Art: Kleine Anfrage","Urheber: ABW",{"$f":"RIGHT(C90, 10)","v":"31.10.2016"}]
["Mögliche Passfälschungen bei Flüchtlingen und Asylbewerbern","16/667","Datum: 04.11.2016","Art: Antrag","Urheber: CDU",{"$f":"RIGHT(C91, 10)","v":"04.11.2016"}]
["Beschlussempfehlung und Berichtdes Ständigen Ausschusseszu dem Gesetzentwurf der Landesregierung– Drucksache 16/712Gesetz zur Ausführung des Gesetzes über die psychosoziale Prozessbegleitung im Strafverfahren","16/876","Datum: 04.11.2016","Art: Beschlussempfehlung","Urheber: Ausschüsse",{"$f":"RIGHT(C92, 10)","v":"04.11.2016"}]
["Der öffentliche Dienst und die Angehörigen der Justiz als Zielscheibe der „Reichsbürger“","16/574","Datum: 07.11.2016","Art: Antrag","Urheber: CDU",{"$f":"RIGHT(C93, 10)","v":"07.11.2016"}]
["Diebstahlserie von Navigationsgeräten im Bereich des Polizeipräsidiums Mannheim","16/627","Datum: 07.11.2016","Art: Kleine Anfrage","Urheber: ABW",{"$f":"RIGHT(C94, 10)","v":"07.11.2016"}]
["Bericht der Landesregierung zu einem Beschluss des Landtags;hier: Beratende Äußerung des Rechnungshofs vom 2. April 2015 „Versorgungsrücklage und Versorgungsfonds“","16/898","Datum: 07.11.2016","Art: Alle","Urheber: LRG",{"$f":"RIGHT(C95, 10)","v":"07.11.2016"}]
["Bedrohung durch radikale Elemente der Türkisch-Islamischen Union der Anstalt für Religion e. V. (DITIB)","16/649","Datum: 08.11.2016","Art: Antrag","Urheber: FDP/DVP",{"$f":"RIGHT(C96, 10)","v":"08.11.2016"}]
["Linksextremistische Ausschreitungen gegen die Polizei vom 30. April bis 1. Mai 2016","16/705","Datum: 08.11.2016","Art: Kleine Anfrage","Urheber: AfD",{"$f":"RIGHT(C97, 10)","v":"08.11.2016"}]
["Entscheidung zum Bau des Führungs- und Lagezentrums beim Polizeipräsidium Aalen","16/704","Datum: 11.11.2016","Art: Kleine Anfrage","Urheber: FDP/DVP",{"$f":"RIGHT(C98, 10)","v":"11.11.2016"}]
["Drogenkriminalität an den Schulen","16/719","Datum: 11.11.2016","Art: Antrag","Urheber: FDP/DVP",{"$f":"RIGHT(C99, 10)","v":"11.11.2016"}]
["Gesetz zur Ausführung des Gesetzes über die psychosoziale Prozessbegleitung im Strafverfahren","16/933","Datum: 14.11.2016","Art: Gesetzesbeschluss","Urheber: LRG",{"$f":"RIGHT(C100, 10)","v":"14.11.2016"}]
["Die Identifizierung Verstorbener durch Angehörige – Probleme, Hilfen, Ersatzangebote","16/720","Datum: 15.11.2016","Art: Kleine Anfrage","Urheber: FDP/DVP",{"$f":"RIGHT(C101, 10)","v":"15.11.2016"}]
["Spielhallen in Baden-Württemberg","16/739","Datum: 15.11.2016","Art: Kleine Anfrage","Urheber: AfD",{"$f":"RIGHT(C102, 10)","v":"15.11.2016"}]
["Die Entscheidungen zum Polizeipräsidium Aalen im Rahmen der Polizeireform","16/761","Datum: 21.11.2016","Art: Kleine Anfrage","Urheber: FDP/DVP",{"$f":"RIGHT(C103, 10)","v":"21.11.2016"}]
["Sicherheit in der Stadt Tuttlingen","16/764","Datum: 21.11.2016","Art: Kleine Anfrage","Urheber: AfD",{"$f":"RIGHT(C104, 10)","v":"21.11.2016"}]
["Situation von Zugbegleitern, Fahrkartenkontrolleuren und anderen öffentlichen Bediensteten","16/765","Datum: 21.11.2016","Art: Kleine Anfrage","Urheber: AfD",{"$f":"RIGHT(C105, 10)","v":"21.11.2016"}]
["Kosten des Polizeieinsatzes für die Sicherung der Veranstaltung der AfD am 3. Oktober 2016 in Bad Cannstatt","16/766","Datum: 21.11.2016","Art: Kleine Anfrage","Urheber: AfD",{"$f":"RIGHT(C106, 10)","v":"21.11.2016"}]
["Das Polizeipräsidium Aalen nach der Polizeireform","16/783","Datum: 21.11.2016","Art: Kleine Anfrage","Urheber: FDP/DVP",{"$f":"RIGHT(C107, 10)","v":"21.11.2016"}]
["„Lies!“-Aktionen und ihre Hintermänner – Aktivitäten und Positionierung der Landesregierung in Land und Bund","16/799","Datum: 21.11.2016","Art: Antrag","Urheber: FDP/DVP",{"$f":"RIGHT(C108, 10)","v":"21.11.2016"}]
["Chancengleichheitsgesetz","16/880","Datum: 21.11.2016","Art: Antrag","Urheber: FDP/DVP",{"$f":"RIGHT(C109, 10)","v":"21.11.2016"}]
["Altersgrenze bei Halbwaisen- und Waisengeld für Hinterbliebene von Beamtinnen und Beamten in Baden-Württemberg","16/651","Datum: 22.11.2016","Art: Antrag","Urheber: SPD",{"$f":"RIGHT(C110, 10)","v":"22.11.2016"}]
["Zuschüsse an Netzwerke gegen Rechts","16/700","Datum: 23.11.2016","Art: Kleine Anfrage","Urheber: ABW",{"$f":"RIGHT(C111, 10)","v":"23.11.2016"}]
["Sicherheit im Landkreis Sigmaringen","16/797","Datum: 23.11.2016","Art: Kleine Anfrage","Urheber: CDU",{"$f":"RIGHT(C112, 10)","v":"23.11.2016"}]
["Sicherheit im Landkreis Sigmaringen","16/798","Datum: 23.11.2016","Art: Kleine Anfrage","Urheber: FDP/DVP",{"$f":"RIGHT(C113, 10)","v":"23.11.2016"}]
["Sonderprogramm des Landes zur Behandlung traumatisierter Opfer des Islamischen Staats (IS)","16/861","Datum: 23.11.2016","Art: Antrag","Urheber: AfD",{"$f":"RIGHT(C114, 10)","v":"23.11.2016"}]
["Politisch motivierte Kriminalität und extremistische Bestrebungen im Bereich des Polizeipräsidiums Mannheim","16/843","Datum: 25.11.2016","Art: Kleine Anfrage","Urheber: CDU",{"$f":"RIGHT(C115, 10)","v":"25.11.2016"}]
["Extremismusbekämpfung durch Prävention","16/878","Datum: 29.11.2016","Art: Antrag","Urheber: SPD",{"$f":"RIGHT(C116, 10)","v":"29.11.2016"}]
["Personelle Ausstattung und Gefährdungslage in der Justizvollzugsanstalt (JVA) Schwäbisch Hall","16/854","Datum: 30.11.2016","Art: Kleine Anfrage","Urheber: FDP/DVP",{"$f":"RIGHT(C117, 10)","v":"30.11.2016"}]
["Die Reichsbürgerbewegung in Baden-Württemberg","16/905","Datum: 05.12.2016","Art: Antrag","Urheber: SPD",{"$f":"RIGHT(C118, 10)","v":"05.12.2016"}]
["Haushaltsbegleitgesetz 2017","16/1118","Datum: 08.12.2016","Art: Gesetzentwurf","Urheber: LRG",{"$f":"RIGHT(C119, 10)","v":"08.12.2016"}]
["Personalsituation in der Polizei Baden-Württemberg","16/904","Datum: 08.12.2016","Art: Antrag","Urheber: SPD",{"$f":"RIGHT(C120, 10)","v":"08.12.2016"}]
["Bedrohung der inneren Sicherheit durch Angriffe von Clowns","16/913","Datum: 08.12.2016","Art: Kleine Anfrage","Urheber: AfD",{"$f":"RIGHT(C121, 10)","v":"08.12.2016"}]
["Drogen in den Kreisen Tuttlingen und Schwarzwald-Baar","16/914","Datum: 08.12.2016","Art: Kleine Anfrage","Urheber: AfD",{"$f":"RIGHT(C122, 10)","v":"08.12.2016"}]
["Situation der Polizei beim Polizeipräsidium Heilbronn","16/884","Datum: 09.12.2016","Art: Kleine Anfrage","Urheber: AfD",{"$f":"RIGHT(C123, 10)","v":"09.12.2016"}]
["Gesetz über die Feststellung des Staatshaushaltsplans von Baden-Württemberg für das Haushaltsjahr 2017 (Staatshaushaltsgesetz 2017 – StHG 2017)","16/1117","Datum: 13.12.2016","Art: Gesetzentwurf","Urheber: LRG",{"$f":"RIGHT(C124, 10)","v":"13.12.2016"}]
["Situation der Polizei im Alb-Donau-Kreis","16/950","Datum: 15.12.2016","Art: Kleine Anfrage","Urheber: CDU",{"$f":"RIGHT(C125, 10)","v":"15.12.2016"}]
["Haben die grün-rote und die grün-schwarze Landesregierung dafür gesorgt, dass das Programm „Ich bin doch kein Heini!?“ nicht fortgeführt wird?","16/954","Datum: 15.12.2016","Art: Kleine Anfrage","Urheber: FDP/DVP",{"$f":"RIGHT(C126, 10)","v":"15.12.2016"}]
["Wohnungseinbrüche im Zollernalbkreis und deren Entwicklung","16/980","Datum: 15.12.2016","Art: Kleine Anfrage","Urheber: AfD",{"$f":"RIGHT(C127, 10)","v":"15.12.2016"}]
["Zu kurze Fristen bei Verwarnungen aufgrund von Ordnungswidrigkeiten im Straßenverkehr","16/998","Datum: 16.12.2016","Art: Kleine Anfrage","Urheber: FDP/DVP",{"$f":"RIGHT(C128, 10)","v":"16.12.2016"}]
["Innere Sicherheit: Polizei im Zollernalbkreis und Flüchtlingspolitik","16/975","Datum: 20.12.2016","Art: Kleine Anfrage","Urheber: AfD",{"$f":"RIGHT(C129, 10)","v":"20.12.2016"}]
["Bericht der Landesregierung zu einem Beschluss des Landtags;hier: Denkschrift 2012 des Rechnungshofs zur Haushalts- und Wirtschaftsführung des Landes Baden-Württemberg– Beitrag Nr. 9: Polizeiärztlicher Dienst Baden-Würt-temberg","16/1197","Datum: 21.12.2016","Art: Alle","Urheber: LRG",{"$f":"RIGHT(C130, 10)","v":"21.12.2016"}]
["Innere Sicherheit – Polizei im Zollernalbkreis sowie in den Landkreisen Tübingen, Reutlingen, Schwarzwald-Baar und Rottweil-Tuttlingen","16/974","Datum: 22.12.2016","Art: Kleine Anfrage","Urheber: AfD",{"$f":"RIGHT(C131, 10)","v":"22.12.2016"}]
["Situation von Frauen- und Kinderschutzhäusern in Baden-Württemberg","16/1056","Datum: 23.12.2016","Art: Antrag","Urheber: AfD",{"$f":"RIGHT(C132, 10)","v":"23.12.2016"}]
["Kinderehen verbieten und Kinderschutz stärken","16/1077","Datum: 23.12.2016","Art: Antrag","Urheber: AfD",{"$f":"RIGHT(C133, 10)","v":"23.12.2016"}]
["Den Umfang der dienstlichen Entlastung der Beauftragten für Chancengleichheit angemessen festlegen","16/906","Datum: 23.12.2016","Art: Antrag","Urheber: SPD",{"$f":"RIGHT(C134, 10)","v":"23.12.2016"}]
["Landesaktionsplan gegen Gewalt an Frauen","16/710","Datum: 27.12.2016","Art: Antrag","Urheber: FDP/DVP",{"$f":"RIGHT(C135, 10)","v":"27.12.2016"}]
["Schutzbekleidung der Polizei","16/1076","Datum: 02.01.2017","Art: Antrag","Urheber: AfD",{"$f":"RIGHT(C136, 10)","v":"02.01.2017"}]
["Hasskriminalität im Internet – Maßnahmen der Landesregierung in Land und Bund","16/1084","Datum: 03.01.2017","Art: Antrag","Urheber: FDP/DVP",{"$f":"RIGHT(C137, 10)","v":"03.01.2017"}]
["Bericht der Landesregierung zu einem Beschluss des Landtags;hier: Bericht und Beschlussempfehlung des Untersuchungsaus-schusses „Die Aufarbeitung der Kontakte und Aktivitä-ten des Nationalsozialistischen Untergrunds (NSU) in Ba-den-Württemberg und die Ums","16/1037","Datum: 04.01.2017","Art: Alle","Urheber: LRG",{"$f":"RIGHT(C138, 10)","v":"04.01.2017"}]
["Polizei und Kriminalität in Sulz am Neckar","16/1020","Datum: 05.01.2017","Art: Kleine Anfrage","Urheber: AfD",{"$f":"RIGHT(C139, 10)","v":"05.01.2017"}]
["Panzerfahrzeuge bei der Polizei","16/1030","Datum: 09.01.2017","Art: Kleine Anfrage","Urheber: AfD",{"$f":"RIGHT(C140, 10)","v":"09.01.2017"}]
["Beratungsstrukturen für von Zwangsheirat bedrohte oder betroffene Frauen in Baden-Württemberg","16/1092","Datum: 10.01.2017","Art: Antrag","Urheber: FDP/DVP",{"$f":"RIGHT(C141, 10)","v":"10.01.2017"}]
["Notaufnahmeplätze für von Zwangsheirat bedrohte oder betroffene Frauen in Baden-Württemberg","16/1093","Datum: 10.01.2017","Art: Antrag","Urheber: FDP/DVP",{"$f":"RIGHT(C142, 10)","v":"10.01.2017"}]
["Türkischer Extremismus im Main-Tauber-Kreis","16/1057","Datum: 11.01.2017","Art: Kleine Anfrage","Urheber: AfD",{"$f":"RIGHT(C143, 10)","v":"11.01.2017"}]
["Erstellung des Papiers von Innenminister Strobl zur Durchsetzung der Ausreisepflicht für Ausländer","16/1102","Datum: 11.01.2017","Art: Antrag","Urheber: SPD",{"$f":"RIGHT(C144, 10)","v":"11.01.2017"}]
["Erfassung von Tätermerkmalen anhand der DNA zulassen","16/1133","Datum: 11.01.2017","Art: Antrag","Urheber: AfD",{"$f":"RIGHT(C145, 10)","v":"11.01.2017"}]
["Drogeneinfluss im Autoverkehr in den Kreisen Tuttlingen und Schwarzwald-Baar","16/1068","Datum: 12.01.2017","Art: Kleine Anfrage","Urheber: AfD",{"$f":"RIGHT(C146, 10)","v":"12.01.2017"}]
["Trans- und Homophobie in der Kriminalstatistik","16/1140","Datum: 16.01.2017","Art: Kleine Anfrage","Urheber: SPD",{"$f":"RIGHT(C147, 10)","v":"16.01.2017"}]
["Anwärtersonderzuschlag im Justizvollzug","16/1108","Datum: 18.01.2017","Art: Kleine Anfrage","Urheber: SPD",{"$f":"RIGHT(C148, 10)","v":"18.01.2017"}]
["Entwicklung der Polizeieinsätze in der Landeshauptstadt","16/1113","Datum: 18.01.2017","Art: Kleine Anfrage","Urheber: AfD",{"$f":"RIGHT(C149, 10)","v":"18.01.2017"}]
["Polizeistrukturreform: Vorläufige Aussetzung von reformbedingten Maßnahmen und Ziele der angekündigten Evaluierung; hier: Sofortige Aufhebung der Aussetzung von Baumaßnahmen bei der Polizei","16/1124","Datum: 18.01.2017","Art: Antrag","Urheber: SPD",{"$f":"RIGHT(C150, 10)","v":"18.01.2017"}]
["Unfalltode im Zollernalbkreis und Baden-Württemberg und ihre Hauptursachen","16/1192","Datum: 18.01.2017","Art: Kleine Anfrage","Urheber: AfD",{"$f":"RIGHT(C151, 10)","v":"18.01.2017"}]
["Musikveranstaltungen von Rechtsextremisten","16/1237","Datum: 20.01.2017","Art: Antrag","Urheber: FDP/DVP",{"$f":"RIGHT(C152, 10)","v":"20.01.2017"}]
["Überblick über die Bandenkriminalität in Baden-Württemberg","16/1201","Datum: 23.01.2017","Art: Kleine Anfrage","Urheber: AfD",{"$f":"RIGHT(C153, 10)","v":"23.01.2017"}]
["Die Polizei in Baden-Württemberg – Polizeireform, Evaluierung, Korrekturbedarf","16/1095","Datum: 30.01.2017","Art: Große Anfrage","Urheber: FDP/DVP",{"$f":"RIGHT(C154, 10)","v":"30.01.2017"}]
["Verschweigt die Landesregierung die Zusammenarbeit von Jusos und Grüner Jugend mit Linksextremisten?","16/1220","Datum: 01.02.2017","Art: Antrag","Urheber: AfD",{"$f":"RIGHT(C155, 10)","v":"01.02.2017"}]
["Spezialisierte Polizeieinsätze","16/1205","Datum: 03.02.2017","Art: Kleine Anfrage","Urheber: AfD",{"$f":"RIGHT(C156, 10)","v":"03.02.2017"}]
["Beschlussempfehlung und Bericht des Ausschusses für Finanzen - Staatshaushaltsplan 2017 - inzelplan 03: Ministerium für Inneres, Digitalisierung und Migration","16/1303","Datum: 06.02.2017","Art: Beschlussempfehlung","Urheber: Ausschüsse",{"$f":"RIGHT(C157, 10)","v":"06.02.2017"}]
["Schutz der Polizei vor Linksextremisten und Reichsbürgern","16/1285","Datum: 09.02.2017","Art: Kleine Anfrage","Urheber: AfD",{"$f":"RIGHT(C158, 10)","v":"09.02.2017"}]
["Denkmalschändungen","16/1287","Datum: 09.02.2017","Art: Kleine Anfrage","Urheber: AfD",{"$f":"RIGHT(C159, 10)","v":"09.02.2017"}]
["Aktuelle Situation am ehemaligen Standort der Polizeischule in Wertheim","16/1289","Datum: 09.02.2017","Art: Kleine Anfrage","Urheber: FDP/DVP",{"$f":"RIGHT(C160, 10)","v":"09.02.2017"}]
["Untersuchung des Alters von minderjährigen Flüchtlingen","16/1279","Datum: 10.02.2017","Art: Kleine Anfrage","Urheber: AfD",{"$f":"RIGHT(C161, 10)","v":"10.02.2017"}]
["Ausrüstung und Ausstattung der Hochschule für Polizei Baden-Württemberg","16/1283","Datum: 10.02.2017","Art: Kleine Anfrage","Urheber: AfD",{"$f":"RIGHT(C162, 10)","v":"10.02.2017"}]
["Einsetzung und Auftrag des Untersuchungsausschusses „Das Unterstützerumfeld des Nationalsozialistischen Untergrunds (NSU) in Baden-Württemberg und Fortsetzung der Aufarbeitung des Terroranschlags auf die Polizeibeamten M. K. und M. A. (Rechtsterrorismus/NSU BW II)“","16/1587","Datum: 14.02.2017","Art: Antrag","Urheber: IFR",{"$f":"RIGHT(C163, 10)","v":"14.02.2017"}]
["Maßnahmen zur Verhinderung von Geisterfahrern in Baden-Württemberg","16/1180","Datum: 16.02.2017","Art: Kleine Anfrage","Urheber: AfD",{"$f":"RIGHT(C164, 10)","v":"16.02.2017"}]
["Unterbringungskosten und Herkunft unbegleiteter minderjähriger Flüchtlinge (UMF)","16/1345","Datum: 17.02.2017","Art: Antrag","Urheber: AfD",{"$f":"RIGHT(C165, 10)","v":"17.02.2017"}]
["Überwachung von Rotlichtverstößen im Zollernalbkreis und in Baden-Württemberg und ihre Folgen","16/1321","Datum: 20.02.2017","Art: Kleine Anfrage","Urheber: AfD",{"$f":"RIGHT(C166, 10)","v":"20.02.2017"}]
["Politisch motivierte Kriminalität im Zollernalbkreis und in Baden-Württemberg","16/1330","Datum: 21.02.2017","Art: Kleine Anfrage","Urheber: AfD",{"$f":"RIGHT(C167, 10)","v":"21.02.2017"}]
["Nach den Serien von tödlichen Unfällen im Zollernalbkreis: Tempolimit auf der Bundesstraße (B) 463 und der B 27","16/1187","Datum: 23.02.2017","Art: Kleine Anfrage","Urheber: AfD",{"$f":"RIGHT(C168, 10)","v":"23.02.2017"}]
["Die „Reichsbürger“ in Baden-Württemberg – welche Handlungsnotwendigkeiten sieht die Landesregierung?","16/1299","Datum: 23.02.2017","Art: Kleine Anfrage","Urheber: AfD",{"$f":"RIGHT(C169, 10)","v":"23.02.2017"}]
["Der Fall Anis Amri und die weiteren Veranlassungen in Baden-Württemberg","16/1358","Datum: 23.02.2017","Art: Antrag","Urheber: FDP/DVP",{"$f":"RIGHT(C170, 10)","v":"23.02.2017"}]
["Erfassung und Kategorisierung von politisch motivierten Straftaten im Zollernalbkreis und in Baden-Württemberg","16/1293","Datum: 24.02.2017","Art: Kleine Anfrage","Urheber: AfD",{"$f":"RIGHT(C171, 10)","v":"24.02.2017"}]
["Drogenproblem im Zollernalbkreis sowie in Baden-Württemberg und die Folgen","16/1322","Datum: 24.02.2017","Art: Kleine Anfrage","Urheber: AfD",{"$f":"RIGHT(C172, 10)","v":"24.02.2017"}]
["Bewertungen bei Beamten und Angestellten im öffentlichen Dienst","16/1332","Datum: 24.02.2017","Art: Kleine Anfrage","Urheber: AfD",{"$f":"RIGHT(C173, 10)","v":"24.02.2017"}]
["Die Ahmadiyya-Muslim-Gemeinde in Baden-Württemberg","16/1209","Datum: 28.02.2017","Art: Kleine Anfrage","Urheber: AfD",{"$f":"RIGHT(C174, 10)","v":"28.02.2017"}]
["Standortkonzeption für die Erstaufnahme von Flüchtlingen","16/1348","Datum: 28.02.2017","Art: Antrag","Urheber: FDP/DVP",{"$f":"RIGHT(C175, 10)","v":"28.02.2017"}]
["Waffenschränke in privater und öffentlicher Hand – die Sinnhaftigkeit der neuen Einstufung von Sicherheitsbehältnissen im Bereich des Waffenrechts","16/1349","Datum: 28.02.2017","Art: Antrag","Urheber: FDP/DVP",{"$f":"RIGHT(C176, 10)","v":"28.02.2017"}]
["Reinigung von Körperschutzausstattungen","16/1475","Datum: 28.02.2017","Art: Antrag","Urheber: AfD",{"$f":"RIGHT(C177, 10)","v":"28.02.2017"}]
["Gesetz über die Feststellung des Staatshaushaltsplans von Baden-Württemberg für das Haushaltsjahr 2017 (Staatshaushaltsgesetz 2017 – StHG 2017)","16/1626","Datum: 28.02.2017","Art: Gesetzesbeschluss","Urheber: LRG",{"$f":"RIGHT(C178, 10)","v":"28.02.2017"}]
["Flüchtlingsbewegung zwischen der Schweiz und Baden-Württemberg","16/1260","Datum: 01.03.2017","Art: Kleine Anfrage","Urheber: Fraktionslos",{"$f":"RIGHT(C179, 10)","v":"01.03.2017"}]
["Wohnungseinbrüche und Autoaufbrüche in Mannheim","16/1360","Datum: 02.03.2017","Art: Kleine Anfrage","Urheber: SPD",{"$f":"RIGHT(C180, 10)","v":"02.03.2017"}]
["Salafistisch ausgerichtete „Lies!“-Kampagne","16/1477","Datum: 06.03.2017","Art: Antrag","Urheber: AfD",{"$f":"RIGHT(C181, 10)","v":"06.03.2017"}]
["Der Fall „Anis Amri“ – Bezüge zu Baden-Württemberg","16/1547","Datum: 06.03.2017","Art: Antrag","Urheber: SPD",{"$f":"RIGHT(C182, 10)","v":"06.03.2017"}]
["Beschlussempfehlung und Berichtdes Ausschusses für Finanzenzu der Mitteilung der Landesregierung vom 12. Dezember 2016– Drucksache 16/1197Bericht der Landesregierung zu einem Beschluss des Landtags;hier: Denkschrift 2012 des Rechnungshofs zur Haushalts- u","16/1629","Datum: 06.03.2017","Art: Beschlussempfehlung","Urheber: Ausschüsse",{"$f":"RIGHT(C183, 10)","v":"06.03.2017"}]
["Sicherheitspartnerschaft zwischen dem Land und der Stadt Freiburg","16/1374","Datum: 09.03.2017","Art: Kleine Anfrage","Urheber: SPD",{"$f":"RIGHT(C184, 10)","v":"09.03.2017"}]
["Terrorismus im Land Baden-Württemberg","16/1471","Datum: 09.03.2017","Art: Antrag","Urheber: AfD",{"$f":"RIGHT(C185, 10)","v":"09.03.2017"}]
["Einsatz von intelligenter Videoüberwachung in Baden-Württemberg","16/1488","Datum: 09.03.2017","Art: Antrag","Urheber: SPD",{"$f":"RIGHT(C186, 10)","v":"09.03.2017"}]
["Steigender Drogenkonsum in den Schulen","16/1481","Datum: 10.03.2017","Art: Antrag","Urheber: AfD",{"$f":"RIGHT(C187, 10)","v":"10.03.2017"}]
["Wohnungseinbrüche im Wahlkreis Böblingen-Sindelfingen-Schönbuch","16/1378","Datum: 13.03.2017","Art: Kleine Anfrage","Urheber: CDU",{"$f":"RIGHT(C188, 10)","v":"13.03.2017"}]
["Neueinstellungen und Umgang mit Überstunden bei der Polizei in Baden-Württemberg","16/1396","Datum: 13.03.2017","Art: Kleine Anfrage","Urheber: AfD",{"$f":"RIGHT(C189, 10)","v":"13.03.2017"}]
["Abschiebezentren an Flughäfen in Baden-Württemberg","16/1419","Datum: 13.03.2017","Art: Kleine Anfrage","Urheber: AfD",{"$f":"RIGHT(C190, 10)","v":"13.03.2017"}]
["Unfallzahlen und Unfallschwerpunkte auf der Autobahn (A) 5 zwischen Offenburg und Basel","16/1429","Datum: 13.03.2017","Art: Kleine Anfrage","Urheber: GRÜNE",{"$f":"RIGHT(C191, 10)","v":"13.03.2017"}]
["Gefährder in Abschiebehaftanstalten in Baden-Württemberg","16/1375","Datum: 14.03.2017","Art: Kleine Anfrage","Urheber: FDP/DVP",{"$f":"RIGHT(C192, 10)","v":"14.03.2017"}]
["Ruhegehälter in Baden-Württemberg","16/1394","Datum: 14.03.2017","Art: Kleine Anfrage","Urheber: AfD",{"$f":"RIGHT(C193, 10)","v":"14.03.2017"}]
["Drogeneinfluss im Autoverkehr im Zollernalbkreis sowie im Regierungsbezirk Tübingen","16/1425","Datum: 14.03.2017","Art: Kleine Anfrage","Urheber: AfD",{"$f":"RIGHT(C194, 10)","v":"14.03.2017"}]
["Türkische Bespitzelung durch die Türkisch-Islamische Union der Anstalt für Religion e. V. (DITIB)","16/1430","Datum: 14.03.2017","Art: Antrag","Urheber: FDP/DVP",{"$f":"RIGHT(C195, 10)","v":"14.03.2017"}]
["Organisation „Der dritte Weg“","16/1434","Datum: 15.03.2017","Art: Kleine Anfrage","Urheber: GRÜNE",{"$f":"RIGHT(C196, 10)","v":"15.03.2017"}]
["Verstöße gegen das Tierschutzgesetz","16/1469","Datum: 15.03.2017","Art: Antrag","Urheber: AfD",{"$f":"RIGHT(C197, 10)","v":"15.03.2017"}]
["Beschlussempfehlung und Berichtdes Ausschusses für Soziales und Integrationzu der Mitteilung des Ministeriums für Soziales und Integration vom 6. Dezember 2016– Drucksache 16/1164Unterrichtung des Landtags nach § 10 Absatz 4 Landeshaus-haltsordnung (LHO);","16/1165","Datum: 17.03.2017","Art: Beschlussempfehlung","Urheber: Ausschüsse",{"$f":"RIGHT(C198, 10)","v":"17.03.2017"}]
["Nichtdeutsche Tatverdächtige","16/1465","Datum: 17.03.2017","Art: Kleine Anfrage","Urheber: AfD",{"$f":"RIGHT(C199, 10)","v":"17.03.2017"}]
["Verwendung von Migranten und Flüchtlingen für den Polizeidienst","16/1494","Datum: 17.03.2017","Art: Kleine Anfrage","Urheber: AfD",{"$f":"RIGHT(C200, 10)","v":"17.03.2017"}]
["Planstellen der Verwaltungsgerichte","16/1502","Datum: 17.03.2017","Art: Kleine Anfrage","Urheber: AfD",{"$f":"RIGHT(C201, 10)","v":"17.03.2017"}]
["Zugriff auf dem Steuergeheimnis unterliegende Steuerdaten in Baden-Württemberg, Steuerdaten von Vermögenden und Ehrlichkeit solcher","16/1523","Datum: 17.03.2017","Art: Kleine Anfrage","Urheber: AfD",{"$f":"RIGHT(C202, 10)","v":"17.03.2017"}]
["Staatshaushaltsplan 2017 - Einzelplan 03 Innenministerium","16/1403","Datum: 20.03.2017","Art: Alle","Urheber: LRG",{"$f":"RIGHT(C203, 10)","v":"20.03.2017"}]
["Gesetz über die Feststellung des Staatshaushaltsplans von Baden-Württemberg für das Haushaltsjahr 2017","16/1417","Datum: 20.03.2017","Art: Alle","Urheber: LRG",{"$f":"RIGHT(C204, 10)","v":"20.03.2017"}]
["Fälle extremistischer Kriminalität in den einzelnen Polizeipräsidiums-Bezirken","16/1462","Datum: 20.03.2017","Art: Kleine Anfrage","Urheber: AfD",{"$f":"RIGHT(C205, 10)","v":"20.03.2017"}]
["Durchsetzung von titulierten Schmerzensgeldansprüchen von Beamtinnen und Beamten in Baden-Württemberg","16/1642","Datum: 21.03.2017","Art: Antrag","Urheber: SPD",{"$f":"RIGHT(C206, 10)","v":"21.03.2017"}]
["Entlastungen bei der Polizei","16/1456","Datum: 23.03.2017","Art: Große Anfrage","Urheber: AfD",{"$f":"RIGHT(C207, 10)","v":"23.03.2017"}]
["Statistische Erfassung ausländischer Rechtsextremisten","16/1456","Datum: 27.03.2017","Art: Kleine Anfrage","Urheber: AfD",{"$f":"RIGHT(C208, 10)","v":"27.03.2017"}]
["Stromausfälle durch Cyberangriffe in Baden-Württemberg","16/1516","Datum: 27.03.2017","Art: Kleine Anfrage","Urheber: AfD",{"$f":"RIGHT(C209, 10)","v":"27.03.2017"}]
["Aufenthalt minderjähriger unbegleiteter Asylsuchender im AVONIA-Heim in Hechingen","16/1676","Datum: 27.03.2017","Art: Antrag","Urheber: AfD",{"$f":"RIGHT(C210, 10)","v":"27.03.2017"}]
["Innere Sicherheit – Entwicklung der Kriminalität in Hinblick auf Täterherkunft","16/1524","Datum: 29.03.2017","Art: Antrag","Urheber: AfD",{"$f":"RIGHT(C211, 10)","v":"29.03.2017"}]
["Videoüberwachung öffentlicher Verkehrsmittel zur Verhinderung von Vandalismus","16/1532","Datum: 29.03.2017","Art: Antrag","Urheber: AfD",{"$f":"RIGHT(C212, 10)","v":"29.03.2017"}]
["Überprüfung des legalen Waffenbesitzes von Rechtsextremisten","16/1706","Datum: 30.03.2017","Art: Antrag","Urheber: SPD",{"$f":"RIGHT(C213, 10)","v":"30.03.2017"}]
["Rechtsextremistische Konzerte","16/1486","Datum: 31.03.2017","Art: Kleine Anfrage","Urheber: GRÜNE",{"$f":"RIGHT(C214, 10)","v":"31.03.2017"}]
["Verhinderung der Abschiebung eines afghanischen Staatsangehörigen","16/1536","Datum: 31.03.2017","Art: Große Anfrage","Urheber: AfD",{"$f":"RIGHT(C215, 10)","v":"31.03.2017"}]
["Flüchtlingseinrichtungen, Polizeieinsätze, Identitätsprüfungen – Die Entwicklung im Jahr 2016","16/1565","Datum: 31.03.2017","Art: Antrag","Urheber: FDP/DVP",{"$f":"RIGHT(C216, 10)","v":"31.03.2017"}]
["Umgang mit der verfassungsfeindlichen NPD","16/1568","Datum: 31.03.2017","Art: Antrag","Urheber: SPD",{"$f":"RIGHT(C217, 10)","v":"31.03.2017"}]
["Illegal von der Schweiz aus einreisende Personengruppen","16/1453","Datum: 05.04.2017","Art: Kleine Anfrage","Urheber: AfD",{"$f":"RIGHT(C218, 10)","v":"05.04.2017"}]
["Gewalt gegen Krankenhauspersonal","16/1463","Datum: 05.04.2017","Art: Kleine Anfrage","Urheber: AfD",{"$f":"RIGHT(C219, 10)","v":"05.04.2017"}]
["Sozialbetrug in Baden-Württemberg","16/1500","Datum: 05.04.2017","Art: Kleine Anfrage","Urheber: AfD",{"$f":"RIGHT(C220, 10)","v":"05.04.2017"}]
["Alkoholkontrollen im Bereich der Polizeidirektionen im gesamten Zollernalbkreis","16/1504","Datum: 05.04.2017","Art: Kleine Anfrage","Urheber: AfD",{"$f":"RIGHT(C221, 10)","v":"05.04.2017"}]
["Erschwerniszulage Polizeibeamte","16/1745","Datum: 05.04.2017","Art: Antrag","Urheber: AfD",{"$f":"RIGHT(C222, 10)","v":"05.04.2017"}]
["Haltung zur Bundesratsinitiative zur Verschärfung des Waffenrechts, verdachtsunabhängige Kontrolle von Waffen und Munition nach § 36 Absatz 3 Waffengesetz und die damit einhergehende Belastung der Bürger im Jahr 2016","16/1431","Datum: 06.04.2017","Art: Antrag","Urheber: FDP/DVP",{"$f":"RIGHT(C223, 10)","v":"06.04.2017"}]
["Aufwertung der Eingangsämter der Laufbahnen des nichttechnischen Dienstes an die der technischen Dienste","16/1895","Datum: 06.04.2017","Art: Antrag","Urheber: SPD",{"$f":"RIGHT(C224, 10)","v":"06.04.2017"}]
["Evaluierung der Polizeistrukturreform (EvaPol)","16/1593","Datum: 10.04.2017","Art: Große Anfrage","Urheber: SPD",{"$f":"RIGHT(C225, 10)","v":"10.04.2017"}]
["Einsatz von Tasern bei der Polizei","16/1744","Datum: 10.04.2017","Art: Antrag","Urheber: AfD",{"$f":"RIGHT(C226, 10)","v":"10.04.2017"}]
["Situation der Justizvollzugsanstalten in Baden-Württemberg","16/1390","Datum: 12.04.2017","Art: Kleine Anfrage","Urheber: AfD",{"$f":"RIGHT(C227, 10)","v":"12.04.2017"}]
["Weitere Maßnahmen gegen den Links- und Rechtsextremismus","16/1459","Datum: 13.04.2017","Art: Kleine Anfrage","Urheber: AfD",{"$f":"RIGHT(C228, 10)","v":"13.04.2017"}]
["Situation der Polizei im Landkreis Sigmaringen","16/1602","Datum: 13.04.2017","Art: Kleine Anfrage","Urheber: GRÜNE",{"$f":"RIGHT(C229, 10)","v":"13.04.2017"}]
["Suizide in der Justizvollzugsanstalt Heimsheim","16/1604","Datum: 13.04.2017","Art: Kleine Anfrage","Urheber: FDP/DVP",{"$f":"RIGHT(C230, 10)","v":"13.04.2017"}]
["Videoüberwachung in Mannheim","16/1609","Datum: 13.04.2017","Art: Kleine Anfrage","Urheber: SPD",{"$f":"RIGHT(C231, 10)","v":"13.04.2017"}]
["Nutzung des Schengener Informationssystems (SIS) im Bereich der Grenzkontrollen","16/1912","Datum: 13.04.2017","Art: Alle","Urheber: LRG",{"$f":"RIGHT(C232, 10)","v":"13.04.2017"}]
["Überblick über den Aufwand an Polizeipersonal und die Kosten für Parteitage im Jahr 2016","16/1668","Datum: 21.04.2017","Art: Kleine Anfrage","Urheber: AfD",{"$f":"RIGHT(C233, 10)","v":"21.04.2017"}]
["Bericht der Landesregierung zu einem Beschluss des Landtags;hier: Gesetz zur Umsetzung der Polizeistrukturreform(Polizeistrukturreformgesetz – PolRG)","16/1924","Datum: 21.04.2017","Art: Alle","Urheber: LRG",{"$f":"RIGHT(C234, 10)","v":"21.04.2017"}]
["Nutzung des Schengener Informationssystems (SIS) für die Rückführung von illegal aufhältigen Drittstaatsangehörigen","16/1932","Datum: 25.04.2017","Art: Alle","Urheber: LRG",{"$f":"RIGHT(C235, 10)","v":"25.04.2017"}]
["Nutzung des Schengener Informationssystems (SIS) im Bereich der polizeilichen und justiziellen Zusammenarbeit","16/1953","Datum: 02.05.2017","Art: Alle","Urheber: LRG",{"$f":"RIGHT(C236, 10)","v":"02.05.2017"}]
["Sicherheit in Justizgebäuden","16/1682","Datum: 04.05.2017","Art: Antrag","Urheber: SPD",{"$f":"RIGHT(C237, 10)","v":"04.05.2017"}]
["Konsequenzen des Erlasses gegen sogenannte „Reichsbürger“","16/1761","Datum: 08.05.2017","Art: Kleine Anfrage","Urheber: AfD",{"$f":"RIGHT(C238, 10)","v":"08.05.2017"}]
["Mutmaßliche Straftaten im Rahmen von Rodungsarbeiten","16/1762","Datum: 08.05.2017","Art: Kleine Anfrage","Urheber: AfD",{"$f":"RIGHT(C239, 10)","v":"08.05.2017"}]
["Polizeieinsätze in Landeserstaufnahmeeinrichtungen und Asylbewerberunterkünften in Baden-Württemberg seit dem 1. Juli 2016","16/1764","Datum: 08.05.2017","Art: Kleine Anfrage","Urheber: AfD",{"$f":"RIGHT(C240, 10)","v":"08.05.2017"}]
["Witwengeldansprüche","16/1794","Datum: 09.05.2017","Art: Kleine Anfrage","Urheber: AfD",{"$f":"RIGHT(C241, 10)","v":"09.05.2017"}]
["Polizei im Rahmen des G20-Gipfels in Baden-Baden","16/1776","Datum: 10.05.2017","Art: Antrag","Urheber: FDP/DVP",{"$f":"RIGHT(C242, 10)","v":"10.05.2017"}]
["Mehr schwerbehinderte Menschen in der Landesverwaltung beschäftigen","16/1781","Datum: 10.05.2017","Art: Antrag","Urheber: SPD",{"$f":"RIGHT(C243, 10)","v":"10.05.2017"}]
["Beschlussempfehlung und Berichtdes Ausschusses für Europa und Internationaleszu der Mitteilung des Ministeriums für Inneres, Digitalisierung und Migration vom 24. April 2017– Drucksache 16/1953Unterrichtung des Landtags in EU-Angelegenheiten;hier: Nutzung","16/1986","Datum: 12.05.2017","Art: Beschlussempfehlung","Urheber: Ausschüsse",{"$f":"RIGHT(C244, 10)","v":"12.05.2017"}]
["Beschlussempfehlung und Berichtdes Ausschusses für Europa und Internationaleszu der Mitteilung des Ministeriums für Inneres, Digitalisierung und Migration vom 7. April 2017– Drucksache 16/1912Unterrichtung des Landtags in EU-Angelegenheiten;hier: Nutzung ","16/1984","Datum: 15.05.2017","Art: Beschlussempfehlung","Urheber: Ausschüsse",{"$f":"RIGHT(C245, 10)","v":"15.05.2017"}]
["Beschlussempfehlung und Berichtdes Ausschusses für Europa und Internationaleszu der Mitteilung des Ministeriums für Inneres, Digitalisierung und Migration vom 18. April 2017– Drucksache 16/1932Unterrichtung des Landtags in EU-Angelegenheiten;hier: Nutzung","16/1985","Datum: 15.05.2017","Art: Beschlussempfehlung","Urheber: Ausschüsse",{"$f":"RIGHT(C246, 10)","v":"15.05.2017"}]
["Verfassungsfeindliche Agitation durch ver.di, Leitfaden namens „Handlungshilfe für den Umgang mit Rechtspopulisten in Betrieb und Verwaltung“ der ver.di Bezirksorganisation Süd-Ost-Niedersachsen","16/1917","Datum: 16.05.2017","Art: Antrag","Urheber: AfD",{"$f":"RIGHT(C247, 10)","v":"16.05.2017"}]
["Kirchenasyl in Baden-Württemberg","16/1922","Datum: 16.05.2017","Art: Antrag","Urheber: CDU",{"$f":"RIGHT(C248, 10)","v":"16.05.2017"}]
["Polizeigewerkschaft","16/1790","Datum: 17.05.2017","Art: Kleine Anfrage","Urheber: AfD",{"$f":"RIGHT(C249, 10)","v":"17.05.2017"}]
["Transporte von Brennelementen durch Südbaden","16/1800","Datum: 19.05.2017","Art: Antrag","Urheber: SPD",{"$f":"RIGHT(C250, 10)","v":"19.05.2017"}]
["Aktivitäten der sogenannten „Osmanen Germania“ im Land Baden-Württemberg","16/1798","Datum: 22.05.2017","Art: Antrag","Urheber: FDP/DVP",{"$f":"RIGHT(C251, 10)","v":"22.05.2017"}]
["Auswirkungen möglicher Organisationsveränderungen im Zuge der Evaluierung der Polizeireform (EvaPol)","16/1832","Datum: 22.05.2017","Art: Antrag","Urheber: SPD",{"$f":"RIGHT(C252, 10)","v":"22.05.2017"}]
["Rechtsextremistische Straftaten in baden-württembergischen Justizvollzugsanstalten","16/1833","Datum: 22.05.2017","Art: Antrag","Urheber: SPD",{"$f":"RIGHT(C253, 10)","v":"22.05.2017"}]
["Mutmaßliche Weitergabe rechtsextremistischer Musik-CDs durch Bedienstete der Justizvollzugsanstalt (JVA) Ravensburg","16/1838","Datum: 22.05.2017","Art: Kleine Anfrage","Urheber: GRÜNE",{"$f":"RIGHT(C254, 10)","v":"22.05.2017"}]
["Jährliche Unterrichtung des Landtags gemäß § 23 a Absatz 10 Polizeigesetz (PolG) über den erfolgten Einsatz technischer Mittel mit Bezug zur Telekommunikation","16/2110","Datum: 23.05.2017","Art: Alle","Urheber: LRG",{"$f":"RIGHT(C255, 10)","v":"23.05.2017"}]
["Schutz der Lehrkräfte und Erziehungsmaßnahmen an Schulen","16/1847","Datum: 24.05.2017","Art: Antrag","Urheber: AfD",{"$f":"RIGHT(C256, 10)","v":"24.05.2017"}]
["Unbegleitete minderjährige Flüchtlinge in Abschiebehaftanstalten in Baden-Württemberg","16/1857","Datum: 24.05.2017","Art: Kleine Anfrage","Urheber: FDP/DVP",{"$f":"RIGHT(C257, 10)","v":"24.05.2017"}]
["Ansprechpartner und Hilfestellungen für Lehrer, Hochschulangehörige und Ausbilder im Fall der Radikalisierung junger Menschen","16/1887","Datum: 24.05.2017","Art: Antrag","Urheber: FDP/DVP",{"$f":"RIGHT(C258, 10)","v":"24.05.2017"}]
["Ausstattung von Polizeiposten","16/1836","Datum: 29.05.2017","Art: Kleine Anfrage","Urheber: FDP/DVP",{"$f":"RIGHT(C259, 10)","v":"29.05.2017"}]
["Linksextreme Internetseiten","16/1845","Datum: 29.05.2017","Art: Antrag","Urheber: AfD",{"$f":"RIGHT(C260, 10)","v":"29.05.2017"}]
["Situation schwerbehinderter Beamtinnen und Beamter in Baden-Württemberg","16/1852","Datum: 29.05.2017","Art: Kleine Anfrage","Urheber: SPD",{"$f":"RIGHT(C261, 10)","v":"29.05.2017"}]
["Unbegleitete minderjährige Flüchtlinge in Baden-Württemberg","16/1893","Datum: 01.06.2017","Art: Kleine Anfrage","Urheber: FDP/DVP",{"$f":"RIGHT(C262, 10)","v":"01.06.2017"}]
["Beschlussempfehlung und Berichtdes Ausschusses für Finanzenzu der Mitteilung der Landesregierung vom 12. April 2017– Drucksache 16/1924Bericht der Landesregierung zu einem Beschluss des Landtags;hier: Gesetz zur Umsetzung der Polizeistrukturreform (Polize","16/2084","Datum: 01.06.2017","Art: Beschlussempfehlung","Urheber: Ausschüsse",{"$f":"RIGHT(C263, 10)","v":"01.06.2017"}]
["Überstunden bei der Polizei","16/1964","Datum: 02.06.2017","Art: Antrag","Urheber: AfD",{"$f":"RIGHT(C264, 10)","v":"02.06.2017"}]
["Maßnahmen nach den Ausschreitungen beim Fußballspiel des VfB Stuttgart gegen den Karlsruher SC","16/1992","Datum: 06.06.2017","Art: Antrag","Urheber: SPD",{"$f":"RIGHT(C265, 10)","v":"06.06.2017"}]
["Antragder Fraktion der SPDzu der Großen Anfrage der Fraktion der SPD– Drucksache 16/1593Evaluierung der Polizeistrukturreform (EvaPol)hier: Dokumentation und Kosten zur Evaluierung der Polizeistrukturreform","16/2151","Datum: 06.06.2017","Art: Antrag","Urheber: SPD",{"$f":"RIGHT(C266, 10)","v":"06.06.2017"}]
["Staatsangehörigkeitsausweis","16/1883","Datum: 07.06.2017","Art: Kleine Anfrage","Urheber: GRÜNE",{"$f":"RIGHT(C267, 10)","v":"07.06.2017"}]
["Die Spielräume beim Prostituiertenschutzgesetz in Baden-Württemberg nutzen","16/2014","Datum: 07.06.2017","Art: Antrag","Urheber: SPD",{"$f":"RIGHT(C268, 10)","v":"07.06.2017"}]
["Bericht der Landesregierung zu einem Beschluss des Landtags;hier: Jahresbericht zur Telekommunikationsüberwachung 2016(Untersuchungsausschuss „Praxis der Telefonüberwachung“)","16/2157","Datum: 12.06.2017","Art: Alle","Urheber: LRG",{"$f":"RIGHT(C269, 10)","v":"12.06.2017"}]
["Schwitzen statt Sitzen","16/1902","Datum: 13.06.2017","Art: Kleine Anfrage","Urheber: GRÜNE",{"$f":"RIGHT(C270, 10)","v":"13.06.2017"}]
["Anzahl der Salafisten in Baden-Württemberg","16/1916","Datum: 14.06.2017","Art: Kleine Anfrage","Urheber: AfD",{"$f":"RIGHT(C271, 10)","v":"14.06.2017"}]
["Gesetz zur Änderung des Landesbesoldungsgesetzes Baden-Württemberg und weiterer dienstrechtlicher Vorschriften","16/2144","Datum: 14.06.2017","Art: Gesetzentwurf","Urheber: LRG",{"$f":"RIGHT(C272, 10)","v":"14.06.2017"}]
["Schutz minderjähriger Migranten","16/2201","Datum: 19.06.2017","Art: Alle","Urheber: LRG",{"$f":"RIGHT(C273, 10)","v":"19.06.2017"}]
["Zusammenarbeit von Polizei und Feuerwehr","16/1997","Datum: 21.06.2017","Art: Antrag","Urheber: GRÜNE",{"$f":"RIGHT(C274, 10)","v":"21.06.2017"}]
["Personalsituation in den Polizeirevieren in Baden-Württemberg","16/2016","Datum: 21.06.2017","Art: Antrag","Urheber: SPD",{"$f":"RIGHT(C275, 10)","v":"21.06.2017"}]
["Anzahl der sogenannten „potenziellen Gefährder“ in Baden-Württemberg","16/1960","Datum: 22.06.2017","Art: Kleine Anfrage","Urheber: AfD",{"$f":"RIGHT(C276, 10)","v":"22.06.2017"}]
["Amok-Fahrt in Heidelberg am 25. Februar 2017 – Zwischenstand der Ermittlungen und Öffentlichkeitsarbeit der Polizei in sozialen Medien","16/1962","Datum: 22.06.2017","Art: Kleine Anfrage","Urheber: AfD",{"$f":"RIGHT(C277, 10)","v":"22.06.2017"}]
["Aktivitäten der rechtsextremen Initiative „Ein Prozent“ in Baden-Württemberg","16/2007","Datum: 26.06.2017","Art: Kleine Anfrage","Urheber: GRÜNE",{"$f":"RIGHT(C278, 10)","v":"26.06.2017"}]
["Illegale Einreisen über die Schweiz nach Baden-Württemberg","16/2023","Datum: 26.06.2017","Art: Kleine Anfrage","Urheber: AfD",{"$f":"RIGHT(C279, 10)","v":"26.06.2017"}]
["Illegale Einreisen über Frankreich nach Baden-Württemberg","16/2024","Datum: 26.06.2017","Art: Kleine Anfrage","Urheber: AfD",{"$f":"RIGHT(C280, 10)","v":"26.06.2017"}]
["Rechtsextreme Aktivitäten und Gruppierungen im Rhein-Neckar-Kreis, insbesondere in Sinsheim","16/2019","Datum: 27.06.2017","Art: Kleine Anfrage","Urheber: SPD",{"$f":"RIGHT(C281, 10)","v":"27.06.2017"}]
["Cybersicherheit in Baden-Württemberg","16/2129","Datum: 27.06.2017","Art: Antrag","Urheber: SPD",{"$f":"RIGHT(C282, 10)","v":"27.06.2017"}]
["Tätigkeiten von Gleichstellungsbeauftragten und Beauftragten für Chancengleichheit","16/2051","Datum: 28.06.2017","Art: Antrag","Urheber: AfD",{"$f":"RIGHT(C283, 10)","v":"28.06.2017"}]
["Rolle des Innenministeriums bei einer Rückholaktion aus dem IS-Gebiet","16/2139","Datum: 28.06.2017","Art: Antrag","Urheber: SPD",{"$f":"RIGHT(C284, 10)","v":"28.06.2017"}]
["Zurückhaltung oder Löschung alter Kriminalstatistiken","16/2046","Datum: 29.06.2017","Art: Kleine Anfrage","Urheber: AfD",{"$f":"RIGHT(C285, 10)","v":"29.06.2017"}]
["Gesetz über die Anpassung von Dienst- und Versorgungsbezügen in Baden-Württemberg 2017/2018 (BVAnpGBW 2017/2018)","16/2230","Datum: 29.06.2017","Art: Gesetzentwurf","Urheber: LRG",{"$f":"RIGHT(C286, 10)","v":"29.06.2017"}]
["Erkennungsdienstliche Behandlung von Flüchtlingen durch die Ausländerbehörden des Landes","16/2112","Datum: 30.06.2017","Art: Antrag","Urheber: AfD",{"$f":"RIGHT(C287, 10)","v":"30.06.2017"}]
["Veränderungen bei der Verkehrspolizei und ihre Auswirkungen","16/2033","Datum: 03.07.2017","Art: Antrag","Urheber: SPD",{"$f":"RIGHT(C288, 10)","v":"03.07.2017"}]
["Eintreffzeiten der Polizeikräfte im gesamten Zollernalbkreis sowie Hinzuziehen von Einsatzmitteln des Polizeipräsidiums Tuttlingen","16/2042","Datum: 03.07.2017","Art: Kleine Anfrage","Urheber: AfD",{"$f":"RIGHT(C289, 10)","v":"03.07.2017"}]
["Aktivitäten der linksextremen Antifa in Baden-Württemberg","16/2047","Datum: 03.07.2017","Art: Kleine Anfrage","Urheber: AfD",{"$f":"RIGHT(C290, 10)","v":"03.07.2017"}]
["Krankheiten von Migranten","16/2044","Datum: 04.07.2017","Art: Kleine Anfrage","Urheber: AfD",{"$f":"RIGHT(C291, 10)","v":"04.07.2017"}]
["§ 31 a Betäubungsmittelgesetz (BtMG) in der praktischen Anwendung","16/2080","Datum: 04.07.2017","Art: Antrag","Urheber: FDP/DVP",{"$f":"RIGHT(C292, 10)","v":"04.07.2017"}]
["Besetzung der Stelle des Präsidenten an der Hochschule für Polizei Baden-Württemberg","16/2071","Datum: 05.07.2017","Art: Antrag","Urheber: SPD",{"$f":"RIGHT(C293, 10)","v":"05.07.2017"}]
["Cybersicherheit in Baden-Württemberg","16/2076","Datum: 05.07.2017","Art: Antrag","Urheber: FDP/DVP",{"$f":"RIGHT(C294, 10)","v":"05.07.2017"}]
["Das Netzwerkdurchsetzungsgesetz stoppen","16/2176","Datum: 05.07.2017","Art: Antrag","Urheber: AfD",{"$f":"RIGHT(C295, 10)","v":"05.07.2017"}]
["Beschlussempfehlung und Berichtdes Ausschusses für Finanzenzu dem Gesetzentwurf der Landesregierung– Drucksache 16/2144Gesetz zur Änderung des Landesbesoldungsgesetzes Baden-Württemberg und weiterer dienstrechtlicher Vorschriften","16/2271","Datum: 05.07.2017","Art: Beschlussempfehlung","Urheber: Ausschüsse",{"$f":"RIGHT(C296, 10)","v":"05.07.2017"}]
["Sexuelle Übergriffe und ihre Folgen","16/2081","Datum: 06.07.2017","Art: Antrag","Urheber: FDP/DVP",{"$f":"RIGHT(C297, 10)","v":"06.07.2017"}]
["Die Zusammenlegung von Feuerwehr und Polizei","16/2100","Datum: 06.07.2017","Art: Kleine Anfrage","Urheber: FDP/DVP",{"$f":"RIGHT(C298, 10)","v":"06.07.2017"}]
["Islamistisch motivierte Ausreisen nach Syrien und in den Irak","16/2105","Datum: 06.07.2017","Art: Kleine Anfrage","Urheber: AfD",{"$f":"RIGHT(C299, 10)","v":"06.07.2017"}]
["„Taliban-Trick“ bei Asylbewerbern in Baden-Württemberg","16/2106","Datum: 06.07.2017","Art: Kleine Anfrage","Urheber: AfD",{"$f":"RIGHT(C300, 10)","v":"06.07.2017"}]
["Anti-islamistisch motivierte Ausreisen nach Syrien und in den Irak","16/2108","Datum: 06.07.2017","Art: Kleine Anfrage","Urheber: AfD",{"$f":"RIGHT(C301, 10)","v":"06.07.2017"}]
["„We love Muhammad“-Verteilaktionen","16/2111","Datum: 06.07.2017","Art: Kleine Anfrage","Urheber: AfD",{"$f":"RIGHT(C302, 10)","v":"06.07.2017"}]
["Kompetenzzentrum zur Koordinierung des Präventionsnetzwerks gegen (islamistischen) Extremismus Baden-Württemberg (KPEBW)","16/2164","Datum: 06.07.2017","Art: Antrag","Urheber: SPD",{"$f":"RIGHT(C303, 10)","v":"06.07.2017"}]
["Situation in den Justizvollzugsanstalten (JVA) und Jugendarrestanstalten (JAA)","16/2150","Datum: 10.07.2017","Art: Kleine Anfrage","Urheber: AfD",{"$f":"RIGHT(C304, 10)","v":"10.07.2017"}]
["Auswertung von Mautdaten durch deutsche Behörden","16/2195","Datum: 11.07.2017","Art: Antrag","Urheber: SPD",{"$f":"RIGHT(C305, 10)","v":"11.07.2017"}]
["Einsetzung und Auftrag des Untersuchungsausschusses „Linksextremismus und Linksterrorismus in Baden-Württemberg vor dem Hintergrund der Ausschreitungen am Rande des G20-Gipfels in Hamburg“","16/2336","Datum: 11.07.2017","Art: Antrag","Urheber: AfD",{"$f":"RIGHT(C306, 10)","v":"11.07.2017"}]
["Evaluation des Bildungszeitgesetzes","16/2152","Datum: 12.07.2017","Art: Antrag","Urheber: SPD",{"$f":"RIGHT(C307, 10)","v":"12.07.2017"}]
["Antragder Fraktion der FDP/DVPzu der Großen Anfrage der Fraktion der FDP/DVP– Drucksache 16/1095Die Polizei in Baden-Württemberg – Polizeireform, Evaluie-rung, Korrekturbedarf;hier: Umsetzung des von der Evaluierungskommission emp-fohlenen 14er-Modells zu","16/2335","Datum: 12.07.2017","Art: Antrag","Urheber: FDP/DVP",{"$f":"RIGHT(C308, 10)","v":"12.07.2017"}]
["Die Polizei in Baden-Württemberg – Polizeireform, Evaluierung, Korrekturbedarf","16/2338","Datum: 12.07.2017","Art: Alle","Urheber: GRÜNE, CDU",{"$f":"RIGHT(C309, 10)","v":"12.07.2017"}]
["Waffenbesitz und -entzug von Reichsbürgern in Baden-Württemberg","16/2072","Datum: 14.07.2017","Art: Antrag","Urheber: SPD",{"$f":"RIGHT(C310, 10)","v":"14.07.2017"}]
["Gesetz zur Änderung des Landesbesoldungsgesetzes Baden-Württemberg und weiterer dienstrechtlicher Vorschriften","16/2325","Datum: 17.07.2017","Art: Gesetzesbeschluss","Urheber: LRG",{"$f":"RIGHT(C311, 10)","v":"17.07.2017"}]
["Beschlussempfehlung und Berichtdes Ausschusses für Inneres, Digitalisierung und Migrationzu der Mitteilung der Landesregierung vom 19. Mai 2017– Drucksache 16/2110Jährliche Unterrichtung des Landtags gemäß § 23 a Absatz 10 Polizeigesetz (PolG) über den er","16/2262","Datum: 18.07.2017","Art: Beschlussempfehlung","Urheber: Ausschüsse",{"$f":"RIGHT(C312, 10)","v":"18.07.2017"}]
["Ergebnisse der Forschung zur NS-Vergangenheit der badischen und württembergischen Landesministerien","16/2162","Datum: 19.07.2017","Art: Antrag","Urheber: GRÜNE",{"$f":"RIGHT(C313, 10)","v":"19.07.2017"}]
["Straftaten im Zusammenhang mit der Kundgebung der AfD in Rheinfelden am 5. März 2016","16/2183","Datum: 20.07.2017","Art: Kleine Anfrage","Urheber: AfD",{"$f":"RIGHT(C314, 10)","v":"20.07.2017"}]
["Eigentumskriminalität im Enzkreis","16/2182","Datum: 25.07.2017","Art: Kleine Anfrage","Urheber: AfD",{"$f":"RIGHT(C315, 10)","v":"25.07.2017"}]
["Asylbetrug mittels Scheinvaterschaft","16/2232","Datum: 25.07.2017","Art: Antrag","Urheber: FDP/DVP",{"$f":"RIGHT(C316, 10)","v":"25.07.2017"}]
["Auftrag, Organisation und Arbeitsstand der Projektgruppe Dienstpostenbewertung im Polizeibereich","16/2233","Datum: 25.07.2017","Art: Antrag","Urheber: FDP/DVP",{"$f":"RIGHT(C317, 10)","v":"25.07.2017"}]
["George Orwell in Baden-Württemberg – Wie passt es zusammen, dass Verkehrsminister Hermann mit der automatischen Kennzeichenerfassung Daten für Fahrverbote sammeln wollte, Grüne aber gleichzeitig den Einsatz von Mautdaten zur Strafverfolgung als Anlage eines Überwachungssystems brandmarken?","16/2212","Datum: 27.07.2017","Art: Antrag","Urheber: FDP/DVP",{"$f":"RIGHT(C318, 10)","v":"27.07.2017"}]
["Die mögliche Komplizenschaft des Datenschutzes bei Kapitalverbrechen nach den Äußerungen von Herrn Innenminister Strobl – Sind Datenschützer nach Auffassung der Landesregierung Kriminelle?","16/2205","Datum: 28.07.2017","Art: Kleine Anfrage","Urheber: FDP/DVP",{"$f":"RIGHT(C319, 10)","v":"28.07.2017"}]
["„National Socialist Black Metal“","16/2240","Datum: 02.08.2017","Art: Kleine Anfrage","Urheber: GRÜNE",{"$f":"RIGHT(C320, 10)","v":"02.08.2017"}]
["Das 14er-Modell der Polizeireform zu Zeiten der grün-roten Landesregierung – Die Nachrangigkeit polizeifachlicher Gründe","16/2264","Datum: 04.08.2017","Art: Antrag","Urheber: FDP/DVP",{"$f":"RIGHT(C321, 10)","v":"04.08.2017"}]
["Verordnung zur Einrichtung eines zentralisierten Systems für die Ermittlung der Mitgliedstaaten, in denen Informationen zu Verurteilungen von Drittstaatsangehörigen und Staatenlosen vorliegen","16/2430","Datum: 09.08.2017","Art: Alle","Urheber: LRG",{"$f":"RIGHT(C322, 10)","v":"09.08.2017"}]
["Personalsituation in den Justizvollzugsanstalten von Baden-Württemberg","16/2290","Datum: 11.08.2017","Art: Antrag","Urheber: AfD",{"$f":"RIGHT(C323, 10)","v":"11.08.2017"}]
["Konzeption zur Eingliederung des Bereichs Rechtsextremismus in das Kompetenzzentrum zur Koordinierung des Präventionsnetzwerks gegen (islamistischen) Extremismus in Baden-Württemberg (KPEBW) und Situation der Beratungs- und Interventionsgruppe gegen Rechtsextremismus (BIG REX)","16/2315","Datum: 14.08.2017","Art: Antrag","Urheber: SPD",{"$f":"RIGHT(C324, 10)","v":"14.08.2017"}]
["Schutz von öffentlichen Veranstaltungen gegen Lkw-Attentate","16/2320","Datum: 14.08.2017","Art: Antrag","Urheber: AfD",{"$f":"RIGHT(C325, 10)","v":"14.08.2017"}]
["Einsatz der Polizei Baden-Württemberg beim G20-Gipfel in Hamburg","16/2328","Datum: 16.08.2017","Art: Antrag","Urheber: SPD",{"$f":"RIGHT(C326, 10)","v":"16.08.2017"}]
["Hawala-„Banken“ – Anwendung und Kontrolle des Zahlungsdiensteaufsichtsgesetzes (ZAG) in Baden-Württemberg","16/2319","Datum: 17.08.2017","Art: Antrag","Urheber: AfD",{"$f":"RIGHT(C327, 10)","v":"17.08.2017"}]
["Doping im Freizeitsport","16/2375","Datum: 17.08.2017","Art: Antrag","Urheber: AfD",{"$f":"RIGHT(C328, 10)","v":"17.08.2017"}]
["Verkehrserziehung im Landkreis Heidenheim","16/2365","Datum: 21.08.2017","Art: Kleine Anfrage","Urheber: SPD",{"$f":"RIGHT(C329, 10)","v":"21.08.2017"}]
["Sicherheit im Öffentlichen Personennahverkehr (ÖPNV) und im Schienenpersonennahverkehr (SPNV)","16/2302","Datum: 23.08.2017","Art: Antrag","Urheber: GRÜNE",{"$f":"RIGHT(C330, 10)","v":"23.08.2017"}]
["Fragwürdige Zugeständnisse der Landesregierung an Angehörige eines wegen Unterstützung der Terrororganisation „Islamischer Staat“ (IS) verbotenen Moscheevereins","16/2355","Datum: 23.08.2017","Art: Antrag","Urheber: FDP/DVP",{"$f":"RIGHT(C331, 10)","v":"23.08.2017"}]
["Beim G20-Gipfel in Hamburg verletzte Polizisten aus Baden-Württemberg","16/2372","Datum: 24.08.2017","Art: Antrag","Urheber: AfD",{"$f":"RIGHT(C332, 10)","v":"24.08.2017"}]
["Verkehrserziehung im Landkreis Rastatt und in der Stadt Baden-Baden","16/2379","Datum: 24.08.2017","Art: Kleine Anfrage","Urheber: SPD",{"$f":"RIGHT(C333, 10)","v":"24.08.2017"}]
["Videoüberwachung in Baden-Württemberg","16/2380","Datum: 24.08.2017","Art: Antrag","Urheber: FDP/DVP",{"$f":"RIGHT(C334, 10)","v":"24.08.2017"}]
["Verkehrserziehung im Stadt- und Landkreis Heilbronn","16/2391","Datum: 24.08.2017","Art: Kleine Anfrage","Urheber: SPD",{"$f":"RIGHT(C335, 10)","v":"24.08.2017"}]
["Verkehrserziehung im Landkreis Zollernalbkreis","16/2392","Datum: 24.08.2017","Art: Kleine Anfrage","Urheber: SPD",{"$f":"RIGHT(C336, 10)","v":"24.08.2017"}]
["Verkehrserziehung im Landkreis Tübingen","16/2393","Datum: 24.08.2017","Art: Kleine Anfrage","Urheber: SPD",{"$f":"RIGHT(C337, 10)","v":"24.08.2017"}]
["Verkehrserziehung im Landkreis Reutlingen","16/2394","Datum: 24.08.2017","Art: Kleine Anfrage","Urheber: SPD",{"$f":"RIGHT(C338, 10)","v":"24.08.2017"}]
["Maßnahmen gegen sogenannte „Reichsbürger“ zum Schutze von Beamten und Behördenmitarbeitern","16/2353","Datum: 25.08.2017","Art: Antrag","Urheber: CDU",{"$f":"RIGHT(C339, 10)","v":"25.08.2017"}]
["DNA-Analyse auf biogeografische Herkunft bei schweren Verbrechen","16/2374","Datum: 28.08.2017","Art: Antrag","Urheber: AfD",{"$f":"RIGHT(C340, 10)","v":"28.08.2017"}]
["Verkehrserziehung im Landkreis Lörrach","16/2395","Datum: 28.08.2017","Art: Kleine Anfrage","Urheber: SPD",{"$f":"RIGHT(C341, 10)","v":"28.08.2017"}]
["Telekommunikationsüberwachung in Baden-Württemberg","16/2396","Datum: 28.08.2017","Art: Antrag","Urheber: FDP/DVP",{"$f":"RIGHT(C342, 10)","v":"28.08.2017"}]
["Aktiver Gehörschutz für die Polizei","16/2397","Datum: 29.08.2017","Art: Antrag","Urheber: FDP/DVP",{"$f":"RIGHT(C343, 10)","v":"29.08.2017"}]
["Körperliche und häusliche Gewalt","16/2251","Datum: 30.08.2017","Art: Kleine Anfrage","Urheber: CDU",{"$f":"RIGHT(C344, 10)","v":"30.08.2017"}]
["Verkehrserziehung in Mannheim","16/2429","Datum: 30.08.2017","Art: Kleine Anfrage","Urheber: SPD",{"$f":"RIGHT(C345, 10)","v":"30.08.2017"}]
["Medikamentenfälschungen – ein Gesundheitsrisiko für die Bürger im Land?","16/2225","Datum: 31.08.2017","Art: Antrag","Urheber: AfD",{"$f":"RIGHT(C346, 10)","v":"31.08.2017"}]
["Denkschrift 2017 zur Haushaltsrechnung 2015(vgl. Drucksache 16/2400)hier: Beitrag Nr. 8 – Stellenbedarf der Polizei konkretisieren(Kapitel 0314 bis 0318)","16/2408","Datum: 31.08.2017","Art: Alle","Urheber: Rechnungshof",{"$f":"RIGHT(C347, 10)","v":"31.08.2017"}]
["Umsetzung von Baumaßnahmen in den Polizeipräsidien","16/2431","Datum: 31.08.2017","Art: Antrag","Urheber: SPD",{"$f":"RIGHT(C348, 10)","v":"31.08.2017"}]
["Kostenschätzung des Finanzministeriums und der Ämter von Vermögen und Bau zu Polizeipräsidien in Baden-Württemberg","16/2432","Datum: 31.08.2017","Art: Antrag","Urheber: SPD",{"$f":"RIGHT(C349, 10)","v":"31.08.2017"}]
["Personalsituation der Polizei Baden-Württemberg","16/2427","Datum: 01.09.2017","Art: Antrag","Urheber: SPD",{"$f":"RIGHT(C350, 10)","v":"01.09.2017"}]
["Polizisten aus Baden-Württemberg beim G20-Gipfel in Hamburg − Kosten und Unterbringung","16/2440","Datum: 04.09.2017","Art: Kleine Anfrage","Urheber: AfD",{"$f":"RIGHT(C351, 10)","v":"04.09.2017"}]
["Auftritt linksextremistischer Rock- und Punkbands im „Kinder- und Jugendhaus Hallschlag“ in Stuttgart","16/2444","Datum: 04.09.2017","Art: Antrag","Urheber: AfD",{"$f":"RIGHT(C352, 10)","v":"04.09.2017"}]
["Sicherheitslage in den Staatlichen Museen in Karlsruhe","16/2435","Datum: 05.09.2017","Art: Kleine Anfrage","Urheber: SPD",{"$f":"RIGHT(C353, 10)","v":"05.09.2017"}]
["Verstrickung der Grünen Jugend in linksextremistische Aktionen beim G20-Gipfel in Hamburg?","16/2443","Datum: 05.09.2017","Art: Antrag","Urheber: AfD",{"$f":"RIGHT(C354, 10)","v":"05.09.2017"}]
["Neue Kriminalität im Wohnzimmer – Wie geht die Landesregierung mit den neuen Vorschriften zur Aufbewahrung erlaubnisfreier Waffen um?","16/2451","Datum: 06.09.2017","Art: Antrag","Urheber: FDP/DVP",{"$f":"RIGHT(C355, 10)","v":"06.09.2017"}]
["Tötungsdelikt in Horb am Neckar am 13. Juli 2017","16/2461","Datum: 06.09.2017","Art: Kleine Anfrage","Urheber: AfD",{"$f":"RIGHT(C356, 10)","v":"06.09.2017"}]
["Kosten für die Kampfmittelbeseitigung in Baden-Württemberg","16/2464","Datum: 19.09.2017","Art: Kleine Anfrage","Urheber: AfD",{"$f":"RIGHT(C357, 10)","v":"19.09.2017"}]
["Leistungen für Abschiebehäftlinge im Einzelplan 03 des Landeshaushalts 2017","16/2468","Datum: 19.09.2017","Art: Kleine Anfrage","Urheber: AfD",{"$f":"RIGHT(C358, 10)","v":"19.09.2017"}]
["Projektgruppe zur Umsetzung der Vorschläge der „Evaluation der Polizeistrukturreform Baden-Württemberg“ (EvaPol)","16/2488","Datum: 20.09.2017","Art: Antrag","Urheber: SPD",{"$f":"RIGHT(C359, 10)","v":"20.09.2017"}]
["Bau- und Brandschutzmaßnahmen im Polizeipräsidium Mannheim","16/2499","Datum: 20.09.2017","Art: Kleine Anfrage","Urheber: SPD",{"$f":"RIGHT(C360, 10)","v":"20.09.2017"}]
["Gesetz zur Änderung des Polizeigesetzes und zur Änderung des Landesgebührengesetzes","16/2638","Datum: 20.09.2017","Art: Gesetzentwurf","Urheber: SPD",{"$f":"RIGHT(C361, 10)","v":"20.09.2017"}]
["Umsetzung von Anti-Terror-Maßnahmen in Baden-Württemberg","16/2349","Datum: 21.09.2017","Art: Große Anfrage","Urheber: SPD",{"$f":"RIGHT(C362, 10)","v":"21.09.2017"}]
["Angriff auf einen sogenannten „Antifaschisten“ unter Beleuchtung und besonderer Betrachtung des Konfliktfelds linker Strukturen","16/2442","Datum: 21.09.2017","Art: Große Anfrage","Urheber: AfD",{"$f":"RIGHT(C363, 10)","v":"21.09.2017"}]
["Beabsichtigt die Landesregierung die Gründung einer BIG LEX?","16/2543","Datum: 21.09.2017","Art: Antrag","Urheber: AfD",{"$f":"RIGHT(C364, 10)","v":"21.09.2017"}]
["Gummischrotgeschosse zum Schutz von Polizisten vor Verletzungen durch Gewaltverbrecher anlässlich von Demonstrationen","16/2544","Datum: 21.09.2017","Art: Antrag","Urheber: AfD",{"$f":"RIGHT(C365, 10)","v":"21.09.2017"}]
["Linksextremes Bündnis „Aufstehen gegen Rassismus“","16/2545","Datum: 21.09.2017","Art: Antrag","Urheber: AfD",{"$f":"RIGHT(C366, 10)","v":"21.09.2017"}]
["Kriminalität im Bereich der Prostitution in Baden-Württemberg aktiv bekämpfen","16/2518","Datum: 26.09.2017","Art: Antrag","Urheber: SPD",{"$f":"RIGHT(C367, 10)","v":"26.09.2017"}]
["Personalsituation in der Justiz und den Justizvollzugsanstalten","16/2565","Datum: 26.09.2017","Art: Antrag","Urheber: SPD",{"$f":"RIGHT(C368, 10)","v":"26.09.2017"}]
["Kraftfahrzeugkennzeichen mit extremistischen Chiffren","16/2511","Datum: 28.09.2017","Art: Kleine Anfrage","Urheber: SPD",{"$f":"RIGHT(C369, 10)","v":"28.09.2017"}]
["Zeitliche Umsetzung der Polizeireform","16/2537","Datum: 28.09.2017","Art: Kleine Anfrage","Urheber: AfD",{"$f":"RIGHT(C370, 10)","v":"28.09.2017"}]
["Aktivitäten der „Identitären Bewegung“ in Baden-Württemberg","16/2547","Datum: 29.09.2017","Art: Kleine Anfrage","Urheber: SPD",{"$f":"RIGHT(C371, 10)","v":"29.09.2017"}]
["Flüchtlingskosten im Einzelplan 03 des Landeshaushalts 2017","16/2469","Datum: 02.10.2017","Art: Kleine Anfrage","Urheber: AfD",{"$f":"RIGHT(C372, 10)","v":"02.10.2017"}]
["Ausgaben für die Erstaufnahme von Flüchtlingen im Einzelplan 03 des Landeshaushalts 2017","16/2470","Datum: 02.10.2017","Art: Kleine Anfrage","Urheber: AfD",{"$f":"RIGHT(C373, 10)","v":"02.10.2017"}]
["Polizeiarbeit im Bereich des künftigen Polizeipräsidiums Nordschwarzwald","16/2572","Datum: 04.10.2017","Art: Kleine Anfrage","Urheber: FDP/DVP",{"$f":"RIGHT(C374, 10)","v":"04.10.2017"}]
["Verwaltungsvereinbarungen zu Kostenerstattung von Polizeikräften anderer Bundesländer","16/2564","Datum: 05.10.2017","Art: Kleine Anfrage","Urheber: SPD",{"$f":"RIGHT(C375, 10)","v":"05.10.2017"}]
["Situation der Frauen im Polizeivollzugsdienst Baden-Württemberg","16/2573","Datum: 10.10.2017","Art: Antrag","Urheber: SPD",{"$f":"RIGHT(C376, 10)","v":"10.10.2017"}]
["Ausführungsgesetz zum Prostituiertenschutzgesetz (AGProstSchG)","16/2743","Datum: 12.10.2017","Art: Gesetzentwurf","Urheber: LRG",{"$f":"RIGHT(C377, 10)","v":"12.10.2017"}]
["Beschlussempfehlung und Berichtdes Ausschusses für Finanzenzu der Mitteilung des Rechnungshofs vom 20. Juli 2017– Drucksache 16/2408Denkschrift 2017 zur Haushalts- und Wirtschaftsführung des Landes Baden-Württemberg;hier: Beitrag Nr. 8 – Stellenbedarf der","16/2708","Datum: 13.10.2017","Art: Beschlussempfehlung","Urheber: Ausschüsse",{"$f":"RIGHT(C378, 10)","v":"13.10.2017"}]
["Gesetz zur Änderung des Landesverfassungsschutzgesetzes und des Ausführungsgesetzes zum Artikel 10-Gesetz","16/2740","Datum: 13.10.2017","Art: Gesetzentwurf","Urheber: LRG",{"$f":"RIGHT(C379, 10)","v":"13.10.2017"}]
["Gesetz zur Änderung des Polizeigesetzes und des Gesetzes über die Ladenöffnung in Baden-Württemberg","16/2741","Datum: 13.10.2017","Art: Gesetzentwurf","Urheber: LRG",{"$f":"RIGHT(C380, 10)","v":"13.10.2017"}]
["Zukunftskonzept für die neuerliche Verwendung des Areals der ehemaligen Polizeiakademie in Wertheim am Main durch die Landespolizei","16/2604","Datum: 16.10.2017","Art: Kleine Anfrage","Urheber: FDP/DVP",{"$f":"RIGHT(C381, 10)","v":"16.10.2017"}]
["Rückkehr der Roten Armee Fraktion (RAF)","16/2595","Datum: 17.10.2017","Art: Kleine Anfrage","Urheber: AfD",{"$f":"RIGHT(C382, 10)","v":"17.10.2017"}]
["Antifa-Camp im Schwarzwald","16/2611","Datum: 24.10.2017","Art: Kleine Anfrage","Urheber: AfD",{"$f":"RIGHT(C383, 10)","v":"24.10.2017"}]
["Extremistische Positionen im „Linken Zentrum Lilo Herrmann“ in Stuttgart – ein Sammelbecken für Strukturen der Gewalt?","16/2654","Datum: 24.10.2017","Art: Antrag","Urheber: AfD",{"$f":"RIGHT(C384, 10)","v":"24.10.2017"}]
["Gesetzentwurf der Landesregierung– Drucksache 16/2230Gesetz über die Anpassung von Dienst- und Versorgungs-bezügen in Baden-Württemberg 2017/2018 (BVAnpGBW 2017/2018)","16/2838","Datum: 24.10.2017","Art: Beschlussempfehlung","Urheber: Ausschüsse",{"$f":"RIGHT(C385, 10)","v":"24.10.2017"}]
["Islamische Gefährder","16/2659","Datum: 25.10.2017","Art: Antrag","Urheber: AfD",{"$f":"RIGHT(C386, 10)","v":"25.10.2017"}]
["Anschlag mit Buttersäure auf die AfD in Schwäbisch Gmünd auf dem Marktplatz am 19. August 2017 mit einem Verletzten durch einen mutmaßlichen Linksextremisten","16/2594","Datum: 26.10.2017","Art: Kleine Anfrage","Urheber: AfD",{"$f":"RIGHT(C387, 10)","v":"26.10.2017"}]
["Gesetz über die Anpassung von Dienst- und Versorgungsbezügen in Baden-Württemberg 2017/2018 (BVAnpGBW 2017/2018)","16/2872","Datum: 30.10.2017","Art: Gesetzesbeschluss","Urheber: LRG",{"$f":"RIGHT(C388, 10)","v":"30.10.2017"}]
["Ausführungsgesetz zum Prostituiertenschutzgesetz (AGProstSchG)","16/2875","Datum: 30.10.2017","Art: Gesetzesbeschluss","Urheber: LRG",{"$f":"RIGHT(C389, 10)","v":"30.10.2017"}]
["Weisungsbefugnis des Justizministers auf staatsanwaltliche Prozesse","16/2649","Datum: 02.11.2017","Art: Kleine Anfrage","Urheber: AfD",{"$f":"RIGHT(C390, 10)","v":"02.11.2017"}]
["Rückkehr syrischer Asylberechtigter nach Syrien","16/2735","Datum: 02.11.2017","Art: Antrag","Urheber: AfD",{"$f":"RIGHT(C391, 10)","v":"02.11.2017"}]
["Bericht der Landesregierung zu einem Beschluss des Landtags;hier: Denkschrift 2011 des Rechnungshofs zur Haushalts- undWirtschaftsführung des Landes Baden-Württemberg– Beitrag Nr. 10: Einsatz und Kosten der Hubschrauber-staffel der Polizei","16/2748","Datum: 02.11.2017","Art: Alle","Urheber: LRG",{"$f":"RIGHT(C392, 10)","v":"02.11.2017"}]
["Die sogenannte Cyberwehr in der Sicherheitsarchitektur des Landes","16/2737","Datum: 03.11.2017","Art: Antrag","Urheber: FDP/DVP",{"$f":"RIGHT(C393, 10)","v":"03.11.2017"}]
["Unfallstatistiken und Mindestanforderungen von Liegerädern","16/2764","Datum: 06.11.2017","Art: Antrag","Urheber: CDU",{"$f":"RIGHT(C394, 10)","v":"06.11.2017"}]
["Projekt ReSo in der JVA Adelsheim","16/2770","Datum: 06.11.2017","Art: Antrag","Urheber: SPD",{"$f":"RIGHT(C395, 10)","v":"06.11.2017"}]
["Linksextremismus in Baden-Württemberg","16/2642","Datum: 07.11.2017","Art: Große Anfrage","Urheber: CDU",{"$f":"RIGHT(C396, 10)","v":"07.11.2017"}]
["Bericht der Landesregierung zu einem Beschluss des Landtags;hier: Denkschrift 2016 des Rechnungshofs zur Haushalts- undWirtschaftsführung des Landes Baden-Württemberg– Beitrag Nr. 13: Personalbemessung in der Justiz","16/2791","Datum: 08.11.2017","Art: Alle","Urheber: LRG",{"$f":"RIGHT(C397, 10)","v":"08.11.2017"}]
["Gesetz über die Feststellung des Staatshaushaltsplans von Baden-Württemberg für die Haushaltsjahre 2018/19 (Staatshaushaltsgesetz 2018/19 – StHG 2018/19)","16/3000","Datum: 08.11.2017","Art: Gesetzentwurf","Urheber: LRG",{"$f":"RIGHT(C398, 10)","v":"08.11.2017"}]
["Situation und Zukunftsaussichten der Hochschule für Polizei in Villingen-Schwenningen (HfPol-BW)","16/2644","Datum: 09.11.2017","Art: Kleine Anfrage","Urheber: GRÜNE",{"$f":"RIGHT(C399, 10)","v":"09.11.2017"}]
["Gesetz zur Änderung des Polizeigesetzes und zur Änderungdes Landesgebührengesetzes;hier:Anhörung zu dem Gesetzentwurf der Fraktion der SPD– Drucksache 16/2638","16/2926","Datum: 09.11.2017","Art: Alle","Urheber: LRG",{"$f":"RIGHT(C400, 10)","v":"09.11.2017"}]
["Die Entwicklung der Kriminalität im Wahlkreis Esslingen","16/2689","Datum: 10.11.2017","Art: Kleine Anfrage","Urheber: CDU",{"$f":"RIGHT(C401, 10)","v":"10.11.2017"}]
["Haushaltsbegleitgesetz 2018/19","16/3017","Datum: 10.11.2017","Art: Gesetzentwurf","Urheber: LRG",{"$f":"RIGHT(C402, 10)","v":"10.11.2017"}]
["Häusliche Gewalt von Tatverdächtigen mit Migrationshintergrund","16/2698","Datum: 14.11.2017","Art: Kleine Anfrage","Urheber: AfD",{"$f":"RIGHT(C403, 10)","v":"14.11.2017"}]
["Statistik zu gerichtlich Verurteilten 2016","16/2699","Datum: 14.11.2017","Art: Kleine Anfrage","Urheber: AfD",{"$f":"RIGHT(C404, 10)","v":"14.11.2017"}]
["Personalstärke sowie Neueinstellung bei der Landespolizei in Baden-Württemberg in der Praxis verbessern","16/2774","Datum: 14.11.2017","Art: Kleine Anfrage","Urheber: AfD",{"$f":"RIGHT(C405, 10)","v":"14.11.2017"}]
["Beschlussempfehlung und Berichtdes mitberatenden Ständigen Ausschusses unddes federführenden Ausschusses für Inneres, Digitalisierung und Migrationzu dem Gesetzentwurf der Landesregierung– Drucksache 16/2741Gesetz zur Änderung des Polizeigesetzes und des ","16/2915","Datum: 14.11.2017","Art: Beschlussempfehlung","Urheber: Ausschüsse",{"$f":"RIGHT(C406, 10)","v":"14.11.2017"}]
["Beschlussempfehlung und Berichtdes mitberatenden Ständigen Ausschusses und des federführenden Ausschusses für Inneres, Digitalisierung und Migrationzu dem Gesetzentwurf der Landesregierung– Drucksache 16/2740Gesetz zur Änderung des Landesverfassungsschutz","16/2921","Datum: 14.11.2017","Art: Beschlussempfehlung","Urheber: Ausschüsse",{"$f":"RIGHT(C407, 10)","v":"14.11.2017"}]
["Spielhallen und Wettannahmestellen in Freiburg","16/2753","Datum: 15.11.2017","Art: Kleine Anfrage","Urheber: SPD",{"$f":"RIGHT(C408, 10)","v":"15.11.2017"}]
["Änderungsanträgezu der Beschlussempfehlung des mitberatenden Ständigen Ausschusses und des federführenden Ausschusses für Inne-res, Digitalisierung und Migration– Drucksache 16/2921zu dem Gesetzentwurf der Landesregierung– Drucksache 16/2740Gesetz zur Änd","16/2996","Datum: 16.11.2017","Art: Alle","Urheber: Alle",{"$f":"RIGHT(C409, 10)","v":"16.11.2017"}]
["Änderungsanträgezu der Beschlussempfehlung des mitberatenden Ständigen Ausschusses und des federführenden Ausschusses für Inne-res, Digitalisierung und Migration – Drucksache 16/2915zu dem Gesetzentwurf der Landesregierung– Drucksache 16/2741Gesetz zur Än","16/2997","Datum: 16.11.2017","Art: Alle","Urheber: Alle",{"$f":"RIGHT(C410, 10)","v":"16.11.2017"}]
["Videoüberwachung an den Dienstgebäuden des Polizeipräsidiums Offenburg","16/2771","Datum: 17.11.2017","Art: Kleine Anfrage","Urheber: SPD",{"$f":"RIGHT(C411, 10)","v":"17.11.2017"}]
["Möglichkeiten zur Entlastung von überbelegten Justizvollzugsanstalten","16/2817","Datum: 17.11.2017","Art: Antrag","Urheber: SPD",{"$f":"RIGHT(C412, 10)","v":"17.11.2017"}]
["Erschwernisausgleich für Personenschützer","16/2804","Datum: 20.11.2017","Art: Kleine Anfrage","Urheber: GRÜNE",{"$f":"RIGHT(C413, 10)","v":"20.11.2017"}]
["Beschlussempfehlung und Berichtdes Ständigen Ausschusseszu dem Schreiben des Bundesverfassungsgerichts vom 11. Oktober 2017, Az.: 2 BvL 2/17Normenkontrollverfahren zu § 23 Absatz 1 des Landesbesol-dungsgesetzes Baden-Württemberg über die abgesenkte Ein-ga","16/2971","Datum: 20.11.2017","Art: Beschlussempfehlung","Urheber: Ausschüsse",{"$f":"RIGHT(C414, 10)","v":"20.11.2017"}]
["Vorschriften über die vorübergehende Wiedereinführung von Kontrollen an den Binnengrenzen","16/2999","Datum: 20.11.2017","Art: Alle","Urheber: LRG",{"$f":"RIGHT(C415, 10)","v":"20.11.2017"}]
["Gesetz zur Änderung des Landesverfassungsschutzgesetzes und des Ausführungsgesetzes zum Artikel 10-Gesetz","16/3010","Datum: 20.11.2017","Art: Gesetzesbeschluss","Urheber: LRG",{"$f":"RIGHT(C416, 10)","v":"20.11.2017"}]
["Gesetz zur Änderung des Polizeigesetzes","16/3011","Datum: 20.11.2017","Art: Gesetzesbeschluss","Urheber: LRG",{"$f":"RIGHT(C417, 10)","v":"20.11.2017"}]
["Gesetz zur Abwehr alkoholbedingter Störungen der öffentlichen Sicherheit","16/3012","Datum: 20.11.2017","Art: Gesetzesbeschluss","Urheber: LRG",{"$f":"RIGHT(C418, 10)","v":"20.11.2017"}]
["Zukunft der Cyberwehr in Baden-Württemberg","16/2816","Datum: 22.11.2017","Art: Antrag","Urheber: SPD",{"$f":"RIGHT(C419, 10)","v":"22.11.2017"}]
["Zukunft der Cyberwehr in Baden-Württemberg","16/2863","Datum: 22.11.2017","Art: Antrag","Urheber: CDU",{"$f":"RIGHT(C420, 10)","v":"22.11.2017"}]
["Situation des technischen Werkdienstes bei den Justizvollzugsanstalten des Landes","16/2811","Datum: 23.11.2017","Art: Antrag","Urheber: FDP/DVP",{"$f":"RIGHT(C421, 10)","v":"23.11.2017"}]
["Die Ergebnisse des Abschlussberichts des Sonderbeauftragten des Berliner Senats im Fall Anis Amri in Bezug auf Baden-Württemberg","16/2813","Datum: 23.11.2017","Art: Antrag","Urheber: SPD",{"$f":"RIGHT(C422, 10)","v":"23.11.2017"}]
["Änderungsanträgezu der Beschlussempfehlung des Ausschusses für Soziales und Integration– Drucksache 16/2823zu dem Gesetzentwurf der Landesregierung– Drucksache 16/2743Ausführungsgesetz zum Prostituiertenschutzgesetz (AGProstSchG)","16/2890","Datum: 23.11.2017","Art: Alle","Urheber: Alle",{"$f":"RIGHT(C423, 10)","v":"23.11.2017"}]
["Entwicklung der Kriminalität im Wahlkreis Wangen-Illertal","16/2805","Datum: 24.11.2017","Art: Kleine Anfrage","Urheber: CDU",{"$f":"RIGHT(C424, 10)","v":"24.11.2017"}]
["Rettungshundestaffeln in Baden-Württemberg","16/2815","Datum: 24.11.2017","Art: Kleine Anfrage","Urheber: SPD",{"$f":"RIGHT(C425, 10)","v":"24.11.2017"}]
["Waffenkontrollen in den Landkreisen Baden-Württembergs","16/2827","Datum: 24.11.2017","Art: Kleine Anfrage","Urheber: FDP/DVP",{"$f":"RIGHT(C426, 10)","v":"24.11.2017"}]
["Zahl der Sexualstraftaten im ersten Halbjahr 2017 in Baden-Württemberg","16/2700","Datum: 27.11.2017","Art: Kleine Anfrage","Urheber: AfD",{"$f":"RIGHT(C427, 10)","v":"27.11.2017"}]
["Mittelfristige Finanzplanung des Landes Baden-Württemberg für die Jahre 2017 bis 2021","16/3018","Datum: 27.11.2017","Art: Alle","Urheber: LRG",{"$f":"RIGHT(C428, 10)","v":"27.11.2017"}]
["Situation unbegleiteter minderjähriger Flüchtlinge im Landkreis Sigmaringen","16/2841","Datum: 28.11.2017","Art: Kleine Anfrage","Urheber: CDU",{"$f":"RIGHT(C429, 10)","v":"28.11.2017"}]
["Betrugsverdacht gegen Referenten des Innenministeriums","16/2884","Datum: 29.11.2017","Art: Antrag","Urheber: SPD",{"$f":"RIGHT(C430, 10)","v":"29.11.2017"}]
["Erfahrungen mit dem neuen Recht zur Einziehung von Gewinnen aus Straftaten","16/2912","Datum: 29.11.2017","Art: Antrag","Urheber: FDP/DVP",{"$f":"RIGHT(C431, 10)","v":"29.11.2017"}]
["Zulagen für Polizeibeamtinnen und Polizeibeamte","16/2892","Datum: 01.12.2017","Art: Kleine Anfrage","Urheber: SPD",{"$f":"RIGHT(C432, 10)","v":"01.12.2017"}]
["„Identitäre Bewegung“ im Landkreis Konstanz","16/2876","Datum: 04.12.2017","Art: Kleine Anfrage","Urheber: FDP/DVP",{"$f":"RIGHT(C433, 10)","v":"04.12.2017"}]
["Polizeiwache auf dem Gelände der Landeserstaufnahmeeinrichtung (LEA) Sigmaringen","16/2894","Datum: 04.12.2017","Art: Kleine Anfrage","Urheber: AfD",{"$f":"RIGHT(C434, 10)","v":"04.12.2017"}]
["Erstaufnahmeeinrichtung Donaueschingen","16/2909","Datum: 04.12.2017","Art: Kleine Anfrage","Urheber: AfD",{"$f":"RIGHT(C435, 10)","v":"04.12.2017"}]
["Anis Amri und die Behörden in Baden-Württemberg","16/2860","Datum: 06.12.2017","Art: Antrag","Urheber: FDP/DVP",{"$f":"RIGHT(C436, 10)","v":"06.12.2017"}]
["Polizeibeamte ohne deutsche Staatsbürgerschaft","16/2927","Datum: 11.12.2017","Art: Kleine Anfrage","Urheber: Fraktionslos",{"$f":"RIGHT(C437, 10)","v":"11.12.2017"}]
["Maßnahmen in baden-württembergischen Justizvollzugsanstalten (JVA) bei zu befürchtendem Suizid („Suizidkontrolle“)","16/2940","Datum: 11.12.2017","Art: Kleine Anfrage","Urheber: Fraktionslos",{"$f":"RIGHT(C438, 10)","v":"11.12.2017"}]
["Fachveranstaltung „Sicherheitspotenziale durch Fahrradhelme“","16/2781","Datum: 12.12.2017","Art: Antrag","Urheber: SPD",{"$f":"RIGHT(C439, 10)","v":"12.12.2017"}]
["Ausbildungskapazitäten an der Hochschule für Polizei Baden-Württemberg","16/2972","Datum: 12.12.2017","Art: Antrag","Urheber: SPD",{"$f":"RIGHT(C440, 10)","v":"12.12.2017"}]
["DITIB und islamische Verbände","16/2903","Datum: 13.12.2017","Art: Kleine Anfrage","Urheber: AfD",{"$f":"RIGHT(C441, 10)","v":"13.12.2017"}]
["Haushaltsbegleitgesetz 2018/19","16/3327","Datum: 19.12.2017","Art: Gesetzesbeschluss","Urheber: LRG",{"$f":"RIGHT(C442, 10)","v":"19.12.2017"}]
["Polizeibeamte mit Nebenjobs","16/2963","Datum: 20.12.2017","Art: Kleine Anfrage","Urheber: AfD",{"$f":"RIGHT(C443, 10)","v":"20.12.2017"}]
["Gefährdung durch ferngesteuerte Fluggeräte/Drohnen in Baden-Württemberg","16/2968","Datum: 20.12.2017","Art: Kleine Anfrage","Urheber: AfD",{"$f":"RIGHT(C444, 10)","v":"20.12.2017"}]
["Fall „H. K.“: Rechte und Pflichten von nichtstaatlichen Betreuungsinstitutionen bei der Betreuung von unbegleiteten minderjährigen Flüchtlingen","16/2848","Datum: 21.12.2017","Art: Kleine Anfrage","Urheber: AfD",{"$f":"RIGHT(C445, 10)","v":"21.12.2017"}]
["Facebook-Gruppe „Die Patrioten“","16/3015","Datum: 21.12.2017","Art: Antrag","Urheber: GRÜNE",{"$f":"RIGHT(C446, 10)","v":"21.12.2017"}]
["Polizeiliche Qualifizierung antisemitischer Straftaten in Baden-Württemberg","16/3031","Datum: 21.12.2017","Art: Antrag","Urheber: AfD",{"$f":"RIGHT(C447, 10)","v":"21.12.2017"}]
["Umgang mit straf- und verkehrsrechtlichen Verstößen beim Bilden einer Rettungsgasse","16/3042","Datum: 21.12.2017","Art: Antrag","Urheber: CDU",{"$f":"RIGHT(C448, 10)","v":"21.12.2017"}]
["Gesetz über die Feststellung des Staatshaushaltsplans von Baden-Württemberg für die Haushaltsjahre 2018/19 (Staatshaushaltsgesetz 2018/19 – StHG 2018/19)","16/3333","Datum: 22.12.2017","Art: Gesetzesbeschluss","Urheber: LRG",{"$f":"RIGHT(C449, 10)","v":"22.12.2017"}]
["Qualität und Zuverlässigkeit von Bewerbern für den Polizeidienst","16/3033","Datum: 03.01.2018","Art: Antrag","Urheber: AfD",{"$f":"RIGHT(C450, 10)","v":"03.01.2018"}]
["Einschätzungen der Landesregierung zum Verbot der linksextremistischen Vereinigung „linksunten.indymedia“","16/2754","Datum: 08.01.2018","Art: Große Anfrage","Urheber: AfD",{"$f":"RIGHT(C451, 10)","v":"08.01.2018"}]
["Strafverfahren gegen Berufsgeheimnisträger nach § 160 a Absatz 1 der Strafprozessordnung im Allgemeinen und exemplarischer Fall des Strafverfahrens gegen Rechtsanwalt D. M.","16/2756","Datum: 08.01.2018","Art: Große Anfrage","Urheber: AfD",{"$f":"RIGHT(C452, 10)","v":"08.01.2018"}]
["Muslime, Islamisten und Radikalisierung in Justizvollzugsanstalten","16/3030","Datum: 09.01.2018","Art: Kleine Anfrage","Urheber: AfD",{"$f":"RIGHT(C453, 10)","v":"09.01.2018"}]
["Verdachtsunabhängige Kontrollen bei Waffenbesitzern","16/3034","Datum: 09.01.2018","Art: Kleine Anfrage","Urheber: AfD",{"$f":"RIGHT(C454, 10)","v":"09.01.2018"}]
["Beschlussempfehlung und Berichtdes Ausschusses für Soziales und Integrationzu dem Gesetzentwurf der Landesregierung– Drucksache 16/2743Ausführungsgesetz zum Prostituiertenschutzgesetz (AGProstSchG)","16/2823","Datum: 10.01.2018","Art: Beschlussempfehlung","Urheber: Ausschüsse",{"$f":"RIGHT(C455, 10)","v":"10.01.2018"}]
["„Antideutsche“ in Baden-Württemberg – eine Gefahr für unsere Demokratie?","16/3029","Datum: 10.01.2018","Art: Kleine Anfrage","Urheber: AfD",{"$f":"RIGHT(C456, 10)","v":"10.01.2018"}]
["Legale und illegale Schusswaffen bei Straftaten","16/3035","Datum: 10.01.2018","Art: Kleine Anfrage","Urheber: AfD",{"$f":"RIGHT(C457, 10)","v":"10.01.2018"}]
["Aktueller Stand der von den Generalstaatsanwaltschaften Stuttgart und Karlsruhe sowie des Landeskriminalamts (LKA) Baden-Württemberg geführten Ermittlungsverfahren im Zusammenhang mit dem sogenannten Nationalsozialistischen Untergrund – NSU","16/3043","Datum: 10.01.2018","Art: Kleine Anfrage","Urheber: AfD",{"$f":"RIGHT(C458, 10)","v":"10.01.2018"}]
["Erschleichen von Begünstigungen unter anderem im Pflege- und Finanzbereich","16/3080","Datum: 10.01.2018","Art: Antrag","Urheber: FDP/DVP",{"$f":"RIGHT(C459, 10)","v":"10.01.2018"}]
["Rechtliche Rahmenbedingungen für Nebentätigkeiten von Beamten","16/3082","Datum: 10.01.2018","Art: Antrag","Urheber: FDP/DVP",{"$f":"RIGHT(C460, 10)","v":"10.01.2018"}]
["Im Zusammenhang mit Windkraftplanungen in Baden-Württemberg vorgekommene Verstöße gegen das in § 44 Bundesnaturschutzgesetz (BNatSchG) enthaltene Verscheuchungs-, Vergrämungs- und Tötungsverbot seltener Arten","16/3085","Datum: 10.01.2018","Art: Antrag","Urheber: AfD",{"$f":"RIGHT(C461, 10)","v":"10.01.2018"}]
["Wirtschaftsstrafverfahren in Baden-Württemberg","16/3094","Datum: 10.01.2018","Art: Antrag","Urheber: SPD",{"$f":"RIGHT(C462, 10)","v":"10.01.2018"}]
["Opferschutz in Baden-Württemberg","16/2919","Datum: 11.01.2018","Art: Große Anfrage","Urheber: GRÜNE, CDU",{"$f":"RIGHT(C463, 10)","v":"11.01.2018"}]
["Allradfahrzeuge der Polizei","16/3053","Datum: 15.01.2018","Art: Kleine Anfrage","Urheber: AfD",{"$f":"RIGHT(C464, 10)","v":"15.01.2018"}]
["Zahl der Gefährder und Abschiebehindernisse","16/3039","Datum: 16.01.2018","Art: Große Anfrage","Urheber: AfD",{"$f":"RIGHT(C465, 10)","v":"16.01.2018"}]
["Nachkriegskarrieren von ehemaligen Mitgliedern nationalsozialistischer Organisationen in Baden-Württemberg","16/3073","Datum: 17.01.2018","Art: Kleine Anfrage","Urheber: AfD",{"$f":"RIGHT(C466, 10)","v":"17.01.2018"}]
["Maßnahmen der Landesregierung im Umgang mit kriminellen unbegleiteten minderjährigen Ausländern in Mannheim","16/3107","Datum: 23.01.2018","Art: Kleine Anfrage","Urheber: SPD",{"$f":"RIGHT(C467, 10)","v":"23.01.2018"}]
["Nach der Entscheidung zu den Ausbildungsstätten der Polizei – Alternativen für Meßstetten","16/3185","Datum: 23.01.2018","Art: Antrag","Urheber: FDP/DVP",{"$f":"RIGHT(C468, 10)","v":"23.01.2018"}]
["Sicherheitsspezifische Einordnung des „Osmanen Germania Boxclub“","16/3187","Datum: 23.01.2018","Art: Antrag","Urheber: CDU",{"$f":"RIGHT(C469, 10)","v":"23.01.2018"}]
["Kriminaldauerdienst im Zollernalbkreis","16/3071","Datum: 24.01.2018","Art: Kleine Anfrage","Urheber: AfD",{"$f":"RIGHT(C470, 10)","v":"24.01.2018"}]
["Behinderung von Einsatz- und Rettungskräften durch Schaulustige","16/3081","Datum: 24.01.2018","Art: Kleine Anfrage","Urheber: CDU",{"$f":"RIGHT(C471, 10)","v":"24.01.2018"}]
["Mitteilungder LandesregierungBericht der Landesregierung zu einem Beschluss des Landtags;hier: Denkschrift 2015 des Rechnungshofs zur Haushalts- undWirtschaftsführung des Landes Baden-Württemberg– Beitrag Nr. 7: Polizeikostenersatz bei kommerziellen Großeranstaltungen","16/3251","Datum: 24.01.2018","Art: Alle","Urheber: LRG",{"$f":"RIGHT(C472, 10)","v":"24.01.2018"}]
["Sicherheitskonzept der neuen Stuttgart 21-Bahnhöfe","16/3072","Datum: 25.01.2018","Art: Kleine Anfrage","Urheber: AfD",{"$f":"RIGHT(C473, 10)","v":"25.01.2018"}]
["Personalsituation bei der Polizei im Zuständigkeitsbereich des derzeitigen Polizeipräsidiums Aalen","16/3146","Datum: 25.01.2018","Art: Kleine Anfrage","Urheber: FDP/DVP",{"$f":"RIGHT(C474, 10)","v":"25.01.2018"}]
["Kirchenschändungen","16/3155","Datum: 25.01.2018","Art: Kleine Anfrage","Urheber: AfD",{"$f":"RIGHT(C475, 10)","v":"25.01.2018"}]
["Änderungsantragder Fraktion der AfDzu dem Antrag der Fraktion der AfD– Drucksache 16/3123Unbegleitete minderjährige Ausländer (UMA) als Intensivstraftäter in Mannheim und andernorts","16/3387","Datum: 25.01.2018","Art: Antrag","Urheber: AfD",{"$f":"RIGHT(C476, 10)","v":"25.01.2018"}]
["Gibt es Unterwanderungen von Behörden – wie schützt sich die Landesregierung vor Zuständen, wie sie jetzt in Berlin diskutiert werden?","16/2989","Datum: 26.01.2018","Art: Antrag","Urheber: FDP/DVP",{"$f":"RIGHT(C477, 10)","v":"26.01.2018"}]
["Sicherheitslage im Stadtteil Neckarstadt-West in Mannheim","16/3175","Datum: 26.01.2018","Art: Kleine Anfrage","Urheber: SPD",{"$f":"RIGHT(C478, 10)","v":"26.01.2018"}]
["Mitteilungder LandesregierungBericht der Landesregierung zu einem Beschluss des Landtags;hier: Beschäftigung schwerbehinderter Menschen in der Lan-desverwaltung Baden-Württemberg im Jahr 2016","16/3250","Datum: 26.01.2018","Art: Alle","Urheber: LRG",{"$f":"RIGHT(C479, 10)","v":"26.01.2018"}]
["Beschlussempfehlung und Berichtdes Ausschusses für Verkehrzu dem Gesetzentwurf der Landesregierung– Drucksache 16/2797Gesetz zur Änderung des Gesetzes über Zuständigkeiten nach der Straßenverkehrs-Ordnung","16/3371","Datum: 30.01.2018","Art: Beschlussempfehlung","Urheber: Ausschüsse",{"$f":"RIGHT(C480, 10)","v":"30.01.2018"}]
["Das Netzwerk der „Union der Europäisch-Türkischen Demokraten (UETD)“ in Baden-Württemberg","16/3189","Datum: 31.01.2018","Art: Antrag","Urheber: GRÜNE",{"$f":"RIGHT(C481, 10)","v":"31.01.2018"}]
["Änderungsanträgezu der Beschlussempfehlung des Ausschusses für Finanzen– Drucksache 16/3203Staatshaushaltsplan 2018/2019Einzelplan 03: Ministerium für Inneres, Digitalisierung und Migration","16/3303","Datum: 31.01.2018","Art: Alle","Urheber: LRG",{"$f":"RIGHT(C482, 10)","v":"31.01.2018"}]
["Anweisungen an Staatsanwaltschaften zum Umgang mit Strafverfahren gegen Ausländer","16/3231","Datum: 02.02.2018","Art: Antrag","Urheber: FDP/DVP",{"$f":"RIGHT(C483, 10)","v":"02.02.2018"}]
["Gesetz zur Änderung des Gesetzes über Zuständigkeiten nach der Straßenverkehrs-Ordnung","16/3426","Datum: 02.02.2018","Art: Gesetzesbeschluss","Urheber: LRG",{"$f":"RIGHT(C484, 10)","v":"02.02.2018"}]
["Hintergründe zum möglichen Anschlag auf den Weihnachtsmarkt in Karlsruhe","16/3227","Datum: 06.02.2018","Art: Antrag","Urheber: SPD",{"$f":"RIGHT(C485, 10)","v":"06.02.2018"}]
["Untersuchungsausschuss „Das Unterstützerumfeld des Nationalsozialistischen Untergrunds (NSU) in Baden-Württemberg und Fortsetzung der Aufarbeitung des Terroranschlags auf die Polizeibeamten M. K. und M. A. (Rechtsterrorismus/NSU BW II)“ – Anwerbung und Observationen des Landesamts für Verfassungsschutz","16/3153","Datum: 07.02.2018","Art: Kleine Anfrage","Urheber: AfD",{"$f":"RIGHT(C486, 10)","v":"07.02.2018"}]
["Situation der Strafverfolgung und des Strafprozesses in Baden-Württemberg","16/3222","Datum: 07.02.2018","Art: Antrag","Urheber: FDP/DVP",{"$f":"RIGHT(C487, 10)","v":"07.02.2018"}]
["Untersuchungsausschuss „Das Unterstützerumfeld des Nationalsozialistischen Untergrunds (NSU) in Baden-Württemberg und Fortsetzung der Aufarbeitung des Terroranschlags auf die Polizeibeamten M. K. und M. A. (Rechtsterrorismus/NSU BW II)“ – Observationen des Landeskriminalamts Baden-Württemberg","16/3152","Datum: 08.02.2018","Art: Kleine Anfrage","Urheber: AfD",{"$f":"RIGHT(C488, 10)","v":"08.02.2018"}]
["Wildunfälle und Wildschäden","16/3224","Datum: 09.02.2018","Art: Kleine Anfrage","Urheber: GRÜNE",{"$f":"RIGHT(C489, 10)","v":"09.02.2018"}]
["Umtriebe bewaffneter und unbewaffneter „Hilfstruppen“ der türkischen Regierung in Baden-Württemberg","16/3151","Datum: 13.02.2018","Art: Antrag","Urheber: AfD",{"$f":"RIGHT(C490, 10)","v":"13.02.2018"}]
["Burschenschaften in Baden-Württemberg, insbesondere mit Blick auf den Fall der Burschenschaft „Saxo-Silesia“ in Freiburg","16/3104","Datum: 16.02.2018","Art: Antrag","Urheber: GRÜNE",{"$f":"RIGHT(C491, 10)","v":"16.02.2018"}]
["Änderung der Polizeifarbe","16/3238","Datum: 16.02.2018","Art: Kleine Anfrage","Urheber: Fraktionslos",{"$f":"RIGHT(C492, 10)","v":"16.02.2018"}]
["Altersüberprüfung von minderjährigen Ausländern","16/3343","Datum: 16.02.2018","Art: Antrag","Urheber: AfD",{"$f":"RIGHT(C493, 10)","v":"16.02.2018"}]
["Überwachung des ruhenden Verkehrs","16/3050","Datum: 21.02.2018","Art: Antrag","Urheber: FDP/DVP",{"$f":"RIGHT(C494, 10)","v":"21.02.2018"}]
["Das Netzwerk aus der Union Europäisch-Türkischer Demokraten (UETD), AKP, dem türkischen Geheimdienst MIT, Islamisten sowie dem Osmanen Germania Boxclub (BC) – Nimmt die Landesregierung die Herausforderung ernst?","16/3158","Datum: 21.02.2018","Art: Antrag","Urheber: FDP/DVP",{"$f":"RIGHT(C495, 10)","v":"21.02.2018"}]
["Antisemitismus in Baden-Württemberg – Eine Herausforderung für Politik, Gesellschaft und Behörden","16/3346","Datum: 21.02.2018","Art: Antrag","Urheber: FDP/DVP",{"$f":"RIGHT(C496, 10)","v":"21.02.2018"}]
["Qualität und Methodik des Rechtsextremismusmonitorings 2016 des Demokratiezentrums Baden-Württemberg","16/3382","Datum: 21.02.2018","Art: Antrag","Urheber: AfD",{"$f":"RIGHT(C497, 10)","v":"21.02.2018"}]
["Kriminalprävention und Wissenschaftlichkeit – Aussagen der Tübinger Professorin H.","16/3197","Datum: 23.02.2018","Art: Kleine Anfrage","Urheber: AfD",{"$f":"RIGHT(C498, 10)","v":"23.02.2018"}]
["Behördliche Erfassung der Terroristen „Ahmad Alkhald“, S. A. und O. K.","16/3273","Datum: 23.02.2018","Art: Kleine Anfrage","Urheber: AfD",{"$f":"RIGHT(C499, 10)","v":"23.02.2018"}]
["Inhalt des Monitorings des Demokratiezentrums Baden-Württemberg zum Rechtsextremismus","16/3381","Datum: 23.02.2018","Art: Antrag","Urheber: AfD",{"$f":"RIGHT(C500, 10)","v":"23.02.2018"}]
["Stationäre Geschwindigkeitsüberwachung in Baden-Württemberg","16/3339","Datum: 26.02.2018","Art: Kleine Anfrage","Urheber: SPD",{"$f":"RIGHT(C501, 10)","v":"26.02.2018"}]
["Volksverhetzung durch Prediger der Türkisch-Islamischen Union der Anstalt für Religion e. V. (Ditib)?","16/3398","Datum: 26.02.2018","Art: Antrag","Urheber: FDP/DVP",{"$f":"RIGHT(C502, 10)","v":"26.02.2018"}]
["Richterfortbildung in Baden-Württemberg zum Thema Missbrauch von und Gewalt an Kindern und Jugendlichen","16/3408","Datum: 26.02.2018","Art: Antrag","Urheber: SPD",{"$f":"RIGHT(C503, 10)","v":"26.02.2018"}]
["Leichenschau und Obduktion in Baden-Württemberg","16/3281","Datum: 28.02.2018","Art: Antrag","Urheber: FDP/DVP",{"$f":"RIGHT(C504, 10)","v":"28.02.2018"}]
["Unterbindung von Mehrfachstraftaten durch Asylbewerber","16/3394","Datum: 01.03.2018","Art: Kleine Anfrage","Urheber: AfD",{"$f":"RIGHT(C505, 10)","v":"01.03.2018"}]
["Beschlussempfehlung und Berichtdes Ausschusses für Finanzenzu der Mitteilung der Landesregierung vom 10. Oktober 2017– Drucksache 16/2791Bericht der Landesregierung zu einem Beschluss des Landtags;hier: Denkschrift 2016 des Rechnungshofs zur Haushalts- un","16/3653","Datum: 01.03.2018","Art: Beschlussempfehlung","Urheber: Ausschüsse",{"$f":"RIGHT(C506, 10)","v":"01.03.2018"}]
["Altersfeststellung bei unbegleiteten minderjährigen Ausländern (UMA)","16/3236","Datum: 06.03.2018","Art: Antrag","Urheber: SPD",{"$f":"RIGHT(C507, 10)","v":"06.03.2018"}]
["Illegaler Handel mit Welpen","16/3351","Datum: 06.03.2018","Art: Kleine Anfrage","Urheber: AfD",{"$f":"RIGHT(C508, 10)","v":"06.03.2018"}]
["Altersfeststellungen durch Ultraschall-Handscanner","16/3414","Datum: 07.03.2018","Art: Kleine Anfrage","Urheber: AfD",{"$f":"RIGHT(C509, 10)","v":"07.03.2018"}]
["Sicherheit in Landesmuseen","16/3401","Datum: 08.03.2018","Art: Antrag","Urheber: FDP/DVP",{"$f":"RIGHT(C510, 10)","v":"08.03.2018"}]
["Brände in Asylbewerberunterkünften","16/3415","Datum: 08.03.2018","Art: Kleine Anfrage","Urheber: AfD",{"$f":"RIGHT(C511, 10)","v":"08.03.2018"}]
["Festnahme eines mutmaßlichen IS-Funktionärs in Ludwigsburg","16/3417","Datum: 08.03.2018","Art: Kleine Anfrage","Urheber: AfD",{"$f":"RIGHT(C512, 10)","v":"08.03.2018"}]
["Projekt „Staatsanwälte vor Ort“ und „Staatsschutzzentren“ auch in Baden-Württemberg?","16/3502","Datum: 12.03.2018","Art: Antrag","Urheber: AfD",{"$f":"RIGHT(C513, 10)","v":"12.03.2018"}]
["IT-Sicherheit von Kritischer Infrastruktur (KRITIS) und Institutionen im besonderen staatlichen Interesse (INSI)","16/3345","Datum: 13.03.2018","Art: Große Anfrage","Urheber: FDP/DVP",{"$f":"RIGHT(C514, 10)","v":"13.03.2018"}]
["Antisemitismus entschlossen bekämpfen","16/3622","Datum: 16.03.2018","Art: Antrag","Urheber: GRÜNE, CDU, SPD, FDP/DVP",{"$f":"RIGHT(C515, 10)","v":"16.03.2018"}]
["Banküberfälle im Rems-Murr-Kreis","16/3489","Datum: 21.03.2018","Art: Kleine Anfrage","Urheber: AfD",{"$f":"RIGHT(C516, 10)","v":"21.03.2018"}]
["Das Ende der polizeilichen Fahrradcodierung als Teil der Strategie der Landesregierung im Kampf gegen Fahrraddiebstahl","16/3478","Datum: 22.03.2018","Art: Antrag","Urheber: FDP/DVP",{"$f":"RIGHT(C517, 10)","v":"22.03.2018"}]
["Versorgung mit medizinischem Cannabis in Justizvollzugsanstalten","16/3496","Datum: 22.03.2018","Art: Kleine Anfrage","Urheber: FDP/DVP",{"$f":"RIGHT(C518, 10)","v":"22.03.2018"}]
["Weiterer Änderungsbedarf beim Polizeigesetz","16/3529","Datum: 22.03.2018","Art: Antrag","Urheber: SPD",{"$f":"RIGHT(C519, 10)","v":"22.03.2018"}]
["Kinderehen in Baden-Württemberg","16/3536","Datum: 22.03.2018","Art: Antrag","Urheber: AfD",{"$f":"RIGHT(C520, 10)","v":"22.03.2018"}]
["Hälftige Erstattung von Reisekosten für Beamtinnen und Beamte auf Widerruf im Vorbereitungsdienst","16/3404","Datum: 23.03.2018","Art: Antrag","Urheber: SPD",{"$f":"RIGHT(C521, 10)","v":"23.03.2018"}]
["Videoaufzeichnungen des Tatorts Theresienwiese und des Umfelds in Heilbronn","16/3532","Datum: 23.03.2018","Art: Kleine Anfrage","Urheber: AfD",{"$f":"RIGHT(C522, 10)","v":"23.03.2018"}]
["Beschlussempfehlung und Berichtdes Ausschusses für Finanzenzu der Mitteilung der Landesregierung vom 19. September 2017– Drucksache 16/2748Bericht der Landesregierung zu einem Beschluss des Landtags;hier: Denkschrift 2011 des Rechnungshofs zur Haushalts- ","16/3694","Datum: 23.03.2018","Art: Beschlussempfehlung","Urheber: Ausschüsse",{"$f":"RIGHT(C523, 10)","v":"23.03.2018"}]
["Beschlussempfehlung und Berichtdes Ausschusses für Finanzenzu der Mitteilung der Landesregierung vom 29. Dezember 2017– Drucksache 16/3251Bericht der Landesregierung zu einem Beschluss des Landtags;hier: Denkschrift 2015 des Rechnungshofs zur Haushalts- u","16/3697","Datum: 23.03.2018","Art: Beschlussempfehlung","Urheber: Ausschüsse",{"$f":"RIGHT(C524, 10)","v":"23.03.2018"}]
["Sicherheit in und um Bahnhöfe sowie im öffentlichen Personennahverkehr (ÖPNV) und im Schienenpersonennahverkehr (SPNV)","16/3511","Datum: 27.03.2018","Art: Antrag","Urheber: FDP/DVP",{"$f":"RIGHT(C525, 10)","v":"27.03.2018"}]
["Mutmaßliche Verstöße gegen das Tierschutzgesetz auf einem Schlachthof in Tauberbischofsheim","16/3596","Datum: 27.03.2018","Art: Antrag","Urheber: FDP/DVP",{"$f":"RIGHT(C526, 10)","v":"27.03.2018"}]
["Weitere Zusammenarbeit mit der Türkisch-Islamischen Union der Anstalt für Religion e. V. (DITIB)","16/3579","Datum: 28.03.2018","Art: Antrag","Urheber: SPD",{"$f":"RIGHT(C527, 10)","v":"28.03.2018"}]
["Altersfeststellung bei unbegleiteten minderjährigen Ausländern (UMA)","16/3548","Datum: 09.04.2018","Art: Kleine Anfrage","Urheber: AfD",{"$f":"RIGHT(C528, 10)","v":"09.04.2018"}]
["Judenfeindliche Straftaten","16/3552","Datum: 11.04.2018","Art: Kleine Anfrage","Urheber: Fraktionslos",{"$f":"RIGHT(C529, 10)","v":"11.04.2018"}]
["Offene Vorgänge bei Polizei und Staatsanwaltschaften im Januar 2018","16/3601","Datum: 11.04.2018","Art: Kleine Anfrage","Urheber: AfD",{"$f":"RIGHT(C530, 10)","v":"11.04.2018"}]
["Aufstieg in eine höhere Laufbahn bei der Polizei","16/3606","Datum: 11.04.2018","Art: Antrag","Urheber: AfD",{"$f":"RIGHT(C531, 10)","v":"11.04.2018"}]
["Ausschreibungen für den Rettungsdienst und die Polizei","16/3612","Datum: 11.04.2018","Art: Antrag","Urheber: FDP/DVP",{"$f":"RIGHT(C532, 10)","v":"11.04.2018"}]
["Doping","16/3550","Datum: 12.04.2018","Art: Kleine Anfrage","Urheber: Fraktionslos",{"$f":"RIGHT(C533, 10)","v":"12.04.2018"}]
["Änderungsantragder Fraktion der SPD zu dem Antrag der Fraktion der AfD– Drucksache 16/1077","16/3857","Datum: 12.04.2018","Art: Alle","Urheber: AfD",{"$f":"RIGHT(C534, 10)","v":"12.04.2018"}]
["Änderungsantragder Fraktion der AfD zu dem Antrag der Fraktion der AfD– Drucksache 16/1077","16/3867","Datum: 12.04.2018","Art: Alle","Urheber: AfD",{"$f":"RIGHT(C535, 10)","v":"12.04.2018"}]
["Bekämpfung der Schwarzarbeit in Baden-Württemberg","16/3436","Datum: 13.04.2018","Art: Antrag","Urheber: SPD",{"$f":"RIGHT(C536, 10)","v":"13.04.2018"}]
["Lkw-Unfälle auf baden-württembergischen Autobahnen","16/3576","Datum: 13.04.2018","Art: Kleine Anfrage","Urheber: Fraktionslos",{"$f":"RIGHT(C537, 10)","v":"13.04.2018"}]
["Rechtsextreme Aktivitäten im Wahlkreis Konstanz-Radolfzell","16/3616","Datum: 13.04.2018","Art: Kleine Anfrage","Urheber: GRÜNE",{"$f":"RIGHT(C538, 10)","v":"13.04.2018"}]
["Freiwilliger Polizeidienst","16/3672","Datum: 13.04.2018","Art: Antrag","Urheber: AfD",{"$f":"RIGHT(C539, 10)","v":"13.04.2018"}]
["Schutz und Hilfe für von Gewalt betroffene Frauen in Baden-Württemberg","16/3680","Datum: 13.04.2018","Art: Antrag","Urheber: CDU",{"$f":"RIGHT(C540, 10)","v":"13.04.2018"}]
["Mit Haftbefehl gesuchte Rechtsextremisten","16/3683","Datum: 13.04.2018","Art: Antrag","Urheber: GRÜNE",{"$f":"RIGHT(C541, 10)","v":"13.04.2018"}]
["Auskunft über radikale und extremistische Aktivitäten mit religiösem Hintergrund seit 2014","16/3575","Datum: 16.04.2018","Art: Kleine Anfrage","Urheber: Fraktionslos",{"$f":"RIGHT(C542, 10)","v":"16.04.2018"}]
["Ausbildungsstandorte und Lehrpersonal der Polizei Baden-Württemberg","16/3661","Datum: 16.04.2018","Art: Antrag","Urheber: SPD",{"$f":"RIGHT(C543, 10)","v":"16.04.2018"}]
["Zukunft der Kriminalpolizei im Landkreis Konstanz","16/3689","Datum: 16.04.2018","Art: Antrag","Urheber: SPD",{"$f":"RIGHT(C544, 10)","v":"16.04.2018"}]
["Gewalt gegen Lehrkräfte","16/3589","Datum: 17.04.2018","Art: Antrag","Urheber: FDP/DVP",{"$f":"RIGHT(C545, 10)","v":"17.04.2018"}]
["Sicherheitspartnerschaft zwischen dem Land, der Stadt Heidelberg und dem Polizeipräsidium Mannheim","16/3592","Datum: 17.04.2018","Art: Kleine Anfrage","Urheber: SPD",{"$f":"RIGHT(C546, 10)","v":"17.04.2018"}]
["Anschläge auf religiöse Einrichtungen in Baden-Württemberg","16/3588","Datum: 18.04.2018","Art: Kleine Anfrage","Urheber: Fraktionslos",{"$f":"RIGHT(C547, 10)","v":"18.04.2018"}]
["Personenkontrollen am Flughafen Stuttgart","16/3713","Datum: 20.04.2018","Art: Antrag","Urheber: AfD",{"$f":"RIGHT(C548, 10)","v":"20.04.2018"}]
["Reichsbürgerinnen und Reichsbürger/Selbstverwalterinnen und Selbstverwalter im Rems-Murr-Kreis","16/3617","Datum: 23.04.2018","Art: Kleine Anfrage","Urheber: GRÜNE",{"$f":"RIGHT(C549, 10)","v":"23.04.2018"}]
["Nacherfassung unbegleiteter minderjähriger Ausländer (UMA)","16/3732","Datum: 23.04.2018","Art: Antrag","Urheber: AfD",{"$f":"RIGHT(C550, 10)","v":"23.04.2018"}]
["Ermittlungen und zeitliche Abläufe im Fall des beschuldigten Erziehers in Heilbronn","16/3753","Datum: 23.04.2018","Art: Antrag","Urheber: SPD",{"$f":"RIGHT(C551, 10)","v":"23.04.2018"}]
["Einsatz von gefälschten kinderpornografischen Schriften bei Ermittlungen","16/3773","Datum: 24.04.2018","Art: Antrag","Urheber: SPD",{"$f":"RIGHT(C552, 10)","v":"24.04.2018"}]
["Kriminalitätsbrennpunkte in Heilbronn, unter anderem am Kiliansplatz","16/3721","Datum: 25.04.2018","Art: Kleine Anfrage","Urheber: AfD",{"$f":"RIGHT(C553, 10)","v":"25.04.2018"}]
["Personaleinsatz zur Extremistenüberwachung","16/3766","Datum: 25.04.2018","Art: Antrag","Urheber: AfD",{"$f":"RIGHT(C554, 10)","v":"25.04.2018"}]
["Einzelheiten und Erfolge der sogenannten „KURS-Konzeption“ in Baden-Württemberg und der Kinderschänder von Freiburg","16/3785","Datum: 26.04.2018","Art: Antrag","Urheber: AfD",{"$f":"RIGHT(C555, 10)","v":"26.04.2018"}]
["Mitglieder des Osmanen Germania Boxclubs (BC) als Personal in Flüchtlingsunterkünften – Ist das die Null Toleranz der Landesregierung gegen den Osmanen Germania Boxclub?","16/3793","Datum: 26.04.2018","Art: Antrag","Urheber: FDP/DVP",{"$f":"RIGHT(C556, 10)","v":"26.04.2018"}]
["Weitere Fragen zur Festnahme eines IS-Terroristen in Ludwigsburg","16/3709","Datum: 27.04.2018","Art: Kleine Anfrage","Urheber: AfD",{"$f":"RIGHT(C557, 10)","v":"27.04.2018"}]
["Die Situation der Verwaltungsgerichtsbarkeit im Land","16/3781","Datum: 27.04.2018","Art: Antrag","Urheber: FDP/DVP",{"$f":"RIGHT(C558, 10)","v":"27.04.2018"}]
["Entwicklung der Asylpolitik im Land im Jahr 2017","16/3788","Datum: 27.04.2018","Art: Antrag","Urheber: AfD",{"$f":"RIGHT(C559, 10)","v":"27.04.2018"}]
["Sabotiert der Innenminister mit seiner Öffentlichkeitsarbeit die Arbeit der Polizei?","16/3748","Datum: 04.05.2018","Art: Große Anfrage","Urheber: FDP/DVP",{"$f":"RIGHT(C560, 10)","v":"04.05.2018"}]
["Statistische Erfassung von Messerangriffen","16/3807","Datum: 07.05.2018","Art: Antrag","Urheber: AfD",{"$f":"RIGHT(C561, 10)","v":"07.05.2018"}]
["1. Tätigkeitsbericht des Bürgerbeauftragten des Landes Baden-Württemberg für das Jahr 2017","16/3845","Datum: 07.05.2018","Art: Alle","Urheber: LRG",{"$f":"RIGHT(C562, 10)","v":"07.05.2018"}]
["Altersfeststellung bei angeblich minderjährigen Flüchtlingen und die Einführung einer Beweislastumkehr","16/3777","Datum: 08.05.2018","Art: Antrag","Urheber: FDP/DVP",{"$f":"RIGHT(C563, 10)","v":"08.05.2018"}]
["Art und Erfassung antisemitischer Straftaten in Baden-Württemberg im Lichte von Presseberichten","16/3804","Datum: 08.05.2018","Art: Antrag","Urheber: AfD",{"$f":"RIGHT(C564, 10)","v":"08.05.2018"}]
["Ausbildungskapazitäten bei der Polizei","16/3823","Datum: 08.05.2018","Art: Antrag","Urheber: CDU",{"$f":"RIGHT(C565, 10)","v":"08.05.2018"}]
["Pro-kurdische Aktivitäten aus und in Baden-Württemberg","16/3789","Datum: 09.05.2018","Art: Kleine Anfrage","Urheber: AfD",{"$f":"RIGHT(C566, 10)","v":"09.05.2018"}]
["Erstaufnahmestelle (EA) Giengen an der Brenz","16/3791","Datum: 09.05.2018","Art: Kleine Anfrage","Urheber: AfD",{"$f":"RIGHT(C567, 10)","v":"09.05.2018"}]
["Einreiseweg von Asylbewerbern über den Flughafen Stuttgart und Abschiebung nach Afghanistan","16/3830","Datum: 09.05.2018","Art: Antrag","Urheber: AfD",{"$f":"RIGHT(C568, 10)","v":"09.05.2018"}]
["Verordnung über einen Visakodex der Gemeinschaft","16/4011","Datum: 09.05.2018","Art: Alle","Urheber: LRG",{"$f":"RIGHT(C569, 10)","v":"09.05.2018"}]
["Wie reagiert die Landesregierung auf Vorwürfe der türkischen Regierung, die Polizei in Stuttgart habe einen türkischstämmigen Bürger gequält?","16/3864","Datum: 15.05.2018","Art: Antrag","Urheber: FDP/DVP",{"$f":"RIGHT(C570, 10)","v":"15.05.2018"}]
["Überfall in Mannheim am 25. März 2018","16/3806","Datum: 16.05.2018","Art: Kleine Anfrage","Urheber: AfD",{"$f":"RIGHT(C571, 10)","v":"16.05.2018"}]
["Bedeutung wainachischer, insbesondere tschetschenischer Clans für die organisierte Kriminalität in Baden-Württemberg","16/3803","Datum: 17.05.2018","Art: Antrag","Urheber: AfD",{"$f":"RIGHT(C572, 10)","v":"17.05.2018"}]
["Auskunft über das Anonyme Hinweisgebersystem des Landeskriminalamts seit der Einführung","16/3851","Datum: 17.05.2018","Art: Kleine Anfrage","Urheber: Fraktionslos",{"$f":"RIGHT(C573, 10)","v":"17.05.2018"}]
["Änderungsantragder Fraktion GRÜNE undder Fraktion der CDUzu dem Antrag der Fraktion der FDP/DVP– Drucksache 16/4024Die Lage in der Landeserstaufnahmeeinrichtung (LEA) Ellwangen nach der Gewalt gegen die Polizei bei einer ver-suchten Abschiebung und den Po","16/4029","Datum: 17.05.2018","Art: Alle","Urheber: GRÜNE, CDU",{"$f":"RIGHT(C574, 10)","v":"17.05.2018"}]
["Änderungsantragder Fraktion GRÜNE undder Fraktion der CDUzu dem Antrag der Fraktion der AfD – Drucksache 16/1077Kinderehen verbieten und Kinderschutz stärken","16/4030","Datum: 17.05.2018","Art: Alle","Urheber: GRÜNE, CDU",{"$f":"RIGHT(C575, 10)","v":"17.05.2018"}]
["Änderungsantragder Fraktion der AfDzu dem Änderungsantrag der Fraktion GRÜNE und der Fraktion der CDU– Drucksache 16/4030zu dem Antrag der Fraktion der AfD– Drucksache 16/1077Kinderehen verbieten und Kinderschutz stärken","16/4036","Datum: 17.05.2018","Art: Alle","Urheber: AfD",{"$f":"RIGHT(C576, 10)","v":"17.05.2018"}]
["Folgen von Cannabis-Besitzdelikten ohne Bezug zum Straßenverkehr","16/3865","Datum: 18.05.2018","Art: Kleine Anfrage","Urheber: FDP/DVP",{"$f":"RIGHT(C577, 10)","v":"18.05.2018"}]
["Erfassung von Messerangriffen in Baden-Württemberg","16/3886","Datum: 22.05.2018","Art: Antrag","Urheber: AfD",{"$f":"RIGHT(C578, 10)","v":"22.05.2018"}]
["Aktuelle Regelbeurteilungen der Beamtinnen und Beamten des Landes Baden-Württemberg","16/3690","Datum: 23.05.2018","Art: Kleine Anfrage","Urheber: SPD",{"$f":"RIGHT(C579, 10)","v":"23.05.2018"}]
["Erneut: Flächendeckende Altersüberprüfung von unbegleiteten minderjährigen Ausländern (UMA) aus Anlass des Mannheimer „UMA-Skandals“ und Gebrauchmachen von den Möglichkeiten der Verwaltungsvorschriften des Innenministeriums zum Ausländerrecht (VwV-AuslR-IM)","16/3895","Datum: 24.05.2018","Art: Antrag","Urheber: AfD",{"$f":"RIGHT(C580, 10)","v":"24.05.2018"}]
["Jährliche Unterrichtung des Landtags gemäß § 23 a Absatz 10 Polizeigesetz (PolG) über den erfolgten Einsatz technischer Mittel mit Bezug zur Telekommunikation","16/4094","Datum: 24.05.2018","Art: Alle","Urheber: LRG",{"$f":"RIGHT(C581, 10)","v":"24.05.2018"}]
["Gestohlen oder verloren gemeldete Waffen in Baden-Württemberg","16/3888","Datum: 29.05.2018","Art: Kleine Anfrage","Urheber: AfD",{"$f":"RIGHT(C582, 10)","v":"29.05.2018"}]
["Alters- und Personenfeststellung bei unbegleiteten minderjährigen Ausländern (UMA)","16/3891","Datum: 29.05.2018","Art: Kleine Anfrage","Urheber: CDU",{"$f":"RIGHT(C583, 10)","v":"29.05.2018"}]
["Anschläge von Linksextremisten auf Politiker der AfD und deren Eigentum","16/3829","Datum: 04.06.2018","Art: Antrag","Urheber: AfD",{"$f":"RIGHT(C584, 10)","v":"04.06.2018"}]
["Strukturen zum Schutz von Kindern und Jugendlichen","16/3646","Datum: 05.06.2018","Art: Antrag","Urheber: GRÜNE",{"$f":"RIGHT(C585, 10)","v":"05.06.2018"}]
["Maßnahmen gegen häusliche Gewalt in Mannheim","16/3919","Datum: 05.06.2018","Art: Kleine Anfrage","Urheber: SPD",{"$f":"RIGHT(C586, 10)","v":"05.06.2018"}]
["Stellensituation in der Justiz im Bereich der Verfolgung der Wirtschaftskriminalität","16/3800","Datum: 07.06.2018","Art: Antrag","Urheber: GRÜNE",{"$f":"RIGHT(C587, 10)","v":"07.06.2018"}]
["Feuerteufel in Mannheim − wie reagiert die Landesregierung auf die Mannheimer Brandserien?","16/3932","Datum: 07.06.2018","Art: Kleine Anfrage","Urheber: SPD",{"$f":"RIGHT(C588, 10)","v":"07.06.2018"}]
["Widersprüche zu Kriminalitätsbrennpunkten in Heilbronn","16/3957","Datum: 08.06.2018","Art: Kleine Anfrage","Urheber: AfD",{"$f":"RIGHT(C589, 10)","v":"08.06.2018"}]
["Die Lage in der Landeserstaufnahmeeinrichtung (LEA) Ellwangen nach der Gewalt gegen die Polizei bei einer versuchten Abschiebung und den Polizeieinsätzen in der LEA Ellwangen im April/Mai 2018 – Herausforderung der Politik","16/4024","Datum: 08.06.2018","Art: Antrag","Urheber: FDP/DVP",{"$f":"RIGHT(C590, 10)","v":"08.06.2018"}]
["Bericht der Landesregierung zu einem Beschluss des Landtags;hier: Änderungsantrag der Fraktion GRÜNE und der Frak -tion der CDU– Drucksache 16/2338zu dem Antrag der Fraktion der FDP/DVP– Drucksache 16/2335zu der Großen Anfrage der Fraktion der FDP/DVP – D","16/4170","Datum: 08.06.2018","Art: Alle","Urheber: LRG",{"$f":"RIGHT(C591, 10)","v":"08.06.2018"}]
["Auskunft über Verletzungen an Polizeibeamten und Rettungskräften","16/3972","Datum: 12.06.2018","Art: Kleine Anfrage","Urheber: Fraktionslos",{"$f":"RIGHT(C592, 10)","v":"12.06.2018"}]
["Unterbleibende Abschiebungen von ausreisepflichtigen Migranten im Land","16/3985","Datum: 12.06.2018","Art: Kleine Anfrage","Urheber: AfD",{"$f":"RIGHT(C593, 10)","v":"12.06.2018"}]
["Situation des Strafvollzugs in Baden-Württemberg im Zeitraum 1. Januar 2016 bis 31. März 2018","16/3989","Datum: 12.06.2018","Art: Kleine Anfrage","Urheber: AfD",{"$f":"RIGHT(C594, 10)","v":"12.06.2018"}]
["Auskunft über die subjektive Sicherheit in Baden-Württemberg","16/3960","Datum: 15.06.2018","Art: Kleine Anfrage","Urheber: Fraktionslos",{"$f":"RIGHT(C595, 10)","v":"15.06.2018"}]
["Entwicklung der Personalsituation bei der Polizei","16/3976","Datum: 15.06.2018","Art: Antrag","Urheber: SPD",{"$f":"RIGHT(C596, 10)","v":"15.06.2018"}]
["Sabotiert der Innenminister mit seiner Öffentlichkeitsarbeitdie Arbeit der Polizei?","16/4059","Datum: 15.06.2018","Art: Alle","Urheber: LRG",{"$f":"RIGHT(C597, 10)","v":"15.06.2018"}]
["Erhöhung der Sicherheit der Personalausweise und Aufenthaltsdokumente von Unionsbürgern","16/4253","Datum: 19.06.2018","Art: Alle","Urheber: LRG",{"$f":"RIGHT(C598, 10)","v":"19.06.2018"}]
["Defizite der Landesregierung in Verständnis und Handhabung der Begriffe Extremismusprävention, Deradikalisierung und Stärkung von Demokratie?","16/3801","Datum: 20.06.2018","Art: Antrag","Urheber: AfD",{"$f":"RIGHT(C599, 10)","v":"20.06.2018"}]
["Sparmaßnahmen bei der Polizei","16/4090","Datum: 20.06.2018","Art: Antrag","Urheber: SPD",{"$f":"RIGHT(C600, 10)","v":"20.06.2018"}]
["Ermittlungsabläufe im Fall des beschuldigten Heilbronner Erziehers K. F.","16/4013","Datum: 21.06.2018","Art: Antrag","Urheber: SPD",{"$f":"RIGHT(C601, 10)","v":"21.06.2018"}]
["Auskunft über die Klärung der Identität nach dem Polizeigesetz","16/4020","Datum: 21.06.2018","Art: Kleine Anfrage","Urheber: Fraktionslos",{"$f":"RIGHT(C602, 10)","v":"21.06.2018"}]
["Unfallgefahren von Fußgängern auf gemeinsamen Geh- und Radwegen","16/4006","Datum: 22.06.2018","Art: Kleine Anfrage","Urheber: AfD",{"$f":"RIGHT(C603, 10)","v":"22.06.2018"}]
["Übergriffe auf Mandatsträger","16/4051","Datum: 22.06.2018","Art: Kleine Anfrage","Urheber: CDU",{"$f":"RIGHT(C604, 10)","v":"22.06.2018"}]
["Rechtliche Rahmenbedingungen für Nebentätigkeiten von Beamten – Ergänzung zu den Drucksachen 16/3082 und 16/3524","16/3964","Datum: 26.06.2018","Art: Antrag","Urheber: FDP/DVP",{"$f":"RIGHT(C605, 10)","v":"26.06.2018"}]
["Evaluierung des Bildungszeitgesetzes","16/4069","Datum: 28.06.2018","Art: Antrag","Urheber: SPD",{"$f":"RIGHT(C606, 10)","v":"28.06.2018"}]
["Polizeieinsatz in der Landeserstaufnahmeeinrichtung (LEA) Ellwangen im April/Mai 2018","16/4108","Datum: 29.06.2018","Art: Kleine Anfrage","Urheber: AfD",{"$f":"RIGHT(C607, 10)","v":"29.06.2018"}]
["Nachrüstung Zentrale Notaufnahme Albstadt oder Schließung 2021?","16/4111","Datum: 29.06.2018","Art: Kleine Anfrage","Urheber: AfD",{"$f":"RIGHT(C608, 10)","v":"29.06.2018"}]
["Bildung von Rettungsgassen durch den Einsatz von Dashcams fördern","16/4124","Datum: 29.06.2018","Art: Antrag","Urheber: CDU",{"$f":"RIGHT(C609, 10)","v":"29.06.2018"}]
["Schmuggel in der Justizvollzugsanstalt Ravensburg","16/4126","Datum: 29.06.2018","Art: Antrag","Urheber: SPD",{"$f":"RIGHT(C610, 10)","v":"29.06.2018"}]
["Polizeilicher Drohneneinsatz in Baden-Württemberg","16/4128","Datum: 29.06.2018","Art: Kleine Anfrage","Urheber: AfD",{"$f":"RIGHT(C611, 10)","v":"29.06.2018"}]
["Abschiebehaftanstalt Pforzheim: Ausbaustand und Vorkommnisse","16/4098","Datum: 03.07.2018","Art: Antrag","Urheber: AfD",{"$f":"RIGHT(C612, 10)","v":"03.07.2018"}]
["Mit Haftbefehl gesuchte Linksextremisten","16/4105","Datum: 03.07.2018","Art: Antrag","Urheber: AfD",{"$f":"RIGHT(C613, 10)","v":"03.07.2018"}]
["„Kill Netanjahu“-Schmierereien in der Stuttgarter Innenstadt","16/4125","Datum: 03.07.2018","Art: Kleine Anfrage","Urheber: FDP/DVP",{"$f":"RIGHT(C614, 10)","v":"03.07.2018"}]
["Islamische Verfassungsfeinde an der Universität Stuttgart?","16/4005","Datum: 05.07.2018","Art: Antrag","Urheber: AfD",{"$f":"RIGHT(C615, 10)","v":"05.07.2018"}]
["Kriminalität im Wahlkreis Esslingen","16/4121","Datum: 05.07.2018","Art: Kleine Anfrage","Urheber: CDU",{"$f":"RIGHT(C616, 10)","v":"05.07.2018"}]
["Möglichkeit der privaten Nutzung von vom Dienstherrn geleasten Dienstfahrrädern durch Beschäftigte des Landes","16/4164","Datum: 06.07.2018","Art: Antrag","Urheber: CDU",{"$f":"RIGHT(C617, 10)","v":"06.07.2018"}]
["Suizidalität von Geflüchteten in Baden-Württemberg","16/4146","Datum: 09.07.2018","Art: Kleine Anfrage","Urheber: SPD",{"$f":"RIGHT(C618, 10)","v":"09.07.2018"}]
["Aktueller Stand zur Evaluierung der Polizeistrukturreform","16/4162","Datum: 09.07.2018","Art: Antrag","Urheber: SPD",{"$f":"RIGHT(C619, 10)","v":"09.07.2018"}]
["Einsatz von Alkoholmessgeräten bei der Polizei","16/4166","Datum: 10.07.2018","Art: Antrag","Urheber: SPD",{"$f":"RIGHT(C620, 10)","v":"10.07.2018"}]
["Unbegleitete minderjährige Ausländer (UMA) als Intensivstraftäter in Mannheim und andernorts","16/3123","Datum: 11.07.2018","Art: Antrag","Urheber: AfD",{"$f":"RIGHT(C621, 10)","v":"11.07.2018"}]
["40-Stunden-Woche für Landesbeamte","16/4168","Datum: 11.07.2018","Art: Antrag","Urheber: SPD",{"$f":"RIGHT(C622, 10)","v":"11.07.2018"}]
["Die Situation der Polizei in Baden-Württemberg – Strukturen, Ausrüstung, Personalmangel?","16/4079","Datum: 12.07.2018","Art: Große Anfrage","Urheber: FDP/DVP",{"$f":"RIGHT(C623, 10)","v":"12.07.2018"}]
["„Wildparkerei“ auf Geh- und Radwegen","16/4099","Datum: 12.07.2018","Art: Kleine Anfrage","Urheber: AfD",{"$f":"RIGHT(C624, 10)","v":"12.07.2018"}]
["Waffenbesitz im Landkreis Böblingen","16/4134","Datum: 12.07.2018","Art: Kleine Anfrage","Urheber: AfD",{"$f":"RIGHT(C625, 10)","v":"12.07.2018"}]
["Ausschreitungen nach dem Pokalfinale SSV Ulm 1846 Fußball e. V. (SSV Ulm) gegen TSV Ilshofen","16/4148","Datum: 12.07.2018","Art: Kleine Anfrage","Urheber: SPD",{"$f":"RIGHT(C626, 10)","v":"12.07.2018"}]
["Unbesetzte Stellen in der Landesverwaltung und der Justiz von Baden-Württemberg","16/3910","Datum: 13.07.2018","Art: Antrag","Urheber: SPD",{"$f":"RIGHT(C627, 10)","v":"13.07.2018"}]
["Personalsituation und Attraktivität des öffentlichen Dienstes in Baden-Württemberg","16/3928","Datum: 13.07.2018","Art: Antrag","Urheber: CDU",{"$f":"RIGHT(C628, 10)","v":"13.07.2018"}]
["Verhinderter Serienvergewaltiger in Freiburg","16/4240","Datum: 13.07.2018","Art: Antrag","Urheber: AfD",{"$f":"RIGHT(C629, 10)","v":"13.07.2018"}]
["Ergebnis der Altersüberprüfung bei den (restlichen) Mannheimer unbegleiteten minderjährigen Ausländern (UMA)","16/4245","Datum: 13.07.2018","Art: Antrag","Urheber: AfD",{"$f":"RIGHT(C630, 10)","v":"13.07.2018"}]
["Bericht der Landesregierung zu einem Beschluss des Landtags;hier: Gesetz zur Umsetzung der Polizeistrukturreform(Polizeistrukturreformgesetz – PolRG)","16/4283","Datum: 16.07.2018","Art: Alle","Urheber: LRG",{"$f":"RIGHT(C631, 10)","v":"16.07.2018"}]
["Beschlussempfehlung und Berichtdes Ständigen Ausschusseszu der Mitteilung der Landesregierung vom 4. April 2018– Drucksache 16/3841Jährliche Unterrichtung des Landtags gemäß Artikel 2 Absatz 5 des Gesetzes zu dem Vertrag des Landes Baden-Württemberg mit d","16/4379","Datum: 17.07.2018","Art: Beschlussempfehlung","Urheber: Ausschüsse",{"$f":"RIGHT(C632, 10)","v":"17.07.2018"}]
["Beschlussempfehlung und Berichtdes Ausschusses für Inneres, Digitalisierung und Migrationzu der Mitteilung der Landesregierung vom 9. Mai 2018– Drucksache 16/4094Jährliche Unterrichtung des Landtags gemäß § 23 a Absatz 10 Polizeigesetz (PolG) über den erf","16/4279","Datum: 18.07.2018","Art: Beschlussempfehlung","Urheber: Ausschüsse",{"$f":"RIGHT(C633, 10)","v":"18.07.2018"}]
["Tote und Verletzte im Straßenverkehr im Wahlkreis Böblingen","16/4201","Datum: 23.07.2018","Art: Kleine Anfrage","Urheber: CDU",{"$f":"RIGHT(C634, 10)","v":"23.07.2018"}]
["Beabsichtigte neue Verfahrensweise der zentralisierten Altersbestimmung von unbegleiteten minderjährigen Ausländern (UMA) in Heidelberg","16/4268","Datum: 23.07.2018","Art: Antrag","Urheber: AfD",{"$f":"RIGHT(C635, 10)","v":"23.07.2018"}]
["Kapitulation und Durchsetzung des Rechtsstaats in der Landeserstaufnahmestelle (LEA) Ellwangen – Wie steht es um die Polizei und den Rechtsstaat?","16/4303","Datum: 23.07.2018","Art: Antrag","Urheber: FDP/DVP",{"$f":"RIGHT(C636, 10)","v":"23.07.2018"}]
["Übergriffe auf Ärzte in Baden-Württemberg","16/4216","Datum: 25.07.2018","Art: Antrag","Urheber: AfD",{"$f":"RIGHT(C637, 10)","v":"25.07.2018"}]
["Völkische Siedler","16/4204","Datum: 26.07.2018","Art: Kleine Anfrage","Urheber: GRÜNE",{"$f":"RIGHT(C638, 10)","v":"26.07.2018"}]
["Suizidversuche von Asylbewerbern","16/4207","Datum: 26.07.2018","Art: Kleine Anfrage","Urheber: GRÜNE",{"$f":"RIGHT(C639, 10)","v":"26.07.2018"}]
["„Reichsbürgerinnen und Reichsbürger“/Selbstverwalterinnen und Selbstverwalter in den Landkreisen Schwäbisch Hall, Main-Tauber und Ostalb","16/4242","Datum: 26.07.2018","Art: Kleine Anfrage","Urheber: FDP/DVP",{"$f":"RIGHT(C640, 10)","v":"26.07.2018"}]
["Staatsangehörigkeitsausweis","16/4136","Datum: 27.07.2018","Art: Kleine Anfrage","Urheber: AfD",{"$f":"RIGHT(C641, 10)","v":"27.07.2018"}]
["Bericht der Landesregierung zu einem Beschluss des Landtags;hier: Jahresbericht zur Telekommunikationsüberwachung 2017(Untersuchungsausschuss „Praxis der Telefonüberwachung“)","16/4276","Datum: 27.07.2018","Art: Alle","Urheber: LRG",{"$f":"RIGHT(C642, 10)","v":"27.07.2018"}]
["Was leistet die BITBW und hat sie noch eine Zukunft?","16/4334","Datum: 01.08.2018","Art: Antrag","Urheber: FDP/DVP",{"$f":"RIGHT(C643, 10)","v":"01.08.2018"}]
["Beratung und Hilfe bei sexueller Gewalt an Kindern und Jugendlichen in Baden-Württemberg","16/4290","Datum: 02.08.2018","Art: Antrag","Urheber: SPD",{"$f":"RIGHT(C644, 10)","v":"02.08.2018"}]
["Die Fußballsaison 2017/2018 mit Blick auf den Einsatz der Polizei und Stadionallianzen","16/4295","Datum: 07.08.2018","Art: Antrag","Urheber: FDP/DVP",{"$f":"RIGHT(C645, 10)","v":"07.08.2018"}]
["Verzicht auf Unterbringung in der Abschiebungshafteinrichtung aufgrund von fehlenden Abschiebungshaftplätzen","16/4316","Datum: 09.08.2018","Art: Antrag","Urheber: SPD",{"$f":"RIGHT(C646, 10)","v":"09.08.2018"}]
["Innere Sicherheit als Chefsache des Ministers – Brief an die Bundeskanzlerin, Kosten der Polizeireform, bundesweite Gefährderdatei","16/4328","Datum: 20.08.2018","Art: Antrag","Urheber: FDP/DVP",{"$f":"RIGHT(C647, 10)","v":"20.08.2018"}]
["Gewinnung von Ruhestandsbeamtinnen und Ruhestandsbeamten des gehobenen Polizeivollzugsdienstes für die polizeiliche Ausbildung","16/4329","Datum: 20.08.2018","Art: Antrag","Urheber: SPD",{"$f":"RIGHT(C648, 10)","v":"20.08.2018"}]
["Unterstützung der EU-Grenzschutzagentur Frontex durch deutsche Polizistinnen und Polizisten","16/4363","Datum: 20.08.2018","Art: Antrag","Urheber: SPD",{"$f":"RIGHT(C649, 10)","v":"20.08.2018"}]
["Rote Fahne","16/4376","Datum: 20.08.2018","Art: Kleine Anfrage","Urheber: GRÜNE",{"$f":"RIGHT(C650, 10)","v":"20.08.2018"}]
["Linksextreme Musikveranstaltungen in Baden-Württemberg","16/4397","Datum: 21.08.2018","Art: Kleine Anfrage","Urheber: AfD",{"$f":"RIGHT(C651, 10)","v":"21.08.2018"}]
["Übernimmt die Landesregierung Maßnahmen der hessischen Landesregierung zur Verbesserung der Ausrüstung der Polizei und wie hat sie Dienstpostenbündelungen bei der Dienstpostenbewertung geprüft?","16/4433","Datum: 23.08.2018","Art: Antrag","Urheber: FDP/DVP",{"$f":"RIGHT(C652, 10)","v":"23.08.2018"}]
["Kostensteigerung der Polizeireform","16/4431","Datum: 24.08.2018","Art: Antrag","Urheber: AfD",{"$f":"RIGHT(C653, 10)","v":"24.08.2018"}]
["Polizeibeamte auf Wohnungssuche","16/4447","Datum: 24.08.2018","Art: Antrag","Urheber: AfD",{"$f":"RIGHT(C654, 10)","v":"24.08.2018"}]
["Antifa-Aktivitäten im Kreis Freiburg und Kreis Schwäbisch Hall","16/4370","Datum: 27.08.2018","Art: Kleine Anfrage","Urheber: AfD",{"$f":"RIGHT(C655, 10)","v":"27.08.2018"}]
["Rechtsextremistische Musikveranstaltungen im Stadt- und Landkreis Karlsruhe","16/4440","Datum: 27.08.2018","Art: Kleine Anfrage","Urheber: GRÜNE",{"$f":"RIGHT(C656, 10)","v":"27.08.2018"}]
["Wie will das Land Dieselfahrverbote ab 2019 kontrollieren und welche Strafen drohen bei Nichtbeachtung des Verbots?","16/4446","Datum: 27.08.2018","Art: Kleine Anfrage","Urheber: AfD",{"$f":"RIGHT(C657, 10)","v":"27.08.2018"}]
["Organisierte Kriminalität in der Baubranche in Baden-Württemberg","16/4463","Datum: 28.08.2018","Art: Antrag","Urheber: FDP/DVP",{"$f":"RIGHT(C658, 10)","v":"28.08.2018"}]
["Schmuggel in der Justizvollzugsanstalt Heilbronn","16/4470","Datum: 28.08.2018","Art: Antrag","Urheber: SPD",{"$f":"RIGHT(C659, 10)","v":"28.08.2018"}]
["Situation der minderjährigen Flüchtlinge im Wahlkreis Konstanz","16/4466","Datum: 30.08.2018","Art: Kleine Anfrage","Urheber: GRÜNE",{"$f":"RIGHT(C660, 10)","v":"30.08.2018"}]
["Denkschrift 2018 zur Haushaltsrechnung 2016(vgl. Drucksache 16/4400)hier: Beitrag Nr. 6 – Polizeiausbildung effizienter gestalten(Kapitel 0317)","16/4406","Datum: 31.08.2018","Art: Alle","Urheber: Rechnungshof",{"$f":"RIGHT(C661, 10)","v":"31.08.2018"}]
["Glücksspielaufsichtsbehörden des Landes","16/4502","Datum: 31.08.2018","Art: Kleine Anfrage","Urheber: CDU",{"$f":"RIGHT(C662, 10)","v":"31.08.2018"}]
["Möglichkeiten der Haftvermeidung und Haftverkürzung","16/4507","Datum: 05.09.2018","Art: Antrag","Urheber: SPD",{"$f":"RIGHT(C663, 10)","v":"05.09.2018"}]
["Verkehrssicherheit in Zeiten des Pedelec","16/4508","Datum: 07.09.2018","Art: Kleine Anfrage","Urheber: CDU",{"$f":"RIGHT(C664, 10)","v":"07.09.2018"}]
["Übergriffe auf medizinisches Personal in Erstaufnahme- und Landeserstaufnahmeeinrichtungen?","16/4529","Datum: 07.09.2018","Art: Kleine Anfrage","Urheber: AfD",{"$f":"RIGHT(C665, 10)","v":"07.09.2018"}]
["Finanzierung sogenannter „antifaschistischer“ Gruppierungen","16/4527","Datum: 10.09.2018","Art: Kleine Anfrage","Urheber: AfD",{"$f":"RIGHT(C666, 10)","v":"10.09.2018"}]
["„Fangquoten“ bei der Polizei","16/4531","Datum: 13.09.2018","Art: Antrag","Urheber: AfD",{"$f":"RIGHT(C667, 10)","v":"13.09.2018"}]
["Konsequenzen aus der angespannten Personalsituation bei der Polizei","16/4558","Datum: 14.09.2018","Art: Antrag","Urheber: SPD",{"$f":"RIGHT(C668, 10)","v":"14.09.2018"}]
["Straftaten gegen Mitglieder und Repräsentanten der AfD in Freiburg von 2013 bis 2018","16/4543","Datum: 19.09.2018","Art: Kleine Anfrage","Urheber: AfD",{"$f":"RIGHT(C669, 10)","v":"19.09.2018"}]
["Untersuchungshaft in Baden-Württemberg","16/4591","Datum: 19.09.2018","Art: Kleine Anfrage","Urheber: SPD",{"$f":"RIGHT(C670, 10)","v":"19.09.2018"}]
["Täter-Opfer-Ausgleich in Baden-Württemberg","16/4594","Datum: 19.09.2018","Art: Antrag","Urheber: SPD",{"$f":"RIGHT(C671, 10)","v":"19.09.2018"}]
["Überfall auf eine Bäckerei in Heilbronn","16/4588","Datum: 20.09.2018","Art: Kleine Anfrage","Urheber: SPD",{"$f":"RIGHT(C672, 10)","v":"20.09.2018"}]
["Antifa-Aktivitäten in Baden-Württemberg","16/4369","Datum: 21.09.2018","Art: Kleine Anfrage","Urheber: AfD",{"$f":"RIGHT(C673, 10)","v":"21.09.2018"}]
["Sicherer Schulweg","16/4589","Datum: 21.09.2018","Art: Antrag","Urheber: SPD",{"$f":"RIGHT(C674, 10)","v":"21.09.2018"}]
["Dokumentenüberprüfungen","16/4601","Datum: 21.09.2018","Art: Kleine Anfrage","Urheber: AfD",{"$f":"RIGHT(C675, 10)","v":"21.09.2018"}]
["Korruption und illegaler Handel unter anderem mit Drogen in der Justizvollzugsanstalt (JVA) Heilbronn durch einen ihrer Bediensteten","16/4603","Datum: 21.09.2018","Art: Antrag","Urheber: FDP/DVP",{"$f":"RIGHT(C676, 10)","v":"21.09.2018"}]
["Spuck- und Beißattacken auf Polizisten","16/4605","Datum: 21.09.2018","Art: Antrag","Urheber: AfD",{"$f":"RIGHT(C677, 10)","v":"21.09.2018"}]
["Wie stark ist die „Abschiebekonsequenz“ des Innenministers bei Afghanen ausgeprägt?","16/4660","Datum: 24.09.2018","Art: Antrag","Urheber: AfD",{"$f":"RIGHT(C678, 10)","v":"24.09.2018"}]
["Taktische Rettung und Notfallmedizin bei der Polizei","16/4676","Datum: 24.09.2018","Art: Antrag","Urheber: AfD",{"$f":"RIGHT(C679, 10)","v":"24.09.2018"}]
["Information über Staatsvertragsentwürfe;hier: Entwurf des Vertrages des Landes Baden-Württem-berg mit dem Verband Deutscher Sinti und Roma,Landesverband Baden-Württemberg e. V.","16/4781","Datum: 25.09.2018","Art: Alle","Urheber: LRG",{"$f":"RIGHT(C680, 10)","v":"25.09.2018"}]
["Auskunft über die Justizvollzugsanstalten (JVA) in Baden-Württemberg","16/4633","Datum: 26.09.2018","Art: Kleine Anfrage","Urheber: Fraktionslos",{"$f":"RIGHT(C681, 10)","v":"26.09.2018"}]
["Auskunft über Gewalt an Schulen in Baden-Württemberg","16/4634","Datum: 26.09.2018","Art: Kleine Anfrage","Urheber: Fraktionslos",{"$f":"RIGHT(C682, 10)","v":"26.09.2018"}]
["Auskunft über Politessen in Baden-Württemberg","16/4635","Datum: 26.09.2018","Art: Kleine Anfrage","Urheber: Fraktionslos",{"$f":"RIGHT(C683, 10)","v":"26.09.2018"}]
["Anlage des Pensionsvermögens des Landes","16/4664","Datum: 27.09.2018","Art: Kleine Anfrage","Urheber: FDP/DVP",{"$f":"RIGHT(C684, 10)","v":"27.09.2018"}]
["Beschlussempfehlung und Berichtdes Ausschusses für Finanzenzu der Mitteilung der Landesregierung vom 15. Juni 2018– Drucksache 16/4283Bericht der Landesregierung zu einem Beschluss des Landtags;hier: Gesetz zur Umsetzung der Polizeistrukturreform (Polizei","16/4821","Datum: 27.09.2018","Art: Beschlussempfehlung","Urheber: Ausschüsse",{"$f":"RIGHT(C685, 10)","v":"27.09.2018"}]
["Aktivitäten der Skinheadkameradschaft „Voice of Anger“","16/4607","Datum: 28.09.2018","Art: Kleine Anfrage","Urheber: GRÜNE",{"$f":"RIGHT(C686, 10)","v":"28.09.2018"}]
["Linksextremismus-Entwicklung 2018","16/4478","Datum: 05.10.2018","Art: Große Anfrage","Urheber: AfD",{"$f":"RIGHT(C687, 10)","v":"05.10.2018"}]
["Bearbeitungszeiten beim Landesamt für Besoldung und Versorgung Baden-Württemberg (LBV)","16/4638","Datum: 05.10.2018","Art: Antrag","Urheber: SPD",{"$f":"RIGHT(C688, 10)","v":"05.10.2018"}]
["Mitarbeiterfreundlichkeit und Digitalisierung in den Bereichen Beihilfe und Heilfürsorge beim Landesamt für Besoldung und Versorgung (LBV)","16/4637","Datum: 08.10.2018","Art: Antrag","Urheber: CDU",{"$f":"RIGHT(C689, 10)","v":"08.10.2018"}]
["Einsätze von Polizei, Feuerwehr und Rettungsdiensten in Teilen Heilbronns","16/4649","Datum: 09.10.2018","Art: Kleine Anfrage","Urheber: AfD",{"$f":"RIGHT(C690, 10)","v":"09.10.2018"}]
["Ermittlungsstand von Vorfällen 2018 im Bezirk des Polizeipräsidiums Heilbronn","16/4650","Datum: 09.10.2018","Art: Kleine Anfrage","Urheber: AfD",{"$f":"RIGHT(C691, 10)","v":"09.10.2018"}]
["Muslimische Friedensrichter in Baden-Württemberg","16/4652","Datum: 09.10.2018","Art: Kleine Anfrage","Urheber: AfD",{"$f":"RIGHT(C692, 10)","v":"09.10.2018"}]
["Abgebrannte Asylunterkunft in Haßmersheim","16/4655","Datum: 09.10.2018","Art: Kleine Anfrage","Urheber: AfD",{"$f":"RIGHT(C693, 10)","v":"09.10.2018"}]
["Bericht der Landesregierung zu einem Beschluss des Landtags;hier: Antrag der Fraktion GRÜNE, der Fraktion der CDU, derFraktion der SPD und der Fraktion der FDP/DVP– Antisemitismus entschlossen bekämpfen– Drucksache 16/3622","16/4754","Datum: 10.10.2018","Art: Alle","Urheber: LRG",{"$f":"RIGHT(C694, 10)","v":"10.10.2018"}]
["Beschlussempfehlung und Berichtdes Ständigen Ausschusseszu der Mitteilung der Landesregierung vom 13. September 2018– Drucksache 16/4781Information über Staatsvertragsentwürfe;hier: Entwurf des Vertrages des Landes Baden-Württemberg mit dem Verband Deutsc","16/4847","Datum: 10.10.2018","Art: Beschlussempfehlung","Urheber: Ausschüsse",{"$f":"RIGHT(C695, 10)","v":"10.10.2018"}]
["Bericht der Landesregierung zu einem Beschluss des Landtags;hier: Denkschrift 2015 des Rechnungshofs zur Haushalts- undWirtschaftsführung des Landes Baden-Württemberg – Beitrag Nr. 9: Haftplatzbedarf sowie Einrichtungen desoffenen Vollzugs und des Freigan","16/4868","Datum: 10.10.2018","Art: Alle","Urheber: LRG",{"$f":"RIGHT(C696, 10)","v":"10.10.2018"}]
["Reformüberlegungen des Justizministeriums zum Jugendstrafrecht","16/4749","Datum: 11.10.2018","Art: Antrag","Urheber: FDP/DVP",{"$f":"RIGHT(C697, 10)","v":"11.10.2018"}]
["Gesetz zur Änderung des Landesbesoldungsgesetzes Baden-Württemberg und anderer dienstrechtlicher Vorschriften","16/4935","Datum: 11.10.2018","Art: Gesetzentwurf","Urheber: LRG",{"$f":"RIGHT(C698, 10)","v":"11.10.2018"}]
["Europäisches Kompetenzzentrum für Cybersicherheit","16/4944","Datum: 11.10.2018","Art: Alle","Urheber: LRG",{"$f":"RIGHT(C699, 10)","v":"11.10.2018"}]
["Kosten der Schutzmaßnahmen für den Ministerpräsidenten und den Innenminister","16/4656","Datum: 12.10.2018","Art: Kleine Anfrage","Urheber: AfD",{"$f":"RIGHT(C700, 10)","v":"12.10.2018"}]
["Vorbereitung auf lebensbedrohliche Einsatzlagen bei Polizei und Rettungsdienst","16/4671","Datum: 12.10.2018","Art: Kleine Anfrage","Urheber: CDU",{"$f":"RIGHT(C701, 10)","v":"12.10.2018"}]
["Kosten einzelner Haftformen und Maßnahmen zur Maßregelung","16/4651","Datum: 15.10.2018","Art: Kleine Anfrage","Urheber: AfD",{"$f":"RIGHT(C702, 10)","v":"15.10.2018"}]
["Besetzung der Anwärterinnen- und Anwärterstellen bei der Polizei","16/4756","Datum: 15.10.2018","Art: Antrag","Urheber: SPD",{"$f":"RIGHT(C703, 10)","v":"15.10.2018"}]
["Wirkungen des Tempolimits gegen illegale Autorennen auf der Autobahn (A) 81","16/4764","Datum: 15.10.2018","Art: Antrag","Urheber: GRÜNE",{"$f":"RIGHT(C704, 10)","v":"15.10.2018"}]
["Durchfallquote von Polizeianwärterinnen und Polizeianwärtern bei der Abschlussprüfung und vorzeitiges Ausscheiden aus der Polizeiausbildung in Baden-Württemberg","16/4732","Datum: 16.10.2018","Art: Antrag","Urheber: SPD",{"$f":"RIGHT(C705, 10)","v":"16.10.2018"}]
["Umgang mit Medienvertreterinnen und Medienvertretern bei Versammlungen und Demonstrationen und Bedeutung für die Polizeiaus- und -fortbildung","16/4735","Datum: 16.10.2018","Art: Antrag","Urheber: SPD",{"$f":"RIGHT(C706, 10)","v":"16.10.2018"}]
["Rückführung illegal aufhältiger Drittstaatsangehöriger","16/4978","Datum: 16.10.2018","Art: Alle","Urheber: LRG",{"$f":"RIGHT(C707, 10)","v":"16.10.2018"}]
["Verhinderung der Verbreitung terroristischer Online-Inhalte","16/4979","Datum: 16.10.2018","Art: Alle","Urheber: LRG",{"$f":"RIGHT(C708, 10)","v":"16.10.2018"}]
["Polizeipräsenz in Offenburg","16/4687","Datum: 17.10.2018","Art: Kleine Anfrage","Urheber: FDP/DVP",{"$f":"RIGHT(C709, 10)","v":"17.10.2018"}]
["Angriff auf Polizeibeamte auf der Königstraße","16/4691","Datum: 17.10.2018","Art: Kleine Anfrage","Urheber: AfD",{"$f":"RIGHT(C710, 10)","v":"17.10.2018"}]
["Rückführungen in Ellwangen","16/4658","Datum: 18.10.2018","Art: Kleine Anfrage","Urheber: AfD",{"$f":"RIGHT(C711, 10)","v":"18.10.2018"}]
["Straffreier Eigenbedarf von Cannabis in Baden-Württemberg","16/4675","Datum: 18.10.2018","Art: Antrag","Urheber: SPD",{"$f":"RIGHT(C712, 10)","v":"18.10.2018"}]
["Einsatz und Gefährdung baden-württembergischer Polizeikräfte im Hambacher Forst","16/4785","Datum: 18.10.2018","Art: Antrag","Urheber: FDP/DVP",{"$f":"RIGHT(C713, 10)","v":"18.10.2018"}]
["Europäische Grenz- und Küstenwache","16/4988","Datum: 18.10.2018","Art: Alle","Urheber: LRG",{"$f":"RIGHT(C714, 10)","v":"18.10.2018"}]
["Kompetenzzentrum gegen Extremismus in Baden-Württemberg („konex“)","16/4684","Datum: 19.10.2018","Art: Kleine Anfrage","Urheber: AfD",{"$f":"RIGHT(C715, 10)","v":"19.10.2018"}]
["Terrorverdächtiger aus Freiburg","16/4788","Datum: 19.10.2018","Art: Antrag","Urheber: AfD",{"$f":"RIGHT(C716, 10)","v":"19.10.2018"}]
["Beschlussempfehlung und Berichtdes Ausschusses für Finanzenzu dem Gesetzentwurf der Landesregierung– Drucksache 16/4935Gesetz zur Änderung des Landesbesoldungsgesetzes Baden-Württemberg und anderer dienstrechtlicher Vorschriften","16/5022","Datum: 22.10.2018","Art: Beschlussempfehlung","Urheber: Ausschüsse",{"$f":"RIGHT(C717, 10)","v":"22.10.2018"}]
["Gesetz zur Änderung des Landesbeamtengesetzes und anderer Vorschriften","16/4962","Datum: 23.10.2018","Art: Gesetzentwurf","Urheber: LRG",{"$f":"RIGHT(C718, 10)","v":"23.10.2018"}]
["Rekordwert an Mord und Tötungsfällen in der Region Heilbronn","16/4657","Datum: 24.10.2018","Art: Kleine Anfrage","Urheber: AfD",{"$f":"RIGHT(C719, 10)","v":"24.10.2018"}]
["Auskunft über die Leichenschau in Baden-Württemberg","16/4716","Datum: 24.10.2018","Art: Kleine Anfrage","Urheber: Fraktionslos",{"$f":"RIGHT(C720, 10)","v":"24.10.2018"}]
["Auskunft über die Mitarbeiterstrukturen in der Justizvollzugsanstalt (JVA)","16/4717","Datum: 24.10.2018","Art: Kleine Anfrage","Urheber: Fraktionslos",{"$f":"RIGHT(C721, 10)","v":"24.10.2018"}]
["Auskunft über die Personalsituation in den Justizvollzugsanstalten (JVA) in Baden-Württemberg","16/4718","Datum: 24.10.2018","Art: Kleine Anfrage","Urheber: Fraktionslos",{"$f":"RIGHT(C722, 10)","v":"24.10.2018"}]
["Auskunft über Fehlalarme an Schulen in Baden-Württemberg [Amok]","16/4720","Datum: 24.10.2018","Art: Kleine Anfrage","Urheber: Fraktionslos",{"$f":"RIGHT(C723, 10)","v":"24.10.2018"}]
["Auskunft über illegale Autorennen in Baden-Württemberg","16/4722","Datum: 24.10.2018","Art: Kleine Anfrage","Urheber: Fraktionslos",{"$f":"RIGHT(C724, 10)","v":"24.10.2018"}]
["Offene Haftbefehle","16/4731","Datum: 24.10.2018","Art: Kleine Anfrage","Urheber: FDP/DVP",{"$f":"RIGHT(C725, 10)","v":"24.10.2018"}]
["Ermittlungskonzeption zur Verfolgung von Straftaten gegen Polizeibeamte und Gemeindevollzugsbeamte","16/4742","Datum: 24.10.2018","Art: Antrag","Urheber: CDU",{"$f":"RIGHT(C726, 10)","v":"24.10.2018"}]
["Auskunft über Unfälle, in die Fahrräder verwickelt waren","16/4725","Datum: 25.10.2018","Art: Kleine Anfrage","Urheber: Fraktionslos",{"$f":"RIGHT(C727, 10)","v":"25.10.2018"}]
["Internationale rechtsextreme Gruppierungen in Baden-Württemberg","16/4841","Datum: 25.10.2018","Art: Antrag","Urheber: SPD",{"$f":"RIGHT(C728, 10)","v":"25.10.2018"}]
["Änderungsantragder Fraktion der FDP/DVPzu der Beschlussempfehlung des Ausschusses für Finanzen– Drucksache 16/5022zu dem Gesetzentwurf der Landesregierung– Drucksache 16/4935Gesetz zur Änderung des Landesbesoldungsgesetzes Baden-Württemberg und anderer dienstrechtlicher Vorschriften","16/5062","Datum: 25.10.2018","Art: Alle","Urheber: FDP/DVP",{"$f":"RIGHT(C729, 10)","v":"25.10.2018"}]
["Erfassung staatsangehörigkeitsrechtlich relevanter Bevölkerungsgruppen und Unterschiede in deren regionalen Verteilung","16/4741","Datum: 26.10.2018","Art: Kleine Anfrage","Urheber: AfD",{"$f":"RIGHT(C730, 10)","v":"26.10.2018"}]
["Zustimmung des Landtags von Baden-Württemberg zum Abkommen zwischen der Regierung des Landes Baden-Württemberg und der Regierung der Französischen Republik über die Einrichtung einer deutsch-französischen Wasserschutzpolizeistation am Rhein","16/5035","Datum: 26.10.2018","Art: Alle","Urheber: LRG",{"$f":"RIGHT(C731, 10)","v":"26.10.2018"}]
["Gesetz zur Änderung des Landesbesoldungsgesetzes Baden-Württemberg und anderer dienstrechtlicher Vorschriften","16/5064","Datum: 26.10.2018","Art: Gesetzesbeschluss","Urheber: LRG",{"$f":"RIGHT(C732, 10)","v":"26.10.2018"}]
["Teilnahme baden-württembergischer Rechtsextremisten an Ausschreitungen in Chemnitz","16/4736","Datum: 29.10.2018","Art: Kleine Anfrage","Urheber: SPD",{"$f":"RIGHT(C733, 10)","v":"29.10.2018"}]
["Illegale Grenzübertritte 2017 und 2018 – was ist der Sachstand?","16/4747","Datum: 29.10.2018","Art: Kleine Anfrage","Urheber: AfD",{"$f":"RIGHT(C734, 10)","v":"29.10.2018"}]
["(Wirtschafts-)Spionage durch China im IT- und Netzwerkumfeld in Baden-Württemberg","16/4856","Datum: 31.10.2018","Art: Antrag","Urheber: FDP/DVP",{"$f":"RIGHT(C735, 10)","v":"31.10.2018"}]
["Zusätzliche Wahloption bei der Krankheitsvorsorge für Beamtinnen und Beamte in Baden-Württemberg","16/4763","Datum: 02.11.2018","Art: Kleine Anfrage","Urheber: GRÜNE",{"$f":"RIGHT(C736, 10)","v":"02.11.2018"}]
["Fahrverbote in Stuttgart","16/4791","Datum: 02.11.2018","Art: Kleine Anfrage","Urheber: CDU",{"$f":"RIGHT(C737, 10)","v":"02.11.2018"}]
["Vorkommnisse in der Justizvollzugsanstalt (JVA) Ulm","16/4878","Datum: 02.11.2018","Art: Antrag","Urheber: SPD",{"$f":"RIGHT(C738, 10)","v":"02.11.2018"}]
["Sicherheit von Kindern und Jugendlichen im Straßenverkehr","16/4830","Datum: 05.11.2018","Art: Antrag","Urheber: GRÜNE",{"$f":"RIGHT(C739, 10)","v":"05.11.2018"}]
["Zweigeteilte Laufbahn bei der Polizei in Baden-Württemberg und Dienstpostenbündelung","16/4877","Datum: 05.11.2018","Art: Antrag","Urheber: AfD",{"$f":"RIGHT(C740, 10)","v":"05.11.2018"}]
["Gerichtsverfahren in Baden-Württemberg","16/4810","Datum: 06.11.2018","Art: Kleine Anfrage","Urheber: SPD",{"$f":"RIGHT(C741, 10)","v":"06.11.2018"}]
["„Identitäre Bewegung“ in Baden-Württemberg","16/4879","Datum: 06.11.2018","Art: Antrag","Urheber: GRÜNE",{"$f":"RIGHT(C742, 10)","v":"06.11.2018"}]
["Beschlussempfehlung und Berichtdes Ausschusses für Finanzenzu der Mitteilung des Rechnungshofs vom 12. Juli 2018– Drucksache 16/4406Denkschrift 2018 zur Haushalts- und Wirtschaftsführung des Landes Baden-Württemberg;hier: Beitrag Nr. 6 – Polizeiausbildung","16/4906","Datum: 09.11.2018","Art: Beschlussempfehlung","Urheber: Ausschüsse",{"$f":"RIGHT(C743, 10)","v":"09.11.2018"}]
["Unterrichtung des Landtags in EU-Angelegenheiten;hier: Europäisches Kompetenzzentrum für Cybersicherheit","16/4992","Datum: 12.11.2018","Art: Beschlussempfehlung","Urheber: Ausschüsse",{"$f":"RIGHT(C744, 10)","v":"12.11.2018"}]
["Wird die Landesregierung ihre Zusammenarbeit mit DITIB jetzt beenden, nachdem die Bundesregierung keine DITIB-Projekte mehr fördert?","16/5095","Datum: 12.11.2018","Art: Alle","Urheber: FDP/DVP",{"$f":"RIGHT(C745, 10)","v":"12.11.2018"}]
["Bericht der Landesregierung zu einem Beschluss des Landtags;hier: Änderungsantrag der Fraktion GRÜNE und der Fraktion der CDU– Drucksache 16/4030zu dem Antrag der Fraktion der AfD– Drucksache 16/1077Kinderehen verbieten und Kinderschutz stärken","16/5110","Datum: 12.11.2018","Art: Alle","Urheber: LRG",{"$f":"RIGHT(C746, 10)","v":"12.11.2018"}]
["Weitere notwendige Aufarbeitung des Staufener Missbrauchsfalles;hier: Führungsaufsicht und Kommunikation zwischen Behörden und Gerichten","16/4972","Datum: 13.11.2018","Art: Antrag","Urheber: SPD",{"$f":"RIGHT(C747, 10)","v":"13.11.2018"}]
["Weitere notwendige Aufarbeitung des Staufener Missbrauchsfalles;hier: Die „Gemeinsame Verwaltungsvorschrift des Innen-ministeriums, des Justizministeriums und des Ministe-riums für Arbeit und Sozialordnung, Familie, Frauen und Senioren zu einer ressortübe","16/4974","Datum: 13.11.2018","Art: Antrag","Urheber: SPD",{"$f":"RIGHT(C748, 10)","v":"13.11.2018"}]
["Einrichtungen zur Vornahme von Schwangerschaftsabbrüchen in Baden-Württemberg","16/4981","Datum: 13.11.2018","Art: Antrag","Urheber: SPD",{"$f":"RIGHT(C749, 10)","v":"13.11.2018"}]
["Gesetz über die Feststellung eines Nachtrags zum Staatshaushaltsplan von Baden-Württemberg für die Haushaltsjahre 2018/19","16/5100","Datum: 13.11.2018","Art: Gesetzentwurf","Urheber: LRG",{"$f":"RIGHT(C750, 10)","v":"13.11.2018"}]
["Präsident Erdogan verlangt von Deutschland Auslieferung von 136 Menschen – auch aus Baden-Württemberg?","16/4936","Datum: 14.11.2018","Art: Antrag","Urheber: FDP/DVP",{"$f":"RIGHT(C751, 10)","v":"14.11.2018"}]
["Weitere notwendige Aufarbeitung des Staufener Missbrauchsfalles; hier: Diverse Arbeitsgruppen und Kommissionen der Landesregierung","16/4971","Datum: 14.11.2018","Art: Antrag","Urheber: SPD",{"$f":"RIGHT(C752, 10)","v":"14.11.2018"}]
["Maßnahmen zur Verhinderung von Gewalt in Fußballstadien nach dem Pokalfinale SSV Ulm 1846 Fußball e. V. (SSV Ulm 1846) gegen TSV Ilshofen","16/4871","Datum: 15.11.2018","Art: Kleine Anfrage","Urheber: SPD",{"$f":"RIGHT(C753, 10)","v":"15.11.2018"}]
["Rassistischer Überfall in Wiesloch","16/4875","Datum: 15.11.2018","Art: Kleine Anfrage","Urheber: SPD",{"$f":"RIGHT(C754, 10)","v":"15.11.2018"}]
["Erhöhung des Budgets für das Polizeipräsidium Mannheim","16/4890","Datum: 16.11.2018","Art: Kleine Anfrage","Urheber: SPD",{"$f":"RIGHT(C755, 10)","v":"16.11.2018"}]
["Immobilien im Eigentum bzw. Besitz von Rechtsextremisten","16/4894","Datum: 16.11.2018","Art: Antrag","Urheber: GRÜNE",{"$f":"RIGHT(C756, 10)","v":"16.11.2018"}]
["Straftaten in Schorndorf (Rems-Murr-Kreis)","16/4896","Datum: 16.11.2018","Art: Kleine Anfrage","Urheber: AfD",{"$f":"RIGHT(C757, 10)","v":"16.11.2018"}]
["Spitzeldienste mittels türkischer Polizei-App in Baden-Württemberg?","16/4932","Datum: 16.11.2018","Art: Antrag","Urheber: FDP/DVP",{"$f":"RIGHT(C758, 10)","v":"16.11.2018"}]
["Automatische Kennzeichenlesesysteme und Dashcams in Baden-Württemberg – Wird der Verkehr bald komplett überwacht und werden gewonnene Daten von der Landesregierung frei verwendet?","16/5009","Datum: 16.11.2018","Art: Antrag","Urheber: FDP/DVP",{"$f":"RIGHT(C759, 10)","v":"16.11.2018"}]
["Beschlussempfehlung und Berichtdes Ausschusses für Inneres, Digitalisierung und Migrationzu der Mitteilung des Ministeriums für Inneres, Digitalisie-rung und Migration vom 8. Oktober 2018– Drucksache 16/5035Zustimmung des Landtags von Baden-Württemberg zu","16/5142","Datum: 20.11.2018","Art: Beschlussempfehlung","Urheber: Ausschüsse",{"$f":"RIGHT(C760, 10)","v":"20.11.2018"}]
["Beschlussempfehlung und Berichtdes Ausschusses für Inneres, Digitalisierung und Migrationzu der Mitteilung des Ministeriums für Inneres, Digitalisie-rung und Migration vom 10. Oktober 2018– Drucksache 16/4978Unterrichtung des Landtags in EU-Angelegenheite","16/5021","Datum: 21.11.2018","Art: Beschlussempfehlung","Urheber: Ausschüsse",{"$f":"RIGHT(C761, 10)","v":"21.11.2018"}]
["Beschlussempfehlung und Berichtdes Ausschusses für Inneres, Digitalisierung und Migrationzu der Mitteilung des Ministeriums für Inneres, Digitalisie-rung und Migration vom 10. Oktober 2018– Drucksache 16/4979Unterrichtung des Landtags in EU-Angelegenheite","16/5036","Datum: 21.11.2018","Art: Beschlussempfehlung","Urheber: Ausschüsse",{"$f":"RIGHT(C762, 10)","v":"21.11.2018"}]
["Gesetz zu dem Vertrag des Landes Baden-Württemberg mit dem Verband Deutscher Sinti und Roma, Landesverband Baden-Württemberg e. V.","16/5205","Datum: 21.11.2018","Art: Gesetzentwurf","Urheber: LRG",{"$f":"RIGHT(C763, 10)","v":"21.11.2018"}]
["Mittelfristige Finanzplanung des Landes Baden-Württemberg für die Jahre 2018 bis 2022","16/5213","Datum: 21.11.2018","Art: Alle","Urheber: LRG",{"$f":"RIGHT(C764, 10)","v":"21.11.2018"}]
["Gesetz zur Änderung des Landesverfassungsschutzgesetzes und anderer Gesetze","16/5164","Datum: 22.11.2018","Art: Gesetzentwurf","Urheber: LRG",{"$f":"RIGHT(C765, 10)","v":"22.11.2018"}]
["Beschlussempfehlung und Berichtdes Ausschusses für Finanzenzu der Mitteilung der Landesregierung vom 27. September 2018– Drucksache 16/4868Bericht der Landesregierung zu einem Beschluss des Landtags;hier: Denkschrift 2015 des Rechnungshofs zur Haushalts- ","16/5189","Datum: 22.11.2018","Art: Beschlussempfehlung","Urheber: Ausschüsse",{"$f":"RIGHT(C766, 10)","v":"22.11.2018"}]
["Konsequente Verfolgung von Gewalt gegen Polizei und Rettungskräfte in Mannheim","16/5033","Datum: 26.11.2018","Art: Kleine Anfrage","Urheber: SPD",{"$f":"RIGHT(C767, 10)","v":"26.11.2018"}]
["Bericht der Landesregierung zu einem Beschluss des Landtags;hier: Petition 16/1937 betr. Versetzung in den Polizeidienst des Landes Baden-Württemberg","16/6247","Datum: 26.11.2018","Art: Alle","Urheber: LRG",{"$f":"RIGHT(C768, 10)","v":"26.11.2018"}]
["Keine Gewaltaufrufe im Namen des Islam","16/5026","Datum: 27.11.2018","Art: Antrag","Urheber: AfD",{"$f":"RIGHT(C769, 10)","v":"27.11.2018"}]
["Besondere Altersgrenze für Gerichtsvollzieherinnen und Gerichtsvollzieher","16/4965","Datum: 29.11.2018","Art: Antrag","Urheber: SPD",{"$f":"RIGHT(C770, 10)","v":"29.11.2018"}]
["Personalsituation und Arbeitsbelastung in den Jugendämtern","16/4850","Datum: 30.11.2018","Art: Kleine Anfrage","Urheber: GRÜNE",{"$f":"RIGHT(C771, 10)","v":"30.11.2018"}]
["Kinderehen und Anspruch auf Kindergeld","16/5065","Datum: 30.11.2018","Art: Kleine Anfrage","Urheber: AfD",{"$f":"RIGHT(C772, 10)","v":"30.11.2018"}]
["Einjährige Bilanz zur Novellierung des Polizeigesetzes Baden-Württemberg","16/5076","Datum: 30.11.2018","Art: Antrag","Urheber: SPD",{"$f":"RIGHT(C773, 10)","v":"30.11.2018"}]
["Einsatz von automatischen Kennzeichenlesesystemen","16/5077","Datum: 30.11.2018","Art: Antrag","Urheber: SPD",{"$f":"RIGHT(C774, 10)","v":"30.11.2018"}]
["Massenvergewaltigung in Freiburg in der Nacht auf den 14. Oktober 2018","16/5078","Datum: 30.11.2018","Art: Kleine Anfrage","Urheber: AfD",{"$f":"RIGHT(C775, 10)","v":"30.11.2018"}]
["Unterstützung anti-israelischer oder antisemitischer Kampagne durch Stuttgarts Oberbürgermeister Fritz Kuhn?","16/4968","Datum: 03.12.2018","Art: Kleine Anfrage","Urheber: AfD",{"$f":"RIGHT(C776, 10)","v":"03.12.2018"}]
["Welche neuen Pläne verfolgt der Sozialminister beim Kinderschutz?","16/5130","Datum: 03.12.2018","Art: Antrag","Urheber: SPD",{"$f":"RIGHT(C777, 10)","v":"03.12.2018"}]
["Gesetz zur Änderung des Landesbeamtengesetzes und anderer Vorschriften","16/5276","Datum: 03.12.2018","Art: Gesetzesbeschluss","Urheber: LRG",{"$f":"RIGHT(C778, 10)","v":"03.12.2018"}]
["Linksextremistisches Rockkonzert in Ulm","16/5069","Datum: 05.12.2018","Art: Kleine Anfrage","Urheber: AfD",{"$f":"RIGHT(C779, 10)","v":"05.12.2018"}]
["Sicherheit in Mannheim","16/5074","Datum: 05.12.2018","Art: Kleine Anfrage","Urheber: SPD",{"$f":"RIGHT(C780, 10)","v":"05.12.2018"}]
["Notwendige Verbesserungen im Maßregelvollzug in Baden-Württemberg","16/5079","Datum: 05.12.2018","Art: Antrag","Urheber: SPD",{"$f":"RIGHT(C781, 10)","v":"05.12.2018"}]
["Stand der Umsetzung des Prostituiertenschutzgesetzes in Baden-Württemberg","16/4758","Datum: 06.12.2018","Art: Antrag","Urheber: CDU",{"$f":"RIGHT(C782, 10)","v":"06.12.2018"}]
["Maßregelvollzug in den baden-württembergischen Zentren für Psychiatrie","16/5061","Datum: 06.12.2018","Art: Kleine Anfrage","Urheber: GRÜNE",{"$f":"RIGHT(C783, 10)","v":"06.12.2018"}]
["Wie kam es zu den Behauptungen des Innenministeriums über den Nichtvollzug des Haftbefehls gegen den Hauptverdächtigen im Freiburger Vergewaltigungsfall und was wusste Innenminister Strobl?","16/5088","Datum: 07.12.2018","Art: Antrag","Urheber: FDP/DVP",{"$f":"RIGHT(C784, 10)","v":"07.12.2018"}]
["Übergriffe durch vermummte Gegendemonstranten in Freiburg?","16/5098","Datum: 07.12.2018","Art: Antrag","Urheber: AfD",{"$f":"RIGHT(C785, 10)","v":"07.12.2018"}]
["Beschlussempfehlung und Berichtdes Ständigen Ausschusseszu dem Gesetzentwurf der Landesregierung– Drucksache 16/5205Gesetz zu dem Vertrag des Landes Baden-Württemberg mit dem Verband Deutscher Sinti und Roma, Landesverband Baden-Württemberg e. V.","16/2581","Datum: 10.12.2018","Art: Beschlussempfehlung","Urheber: Ausschüsse",{"$f":"RIGHT(C786, 10)","v":"10.12.2018"}]
["Das Maßnahmenpaket nach der Vergewaltigung in Freiburg – Widersprüchliches Verhalten von Innenminister Strobl im Zusammenhang mit Abschiebungen und dem Umgang mit problematischen Ausländern","16/5117","Datum: 10.12.2018","Art: Antrag","Urheber: FDP/DVP",{"$f":"RIGHT(C787, 10)","v":"10.12.2018"}]
["Beschlussempfehlung und Bericht des Ausschusses für Finanzen zu dem Entwurf eines Nachtrags zum Staatshaushaltsplan von Baden-Württemberg für die Haushaltsjahre 2018/19","16/5260","Datum: 10.12.2018","Art: Beschlussempfehlung","Urheber: Ausschüsse",{"$f":"RIGHT(C788, 10)","v":"10.12.2018"}]
["„Global Compact for Migration“ stoppen – Immigration ist kein Menschenrecht","16/5143","Datum: 12.12.2018","Art: Antrag","Urheber: AfD",{"$f":"RIGHT(C789, 10)","v":"12.12.2018"}]
["Ausgaben im Innenministerium","16/5090","Datum: 13.12.2018","Art: Kleine Anfrage","Urheber: AfD",{"$f":"RIGHT(C790, 10)","v":"13.12.2018"}]
["Märtyrer-Verehrungen im Stadt- und Landkreis Heilbronn","16/5120","Datum: 13.12.2018","Art: Kleine Anfrage","Urheber: AfD",{"$f":"RIGHT(C791, 10)","v":"13.12.2018"}]
["Gewaltaufrufe der Antifa in Tübingen","16/5138","Datum: 13.12.2018","Art: Antrag","Urheber: AfD",{"$f":"RIGHT(C792, 10)","v":"13.12.2018"}]
["Straffälligenhilfe in Baden-Württemberg","16/5128","Datum: 14.12.2018","Art: Kleine Anfrage","Urheber: SPD",{"$f":"RIGHT(C793, 10)","v":"14.12.2018"}]
["Offene Haftbefehle und Umgang mit ihnen","16/5135","Datum: 14.12.2018","Art: Antrag","Urheber: FDP/DVP",{"$f":"RIGHT(C794, 10)","v":"14.12.2018"}]
["Umgang mit Fahrverboten","16/5133","Datum: 17.12.2018","Art: Kleine Anfrage","Urheber: AfD",{"$f":"RIGHT(C795, 10)","v":"17.12.2018"}]
["Linksextremistische Ausschreitungen in Freiburg am 29. Oktober 2018","16/5145","Datum: 17.12.2018","Art: Kleine Anfrage","Urheber: AfD",{"$f":"RIGHT(C796, 10)","v":"17.12.2018"}]
["Straftaten von Gegendemonstranten am 29. Oktober 2018 am Rathausplatz in Freiburg","16/5161","Datum: 17.12.2018","Art: Kleine Anfrage","Urheber: AfD",{"$f":"RIGHT(C797, 10)","v":"17.12.2018"}]
["Was folgt aus den Aussagen des Ministerpräsidenten zu kriminellen Horden von Flüchtlingen, die man teilweise in die Pampa schicken müsse?","16/5163","Datum: 17.12.2018","Art: Antrag","Urheber: FDP/DVP",{"$f":"RIGHT(C798, 10)","v":"17.12.2018"}]
["Aussagen des Ministerpräsidenten zum Umgang mit Flüchtlingen","16/5165","Datum: 17.12.2018","Art: Antrag","Urheber: SPD",{"$f":"RIGHT(C799, 10)","v":"17.12.2018"}]
["Sicherstellung zukünftiger Substitutionsversorgung in Baden-Württemberg","16/5173","Datum: 18.12.2018","Art: Antrag","Urheber: SPD",{"$f":"RIGHT(C800, 10)","v":"18.12.2018"}]
["Gesetz zur Änderung des Straßengesetzes","16/5279","Datum: 18.12.2018","Art: Gesetzentwurf","Urheber: LRG",{"$f":"RIGHT(C801, 10)","v":"18.12.2018"}]
["Gesetz über die Feststellung eines Nachtrags zum Staatshaushaltsplan von Baden-Württemberg für die Haushaltsjahre 2018/19","16/5363","Datum: 18.12.2018","Art: Gesetzesbeschluss","Urheber: LRG",{"$f":"RIGHT(C802, 10)","v":"18.12.2018"}]
["Gesetz zur Änderung des Landesverfassungsschutzgesetzes und anderer Gesetze","16/5371","Datum: 18.12.2018","Art: Gesetzesbeschluss","Urheber: LRG",{"$f":"RIGHT(C803, 10)","v":"18.12.2018"}]
["Situation im Justizvollzug","16/4956","Datum: 20.12.2018","Art: Große Anfrage","Urheber: FDP/DVP",{"$f":"RIGHT(C804, 10)","v":"20.12.2018"}]
["Zukunftsoffensive Kriminalpolizei","16/5030","Datum: 20.12.2018","Art: Große Anfrage","Urheber: SPD",{"$f":"RIGHT(C805, 10)","v":"20.12.2018"}]
["Kostentragungspflicht des verurteilten Straftäters nach § 465 Strafprozessordnung und Kostendeckungsgrad im Land","16/5118","Datum: 20.12.2018","Art: Antrag","Urheber: AfD",{"$f":"RIGHT(C806, 10)","v":"20.12.2018"}]
["Antisemitische Vorfälle in Mannheim","16/5154","Datum: 20.12.2018","Art: Kleine Anfrage","Urheber: SPD",{"$f":"RIGHT(C807, 10)","v":"20.12.2018"}]
["Juristische Aufklärung von Missbrauchsfällen im Kontext der evangelischen und katholischen Kirche","16/5212","Datum: 20.12.2018","Art: Antrag","Urheber: SPD",{"$f":"RIGHT(C808, 10)","v":"20.12.2018"}]
["„Antifa“ in Baden-Württemberg","16/5132","Datum: 21.12.2018","Art: Antrag","Urheber: AfD",{"$f":"RIGHT(C809, 10)","v":"21.12.2018"}]
["Übergriffe in Krankenhäusern – sich neu ergebende Fragen","16/5092","Datum: 02.01.2019","Art: Kleine Anfrage","Urheber: AfD",{"$f":"RIGHT(C810, 10)","v":"02.01.2019"}]
["Linksextremisten und Grüne Jugend Baden-Württemberg im Hambacher Forst Hand in Hand?","16/5243","Datum: 02.01.2019","Art: Antrag","Urheber: AfD",{"$f":"RIGHT(C811, 10)","v":"02.01.2019"}]
["Zwischenbilanz zur Halbzeit von Grün-Schwarz","16/5208","Datum: 08.01.2019","Art: Kleine Anfrage","Urheber: SPD",{"$f":"RIGHT(C812, 10)","v":"08.01.2019"}]
["Änderungs- und Entschließungsanträgezu der Beschlussempfehlung des Ausschusses für Finanzen– Drucksache 16/5260zu dem Gesetzentwurf der Landesregierung – Drucksache 16/5100Gesetz über die Feststellung eines Nachtrags zum Staats-haushaltsplan von Baden-Wür","16/5353","Datum: 08.01.2019","Art: Alle","Urheber: Alle",{"$f":"RIGHT(C813, 10)","v":"08.01.2019"}]
["Bildungszeit in Baden-Württemberg","16/5236","Datum: 09.01.2019","Art: Kleine Anfrage","Urheber: AfD",{"$f":"RIGHT(C814, 10)","v":"09.01.2019"}]
["Weiterentwicklung der Suchtpräventionsarbeit an Schulen in Baden-Württemberg","16/5241","Datum: 09.01.2019","Art: Antrag","Urheber: GRÜNE",{"$f":"RIGHT(C815, 10)","v":"09.01.2019"}]
["Umgang der Landesregierung mit der DITIB im Zusammenhang mit dem islamischen Religionsunterricht","16/5158","Datum: 10.01.2019","Art: Antrag","Urheber: FDP/DVP",{"$f":"RIGHT(C816, 10)","v":"10.01.2019"}]
["Andauernde Überlastung der Justiz – Warum scheitert die Landesregierung bei der Vermeidung von Haftbefehlsaufhebungen?","16/5271","Datum: 14.01.2019","Art: Antrag","Urheber: FDP/DVP",{"$f":"RIGHT(C817, 10)","v":"14.01.2019"}]
["Entwicklung der Kriminalität und Gefahrenlage in Baden-Württemberg","16/5364","Datum: 14.01.2019","Art: Antrag","Urheber: GRÜNE",{"$f":"RIGHT(C818, 10)","v":"14.01.2019"}]
["Linksterroristischer Anschlag auf ein Mitglied des Landtags von Baden-Württemberg","16/5406","Datum: 16.01.2019","Art: Antrag","Urheber: AfD",{"$f":"RIGHT(C819, 10)","v":"16.01.2019"}]
["Tatverdächtige und Haftinsassen im Zusammenhang mit Gewaltkriminalität – wie sind die einzelnen Staatsangehörigkeiten vertreten?","16/5288","Datum: 22.01.2019","Art: Kleine Anfrage","Urheber: AfD",{"$f":"RIGHT(C820, 10)","v":"22.01.2019"}]
["Umsetzung der EU-Donauraumstrategie","16/5188","Datum: 23.01.2019","Art: Antrag","Urheber: CDU",{"$f":"RIGHT(C821, 10)","v":"23.01.2019"}]
["Meldepflicht für antisemitische und andere religiös oder ethnisch motivierte Diskriminierungsvorfälle an Schulen in Baden-Württemberg","16/5293","Datum: 23.01.2019","Art: Kleine Anfrage","Urheber: GRÜNE",{"$f":"RIGHT(C822, 10)","v":"23.01.2019"}]
["Folgen des Verfassungsgerichtsurteils zur abgesenkten Eingangsbesoldung","16/5322","Datum: 23.01.2019","Art: Antrag","Urheber: FDP/DVP",{"$f":"RIGHT(C823, 10)","v":"23.01.2019"}]
["Bundeseinheitliche Erhebung zur stoffgebundenen Suchtproblematik im Justizvollzug","16/5382","Datum: 23.01.2019","Art: Kleine Anfrage","Urheber: GRÜNE",{"$f":"RIGHT(C824, 10)","v":"23.01.2019"}]
["Vorurteilsmotivierte Gewalt und LSBTTIQ-feindliche Straftaten","16/5396","Datum: 24.01.2019","Art: Kleine Anfrage","Urheber: SPD",{"$f":"RIGHT(C825, 10)","v":"24.01.2019"}]
["Indoktrination junger Menschen durch islamistische Organisationen – Eine Gefährdung für das Wohl junger Menschen und die freie Gesellschaft","16/5401","Datum: 24.01.2019","Art: Antrag","Urheber: FDP/DVP",{"$f":"RIGHT(C826, 10)","v":"24.01.2019"}]
["Offene Haftbefehle in Baden-Württemberg","16/5407","Datum: 24.01.2019","Art: Kleine Anfrage","Urheber: AfD",{"$f":"RIGHT(C827, 10)","v":"24.01.2019"}]
["Verbreitung der Nachwuchskampagne für die Polizei","16/5413","Datum: 24.01.2019","Art: Kleine Anfrage","Urheber: FDP/DVP",{"$f":"RIGHT(C828, 10)","v":"24.01.2019"}]
["Immobilien im Eigentum bzw. Besitz islamistischer und religiös-nationalistischer Organisationen islamischer Prägung","16/5344","Datum: 25.01.2019","Art: Kleine Anfrage","Urheber: AfD",{"$f":"RIGHT(C829, 10)","v":"25.01.2019"}]
["Beschlussempfehlung und Berichtdes Ausschusses für Finanzenzu der Mitteilung der Landesregierung vom 18. Dezember 2018– Drucksache 16/5424Bericht der Landesregierung zu einem Beschluss des Landtags;hier: Denkschrift 2017 des Rechnungshofs zur Haushalts- u","16/5506","Datum: 29.01.2019","Art: Beschlussempfehlung","Urheber: Ausschüsse",{"$f":"RIGHT(C830, 10)","v":"29.01.2019"}]
["Beschlussempfehlung und Berichtdes Ausschusses für Finanzenzu dem Gesetzentwurf der Landesregierung– Drucksache 16/5100Gesetz über die Feststellung eines Nachtrags zum Staats-haushaltsplan von Baden-Württemberg für die Haushalts-jahre 2018/19","16/5261","Datum: 30.01.2019","Art: Beschlussempfehlung","Urheber: Ausschüsse",{"$f":"RIGHT(C831, 10)","v":"30.01.2019"}]
["Gruppierungen „gegen Rechts“ im Main-Tauber- und Neckar-Odenwald-Kreis","16/5433","Datum: 30.01.2019","Art: Kleine Anfrage","Urheber: AfD",{"$f":"RIGHT(C832, 10)","v":"30.01.2019"}]
["Kommunaler Ordnungsdienst und Gemeindevollzugsdienst in Baden-Württemberg","16/5438","Datum: 30.01.2019","Art: Antrag","Urheber: SPD",{"$f":"RIGHT(C833, 10)","v":"30.01.2019"}]
["Teilen und verfolgen Grüne Jugend und Jusos in Baden-Württemberg linksextreme Inhalte und Zielsetzungen, die sich gegen die freiheitliche demokratische Grundordnung richten?","16/5435","Datum: 31.01.2019","Art: Antrag","Urheber: AfD",{"$f":"RIGHT(C834, 10)","v":"31.01.2019"}]
["Zukunft des Landespolizeiorchesters","16/5206","Datum: 01.02.2019","Art: Antrag","Urheber: GRÜNE, CDU",{"$f":"RIGHT(C835, 10)","v":"01.02.2019"}]
["Studium für Aufstiegsbeamtinnen und Aufstiegsbeamte an der Hochschule für Polizei Baden-Württemberg","16/5346","Datum: 01.02.2019","Art: Antrag","Urheber: SPD",{"$f":"RIGHT(C836, 10)","v":"01.02.2019"}]
["Aktivitäten des Vereins „Uniter e. V.“ und rechtsextreme Bestrebungen in Sicherheitskräften","16/5328","Datum: 04.02.2019","Art: Antrag","Urheber: GRÜNE",{"$f":"RIGHT(C837, 10)","v":"04.02.2019"}]
["Sexueller Missbrauch in der Klett-Passage","16/5345","Datum: 04.02.2019","Art: Kleine Anfrage","Urheber: AfD",{"$f":"RIGHT(C838, 10)","v":"04.02.2019"}]
["Suizid in Zentren für Psychiatrie (ZfP)","16/5349","Datum: 04.02.2019","Art: Kleine Anfrage","Urheber: GRÜNE",{"$f":"RIGHT(C839, 10)","v":"04.02.2019"}]
["Belastung der Justiz und des Steuerzahlers durch Ordnungswidrigkeitenverfahren wegen Geschwindigkeitsüberschreitung und deren Verjährung","16/5312","Datum: 05.02.2019","Art: Antrag","Urheber: FDP/DVP",{"$f":"RIGHT(C840, 10)","v":"05.02.2019"}]
["Farbanschläge auf den Rudersberger Journalisten A. D.","16/5462","Datum: 06.02.2019","Art: Antrag","Urheber: AfD",{"$f":"RIGHT(C841, 10)","v":"06.02.2019"}]
["Rückkehr des abgeschobenen Ellwanger Rädelsführers A. M. nach Baden-Württemberg","16/5469","Datum: 06.02.2019","Art: Antrag","Urheber: AfD",{"$f":"RIGHT(C842, 10)","v":"06.02.2019"}]
["Geldwäsche in Baden-Württemberg – Ergebnisse der Studie „Geldwäsche bei Immobilien in Deutschland“ von Transparency International Deutschland e. V.","16/5467","Datum: 07.02.2019","Art: Kleine Anfrage","Urheber: SPD",{"$f":"RIGHT(C843, 10)","v":"07.02.2019"}]
["Die Arbeit des Sonderstabs „Gefährliche Ausländer“","16/5478","Datum: 07.02.2019","Art: Antrag","Urheber: FDP/DVP",{"$f":"RIGHT(C844, 10)","v":"07.02.2019"}]
["34. Datenschutz-Tätigkeitsbericht des Landesbeauftragten für den Datenschutz und die Informationsfreiheit Baden-Württemberg für das Jahr 2018","16/5000","Datum: 08.02.2019","Art: Alle","Urheber: LRG",{"$f":"RIGHT(C845, 10)","v":"08.02.2019"}]
["Bericht des Parlamentarischen Kontrollgremiums über die Kontrolltätigkeit gemäß § 15 j Landesverfassungsschutzgesetz zur Mitte der 16. Wahlperiode","16/5666","Datum: 08.02.2019","Art: Alle","Urheber: Alle",{"$f":"RIGHT(C846, 10)","v":"08.02.2019"}]
["Gesetz zur Umsetzung der Polizeistruktur 2020 (Polizeistrukturgesetz 2020 – PolSG2020)","16/5603","Datum: 11.02.2019","Art: Gesetzentwurf","Urheber: LRG",{"$f":"RIGHT(C847, 10)","v":"11.02.2019"}]
["„#NazisRaus“-Twitter-Beitrag der Landesregierung","16/5497","Datum: 13.02.2019","Art: Kleine Anfrage","Urheber: AfD",{"$f":"RIGHT(C848, 10)","v":"13.02.2019"}]
["Interdisziplinäre Projektgruppe „Sicherer öffentlicher Raum“","16/5525","Datum: 19.02.2019","Art: Antrag","Urheber: SPD",{"$f":"RIGHT(C849, 10)","v":"19.02.2019"}]
["Umgang mit Mehrfach- und Intensivtätern in Baden-Württemberg","16/5526","Datum: 19.02.2019","Art: Antrag","Urheber: SPD",{"$f":"RIGHT(C850, 10)","v":"19.02.2019"}]
["Nachfragen zu Drucksache 16/5132 und 16/4879","16/5532","Datum: 20.02.2019","Art: Antrag","Urheber: AfD",{"$f":"RIGHT(C851, 10)","v":"20.02.2019"}]
["Abschiebungen und Einreiseverbote im Jahr 2018 – Was zeigt der Fall des abgeschobenen Kameruners, der erneut einen Asylantrag stellte?","16/5477","Datum: 21.02.2019","Art: Antrag","Urheber: FDP/DVP",{"$f":"RIGHT(C852, 10)","v":"21.02.2019"}]
["Meldepflicht für antisemitische und andere religiös oder ethnisch motivierte Diskriminierungsvorfälle an Schulen in Baden-Württemberg II","16/5562","Datum: 22.02.2019","Art: Kleine Anfrage","Urheber: GRÜNE",{"$f":"RIGHT(C853, 10)","v":"22.02.2019"}]
["Weitere Planungen der Landesregierung bezüglich der Landeserstaufnahmeeinrichtung für Flüchtlinge (LEA) in Ellwangen","16/5564","Datum: 22.02.2019","Art: Kleine Anfrage","Urheber: AfD",{"$f":"RIGHT(C854, 10)","v":"22.02.2019"}]
["Razzien wegen Terrorverdacht kurz vor Weihnachten im Rhein-Neckar-Dreieck","16/5571","Datum: 26.02.2019","Art: Kleine Anfrage","Urheber: AfD",{"$f":"RIGHT(C855, 10)","v":"26.02.2019"}]
["Weitere Novellierung des Polizeigesetzes Baden-Württemberg","16/5576","Datum: 26.02.2019","Art: Antrag","Urheber: SPD",{"$f":"RIGHT(C856, 10)","v":"26.02.2019"}]
["Pakt für den Rechtsstaat","16/5579","Datum: 27.02.2019","Art: Antrag","Urheber: GRÜNE",{"$f":"RIGHT(C857, 10)","v":"27.02.2019"}]
["Abschiebung aus Kitas und Schulen in Baden-Württemberg","16/5586","Datum: 27.02.2019","Art: Antrag","Urheber: SPD",{"$f":"RIGHT(C858, 10)","v":"27.02.2019"}]
["Überfall in Mannheim","16/5594","Datum: 01.03.2019","Art: Antrag","Urheber: SPD",{"$f":"RIGHT(C859, 10)","v":"01.03.2019"}]
["Erfahrungen mit dem Einsatz von Distanz-Elektroimpulsgeräten (Tasern)","16/5595","Datum: 01.03.2019","Art: Antrag","Urheber: SPD",{"$f":"RIGHT(C860, 10)","v":"01.03.2019"}]
["„Stille SMS“ im Behördeneinsatz","16/5619","Datum: 04.03.2019","Art: Kleine Anfrage","Urheber: AfD",{"$f":"RIGHT(C861, 10)","v":"04.03.2019"}]
["Änderung der Arbeitszeitregelungen für Polizeifachlehrerinnen und Polizeifachlehrer","16/5624","Datum: 05.03.2019","Art: Antrag","Urheber: SPD",{"$f":"RIGHT(C862, 10)","v":"05.03.2019"}]
["Personalsituation im Justizvollzug","16/5444","Datum: 06.03.2019","Art: Große Anfrage","Urheber: FDP/DVP",{"$f":"RIGHT(C863, 10)","v":"06.03.2019"}]
["Mordaufruf und Mordanleitung zum Nachteil von AfD-Politikern auf Indymedia","16/5633","Datum: 07.03.2019","Art: Antrag","Urheber: AfD",{"$f":"RIGHT(C864, 10)","v":"07.03.2019"}]
["Missbrauch in der katholischen und evangelischen Kirche – Stärkt die Landesregierung die Strafverfolgung?","16/5640","Datum: 08.03.2019","Art: Antrag","Urheber: FDP/DVP",{"$f":"RIGHT(C865, 10)","v":"08.03.2019"}]
["Spuck- und Beißattacken auf Polizisten im Jahr 2018","16/5654","Datum: 08.03.2019","Art: Kleine Anfrage","Urheber: AfD",{"$f":"RIGHT(C866, 10)","v":"08.03.2019"}]
["Situation des Strafvollzugs in Baden-Württemberg 2018","16/5655","Datum: 08.03.2019","Art: Kleine Anfrage","Urheber: AfD",{"$f":"RIGHT(C867, 10)","v":"08.03.2019"}]
["Verbesserungspotenzial bei Schulfahndungen","16/5658","Datum: 12.03.2019","Art: Antrag","Urheber: SPD",{"$f":"RIGHT(C868, 10)","v":"12.03.2019"}]
["Kinderehen in Baden-Württemberg im Jahr 2018","16/5651","Datum: 13.03.2019","Art: Antrag","Urheber: AfD",{"$f":"RIGHT(C869, 10)","v":"13.03.2019"}]
["Immobilien im Eigentum bzw. Besitz von Linksextremisten","16/5652","Datum: 13.03.2019","Art: Antrag","Urheber: AfD",{"$f":"RIGHT(C870, 10)","v":"13.03.2019"}]
["Verbote und Abschaltungen extremistischer Projekte","16/5692","Datum: 14.03.2019","Art: Kleine Anfrage","Urheber: AfD",{"$f":"RIGHT(C871, 10)","v":"14.03.2019"}]
["Situation aufgrund der Baumaßnahmen im Bereich des Polizeipräsidiums Aalen","16/5716","Datum: 14.03.2019","Art: Kleine Anfrage","Urheber: FDP/DVP",{"$f":"RIGHT(C872, 10)","v":"14.03.2019"}]
["Eingriffe in den Straßenverkehr und Schüsse durch türkische und arabische Hochzeiten","16/5712","Datum: 15.03.2019","Art: Antrag","Urheber: AfD",{"$f":"RIGHT(C873, 10)","v":"15.03.2019"}]
["Verhaftungen und Überprüfungen von Linksextremisten in Stuttgart","16/5691","Datum: 18.03.2019","Art: Kleine Anfrage","Urheber: AfD",{"$f":"RIGHT(C874, 10)","v":"18.03.2019"}]
["Spionage und Zugriff auf die Infrastruktur des Landes – Wie geht die Landesregierung mit Bedenken aus Sicherheitskreisen um?","16/5709","Datum: 18.03.2019","Art: Antrag","Urheber: FDP/DVP",{"$f":"RIGHT(C875, 10)","v":"18.03.2019"}]
["Tödlicher Gebrauch einer Schnellfeuerwaffe in Villingen-Schwenningen","16/5722","Datum: 18.03.2019","Art: Kleine Anfrage","Urheber: AfD",{"$f":"RIGHT(C876, 10)","v":"18.03.2019"}]
["Veröffentlichungspraxis von Beobachtungen","16/5724","Datum: 18.03.2019","Art: Kleine Anfrage","Urheber: AfD",{"$f":"RIGHT(C877, 10)","v":"18.03.2019"}]
["Entwicklung der Anzahl der Anschläge auf Flüchtlingsunterkünfte in Baden-Württemberg","16/5728","Datum: 18.03.2019","Art: Kleine Anfrage","Urheber: AfD",{"$f":"RIGHT(C878, 10)","v":"18.03.2019"}]
["Einsatzzeiten der Polizei","16/5730","Datum: 18.03.2019","Art: Kleine Anfrage","Urheber: AfD",{"$f":"RIGHT(C879, 10)","v":"18.03.2019"}]
["Beschlussempfehlung und Berichtdes Ausschusses für Inneres, Digitalisierung und Migrationzu dem Gesetzentwurf der Landesregierung– Drucksache 16/5603Gesetz zur Umsetzung der Polizeistruktur 2020 (Polizeistrukturgesetz 2020 – PolSG2020)","16/5846","Datum: 19.03.2019","Art: Beschlussempfehlung","Urheber: Ausschüsse",{"$f":"RIGHT(C880, 10)","v":"19.03.2019"}]
["Entwicklungen der Straftaten im Umfeld von Kirchen","16/5725","Datum: 20.03.2019","Art: Kleine Anfrage","Urheber: AfD",{"$f":"RIGHT(C881, 10)","v":"20.03.2019"}]
["Virtuelles Aufräumen nach illegalen Veröffentlichungen von persönlichen Informationen","16/5731","Datum: 20.03.2019","Art: Kleine Anfrage","Urheber: AfD",{"$f":"RIGHT(C882, 10)","v":"20.03.2019"}]
["Aktivitäten der „National Socialist Knights of the Ku-Klux-Klan Deutschland“ (NSK-KKK) in Baden-Württemberg","16/5737","Datum: 20.03.2019","Art: Antrag","Urheber: GRÜNE",{"$f":"RIGHT(C883, 10)","v":"20.03.2019"}]
["Entwicklung der Sexualstraftaten ab 2015 in Baden-Württemberg","16/5733","Datum: 21.03.2019","Art: Antrag","Urheber: AfD",{"$f":"RIGHT(C884, 10)","v":"21.03.2019"}]
["Gesetz zur Umsetzung der Polizeistruktur 2020 (Polizeistrukturgesetz 2020 – PolSG2020)","16/5932","Datum: 21.03.2019","Art: Gesetzesbeschluss","Urheber: LRG",{"$f":"RIGHT(C885, 10)","v":"21.03.2019"}]
["Verkehrsunfallaufnahme im Polizeipräsidium Aalen und in Baden-Württemberg","16/5750","Datum: 22.03.2019","Art: Kleine Anfrage","Urheber: CDU",{"$f":"RIGHT(C886, 10)","v":"22.03.2019"}]
["Maßnahmen der Landesregierung im Rahmen der Initiative „Schule gegen sexuelle Gewalt“","16/5757","Datum: 22.03.2019","Art: Antrag","Urheber: FDP/DVP",{"$f":"RIGHT(C887, 10)","v":"22.03.2019"}]
["Wird Innenminister Strobl mit der Landesregierung das umsetzen, was er in seinem Maßnahmenkatalog und die CDU nach dem Werkstattgespräch „Migration, Sicherheit und Integration“ fordern oder werden die Forderungen gehört aber nicht erhört?","16/5764","Datum: 22.03.2019","Art: Antrag","Urheber: FDP/DVP",{"$f":"RIGHT(C888, 10)","v":"22.03.2019"}]
["IT-Sicherheit von Kritischer Infrastruktur (KRITIS) und generelle Zahl der IT-Sicherheitsvorfälle","16/5779","Datum: 22.03.2019","Art: Antrag","Urheber: FDP/DVP",{"$f":"RIGHT(C889, 10)","v":"22.03.2019"}]
["Entschließungsanträgezu dem Gesetzentwurf der Landesregierung – Drucksache 16/5603 Gesetz zur Umsetzung der Polizeistruktur 2020 (Polizeistrukturgesetz 2020 – PolSG2020)","16/5929","Datum: 22.03.2019","Art: Alle","Urheber: Alle",{"$f":"RIGHT(C890, 10)","v":"22.03.2019"}]
["Situation der unbegleiteten minderjährigen Ausländer (UMA) in Ulm und im Alb-Donau-Kreis","16/5740","Datum: 25.03.2019","Art: Kleine Anfrage","Urheber: AfD",{"$f":"RIGHT(C891, 10)","v":"25.03.2019"}]
["Situation der unbegleiteten minderjährigen Ausländer (UMA) im Bodenseekreis","16/5741","Datum: 25.03.2019","Art: Kleine Anfrage","Urheber: AfD",{"$f":"RIGHT(C892, 10)","v":"25.03.2019"}]
["Brand in Merklinger Asylunterkunft","16/5752","Datum: 01.04.2019","Art: Kleine Anfrage","Urheber: AfD",{"$f":"RIGHT(C893, 10)","v":"01.04.2019"}]
["Rockerkriminalität und Prostitution in Baden-Württemberg und insbesondere in Heilbronn","16/5763","Datum: 02.04.2019","Art: Antrag","Urheber: FDP/DVP",{"$f":"RIGHT(C894, 10)","v":"02.04.2019"}]
["Kriminalität im Böblinger Bahnhofsviertel","16/5791","Datum: 02.04.2019","Art: Kleine Anfrage","Urheber: CDU",{"$f":"RIGHT(C895, 10)","v":"02.04.2019"}]
["Entwicklung der Straftaten ab 2015 in Pforzheim und Vorkommnisse in Waghäusel","16/5794","Datum: 03.04.2019","Art: Antrag","Urheber: AfD",{"$f":"RIGHT(C896, 10)","v":"03.04.2019"}]
["Verzögerte Bearbeitung von Zuverlässigkeitsüberprüfungen nach dem Luftsicherheitsgesetz","16/5851","Datum: 03.04.2019","Art: Antrag","Urheber: FDP/DVP",{"$f":"RIGHT(C897, 10)","v":"03.04.2019"}]
["Aktuelle Situation des Verkehrsunfalldienstes in Baden-Württemberg","16/5807","Datum: 04.04.2019","Art: Kleine Anfrage","Urheber: AfD",{"$f":"RIGHT(C898, 10)","v":"04.04.2019"}]
["Einsatz sogenannter „Bodycams“ bei der Polizei in Baden-Württemberg","16/5811","Datum: 04.04.2019","Art: Kleine Anfrage","Urheber: AfD",{"$f":"RIGHT(C899, 10)","v":"04.04.2019"}]
["Motorradunfälle in Baden-Württemberg","16/5852","Datum: 08.04.2019","Art: Kleine Anfrage","Urheber: AfD",{"$f":"RIGHT(C900, 10)","v":"08.04.2019"}]
["Speicherung von Daten im Rahmen des Einsatzes sogenannter Bodycams – Belange des Datenschutzes und der Datensicherheit","16/5849","Datum: 09.04.2019","Art: Kleine Anfrage","Urheber: FDP/DVP",{"$f":"RIGHT(C901, 10)","v":"09.04.2019"}]
["Fahrradunfälle und Pedelecs","16/5856","Datum: 10.04.2019","Art: Kleine Anfrage","Urheber: AfD",{"$f":"RIGHT(C902, 10)","v":"10.04.2019"}]
["Verbesserte Cybersicherheit in Krankenhäusern Baden-Württembergs nach Virenangriffen in den Jahren 2016 und 2017?","16/5876","Datum: 11.04.2019","Art: Kleine Anfrage","Urheber: AfD",{"$f":"RIGHT(C903, 10)","v":"11.04.2019"}]
["Ergänzende Stellungnahme des Ministeriums für Inneres, Digitalisierung und Migration zu dem Antrag der Abg. Alexander Maier u. a. GRÜNE - Drucksache 16/5328 Aktivitäten des Vereins \"Uniter e. V.\" und rechtsextreme Bestrebungen in Sicherheitskräften","16/6066","Datum: 11.04.2019","Art: Alle","Urheber: LRG",{"$f":"RIGHT(C904, 10)","v":"11.04.2019"}]
["Unterstützung von Vereinsverbotsverfahren und Nachfrage zu Drucksache 16/5692","16/5870","Datum: 12.04.2019","Art: Kleine Anfrage","Urheber: AfD",{"$f":"RIGHT(C905, 10)","v":"12.04.2019"}]
["Personelle Verstärkung beim Polizeipräsidium Heilbronn 2019","16/5871","Datum: 12.04.2019","Art: Kleine Anfrage","Urheber: AfD",{"$f":"RIGHT(C906, 10)","v":"12.04.2019"}]
["Ausstattung des Landesamts für Verfassungsschutz: Eine Gefahr für die Sicherheits unserer Gesellschaft?","16/5866","Datum: 15.04.2019","Art: Antrag","Urheber: FDP/DVP",{"$f":"RIGHT(C907, 10)","v":"15.04.2019"}]
["Angriffe gegen Bedienstete der Justizvollzugsanstalten","16/5941","Datum: 18.04.2019","Art: Antrag","Urheber: SPD",{"$f":"RIGHT(C908, 10)","v":"18.04.2019"}]
["Nachfragen zu den Drucksachen 16/5497 und 16/5748","16/5920","Datum: 24.04.2019","Art: Kleine Anfrage","Urheber: AfD",{"$f":"RIGHT(C909, 10)","v":"24.04.2019"}]
["Verbindungen eines Mitarbeiters des Landesamts für Verfassungsschutz zum Verein Uniter e. V. und zum NSU-Komplex","16/5937","Datum: 25.04.2019","Art: Kleine Anfrage","Urheber: SPD",{"$f":"RIGHT(C910, 10)","v":"25.04.2019"}]
["Angriffe auf Behördenmitarbeiter","16/5948","Datum: 25.04.2019","Art: Antrag","Urheber: AfD",{"$f":"RIGHT(C911, 10)","v":"25.04.2019"}]
["Weg für den Drogenkonsumraum in Karlsruhe endlich freimachen","16/5967","Datum: 29.04.2019","Art: Antrag","Urheber: SPD",{"$f":"RIGHT(C912, 10)","v":"29.04.2019"}]
["Maßnahmen gegen Raser und übermäßig laute Pkw auf unseren Straßen","16/5965","Datum: 30.04.2019","Art: Antrag","Urheber: SPD",{"$f":"RIGHT(C913, 10)","v":"30.04.2019"}]
["Sexualisierte Gewalt im Sport","16/5978","Datum: 30.04.2019","Art: Antrag","Urheber: AfD",{"$f":"RIGHT(C914, 10)","v":"30.04.2019"}]
["Phänomenübergreifende Beobachtung radikalisierter Strukturen und Maßnahmen zur Deradikalisierung in baden-württembergischen Justizvollzugsanstalten","16/5988","Datum: 30.04.2019","Art: Antrag","Urheber: SPD",{"$f":"RIGHT(C915, 10)","v":"30.04.2019"}]
["Bericht für das Haushaltsjahr 2018","16/6115","Datum: 30.04.2019","Art: Alle","Urheber: LRG",{"$f":"RIGHT(C916, 10)","v":"30.04.2019"}]
["Islamismus in Schülerwohnheimen in Baden-Württemberg","16/5977","Datum: 03.05.2019","Art: Antrag","Urheber: AfD",{"$f":"RIGHT(C917, 10)","v":"03.05.2019"}]
["Barrierefreier Notruf","16/5998","Datum: 03.05.2019","Art: Antrag","Urheber: SPD",{"$f":"RIGHT(C918, 10)","v":"03.05.2019"}]
["Trickbetrug","16/5990","Datum: 06.05.2019","Art: Kleine Anfrage","Urheber: FDP/DVP",{"$f":"RIGHT(C919, 10)","v":"06.05.2019"}]
["Einsatz von rumänischen Polizisten","16/6019","Datum: 06.05.2019","Art: Antrag","Urheber: AfD",{"$f":"RIGHT(C920, 10)","v":"06.05.2019"}]
["Antisemitismus in Baden-Württemberg","16/6034","Datum: 07.05.2019","Art: Antrag","Urheber: CDU",{"$f":"RIGHT(C921, 10)","v":"07.05.2019"}]
["Position der Landesregierung zur Legalisierung des Online-Glücksspiels","16/6057","Datum: 07.05.2019","Art: Antrag","Urheber: SPD",{"$f":"RIGHT(C922, 10)","v":"07.05.2019"}]
["Überblick und Straftaten bei Demonstrationen gegen Veranstaltungen der Alternative für Deutschland in Baden-Württemberg","16/6005","Datum: 08.05.2019","Art: Kleine Anfrage","Urheber: AfD",{"$f":"RIGHT(C923, 10)","v":"08.05.2019"}]
["Überblick und Straftaten bei Demonstrationen gegen Parteitage der Alternative für Deutschland in Baden-Württemberg","16/6006","Datum: 08.05.2019","Art: Kleine Anfrage","Urheber: AfD",{"$f":"RIGHT(C924, 10)","v":"08.05.2019"}]
["Straftaten an Schulen in Stuttgart","16/6024","Datum: 08.05.2019","Art: Kleine Anfrage","Urheber: AfD",{"$f":"RIGHT(C925, 10)","v":"08.05.2019"}]
["Maßnahmen gegen zahlreiche Einbrüche in Freiburg","16/5974","Datum: 09.05.2019","Art: Antrag","Urheber: AfD",{"$f":"RIGHT(C926, 10)","v":"09.05.2019"}]
["Jahrestag des Amoklaufs von Winnenden","16/6022","Datum: 09.05.2019","Art: Antrag","Urheber: GRÜNE",{"$f":"RIGHT(C927, 10)","v":"09.05.2019"}]
["Attentat im neuseeländischen Christchurch und Rechtsterrorismus in Baden-Württemberg","16/6048","Datum: 09.05.2019","Art: Antrag","Urheber: GRÜNE",{"$f":"RIGHT(C928, 10)","v":"09.05.2019"}]
["Prävention und Bekämpfung von Gewalt gegen Frauen und Mädchen in Baden-Württemberg","16/5836","Datum: 13.05.2019","Art: Antrag","Urheber: GRÜNE",{"$f":"RIGHT(C929, 10)","v":"13.05.2019"}]
["Können Kommunen unter der Geltung des Grundgesetzes Linksextremismus und -terrorismus bedenkenlos unterstützen?","16/6067","Datum: 14.05.2019","Art: Antrag","Urheber: AfD",{"$f":"RIGHT(C930, 10)","v":"14.05.2019"}]
["Kriminalität im Wahlkreis Esslingen 2018","16/6051","Datum: 16.05.2019","Art: Kleine Anfrage","Urheber: CDU",{"$f":"RIGHT(C931, 10)","v":"16.05.2019"}]
["Schaffung von 2.000 zusätzlichen Stellen für den Polizeivollzugsdienst","16/6082","Datum: 16.05.2019","Art: Antrag","Urheber: SPD",{"$f":"RIGHT(C932, 10)","v":"16.05.2019"}]
["Kosten der Strafverfolgung von Cannabisgebrauch in Baden-Württemberg","16/6094","Datum: 16.05.2019","Art: Antrag","Urheber: GRÜNE",{"$f":"RIGHT(C933, 10)","v":"16.05.2019"}]
["Auskunft über die Aktivitäten des Beauftragten der Landesregierung gegen Antisemitismus","16/6100","Datum: 16.05.2019","Art: Kleine Anfrage","Urheber: Fraktionslos",{"$f":"RIGHT(C934, 10)","v":"16.05.2019"}]
["Kosten für die Schaffung eines 13. Polizeipräsidiums in Baden-Württemberg","16/6092","Datum: 17.05.2019","Art: Antrag","Urheber: SPD",{"$f":"RIGHT(C935, 10)","v":"17.05.2019"}]
["Jährliche Unterrichtung des Landtags gemäß § 23 a Absatz 10 Polizeigesetz (PolG) über den erfolgten Einsatz technischer Mittel mit Bezug zur Telekommunikation sowie gemäß § 23 b Absatz 14 PolG über Maßnahmen präventiv-polizeilicher Telekommunikationsüberwachung im Berichtsjahr 2018","16/6242","Datum: 20.05.2019","Art: Alle","Urheber: LRG",{"$f":"RIGHT(C936, 10)","v":"20.05.2019"}]
["Straf-/Gewalttaten unter Einsatz von Messern und vergleichbaren Hieb- und Stoßwaffen","16/6074","Datum: 21.05.2019","Art: Kleine Anfrage","Urheber: AfD",{"$f":"RIGHT(C937, 10)","v":"21.05.2019"}]
["Alkoholbedingte Krankenhausbehandlung von Jugendlichen","16/6105","Datum: 21.05.2019","Art: Antrag","Urheber: GRÜNE",{"$f":"RIGHT(C938, 10)","v":"21.05.2019"}]
["Abschaffung des einfachen Dienstes durch die große Dienstrechtsreform von 2010","16/6130","Datum: 22.05.2019","Art: Antrag","Urheber: CDU",{"$f":"RIGHT(C939, 10)","v":"22.05.2019"}]
["Entwicklung bei der Kriminalpolizei","16/6127","Datum: 23.05.2019","Art: Antrag","Urheber: FDP/DVP",{"$f":"RIGHT(C940, 10)","v":"23.05.2019"}]
["Tätigkeitsbericht des Bürgerbeauftragten des Landes Baden-Württemberg für das Jahr 2018","16/6133","Datum: 24.05.2019","Art: Alle","Urheber: LRG",{"$f":"RIGHT(C941, 10)","v":"24.05.2019"}]
["Psychologische Begleitung von BOS-Einsatzkräften im Landkreis Esslingen","16/6140","Datum: 24.05.2019","Art: Kleine Anfrage","Urheber: CDU",{"$f":"RIGHT(C942, 10)","v":"24.05.2019"}]
["Betriebsräte und Verfassungsschutz","16/6147","Datum: 28.05.2019","Art: Kleine Anfrage","Urheber: AfD",{"$f":"RIGHT(C943, 10)","v":"28.05.2019"}]
["„Bakkah-Reisen“, Anbieter für salafistische Reisen aus Mannheim","16/6155","Datum: 28.05.2019","Art: Antrag","Urheber: FDP/DVP",{"$f":"RIGHT(C944, 10)","v":"28.05.2019"}]
["Landeserstaufnahmestelle (LEA) Ellwangen – Sachstandsbericht ein Jahr nach der zunächst gescheiterten Abschiebung","16/6182","Datum: 05.06.2019","Art: Antrag","Urheber: FDP/DVP",{"$f":"RIGHT(C945, 10)","v":"05.06.2019"}]
["Kriminalprävention in Baden-Württemberg","16/6197","Datum: 11.06.2019","Art: Antrag","Urheber: SPD",{"$f":"RIGHT(C946, 10)","v":"11.06.2019"}]
["Mütterrente für Versorgungsempfängerinnen in Baden-Württemberg","16/6228","Datum: 12.06.2019","Art: Antrag","Urheber: CDU",{"$f":"RIGHT(C947, 10)","v":"12.06.2019"}]
["Bericht der Landesregierung zu einem Beschluss des Landtags;hier: Denkschrift 2015 des Rechnungshofs zur Haushalts- und Wirtschaftsführung des Landes Baden-Württemberg– Beitrag Nr. 7: Polizeikostenersatz bei kommerziellen Großveranstaltungen","16/6371","Datum: 12.06.2019","Art: Alle","Urheber: LRG",{"$f":"RIGHT(C948, 10)","v":"12.06.2019"}]
["Unterbringung von Abschiebehäftlingen in Hafteinrichtungen","16/6154","Datum: 13.06.2019","Art: Antrag","Urheber: FDP/DVP",{"$f":"RIGHT(C949, 10)","v":"13.06.2019"}]
["Arbeitszeitflexibilisierung und Arbeitsschutz","16/6180","Datum: 13.06.2019","Art: Antrag","Urheber: FDP/DVP",{"$f":"RIGHT(C950, 10)","v":"13.06.2019"}]
["Kommunaler Geldsegen für ein „Extremistennest“ – Nachfragen zu Drucksache 16/6067","16/6220","Datum: 13.06.2019","Art: Antrag","Urheber: AfD",{"$f":"RIGHT(C951, 10)","v":"13.06.2019"}]
["Brand in der Flüchtlingsunterkunft Weil der Stadt am 14. Februar 2019","16/6225","Datum: 13.06.2019","Art: Kleine Anfrage","Urheber: AfD",{"$f":"RIGHT(C952, 10)","v":"13.06.2019"}]
["Finanzielle Unterstützung tatsächlich oder vermeintlich extremistischer Organisationen","16/6238","Datum: 13.06.2019","Art: Kleine Anfrage","Urheber: AfD",{"$f":"RIGHT(C953, 10)","v":"13.06.2019"}]
["KTS Freiburg – inwieweit duldete Freiburg antisemitische Umtriebe im von ihr finanzierten „Linksextremisten-Wohlfühlheim“ Kulturtreff in Selbstverwaltung (KTS)?","16/6226","Datum: 14.06.2019","Art: Antrag","Urheber: AfD",{"$f":"RIGHT(C954, 10)","v":"14.06.2019"}]
["Verkehrserziehung im Kreis Heilbronn","16/6222","Datum: 18.06.2019","Art: Kleine Anfrage","Urheber: FDP/DVP",{"$f":"RIGHT(C955, 10)","v":"18.06.2019"}]
["Der Antisemitismus im Land 2018 – eine vergleichende Untersuchung mit Berlin","16/6237","Datum: 18.06.2019","Art: Antrag","Urheber: AfD",{"$f":"RIGHT(C956, 10)","v":"18.06.2019"}]
["Nachfrage zu Drucksache 16/6074 − Straf-/Gewalttaten unter Einsatz von Messern und vergleichbaren Hieb- und Stoßwaffen","16/6239","Datum: 18.06.2019","Art: Kleine Anfrage","Urheber: AfD",{"$f":"RIGHT(C957, 10)","v":"18.06.2019"}]
["Jährliche Unterrichtung des Landtags gemäß § 23 a Absatz 10Polizeigesetz (PolG) über den erfolgten Einsatz technischer Mittel mit Bezug zur Telekommunikation sowie gemäß § 23 b Absatz 14 PolG über Maßnahmen präventiv-polizeilicher Telekommunikationsüberwa","16/6249","Datum: 18.06.2019","Art: Beschlussempfehlung","Urheber: Ausschüsse",{"$f":"RIGHT(C958, 10)","v":"18.06.2019"}]
["Situation im Maßregelvollzug","16/6183","Datum: 19.06.2019","Art: Antrag","Urheber: FDP/DVP",{"$f":"RIGHT(C959, 10)","v":"19.06.2019"}]
["Mikro-Überwachungstechnologie","16/6187","Datum: 19.06.2019","Art: Kleine Anfrage","Urheber: AfD",{"$f":"RIGHT(C960, 10)","v":"19.06.2019"}]
["Bericht der Landesregierung zu einem Beschluss des Landtags;hier: Gesetz zur Umsetzung der Polizeistrukturreform(Polizeistrukturreformgesetz – PolRG)","16/6440","Datum: 19.06.2019","Art: Alle","Urheber: LRG",{"$f":"RIGHT(C961, 10)","v":"19.06.2019"}]
["Straftaten und Ordnungswidrigkeiten gegen die AfD unter Bezug auf den Sicherheitsbericht 2018 und basierend auf gegenwärtigen Erfahrungen","16/6266","Datum: 26.06.2019","Art: Kleine Anfrage","Urheber: AfD",{"$f":"RIGHT(C962, 10)","v":"26.06.2019"}]
["Anschlussunterbringung von Asylbewerbern","16/6269","Datum: 26.06.2019","Art: Antrag","Urheber: AfD",{"$f":"RIGHT(C963, 10)","v":"26.06.2019"}]
["Aktivitäten des Vereins „Alternative Help Association e. V.“ in Baden-Württemberg","16/6273","Datum: 26.06.2019","Art: Antrag","Urheber: GRÜNE",{"$f":"RIGHT(C964, 10)","v":"26.06.2019"}]
["Rückkehrhilfen und Perspektiven für Gambia-Flüchtlinge aus Baden-Württemberg","16/6277","Datum: 26.06.2019","Art: Antrag","Urheber: SPD",{"$f":"RIGHT(C965, 10)","v":"26.06.2019"}]
["34. Datenschutz-Tätigkeitsbericht des Landesbeauftragten für den Datenschutz und die Informationsfreiheit Baden-Württemberg für das Jahr 2018","16/6353","Datum: 26.06.2019","Art: Beschlussempfehlung","Urheber: Ausschüsse",{"$f":"RIGHT(C966, 10)","v":"26.06.2019"}]
["Jährliche Unterrichtung des Landtags gemäß Artikel 2 Absatz 5 des Gesetzes zu dem Vertrag des Landes Baden-Württemberg mit dem Verband Deutscher Sinti und Roma, Landesverband Baden-Württemberg e. V. (VDSR-BW)","16/6428","Datum: 26.06.2019","Art: Alle","Urheber: LRG",{"$f":"RIGHT(C967, 10)","v":"26.06.2019"}]
["Was tut die grün-schwarze Landesregierung gegen Antisemitismus und Rechtsextremismus in unserem Land?","16/6463","Datum: 27.06.2019","Art: Große Anfrage","Urheber: SPD",{"$f":"RIGHT(C968, 10)","v":"27.06.2019"}]
["Haben die Behörden in Baden-Württemberg Kenntnis von durch Extremisten gesteuerten Vereinen, insbesondere Sportvereinen?","16/6280","Datum: 28.06.2019","Art: Kleine Anfrage","Urheber: AfD",{"$f":"RIGHT(C969, 10)","v":"28.06.2019"}]
["Bericht der Landesregierung zu einem Beschluss des Landtags;hier: Jahresbericht zur Telekommunikationsüberwachung 2018(Untersuchungsausschuss „Praxis der Telefonüberwachung“)","16/6505","Datum: 28.06.2019","Art: Alle","Urheber: LRG",{"$f":"RIGHT(C970, 10)","v":"28.06.2019"}]
["Auskunft über die Strafzahlung von Porsche","16/6312","Datum: 01.07.2019","Art: Kleine Anfrage","Urheber: Fraktionslos",{"$f":"RIGHT(C971, 10)","v":"01.07.2019"}]
["„ene mene muh und raus bist du“ – Handreichung der Amadeu-Antonio-Stiftung","16/6352","Datum: 04.07.2019","Art: Antrag","Urheber: AfD",{"$f":"RIGHT(C972, 10)","v":"04.07.2019"}]
["1. Bericht des Beauftragten der Landesregierung Baden-Württemberg gegen Antisemitismus","16/6487","Datum: 05.07.2019","Art: Alle","Urheber: LRG",{"$f":"RIGHT(C973, 10)","v":"05.07.2019"}]
["Italienische Mafia in Baden-Württemberg im Jahr 2019","16/6378","Datum: 08.07.2019","Art: Antrag","Urheber: FDP/DVP",{"$f":"RIGHT(C974, 10)","v":"08.07.2019"}]
["Situation in der Erstaufnahmestelle Tübingen","16/6332","Datum: 09.07.2019","Art: Antrag","Urheber: SPD",{"$f":"RIGHT(C975, 10)","v":"09.07.2019"}]
["Angriffe auf Personen im Staats- und ehrenamtlichen Dienst in den Kreisen Böblingen, Calw und Freudenstadt","16/6543","Datum: 09.07.2019","Art: Kleine Anfrage","Urheber: AfD",{"$f":"RIGHT(C976, 10)","v":"09.07.2019"}]
["Situation von Studiengängen zu IT-/Cybersicherheit in Baden-Württemberg","16/6245","Datum: 10.07.2019","Art: Antrag","Urheber: GRÜNE, CDU",{"$f":"RIGHT(C977, 10)","v":"10.07.2019"}]
["Ermittlungen in Vermisstenfällen","16/6379","Datum: 10.07.2019","Art: Antrag","Urheber: FDP/DVP",{"$f":"RIGHT(C978, 10)","v":"10.07.2019"}]
["Bericht der Landesregierung zu einem Beschluss des Landtags;hier: Denkschrift 2015 des Rechnungshofs zur Haushalts- und Wirtschaftsführung des Landes Baden-Württemberg– Beitrag Nr. 7: Polizeikostenersatz bei kommerziellen Großveranstaltungen","16/6498","Datum: 11.07.2019","Art: Beschlussempfehlung","Urheber: Ausschüsse",{"$f":"RIGHT(C979, 10)","v":"11.07.2019"}]
["Gesetz über die Anpassung von Dienst- und Versorgungsbezügen in Baden-Württemberg 2019/2020/2021 (BVAnpGBW2019/2020/2021)","16/6493","Datum: 12.07.2019","Art: Gesetzentwurf","Urheber: LRG",{"$f":"RIGHT(C980, 10)","v":"12.07.2019"}]
["Möglichkeiten der Verhinderung von Todesfällen im Polizeigewahrsam bei rauschbedingter Unterbringung in Ausnüchterungszellen","16/6415","Datum: 15.07.2019","Art: Antrag","Urheber: FDP/DVP",{"$f":"RIGHT(C981, 10)","v":"15.07.2019"}]
["Staatlicher Arbeitsschutz","16/6578","Datum: 15.07.2019","Art: Kleine Anfrage","Urheber: SPD",{"$f":"RIGHT(C982, 10)","v":"15.07.2019"}]
["Versorgungslage bei einem Massenanfall von Verletzten (MANV) während und nach mehreren gleichzeitigen Terroranschlägen (second hit) in einem Großraumgebiet in Baden-Württemberg","16/6580","Datum: 15.07.2019","Art: Kleine Anfrage","Urheber: AfD",{"$f":"RIGHT(C983, 10)","v":"15.07.2019"}]
["Einsatz von Ransomware gegen Städte, Gemeinden, Behörden oder die Regierung","16/6583","Datum: 15.07.2019","Art: Kleine Anfrage","Urheber: AfD",{"$f":"RIGHT(C984, 10)","v":"15.07.2019"}]
["Autodiebstähle in Heilbronn","16/6387","Datum: 16.07.2019","Art: Kleine Anfrage","Urheber: FDP/DVP",{"$f":"RIGHT(C985, 10)","v":"16.07.2019"}]
["Haftsituation in Baden-Württemberg","16/6409","Datum: 16.07.2019","Art: Kleine Anfrage","Urheber: AfD",{"$f":"RIGHT(C986, 10)","v":"16.07.2019"}]
["Vermögensabschöpfung in Baden-Württemberg","16/6631","Datum: 16.07.2019","Art: Antrag","Urheber: SPD",{"$f":"RIGHT(C987, 10)","v":"16.07.2019"}]
["Fast 400 Mio. Euro Kursverluste bei Pensionsfonds und -rücklage des Landes","16/6402","Datum: 17.07.2019","Art: Antrag","Urheber: SPD",{"$f":"RIGHT(C988, 10)","v":"17.07.2019"}]
["Nachfrage bezüglich des Sachstands zu den Flüchtlingsunterkünften in Lauda-Königshofen, Bad Mergentheim und Tauberbischofsheim","16/6430","Datum: 17.07.2019","Art: Kleine Anfrage","Urheber: AfD",{"$f":"RIGHT(C989, 10)","v":"17.07.2019"}]
["Alternativen zum „Containern“ zur Vermeidung von Lebensmittelvernichtung","16/6644","Datum: 17.07.2019","Art: Antrag","Urheber: FDP/DVP",{"$f":"RIGHT(C990, 10)","v":"17.07.2019"}]
["Clankriminalität in Baden-Württemberg","16/6433","Datum: 18.07.2019","Art: Antrag","Urheber: FDP/DVP",{"$f":"RIGHT(C991, 10)","v":"18.07.2019"}]
["Medizinisches Screening von Geflüchteten in Baden-Württemberg","16/6659","Datum: 18.07.2019","Art: Antrag","Urheber: SPD",{"$f":"RIGHT(C992, 10)","v":"18.07.2019"}]
["Bußgeldbescheide wegen Teilnahme an „Fridays-for-future“-Demonstrationen","16/6663","Datum: 18.07.2019","Art: Kleine Anfrage","Urheber: AfD",{"$f":"RIGHT(C993, 10)","v":"18.07.2019"}]
["Öffentlicher Dienst im Land Baden-Württemberg: Attraktivitätssteigernde Maßnahmen, einheitliche Jobbörse und ganzheitliche Imagekampagne","16/6360","Datum: 22.07.2019","Art: Antrag","Urheber: CDU",{"$f":"RIGHT(C994, 10)","v":"22.07.2019"}]
["BILD-Bericht über „Straßenschlacht im beschaulichen Rammersweier bei Offenburg“","16/6436","Datum: 22.07.2019","Art: Kleine Anfrage","Urheber: FDP/DVP",{"$f":"RIGHT(C995, 10)","v":"22.07.2019"}]
["Kosten der Polizeieinsätze durch das Begleiten der Schulschwänzer in Heilbronn und Baden-Württemberg für die Steuerzahler und die Gewährleistung des Beutelsbacher Konsens","16/6391","Datum: 24.07.2019","Art: Kleine Anfrage","Urheber: AfD",{"$f":"RIGHT(C996, 10)","v":"24.07.2019"}]
["Auskunft über Schutzgelderpressung","16/6439","Datum: 24.07.2019","Art: Kleine Anfrage","Urheber: Fraktionslos",{"$f":"RIGHT(C997, 10)","v":"24.07.2019"}]
["Umgang der Landesregierung mit sog. „Feindes- und Todeslisten“ rechtsextremer Gruppen","16/6697","Datum: 24.07.2019","Art: Antrag","Urheber: SPD",{"$f":"RIGHT(C998, 10)","v":"24.07.2019"}]
["Verkehrssicherheit in Baden-Württemberg","16/5910","Datum: 25.07.2019","Art: Große Anfrage","Urheber: GRÜNE",{"$f":"RIGHT(C999, 10)","v":"25.07.2019"}]
["Missbrauch von Notrufnummern","16/6449","Datum: 26.07.2019","Art: Antrag","Urheber: FDP/DVP",{"$f":"RIGHT(C1000, 10)","v":"26.07.2019"}]
["Graffiti-Schmierereien an Autobahnen in Baden-Württemberg","16/6443","Datum: 29.07.2019","Art: Antrag","Urheber: AfD",{"$f":"RIGHT(C1001, 10)","v":"29.07.2019"}]
["„Fridays for Future“ in Baden-Württemberg und mögliche Unterwanderung","16/6444","Datum: 29.07.2019","Art: Antrag","Urheber: AfD",{"$f":"RIGHT(C1002, 10)","v":"29.07.2019"}]
["Der Antisemitismus im Land 2018 Teil 2 oder „Glaube keiner Statistik, die Du nicht selber so angelegt hast, dass Dir das Ergebnis gefällt“","16/6459","Datum: 29.07.2019","Art: Antrag","Urheber: AfD",{"$f":"RIGHT(C1003, 10)","v":"29.07.2019"}]
["Maßnahmen gegen politisch motivierte Angriffe auf Amts- und Mandatsträgerinnen und -träger","16/6724","Datum: 29.07.2019","Art: Antrag","Urheber: SPD",{"$f":"RIGHT(C1004, 10)","v":"29.07.2019"}]
["Kontrolle der Ladungssicherung von Fahrzeugen","16/6446","Datum: 30.07.2019","Art: Kleine Anfrage","Urheber: SPD",{"$f":"RIGHT(C1005, 10)","v":"30.07.2019"}]
["Kinder und Jugendliche vor sexualisierter Gewalt im Sport schützen","16/6474","Datum: 01.08.2019","Art: Antrag","Urheber: SPD",{"$f":"RIGHT(C1006, 10)","v":"01.08.2019"}]
["„Beispiel für eine rechtsextremistisch motivierte Gewalttat im Jahr 2018“ im Verfassungsschutzbericht 2018","16/6457","Datum: 07.08.2019","Art: Kleine Anfrage","Urheber: AfD",{"$f":"RIGHT(C1007, 10)","v":"07.08.2019"}]
["Clan-Bildung und -Kriminalität","16/6513","Datum: 07.08.2019","Art: Kleine Anfrage","Urheber: Fraktionslos",{"$f":"RIGHT(C1008, 10)","v":"07.08.2019"}]
["Flugzeugmigration","16/6514","Datum: 07.08.2019","Art: Kleine Anfrage","Urheber: Fraktionslos",{"$f":"RIGHT(C1009, 10)","v":"07.08.2019"}]
["Auskunft über die Drucksache 16/4021","16/6524","Datum: 07.08.2019","Art: Kleine Anfrage","Urheber: Fraktionslos",{"$f":"RIGHT(C1010, 10)","v":"07.08.2019"}]
["Auskunft über Drucksache 16/6097","16/6525","Datum: 07.08.2019","Art: Kleine Anfrage","Urheber: Fraktionslos",{"$f":"RIGHT(C1011, 10)","v":"07.08.2019"}]
["Ultrastarke Drogen: Eine neue Gefahr für Polizeibeamte? − Stand der Offenburger Drogenszene","16/6495","Datum: 08.08.2019","Art: Antrag","Urheber: AfD",{"$f":"RIGHT(C1012, 10)","v":"08.08.2019"}]
["Auskunft über Drucksache 16/6099","16/6523","Datum: 09.08.2019","Art: Kleine Anfrage","Urheber: Fraktionslos",{"$f":"RIGHT(C1013, 10)","v":"09.08.2019"}]
["Auskunft über einen Blackout","16/6526","Datum: 12.08.2019","Art: Kleine Anfrage","Urheber: Fraktionslos",{"$f":"RIGHT(C1014, 10)","v":"12.08.2019"}]
["Die Hilfsmöglichkeiten der anerkannten Fachberatungsstellen für Betroffene von Menschenhandel verbessern","16/6531","Datum: 12.08.2019","Art: Antrag","Urheber: SPD",{"$f":"RIGHT(C1015, 10)","v":"12.08.2019"}]
["Sporthalle der Polizeischule Wertheim","16/6537","Datum: 13.08.2019","Art: Kleine Anfrage","Urheber: FDP/DVP",{"$f":"RIGHT(C1016, 10)","v":"13.08.2019"}]
["Entwicklungen der Straftaten in und um Frei- und Schwimmbäder in Baden-Württemberg, Kosten für die Sicherheit sowie Vorschriften zur Kleiderordnung","16/6532","Datum: 15.08.2019","Art: Kleine Anfrage","Urheber: AfD",{"$f":"RIGHT(C1017, 10)","v":"15.08.2019"}]
["Sicherheitslage nach Vorkommnissen in Kehler Schwimmbädern","16/6564","Datum: 15.08.2019","Art: Kleine Anfrage","Urheber: CDU",{"$f":"RIGHT(C1018, 10)","v":"15.08.2019"}]
["Auskunft über Vermögensabschöpfung","16/6626","Datum: 15.08.2019","Art: Kleine Anfrage","Urheber: Fraktionslos",{"$f":"RIGHT(C1019, 10)","v":"15.08.2019"}]
["Angriffe auf Personen im Staats- und ehrenamtlichen Dienst in den Kreisen Böblingen, Calw und Freudenstadt","16/6543","Datum: 20.08.2019","Art: Kleine Anfrage","Urheber: AfD",{"$f":"RIGHT(C1020, 10)","v":"20.08.2019"}]
["Staatlicher Arbeitsschutz","16/6578","Datum: 20.08.2019","Art: Kleine Anfrage","Urheber: SPD",{"$f":"RIGHT(C1021, 10)","v":"20.08.2019"}]
["Vermögensabschöpfung in Baden-Württemberg","16/6631","Datum: 21.08.2019","Art: Antrag","Urheber: SPD",{"$f":"RIGHT(C1022, 10)","v":"21.08.2019"}]
["Alternativen zum „Containern“ zur Vermeidung von Lebensmittelvernichtung","16/6644","Datum: 21.08.2019","Art: Antrag","Urheber: FDP/DVP",{"$f":"RIGHT(C1023, 10)","v":"21.08.2019"}]
["Versorgungslage bei einem Massenanfall von Verletzten (MANV) während und nach mehreren gleichzeitigen Terroranschlägen (second hit) in einem Großraumgebiet in Baden-Württemberg","16/6580","Datum: 23.08.2019","Art: Kleine Anfrage","Urheber: AfD",{"$f":"RIGHT(C1024, 10)","v":"23.08.2019"}]
["Einsatz von Ransomware gegen Städte, Gemeinden, Behörden oder die Regierung","16/6583","Datum: 23.08.2019","Art: Kleine Anfrage","Urheber: AfD",{"$f":"RIGHT(C1025, 10)","v":"23.08.2019"}]
["Was tut die grün-schwarze Landesregierung gegen Antisemitismus und Rechtsextremismus in unserem Land?","16/6463","Datum: 26.08.2019","Art: Große Anfrage","Urheber: SPD",{"$f":"RIGHT(C1026, 10)","v":"26.08.2019"}]
["Denkschrift 2019 zur Haushaltsrechnung 2017 hier: Beitrag Nr. 7 – Bearbeitung von Dienstunfällen sowie die Verfolgung von Schadenersatzansprüchen des Landes durch das Landesamt für Besoldung und Versorgung (vgl. Drucksache 16/6600)","16/6607","Datum: 30.08.2019","Art: Alle","Urheber: Rechnungshof",{"$f":"RIGHT(C1027, 10)","v":"30.08.2019"}]
["Denkschrift 2019 zur Haushaltsrechnung 2017 hier: Beitrag Nr. 9 – Polizeireiterstaffeln zusammenlegen (Kapitel 0316) (vgl. Drucksache 16/6600)","16/6609","Datum: 30.08.2019","Art: Alle","Urheber: Rechnungshof",{"$f":"RIGHT(C1028, 10)","v":"30.08.2019"}]
["Denkschrift 2019 zur Haushaltsrechnung 2017 hier: Beitrag Nr. 10 – Dienstunfähigkeit im Justizvollzugsdienst (Kapitel 0508) (vgl. Drucksache 16/6600)","16/6610","Datum: 30.08.2019","Art: Alle","Urheber: Rechnungshof",{"$f":"RIGHT(C1029, 10)","v":"30.08.2019"}]
["Umgang der Landesregierung mit sog. „Feindes- und Todeslisten“ rechtsextremer Gruppen","16/6697","Datum: 30.08.2019","Art: Antrag","Urheber: SPD",{"$f":"RIGHT(C1030, 10)","v":"30.08.2019"}]
["Sichere Schulwege im Landkreis Rhein-Neckar","16/6685","Datum: 04.09.2019","Art: Kleine Anfrage","Urheber: SPD",{"$f":"RIGHT(C1031, 10)","v":"04.09.2019"}]
["Maßnahmen gegen politisch motivierte Angriffe auf Amts- und Mandatsträgerinnen und -träger","16/6724","Datum: 05.09.2019","Art: Antrag","Urheber: SPD",{"$f":"RIGHT(C1032, 10)","v":"05.09.2019"}]
["Einfluss der Muslimbruderschaft auf die Ausbildung von Lehrkräften für den islamischen Religionsunterricht in Baden-Württemberg","16/6748","Datum: 09.09.2019","Art: Antrag","Urheber: FDP/DVP",{"$f":"RIGHT(C1033, 10)","v":"09.09.2019"}]
["Aktuelle Situation der Flüchtlings-Zugangszahlen und Förderungen in Baden-Württemberg","16/6757","Datum: 11.09.2019","Art: Kleine Anfrage","Urheber: AfD",{"$f":"RIGHT(C1034, 10)","v":"11.09.2019"}]
["Handhabung gegen illegale Autokorsos","16/6749","Datum: 12.09.2019","Art: Antrag","Urheber: FDP/DVP",{"$f":"RIGHT(C1035, 10)","v":"12.09.2019"}]
["Mehrfachstraftäter in Trossingen","16/6769","Datum: 12.09.2019","Art: Kleine Anfrage","Urheber: AfD",{"$f":"RIGHT(C1036, 10)","v":"12.09.2019"}]
["Messerangriff in Öhringen","16/6770","Datum: 12.09.2019","Art: Kleine Anfrage","Urheber: AfD",{"$f":"RIGHT(C1037, 10)","v":"12.09.2019"}]
["Hinrichtung mit dem Schwert in Stuttgart-Fasanenhof","16/6786","Datum: 17.09.2019","Art: Antrag","Urheber: AfD",{"$f":"RIGHT(C1038, 10)","v":"17.09.2019"}]
["Aktivitäten des Vereins Uniter e. V. in Baden-Württemberg","16/6788","Datum: 17.09.2019","Art: Antrag","Urheber: SPD",{"$f":"RIGHT(C1039, 10)","v":"17.09.2019"}]
["Einsatz von Künstlicher Intelligenz zur Bekämpfung von Kriminalität","16/6790","Datum: 17.09.2019","Art: Antrag","Urheber: SPD",{"$f":"RIGHT(C1040, 10)","v":"17.09.2019"}]
["Mögliche Verbindungen von Burschenschaften in Baden-Württemberg zum Rechtsextremismus","16/6782","Datum: 18.09.2019","Art: Kleine Anfrage","Urheber: GRÜNE",{"$f":"RIGHT(C1041, 10)","v":"18.09.2019"}]
["Verhinderung und Aufklärung von Cybercrime-Straftaten","16/6794","Datum: 18.09.2019","Art: Antrag","Urheber: FDP/DVP",{"$f":"RIGHT(C1042, 10)","v":"18.09.2019"}]
["Aktivitäten von Uniter e. V. im Land","16/6798","Datum: 19.09.2019","Art: Kleine Anfrage","Urheber: FDP/DVP",{"$f":"RIGHT(C1043, 10)","v":"19.09.2019"}]
["Schutz der Anschrift von Personen, die sich in Einrichtungen zum Schutz vor häuslicher Gewalt aufhalten","16/6801","Datum: 19.09.2019","Art: Antrag","Urheber: SPD",{"$f":"RIGHT(C1044, 10)","v":"19.09.2019"}]
["Psychologische Betreuungsangebote für Justizmitarbeiter","16/6929","Datum: 20.09.2019","Art: Antrag","Urheber: FDP/DVP",{"$f":"RIGHT(C1045, 10)","v":"20.09.2019"}]
["Politiker auf der „Nordkreuz“-Liste","16/6803","Datum: 23.09.2019","Art: Kleine Anfrage","Urheber: FDP/DVP",{"$f":"RIGHT(C1046, 10)","v":"23.09.2019"}]
["Rechtsextreme Kampfsportszene in Baden-Württemberg","16/6802","Datum: 24.09.2019","Art: Antrag","Urheber: GRÜNE",{"$f":"RIGHT(C1047, 10)","v":"24.09.2019"}]
["„Schwertmörder“ von Stuttgart-Fasanenhof","16/6844","Datum: 26.09.2019","Art: Kleine Anfrage","Urheber: AfD",{"$f":"RIGHT(C1048, 10)","v":"26.09.2019"}]
["Schwerpunktstaatsanwaltschaften für sogenannte „Hass-Kommentare“ in sozialen Netzwerken","16/6959","Datum: 26.09.2019","Art: Antrag","Urheber: FDP/DVP",{"$f":"RIGHT(C1049, 10)","v":"26.09.2019"}]
["Die Organisation „Extinction Rebellion“ („ER“) in Baden-Württemberg – was sind der Wissensstand und die Einschätzung der Landesregierung betreffend deren Kriminalität und Verfassungstreue?","16/6846","Datum: 01.10.2019","Art: Antrag","Urheber: AfD",{"$f":"RIGHT(C1050, 10)","v":"01.10.2019"}]
["Bedarfe des Ministeriums für Inneres, Digitalisierung und Migration für den Doppelhaushalt 2020/2021","16/6993","Datum: 02.10.2019","Art: Antrag","Urheber: SPD",{"$f":"RIGHT(C1051, 10)","v":"02.10.2019"}]
["Beschlussempfehlung und Bericht des Ausschusses für Finanzen zu dem Gesetzentwurf der Landesregierung – Drucksache 16/6493 Gesetz über die Anpassung von Dienst- und Versorgungsbezügen in Baden-Württemberg 2019/2020/2021 (BVAnpGBW2019/2020/2021)","16/6956","Datum: 07.10.2019","Art: Beschlussempfehlung","Urheber: Ausschüsse",{"$f":"RIGHT(C1052, 10)","v":"07.10.2019"}]
["Cyberangriffe auf Landesbehörden","16/7020","Datum: 08.10.2019","Art: Antrag","Urheber: SPD",{"$f":"RIGHT(C1053, 10)","v":"08.10.2019"}]
["Ausmaß der radikalislamischen Umtriebe im Islamzentrum der Universität Tübingen","16/6832","Datum: 09.10.2019","Art: Antrag","Urheber: AfD",{"$f":"RIGHT(C1054, 10)","v":"09.10.2019"}]
["Aktuelle Entwicklungen bei der Polizei in Backnang","16/6833","Datum: 09.10.2019","Art: Kleine Anfrage","Urheber: AfD",{"$f":"RIGHT(C1055, 10)","v":"09.10.2019"}]
["Abschiebungen aus dem Hohenlohekreis","16/6841","Datum: 09.10.2019","Art: Kleine Anfrage","Urheber: AfD",{"$f":"RIGHT(C1056, 10)","v":"09.10.2019"}]
["Beschleunigte Verfahren in Baden-Württemberg","16/6862","Datum: 11.10.2019","Art: Antrag","Urheber: SPD",{"$f":"RIGHT(C1057, 10)","v":"11.10.2019"}]
["Beschlussempfehlung und Bericht des Ständigen Ausschusses zu der Mitteilung des Beauftragten der Landesregierung Baden-Württemberg gegen Antisemitismus – Drucksache 16/6487 1. Bericht des Beauftragten der Landesregierung Baden-Württemberg gegen Antisemitismus","16/6997","Datum: 11.10.2019","Art: Beschlussempfehlung","Urheber: Ausschüsse",{"$f":"RIGHT(C1058, 10)","v":"11.10.2019"}]
["Einfluss der Muslimbruderschaft auf die Ausbildung von Lehrkräften für den islamischen Religionsunterricht in Baden-Württemberg II","16/7040","Datum: 11.10.2019","Art: Antrag","Urheber: FDP/DVP",{"$f":"RIGHT(C1059, 10)","v":"11.10.2019"}]
["Einrichtung einer Anlaufstelle zur Erforschung und Dokumentation rechtsextremistischer Strukturen in Baden-Württemberg","16/7041","Datum: 11.10.2019","Art: Antrag","Urheber: SPD",{"$f":"RIGHT(C1060, 10)","v":"11.10.2019"}]
["Aktivitäten und Struktur der italienischen kriminellen Gruppierung ’Ndrangheta in Baden-Württemberg","16/7043","Datum: 11.10.2019","Art: Antrag","Urheber: GRÜNE",{"$f":"RIGHT(C1061, 10)","v":"11.10.2019"}]
["Anonymes Hinweissystem der Polizei Baden-Württemberg – warum existiert bis heute keine Melderubrik zum Linksextremismus?","16/6858","Datum: 14.10.2019","Art: Kleine Anfrage","Urheber: AfD",{"$f":"RIGHT(C1062, 10)","v":"14.10.2019"}]
["Gesetz über die Anpassung von Dienst- und Versorgungsbezügen in Baden-Württemberg 2019/2020/2021 (BVAnpGBW2019/2020/2021)","16/7018","Datum: 15.10.2019","Art: Gesetzesbeschluss","Urheber: LRG",{"$f":"RIGHT(C1063, 10)","v":"15.10.2019"}]
["Als extremistisch definierte Buchstaben- und Zahlenkombinationen","16/6979","Datum: 17.10.2019","Art: Kleine Anfrage","Urheber: AfD",{"$f":"RIGHT(C1064, 10)","v":"17.10.2019"}]
["Abschiebungen aus dem Main-Tauber-Kreis","16/7072","Datum: 17.10.2019","Art: Kleine Anfrage","Urheber: AfD",{"$f":"RIGHT(C1065, 10)","v":"17.10.2019"}]
["Neuregelung des Landesbeamtengesetzes (LBG) zur Erfüllungsübernahme titulierter Schmerzensgeldansprüche","16/6888","Datum: 18.10.2019","Art: Antrag","Urheber: SPD",{"$f":"RIGHT(C1066, 10)","v":"18.10.2019"}]
["Besetzung der offenen Stelle des Vizepräsidenten des Landeskriminalamts","16/6895","Datum: 18.10.2019","Art: Kleine Anfrage","Urheber: FDP/DVP",{"$f":"RIGHT(C1067, 10)","v":"18.10.2019"}]
["Dienstausweise der Gerichtsvollzieherinnen und Gerichtsvollzieher im Land","16/7076","Datum: 18.10.2019","Art: Kleine Anfrage","Urheber: SPD",{"$f":"RIGHT(C1068, 10)","v":"18.10.2019"}]
["Mehr Transparenz im Umgang mit Remonstrationen","16/7083","Datum: 18.10.2019","Art: Antrag","Urheber: SPD",{"$f":"RIGHT(C1069, 10)","v":"18.10.2019"}]
["Die Karrierechancen von Frauen in der Landesverwaltung verbessern","16/6768","Datum: 21.10.2019","Art: Antrag","Urheber: SPD",{"$f":"RIGHT(C1070, 10)","v":"21.10.2019"}]
["Straßenblockaden und Waffenrechtsverstöße durch orientalische Hochzeitsgesellschaften sind immer häufiger ein Problem – die Landesregierung schaut tatenlos zu","16/6898","Datum: 21.10.2019","Art: Antrag","Urheber: AfD",{"$f":"RIGHT(C1071, 10)","v":"21.10.2019"}]
["Gesetz zur Änderung des Landesbeamtenversorgungsgesetzes Baden-Württemberg und anderer Gesetze","16/7011","Datum: 21.10.2019","Art: Gesetzentwurf","Urheber: LRG",{"$f":"RIGHT(C1072, 10)","v":"21.10.2019"}]
["Entwicklungen bei der Polizei Baden-Württemberg in den Bereichen Beförderungen, freiwillige Verlängerung der Lebensarbeitszeit und Nebentätigkeiten","16/7091","Datum: 21.10.2019","Art: Kleine Anfrage","Urheber: SPD",{"$f":"RIGHT(C1073, 10)","v":"21.10.2019"}]
["Tanz-Demonstration in Heidelberg","16/6866","Datum: 22.10.2019","Art: Kleine Anfrage","Urheber: AfD",{"$f":"RIGHT(C1074, 10)","v":"22.10.2019"}]
["Wie viel unternimmt Innenminister Thomas Strobl „erst seit 3 Tagen und nicht schon seit 3 Jahren“ für den Schutz jüdischer Einrichtungen im Land?","16/7100","Datum: 22.10.2019","Art: Antrag","Urheber: FDP/DVP",{"$f":"RIGHT(C1075, 10)","v":"22.10.2019"}]
["Zentrale Anlaufstelle für Opfer von Terroranschlägen und anderen Verbrechen in Baden-Württemberg","16/7130","Datum: 22.10.2019","Art: Antrag","Urheber: SPD",{"$f":"RIGHT(C1076, 10)","v":"22.10.2019"}]
["Ergänzende Antwort des Ministeriums für Inneres, Digitalisierung und Migration zu der Kleinen Anfrage der Abg. Dr. Hans-Ulrich Rülke und Nico Weinmann FDP/DVP – Drucksache 16/6803 Politiker auf der „Nordkreuz“-Liste","16/7063","Datum: 23.10.2019","Art: Alle","Urheber: FDP/DVP",{"$f":"RIGHT(C1077, 10)","v":"23.10.2019"}]
["Flüchtlingssituation in den Regierungsbezirken Freiburg und Tübingen","16/7137","Datum: 23.10.2019","Art: Kleine Anfrage","Urheber: FDP/DVP",{"$f":"RIGHT(C1078, 10)","v":"23.10.2019"}]
["Fahrzeugbestand der Polizei in Baden-Württemberg","16/6903","Datum: 24.10.2019","Art: Kleine Anfrage","Urheber: SPD",{"$f":"RIGHT(C1079, 10)","v":"24.10.2019"}]
["Abschiebungen im Landkreis Schwäbisch Hall","16/7161","Datum: 24.10.2019","Art: Kleine Anfrage","Urheber: AfD",{"$f":"RIGHT(C1080, 10)","v":"24.10.2019"}]
["Abschiebungen im Ostalbkreis","16/7162","Datum: 24.10.2019","Art: Kleine Anfrage","Urheber: AfD",{"$f":"RIGHT(C1081, 10)","v":"24.10.2019"}]
["Abschiebungen im Landkreis Freiburg","16/7163","Datum: 24.10.2019","Art: Kleine Anfrage","Urheber: AfD",{"$f":"RIGHT(C1082, 10)","v":"24.10.2019"}]
["Abschiebungen aus dem Landkreis Göppingen","16/6924","Datum: 28.10.2019","Art: Kleine Anfrage","Urheber: AfD",{"$f":"RIGHT(C1083, 10)","v":"28.10.2019"}]
["Rückkehr ausgereister Islamisten in die Bundesrepublik","16/6933","Datum: 28.10.2019","Art: Antrag","Urheber: FDP/DVP",{"$f":"RIGHT(C1084, 10)","v":"28.10.2019"}]
["Straßenblockaden in Stuttgart","16/6941","Datum: 28.10.2019","Art: Kleine Anfrage","Urheber: FDP/DVP",{"$f":"RIGHT(C1085, 10)","v":"28.10.2019"}]
["Nachfrage zu „Rechtsruck im Osten!“-Demonstration in Stuttgart","16/6883","Datum: 29.10.2019","Art: Kleine Anfrage","Urheber: AfD",{"$f":"RIGHT(C1086, 10)","v":"29.10.2019"}]
["Türkisch-nationalistische Hochzeit unter Verwendung von Waffen und einer Kriegswaffe in Aalen","16/6901","Datum: 30.10.2019","Art: Antrag","Urheber: AfD",{"$f":"RIGHT(C1087, 10)","v":"30.10.2019"}]
["Widerstand gegen Polizeibeamte in Tauberbischofsheim-Dittigheim","16/6946","Datum: 30.10.2019","Art: Kleine Anfrage","Urheber: AfD",{"$f":"RIGHT(C1088, 10)","v":"30.10.2019"}]
["Beschlussempfehlung und Bericht des Ausschusses für Finanzen zur der Mitteilung des Rechnungshofs vom 18. Juli 2019 - Drucksache 16/6607 Denkschrift 2019 zur Haushalts- und Wirtschaftsführung des Landes Baden-Württemberg;hier: Beitrag Nr. 7 – Bearbeitung von Dienstunfällen sowie die Verfolgung von Schadenersatzansprüchen des Landes durch das Landesamt für Besoldung und Versorgung","16/7107","Datum: 30.10.2019","Art: Beschlussempfehlung","Urheber: Ausschüsse",{"$f":"RIGHT(C1089, 10)","v":"30.10.2019"}]
["Beschlussempfehlung und Bericht des Ausschusses für Finanzen zu dem Gesetzentwurf der Landesregierung – Drucksache 16/7011 Gesetz zur Änderung des Landesbeamtenversorgungsgesetzes Baden-Württemberg und anderer Gesetze","16/7143","Datum: 30.10.2019","Art: Beschlussempfehlung","Urheber: Ausschüsse",{"$f":"RIGHT(C1090, 10)","v":"30.10.2019"}]
["Schwerpunktstaatsanwaltschaften für sogenannte „Hass-Kommentare“ in sozialen Netzwerken","16/6959","Datum: 04.11.2019","Art: Antrag","Urheber: FDP/DVP",{"$f":"RIGHT(C1091, 10)","v":"04.11.2019"}]
["Gesetz zur Änderung des Landessicherheitsüberprüfungsgesetzes und des Landesverfassungsschutzgesetzes","16/7046","Datum: 05.11.2019","Art: Gesetzentwurf","Urheber: LRG",{"$f":"RIGHT(C1092, 10)","v":"05.11.2019"}]
["Bürgerwehren in Baden-Württemberg","16/7222","Datum: 05.11.2019","Art: Kleine Anfrage","Urheber: FDP/DVP",{"$f":"RIGHT(C1093, 10)","v":"05.11.2019"}]
["Von abgeschobenen Ausländern eingetriebene Kosten","16/7233","Datum: 07.11.2019","Art: Kleine Anfrage","Urheber: AfD",{"$f":"RIGHT(C1094, 10)","v":"07.11.2019"}]
["Bedarfe des Ministeriums für Inneres, Digitalisierung und Migration für den Doppelhaushalt 2020/2021","16/6993","Datum: 08.11.2019","Art: Antrag","Urheber: SPD",{"$f":"RIGHT(C1095, 10)","v":"08.11.2019"}]
["Beschlussempfehlung und Berichtdes Ständigen Ausschusses zu  der  Mitteilung  des  Beauftragten  der  Landesregierung  Baden-Württemberg gegen Antisemitismus– Drucksache 16/64871. Bericht des Beauftragten der Landesregierung Baden-Württemberg gegen Antisemitismus","16/6997","Datum: 08.11.2019","Art: Beschlussempfehlung","Urheber: Ausschüsse",{"$f":"RIGHT(C1096, 10)","v":"08.11.2019"}]
["Beschlussempfehlung und Berichtdes Ausschusses für Finanzenzu der Mitteilung des Rechnungshofs vom 18. Juli 2019– Drucksache 16/6607Denkschrift 2019 zur Haushalts- und Wirtschaftsführung des Landes Baden-Württemberg;hier: Beitrag Nr. 7 – Bearbeitung von Dienstunfällen sowie die Verfolgung von Schadenersatzansprüchen des Landes durch das Landesamt für Besoldung und Versorgung","16/7107","Datum: 08.11.2019","Art: Beschlussempfehlung","Urheber: Ausschüsse",{"$f":"RIGHT(C1097, 10)","v":"08.11.2019"}]
["Gesetz zur Änderung des Polizeigesetzes","16/7150","Datum: 08.11.2019","Art: Gesetzentwurf","Urheber: AfD",{"$f":"RIGHT(C1098, 10)","v":"08.11.2019"}]
["Gesetz über die Feststellung des Staatshaushaltsplans von Baden-Württemberg für die Haushaltsjahre 2020/21 (Staatshaushaltsgesetz 2020/21 – StHG 2020/21)","16/7171","Datum: 11.11.2019","Art: Gesetzentwurf","Urheber: LRG",{"$f":"RIGHT(C1099, 10)","v":"11.11.2019"}]
["Haushaltsbegleitgesetz 2020/21","16/7172","Datum: 11.11.2019","Art: Gesetzentwurf","Urheber: LRG",{"$f":"RIGHT(C1100, 10)","v":"11.11.2019"}]
["Die Entwicklung der Cyberwehr","16/7239","Datum: 11.11.2019","Art: Kleine Anfrage","Urheber: FDP/DVP",{"$f":"RIGHT(C1101, 10)","v":"11.11.2019"}]
["Straftaten im öffentlichen Raum in den Städten Kirchheim/Teck und Nürtingen seit 1. Januar 2018 und welche Maßnahmen zur Verbesserung des Sicherheitsgefühls vollzogen werden","16/7261","Datum: 13.11.2019","Art: Kleine Anfrage","Urheber: CDU",{"$f":"RIGHT(C1102, 10)","v":"13.11.2019"}]
["exuelle Übergriffe gegen Frauen in der Ortenau","16/7263","Datum: 13.11.2019","Art: Kleine Anfrage","Urheber: AfD",{"$f":"RIGHT(C1103, 10)","v":"13.11.2019"}]
["Antisemitismus in der Heidelberger SPD? – Wie reagiert die Landesregierung","16/6958","Datum: 15.11.2019","Art: Antrag","Urheber: Af",{"$f":"RIGHT(C1104, 10)","v":"15.11.2019"}]
["Als extremistisch definierte Buchstaben- und Zahlenkombinationen","16/6979","Datum: 15.11.2019","Art: Kleine Anfrage","Urheber: AfD",{"$f":"RIGHT(C1105, 10)","v":"15.11.2019"}]
["Cyberangriffe auf Landesbehörden","16/7020","Datum: 15.11.2019","Art: Antrag","Urheber: SPD",{"$f":"RIGHT(C1106, 10)","v":"15.11.2019"}]
["Einfluss der Muslimbruderschaft auf die Ausbildung von Lehrkräften für den islamischen Religionsunterricht in Baden-Württemberg II","16/7040","Datum: 15.11.2019","Art: Antrag","Urheber: FDP/DVP",{"$f":"RIGHT(C1107, 10)","v":"15.11.2019"}]
["Einrichtung einer Anlaufstelle zur Erforschung und Dokumentation rechtsextremistischer Strukturen in Baden-Württemberg","16/7041","Datum: 15.11.2019","Art: Antrag","Urheber: SPD",{"$f":"RIGHT(C1108, 10)","v":"15.11.2019"}]
["Dienstausweise der Gerichtsvollzieherinnen und Gerichtsvollzieher im Land","16/7076","Datum: 15.11.2019","Art: Kleine Anfrage","Urheber: SPD",{"$f":"RIGHT(C1109, 10)","v":"15.11.2019"}]
["5G-Modellregion","16/7077","Datum: 15.11.2019","Art: Antrag","Urheber: SPD",{"$f":"RIGHT(C1110, 10)","v":"15.11.2019"}]
["Gesetz zur Änderung des Landesbeamtenversorgungsgesetzes Baden-Württemberg und anderer Gesetze","16/7272","Datum: 15.11.2019","Art: Gesetzesbeschluss","Urheber: LRG",{"$f":"RIGHT(C1111, 10)","v":"15.11.2019"}]
["Psychologische Betreuungsangebote für Justizmitarbeiter","16/6929","Datum: 18.11.2019","Art: Antrag","Urheber: FDP/DVP",{"$f":"RIGHT(C1112, 10)","v":"18.11.2019"}]
["Aktivitäten und Struktur der italienischen kriminellen Gruppierung ’Ndrangheta in Baden-Württemberg","16/7043","Datum: 18.11.2019","Art: Antrag","Urheber: GRÜNE",{"$f":"RIGHT(C1113, 10)","v":"18.11.2019"}]
["Bevölkerungsentwicklung in Baden-Württemberg seit dem Jahr 2000","16/7057","Datum: 19.11.2019","Art: Kleine Anfrage","Urheber: AfD",{"$f":"RIGHT(C1114, 10)","v":"19.11.2019"}]
["Kontrollen an baden-württembergischen Flughäfen","16/7315","Datum: 19.11.2019","Art: Antrag","Urheber: SPD",{"$f":"RIGHT(C1115, 10)","v":"19.11.2019"}]
["Abschiebungen aus dem Main-Tauber-Kreis","16/7072","Datum: 20.11.2019","Art: Kleine Anfrage","Urheber: AfD",{"$f":"RIGHT(C1116, 10)","v":"20.11.2019"}]
["Untersuchungen von Krankheitsbildern in Landeserstaufnahmeeinrichtungen für Flüchtlinge (LEA) in Baden-Württemberg und ärztliche Versorgung der Bevölkerung","16/7094","Datum: 22.11.2019","Art: Kleine Anfrage","Urheber: AfD",{"$f":"RIGHT(C1117, 10)","v":"22.11.2019"}]
["Situation der Justizwachtmeisterinnen und Justizwachtmeister im Land","16/7341","Datum: 23.11.2019","Art: Kleine Anfrage","Urheber: SPD",{"$f":"RIGHT(C1118, 10)","v":"23.11.2019"}]
["Entwicklungen bei der Polizei Baden-Württemberg in den Bereichen Beförderungen, freiwillige Verlängerung der Lebensarbeitszeit und Nebentätigkeiten","16/7091","Datum: 25.11.2019","Art: Kleine Anfrage","Urheber: SPD",{"$f":"RIGHT(C1119, 10)","v":"25.11.2019"}]
["Wie viel unternimmt Innenminister Thomas Strobl „erst seit 3 Tagen und nicht schon seit 3 Jahren“ für den Schutz jüdischer Einrichtungen im Land?","16/7100","Datum: 25.11.2019","Art: Antrag","Urheber: FDP/DVP",{"$f":"RIGHT(C1120, 10)","v":"25.11.2019"}]
["Zentrale Anlaufstelle für Opfer von Terroranschlägen und anderen Verbrechen in Baden-Württemberg","16/7130","Datum: 25.11.2019","Art: Antrag","Urheber: SPD",{"$f":"RIGHT(C1121, 10)","v":"25.11.2019"}]
["Folgen der Aufarbeitung der Causa Bluttest HeiScreen am Universitätsklinikum Heidelberg","16/7346","Datum: 25.11.2019","Art: Antrag","Urheber: FDP/DVP",{"$f":"RIGHT(C1122, 10)","v":"25.11.2019"}]
["Flüchtlingssituation in den Regierungsbezirken Freiburg und Tübingen","16/7137","Datum: 26.11.2019","Art: Kleine Anfrage","Urheber: FDP/DVP",{"$f":"RIGHT(C1123, 10)","v":"26.11.2019"}]
["Verbot von der Hisbollah nahestehenden Vereinen","16/7351","Datum: 26.11.2019","Art: Antrag","Urheber: AfD",{"$f":"RIGHT(C1124, 10)","v":"26.11.2019"}]
["Organisiertes Betteln in Baden-Württemberg","16/7354","Datum: 26.11.2019","Art: Antrag","Urheber: FDP/DVP",{"$f":"RIGHT(C1125, 10)","v":"26.11.2019"}]
["Abschiebungen im Landkreis Schwäbisch Hall","16/7161","Datum: 27.11.2019","Art: Kleine Anfrage","Urheber: AfD",{"$f":"RIGHT(C1126, 10)","v":"27.11.2019"}]
["Spontanversammlungen – tolerierter Missbrauch, flächendeckende Amnesie oder korrektes pflichtgemäßes Ermessen?","16/7358","Datum: 27.11.2019","Art: Antrag","Urheber: AfD",{"$f":"RIGHT(C1127, 10)","v":"27.11.2019"}]
["Antisemitismusbekämpfung – Blinde Flecken bei der Wahrnehmung durch die Landesregierung?","16/7361","Datum: 28.11.2019","Art: Antrag","Urheber: AfD",{"$f":"RIGHT(C1128, 10)","v":"28.11.2019"}]
["Zur aktuellen Lage in Syrien – Flüchtlingssituation in Baden-Württemberg","16/7366","Datum: 28.11.2019","Art: Kleine Anfrage","Urheber: AfD",{"$f":"RIGHT(C1129, 10)","v":"28.11.2019"}]
["Sicherheitsüberprüfungen von Kernkraftwerken in Baden-Württemberg","16/7185","Datum: 29.11.2019","Art: Antrag","Urheber: GRÜNE",{"$f":"RIGHT(C1130, 10)","v":"29.11.2019"}]
["Kindesmissbrauch in baden-württembergischen Kindereinrichtungen?","16/7187","Datum: 29.11.2019","Art: Kleine Anfrage","Urheber: AfD",{"$f":"RIGHT(C1131, 10)","v":"29.11.2019"}]
["Wirkung der Stadionallianzen von Innenminister Strobl beim letzten Derby zwischen VfB Stuttgart und Karlsruher SC","16/7369","Datum: 29.11.2019","Art: Kleine Anfrage","Urheber: FDP/DVP",{"$f":"RIGHT(C1132, 10)","v":"29.11.2019"}]
["Abschiebungen im Ostalbkreis","16/7162","Datum: 02.12.2019","Art: Kleine Anfrage","Urheber: AfD",{"$f":"RIGHT(C1133, 10)","v":"02.12.2019"}]
["Unterschied zwischen einer Spontanversammlung und geplanten Straßenblockaden","16/7166","Datum: 02.12.2019","Art: Kleine Anfrage","Urheber: FDP/DVP",{"$f":"RIGHT(C1134, 10)","v":"02.12.2019"}]
["Folgen von „Panama Papers“ für Baden-Württemberg","16/7183","Datum: 02.12.2019","Art: Antrag","Urheber: SPD",{"$f":"RIGHT(C1135, 10)","v":"02.12.2019"}]
["Erfassung von Daten im Zusammenhang mit Kinder- und Zwangsehen in Baden-Württemberg","16/7188","Datum: 03.12.2019","Art: Kleine Anfrage","Urheber: AfD",{"$f":"RIGHT(C1136, 10)","v":"03.12.2019"}]
["Polizeieinsatz beim Lokalderby KSC – VfB am 24. November 2019","16/7383","Datum: 03.12.2019","Art: Antrag","Urheber: GRÜNE",{"$f":"RIGHT(C1137, 10)","v":"03.12.2019"}]
["Platzmangel beim Polizeipräsidium Aalen?","16/7181","Datum: 05.12.2019","Art: Kleine Anfrage","Urheber: FDP/DVP",{"$f":"RIGHT(C1138, 10)","v":"05.12.2019"}]
["Staatshaushaltsplan 2020/2021, Einzelplan 03: Ministerium für Inneres, Digitalisierung und Migration","16/7203","Datum: 05.12.2019","Art: Beschlussempfehlung","Urheber: Ausschüsse",{"$f":"RIGHT(C1139, 10)","v":"05.12.2019"}]
["Abschiebungen im Landkreis Breisgau-Hochschwarzwald","16/7163","Datum: 06.12.2019","Art: Kleine Anfrage","Urheber: AfD",{"$f":"RIGHT(C1140, 10)","v":"06.12.2019"}]
["Entwicklung der Zahlen von „psychischen Ausnahmefällen“ in psychiatrischen Einrichtungen und Haftanstalten des Landes","16/7410","Datum: 06.12.2019","Art: Kleine Anfrage","Urheber: AfD",{"$f":"RIGHT(C1141, 10)","v":"06.12.2019"}]
["Beschlussempfehlung und Bericht des Ausschusses für Finanzen zum Gesetzesentwurf Drucksache 16/7171 Gesetz über die Feststellung des Staatshaushaltsplans von Baden-Württemberg für die Haushaltsjahre 2020/21 (Staatshaushaltsgesetz 2020/21 – StHG 2020/21)","16/7200","Datum: 09.12.2019","Art: Beschlussempfehlung","Urheber: Ausschüsse",{"$f":"RIGHT(C1142, 10)","v":"09.12.2019"}]
["Bürgerwehren in Baden-Württemberg","16/7222","Datum: 10.12.2019","Art: Kleine Anfrage","Urheber: FDP/DVP",{"$f":"RIGHT(C1143, 10)","v":"10.12.2019"}]
["Aufwand und Kosten der Polizei für Gerichtsschutz-Maßnahmen","16/7417","Datum: 11.12.2019","Art: Antrag","Urheber: AfD",{"$f":"RIGHT(C1144, 10)","v":"11.12.2019"}]
["Linksextremisten bei freien Radiosendern im Fall „Radio Dreyeckland“","16/7418","Datum: 11.12.2019","Art: Antrag","Urheber: AfD",{"$f":"RIGHT(C1145, 10)","v":"11.12.2019"}]
["Situation des Verkehrsunfalldienstes im Kreis Alb-Donau","16/7419","Datum: 11.12.2019","Art: Kleine Anfrage","Urheber: AfD",{"$f":"RIGHT(C1146, 10)","v":"11.12.2019"}]
["Abschiebungspraxis im Fall von Kindern und Jugendlichen","16/7421","Datum: 11.12.2019","Art: Antrag","Urheber: SPD",{"$f":"RIGHT(C1147, 10)","v":"11.12.2019"}]
["Geltende Rechtslage bei der Strafzumessung für Straftaten unter Rauschmitteleinfluss und möglicher Reformbedarf","16/7424","Datum: 11.12.2019","Art: Antrag","Urheber: SPD",{"$f":"RIGHT(C1148, 10)","v":"11.12.2019"}]
["„Gefährliche Orte“ in Baden-Württemberg","16/7437","Datum: 13.12.2019","Art: Kleine Anfrage","Urheber: AfD",{"$f":"RIGHT(C1149, 10)","v":"13.12.2019"}]
["Die Entwicklung der Cyberwehr","16/7238","Datum: 16.12.2019","Art: Kleine Anfrage","Urheber: FDP/DVP",{"$f":"RIGHT(C1150, 10)","v":"16.12.2019"}]
["Beschluss des Landtags in Zweiter Beratung - Zu dem Entwurf des Staatshaushaltsplans für 2020/2021","16/7320","Datum: 16.12.2019","Art: Alle","Urheber: LRG",{"$f":"RIGHT(C1151, 10)","v":"16.12.2019"}]
["Brandstiftungen in Baden-Württemberg seit 2015 – was ist über die Motive bekannt?","16/7446","Datum: 17.12.2019","Art: Kleine Anfrage","Urheber: AfD",{"$f":"RIGHT(C1152, 10)","v":"17.12.2019"}]
["Haushaltsbegleitgesetz 2020/21","16/7331","Datum: 18.12.2019","Art: Gesetzesbeschluss","Urheber: LRG",{"$f":"RIGHT(C1153, 10)","v":"18.12.2019"}]
["Gesetz über die Feststellung des Staatshaushaltsplans von Baden-Württemberg für die Haushaltsjahre 2020/21 (Staatshaushaltsgesetz 2020/21 – StHG 2020/21)","16/7333","Datum: 18.12.2019","Art: Gesetzesbeschluss","Urheber: LRG",{"$f":"RIGHT(C1154, 10)","v":"18.12.2019"}]
["Weitere Baumaßnahmen beim Polizeipräsidium Aalen?","16/7484","Datum: 18.12.2019","Art: Kleine Anfrage","Urheber: FDP/DVP",{"$f":"RIGHT(C1155, 10)","v":"18.12.2019"}]
["Verteilung der neuen Stellen im Justizdienst und weitere Maßnahmen zur Steigerung der Attraktivität des Justizdienstes","16/7488","Datum: 18.12.2019","Art: Antrag","Urheber: FDP/DVP",{"$f":"RIGHT(C1156, 10)","v":"18.12.2019"}]
["Straftaten im öffentlichen Raum in den Städten Kirchheim/Teck und Nürtingen seit 1. Januar 2018 und welche Maßnahmen zur Verbesserung des Sicherheitsgefühls vollzogen werden","16/7261","Datum: 19.12.2019","Art: Kleine Anfrage","Urheber: CDU",{"$f":"RIGHT(C1157, 10)","v":"19.12.2019"}]
["Probleme bei der Überleitung in die neue Entgeltgruppe E 9a","16/7494","Datum: 19.12.2019","Art: Antrag","Urheber: SPD",{"$f":"RIGHT(C1158, 10)","v":"19.12.2019"}]
["Umsetzung neuer präventiv-polizeilicher Eingriffsbefugnisse","16/7519","Datum: 20.12.2019","Art: Antrag","Urheber: GRÜNE",{"$f":"RIGHT(C1159, 10)","v":"20.12.2019"}]
["Gewalt gegen Frauen und Gefährdungspotenzial durch sog. „Incels“","16/7520","Datum: 20.12.2019","Art: Antrag","Urheber: GRÜNE",{"$f":"RIGHT(C1160, 10)","v":"20.12.2019"}]
["Kontrollen an baden-württembergischen Flughäfen","16/7315","Datum: 02.01.2020","Art: Antrag","Urheber: SPD",{"$f":"RIGHT(C1161, 10)","v":"02.01.2020"}]
["Situation der Justizwachtmeisterinnen und Justizwachtmeister im Land","16/7341","Datum: 02.01.2020","Art: Kleine Anfrage","Urheber: SPD",{"$f":"RIGHT(C1162, 10)","v":"02.01.2020"}]
["Änderungs- und Entschließungsanträge zu der Beschlussempfehlung des Ausschusses für Finanzen - Drucksache 16/7203 Staatshaushaltsplan 2020/2021 Einzelplan 03: Ministerium für Inneres, Digitalisierung und Migration","16/7303","Datum: 08.01.2020","Art: Alle","Urheber: LRG",{"$f":"RIGHT(C1163, 10)","v":"08.01.2020"}]
["Messerangriff in Bretzfeld/Scheppach","16/7536","Datum: 09.01.2020","Art: Kleine Anfrage","Urheber: AfD",{"$f":"RIGHT(C1164, 10)","v":"09.01.2020"}]
["Rolle des baden-württembergischen Innenministeriums bei Rückholaktionen aus dem IS-Gebiet","16/7540","Datum: 09.01.2020","Art: Antrag","Urheber: SPD",{"$f":"RIGHT(C1165, 10)","v":"09.01.2020"}]
["Entwicklung der Zahlen von „psychischen Ausnahmefällen“ in psychiatrischen Einrichtungen und Haftanstalten des Landes","16/7410","Datum: 13.01.2020","Art: Kleine Anfrage","Urheber: AfD",{"$f":"RIGHT(C1166, 10)","v":"13.01.2020"}]
["Organisiertes Betteln in Baden-Württemberg","16/7354","Datum: 14.01.2020","Art: Antrag","Urheber: FDP/DVP",{"$f":"RIGHT(C1167, 10)","v":"14.01.2020"}]
["Sexuelle Übergriffe gegen Frauen in der Ortenau","16/7263","Datum: 15.01.2020","Art: Kleine Anfrage","Urheber: AfD",{"$f":"RIGHT(C1168, 10)","v":"15.01.2020"}]
["Organisation der „Perspektive Kommunismus“ und ihrer Gruppen in Baden-Württemberg","16/7570","Datum: 15.01.2020","Art: Kleine Anfrage","Urheber: AfD",{"$f":"RIGHT(C1169, 10)","v":"15.01.2020"}]
["Aktueller Stand polizeilicher Schwerpunkte in Heilbronn, Sigmaringen und Ellwangen und Rückkehr abgeschobener Asylbewerber nach Baden-Württemberg","16/7571","Datum: 15.01.2020","Art: Antrag","Urheber: AfD",{"$f":"RIGHT(C1170, 10)","v":"15.01.2020"}]
["Wirkung der Stadionallianzen von Innenminister Strobl beim letzten Derby zwischen VfB Stuttgart und Karlsruher SC","16/7369","Datum: 16.01.2020","Art: Kleine Anfrage","Urheber: FDP/DVP",{"$f":"RIGHT(C1171, 10)","v":"16.01.2020"}]
["Zur aktuellen Lage in Syrien – Flüchtlingssituation in Baden-Württemberg","16/7366","Datum: 17.01.2020","Art: Kleine Anfrage","Urheber: AfD",{"$f":"RIGHT(C1172, 10)","v":"17.01.2020"}]
["Polizeieinsatz beim Lokalderby KSC–VfB am 24. November 2019","16/7383","Datum: 17.01.2020","Art: Antrag","Urheber: GRÜNE",{"$f":"RIGHT(C1173, 10)","v":"17.01.2020"}]
["Gefährder in Baden-Württemberg","16/7396","Datum: 17.01.2020","Art: Kleine Anfrage","Urheber: AfD",{"$f":"RIGHT(C1174, 10)","v":"17.01.2020"}]
["Gefährliche Ausländer und Sonderstab","16/7397","Datum: 17.01.2020","Art: Kleine Anfrage","Urheber: AfD",{"$f":"RIGHT(C1175, 10)","v":"17.01.2020"}]
["Polizeireform und Polizeidichte","16/7398","Datum: 17.01.2020","Art: Kleine Anfrage","Urheber: AfD",{"$f":"RIGHT(C1176, 10)","v":"17.01.2020"}]
["Schutz vor Manipulation von Insulinpumpen und Herzschrittmachern","16/7409","Datum: 17.01.2020","Art: Kleine Anfrage","Urheber: AfD",{"$f":"RIGHT(C1177, 10)","v":"17.01.2020"}]
["Linksextremisten bei freien Radiosendern im Fall „Radio Dreyeckland“","16/7418","Datum: 17.01.2020","Art: Antrag","Urheber: AfD",{"$f":"RIGHT(C1178, 10)","v":"17.01.2020"}]
["Ausbildungs- und Personalsituation der Polizei","16/7434","Datum: 20.01.2020","Art: Antrag","Urheber: SPD",{"$f":"RIGHT(C1179, 10)","v":"20.01.2020"}]
["Bericht der Landesregierung zu einem Beschluss des Landtags; hier: Zukunft des Landespolizeiorchesters","16/7003","Datum: 21.01.2020","Art: Alle","Urheber: LRG",{"$f":"RIGHT(C1180, 10)","v":"21.01.2020"}]
["Nachfrage zum Kompetenzzentrum gegen Extremismus in Baden-Württemberg","16/7394","Datum: 23.01.2020","Art: Antrag","Urheber: AfD",{"$f":"RIGHT(C1181, 10)","v":"23.01.2020"}]
["Entwicklung der Zahlen von obdachlosen Menschen und von Gewalt betroffenen Menschen im Stadt- und Landkreis Heilbronn","16/7624","Datum: 23.01.2020","Art: Kleine Anfrage","Urheber: AfD",{"$f":"RIGHT(C1182, 10)","v":"23.01.2020"}]
["Weitere Baumaßnahmen beim Polizeipräsidium Aalen?","16/7484","Datum: 27.01.2020","Art: Kleine Anfrage","Urheber: FDP/DVP",{"$f":"RIGHT(C1183, 10)","v":"27.01.2020"}]
["Einflussnahme durch chinesische Konfuzius-Institute an Hochschulen in Baden-Württemberg II","16/7627","Datum: 27.01.2020","Art: Antrag","Urheber: FDP/DVP",{"$f":"RIGHT(C1184, 10)","v":"27.01.2020"}]
["Folgen der Aufhebung des nächtlichen Alkoholverkaufsverbots und Umsetzung der Einführung von Alkoholkonsumverboten auf Plätzen in Baden-Württemberg","16/7628","Datum: 27.01.2020","Art: Antrag","Urheber: SPD",{"$f":"RIGHT(C1185, 10)","v":"27.01.2020"}]
["Geltende Rechtslage bei der Strafzumessung für Straftaten unter Rauschmitteleinfluss und möglicher Reformbedarf","16/7424","Datum: 28.01.2020","Art: Antrag","Urheber: SPD",{"$f":"RIGHT(C1186, 10)","v":"28.01.2020"}]
["Beschlussempfehlung und Bericht des Ausschusses für Inneres, Digitalisierung und Migratiton zu dem Gesetzesentwurf der Landesregierung - Drucksache 16/7046 Gesetz zur Änderung des Landessicherheitsüberprüfungsgesetzes und des Landesverfassungsschutzgesetzes","16/7599","Datum: 28.01.2020","Art: Beschlussempfehlung","Urheber: Ausschüsse",{"$f":"RIGHT(C1187, 10)","v":"28.01.2020"}]
["Gibt es Verbindungen zwischen dem Mord am Kasseler Regierungspräsidenten Walter Lübcke und der NSU-Mordserie und mögliche Bezüge nach Baden-Württemberg?","16/7644","Datum: 28.01.2020","Art: Kleine Anfrage","Urheber: SPD",{"$f":"RIGHT(C1188, 10)","v":"28.01.2020"}]
["Besorgniserregende Gruppenvergewaltigungen in Baden-Württemberg","16/7645","Datum: 28.01.2020","Art: Antrag","Urheber: AfD",{"$f":"RIGHT(C1189, 10)","v":"28.01.2020"}]
["„Waschtitel“ – irreguläre Aufenthaltserlaubnisse bei Asylbewerbern und anderen ausreisepflichtigen Ausländern","16/7399","Datum: 29.01.2020","Art: Antrag","Urheber: AfD",{"$f":"RIGHT(C1190, 10)","v":"29.01.2020"}]
["Einflussnahme durch chinesische Konfuzius-Institute an Hochschulen in Baden-Württemberg","16/7404","Datum: 29.01.2020","Art: Antrag","Urheber: FDP/DVP",{"$f":"RIGHT(C1191, 10)","v":"29.01.2020"}]
["Rückkehrförderung und Wiedereinreise von Asylbewerbern in Baden-Württemberg","16/7415","Datum: 30.01.2020","Art: Antrag","Urheber: AfD",{"$f":"RIGHT(C1192, 10)","v":"30.01.2020"}]
["Abschiebungspraxis im Fall von Kindern und Jugendlichen","16/7421","Datum: 30.01.2020","Art: Antrag","Urheber: SPD",{"$f":"RIGHT(C1193, 10)","v":"30.01.2020"}]
["Beschlussempfehlung und Bericht des Ausschusses für Finanzen zu der Mitteilung des Rechnungshofes 18. Juli 2019 - Drucksache 16/6609 Denkschrift 2019 zur Haushalts- und Wirtschaftsführung des Landes BW; Beitrag Nr. 9 – Polizeireiterstaffeln zusammenlegen","16/7109","Datum: 31.01.2020","Art: Beschlussempfehlung","Urheber: Ausschüsse",{"$f":"RIGHT(C1194, 10)","v":"31.01.2020"}]
["Aufwand und Kosten der Polizei für Gerichtsschutz-Maßnahmen","16/7417","Datum: 31.01.2020","Art: Antrag","Urheber: AfD",{"$f":"RIGHT(C1195, 10)","v":"31.01.2020"}]
["„Gefährliche Orte“ in Baden-Württemberg","16/7437","Datum: 31.01.2020","Art: Kleine Anfrage","Urheber: AfD",{"$f":"RIGHT(C1196, 10)","v":"31.01.2020"}]
["Brandstiftungen in Baden-Württemberg seit 2015 – was ist über die Motive bekannt?","16/7446","Datum: 31.01.2020","Art: Kleine Anfrage","Urheber: AfD",{"$f":"RIGHT(C1197, 10)","v":"31.01.2020"}]
["Probleme bei der Überleitung in die neue Entgeltgruppe E 9 a","16/7494","Datum: 03.02.2020","Art: Antrag","Urheber: SPD",{"$f":"RIGHT(C1198, 10)","v":"03.02.2020"}]
["35. Datenschutz-Tätigkeitsbericht des Landesbeauftragten für den Datenschutz und die Informationsfreiheit Baden-Württemberg für das Jahr 2019","16/7777","Datum: 04.02.2020","Art: Alle","Urheber: LRG",{"$f":"RIGHT(C1199, 10)","v":"04.02.2020"}]
["Gewalt gegen Frauen und Gefährdungspotenzial durch sog. „Incels“","16/7520","Datum: 05.02.2020","Art: Antrag","Urheber: GRÜNE",{"$f":"RIGHT(C1200, 10)","v":"05.02.2020"}]
["Verteilung der neuen Stellen im Justizdienst und weitere Maßnahmen zur Steigerung der Attraktivität des Justizdienstes","16/7488","Datum: 07.02.2020","Art: Antrag","Urheber: FDP/DVP",{"$f":"RIGHT(C1201, 10)","v":"07.02.2020"}]
["Aktivitäten von Bürgerwehren","16/7505","Datum: 07.02.2020","Art: Kleine Anfrage","Urheber: GRÜNE",{"$f":"RIGHT(C1202, 10)","v":"07.02.2020"}]
["Bericht der Landesregierung zu einem Beschluss des Landtags; hier: Bericht und Beschlussempfehlung des Untersuchungsausschusses „Das Unterstützerumfeld des Nationalsozialistischen Untergrunds (NSU) in Baden-Württemberg und Fortsetzung der Aufarbeitung des Terroranschlags auf die Polizeibeamten M. K. und M. A. (Rechtsterrorismus/NSU BW II)“ ","16/7587","Datum: 10.02.2020","Art: Alle","Urheber: LRG",{"$f":"RIGHT(C1203, 10)","v":"10.02.2020"}]
["Gesetz zur Änderung des Landessicherheitsüberprüfungsgesetzes und des Landesverfassungsschutzgesetzes","16/7693","Datum: 10.02.2020","Art: Gesetzesbeschluss","Urheber: LRG",{"$f":"RIGHT(C1204, 10)","v":"10.02.2020"}]
["Umsetzung neuer präventiv-polizeilicher Eingriffsbefugnisse","16/7519","Datum: 11.02.2020","Art: Antrag","Urheber: GRÜNE",{"$f":"RIGHT(C1205, 10)","v":"11.02.2020"}]
["Messerangriff in Bretzfeld/Scheppach","16/7536","Datum: 11.02.2020","Art: Kleine Anfrage","Urheber: AfD",{"$f":"RIGHT(C1206, 10)","v":"11.02.2020"}]
["Rolle des baden-württembergischen Innenministeriums bei Rückholaktionen aus dem IS-Gebiet","16/7540","Datum: 11.02.2020","Art: Antrag","Urheber: SPD",{"$f":"RIGHT(C1207, 10)","v":"11.02.2020"}]
["Regionale Stellenverteilung in der Justiz und im Justizvollzug","16/7758","Datum: 14.02.2020","Art: Antrag","Urheber: SPD",{"$f":"RIGHT(C1208, 10)","v":"14.02.2020"}]
["Aktuelle Erhebung Abschiebungen und Abschiebehaft","16/7767","Datum: 17.02.2020","Art: Kleine Anfrage","Urheber: AfD",{"$f":"RIGHT(C1209, 10)","v":"17.02.2020"}]
["Aktueller Stand polizeilicher Schwerpunkte in Heilbronn, Sigmaringen und Ellwangen und Rückkehr abgeschobener Asylbewerber nach Baden-Württemberg","16/7571","Datum: 18.02.2020","Art: Antrag","Urheber: AfD",{"$f":"RIGHT(C1210, 10)","v":"18.02.2020"}]
["der Abg. Dr. Ulrich Goll u. a. FDP/DVP Zur aktuellen und zukünftigen Rolle des Gemeindevollzugsdienstes als Teil der Sicherheits- und Ordnungsbehörden","16/7769","Datum: 19.02.2020","Art: Antrag","Urheber: FDP/DVP",{"$f":"RIGHT(C1211, 10)","v":"19.02.2020"}]
["Schutz des Vermögens pflegebedürftiger Menschen vor Straftätern","16/7771","Datum: 19.02.2020","Art: Antrag","Urheber: FDP/DVP",{"$f":"RIGHT(C1212, 10)","v":"19.02.2020"}]
["Entwicklung bei sachgrundlosen Befristungen in der Landesverwaltung in den Jahren 2018 und 2019","16/7787","Datum: 20.02.2020","Art: Antrag","Urheber: SPD",{"$f":"RIGHT(C1213, 10)","v":"20.02.2020"}]
["Doping unter Jugendlichen","16/7800","Datum: 24.02.2020","Art: Antrag","Urheber: FDP/DVP",{"$f":"RIGHT(C1214, 10)","v":"24.02.2020"}]
["Gibt es Verbindungen zwischen dem Mord am Kasseler Regierungspräsidenten Walter Lübcke und der NSU-Mordserie und mögliche Bezüge nach Baden-Württemberg?","16/7644","Datum: 28.02.2020","Art: Kleine Anfrage","Urheber: SPD",{"$f":"RIGHT(C1215, 10)","v":"28.02.2020"}]
["2. Informationsfreiheits-Tätigkeitsbericht des Landesbeauftragten für den Datenschutz und die Informationsfreiheit Baden-Württemberg für die Jahre 2018/2019","16/7778","Datum: 28.02.2020","Art: Alle","Urheber: LRG",{"$f":"RIGHT(C1216, 10)","v":"28.02.2020"}]
["Besorgniserregende Gruppenvergewaltigungen in Baden-Württemberg","16/7645","Datum: 02.03.2020","Art: Antrag","Urheber: AfD",{"$f":"RIGHT(C1217, 10)","v":"02.03.2020"}]
["Rückzug des Landesdatenschutzbeauftragen aus Twitter und Folgen für die Landesverwaltung","16/7829","Datum: 04.03.2020","Art: Antrag","Urheber: AfD",{"$f":"RIGHT(C1218, 10)","v":"04.03.2020"}]
["Zukunft des Bildungszeitgesetzes in Baden-Württemberg","16/7648","Datum: 05.03.2020","Art: Antrag","Urheber: FDP/DVP",{"$f":"RIGHT(C1219, 10)","v":"05.03.2020"}]
["Beschlussempfehlung und Bericht des Ausschusses für Inneres, Digitalisierung und Migration zu dem Gesetzentwurf der Fraktion der AfD – Drucksache 16/7150 Gesetz zur Änderung des Polizeigesetzes","16/7702","Datum: 06.03.2020","Art: Beschlussempfehlung","Urheber: Ausschüsse",{"$f":"RIGHT(C1220, 10)","v":"06.03.2020"}]
["Beschlussempfehlung und Bericht des Ausschusses für Finanzen zu der Mitteilung der Landesregierung vom 17. September 2019 – Drucksache 16/6912 Bericht der Landesregierung zu einem Beschluss des Landtags; hier: Denkschrift 2018 des Rechnungshofs zur Haushalts- und Wirtschaftsführung des Landes Baden-Württemberg – Beitrag Nr. 6: Polizeiausbildung effizienter gestalten ","16/7732","Datum: 06.03.2020","Art: Beschlussempfehlung","Urheber: Ausschüsse",{"$f":"RIGHT(C1221, 10)","v":"06.03.2020"}]
["Gesetz über die Feststellung eines Nachtrags zum Staatshaushaltsplan von Baden-Württemberg für die Haushaltsjahre 2020/21","16/7833","Datum: 06.03.2020","Art: Gesetzentwurf","Urheber: LRG",{"$f":"RIGHT(C1222, 10)","v":"06.03.2020"}]
["Baulicher Zustand und Sanierungsbedarf des Polizeireviers Rastatt","16/7675","Datum: 09.03.2020","Art: Kleine Anfrage","Urheber: SPD",{"$f":"RIGHT(C1223, 10)","v":"09.03.2020"}]
["Folgen der Aufhebung des nächtlichen Alkoholverkaufsverbots und Umsetzung der Einführung von Alkoholkonsumverboten auf Plätzen in Baden-Württemberg","16/7628","Datum: 12.03.2020","Art: Antrag","Urheber: SPD",{"$f":"RIGHT(C1224, 10)","v":"12.03.2020"}]
["Änderungsantrag der Fraktion der AfD zu dem Antrag der Fraktion der AfD - Drucksache 16/2176 - Das Netzwerkdurchsetzungsgsetz stoppen","16/7685","Datum: 16.03.2020","Art: Alle","Urheber: AfD",{"$f":"RIGHT(C1225, 10)","v":"16.03.2020"}]
["Regionale Stellenverteilung in der Justiz und im Justizvollzug","16/7758","Datum: 16.03.2020","Art: Antrag","Urheber: SPD",{"$f":"RIGHT(C1226, 10)","v":"16.03.2020"}]
["Kein Waffenschein für Verfassungsfeinde","16/7881","Datum: 16.03.2020","Art: Antrag","Urheber: SPD",{"$f":"RIGHT(C1227, 10)","v":"16.03.2020"}]
["Neues System der Amokalarmierung für Schulen in Baden-Württemberg","16/7882","Datum: 16.03.2020","Art: Antrag","Urheber: SPD",{"$f":"RIGHT(C1228, 10)","v":"16.03.2020"}]
["Linksextremistische Tendenzen des Flüchtlingsrats Baden-Württemberg?","16/7617","Datum: 17.03.2020","Art: Kleine Anfrage","Urheber: AfD",{"$f":"RIGHT(C1229, 10)","v":"17.03.2020"}]
["Einflussnahme durch chinesische Konfuzius-Institute an Hochschulen in Baden-Württemberg II","16/7627","Datum: 20.03.2020","Art: Antrag","Urheber: FDP/DVP",{"$f":"RIGHT(C1230, 10)","v":"20.03.2020"}]
["Schutz des Vermögens pflegebedürftiger Menschen vor Straftätern","16/7771","Datum: 23.03.2020","Art: Antrag","Urheber: FDP/DVP",{"$f":"RIGHT(C1231, 10)","v":"23.03.2020"}]
["Start- und Landegebühren der Polizeihubschrauberstaffel am Flughafen Stuttgart","16/7884","Datum: 23.03.2020","Art: Antrag","Urheber: SPD",{"$f":"RIGHT(C1232, 10)","v":"23.03.2020"}]
["Gesetz über die Feststellung eines Nachtrags zum Staatshaushaltsplan von Baden-Württemberg für die Haushaltsjahre 2020/21","16/7915","Datum: 23.03.2020","Art: Gesetzesbeschluss","Urheber: LRG",{"$f":"RIGHT(C1233, 10)","v":"23.03.2020"}]
["Konsequenzen der Ermittlungen zu einem versuchten Tötungsdelikt im Jahr 1997 in Birkenfeld","16/7506","Datum: 24.03.2020","Art: Antrag","Urheber: AfD",{"$f":"RIGHT(C1234, 10)","v":"24.03.2020"}]
["Doping unter Jugendlichen","16/7800","Datum: 25.03.2020","Art: Antrag","Urheber: FDP/DVP",{"$f":"RIGHT(C1235, 10)","v":"25.03.2020"}]
["Polizeilicher Datenaustausch und polizeiliche E-Akte","16/7932","Datum: 27.03.2020","Art: Antrag","Urheber: FDP/DVP",{"$f":"RIGHT(C1236, 10)","v":"27.03.2020"}]
["IT-Kapazität für HomeOffice in den Landesministerien und obersten Landesbehörden während der Corona-Krise","16/7952","Datum: 31.03.2020","Art: Antrag","Urheber: FDP/DVP",{"$f":"RIGHT(C1237, 10)","v":"31.03.2020"}]
["Umgang des Verfassungsschutzes mit der Partei „Die Linke“ in Baden-Württem-berg","16/7955","Datum: 02.04.2020","Art: Antrag","Urheber: AfD",{"$f":"RIGHT(C1238, 10)","v":"02.04.2020"}]
["Straftaten in Schorndorf","16/7834","Datum: 06.04.2020","Art: Kleine Anfrage","Urheber: AfD",{"$f":"RIGHT(C1239, 10)","v":"06.04.2020"}]
["Entwicklung der Straftaten in Weinstadt/Rems-Murr-Kreis","16/7967","Datum: 06.04.2020","Art: Kleine Anfrage","Urheber: AfD",{"$f":"RIGHT(C1240, 10)","v":"06.04.2020"}]
["Angaben zur politisch motivierten Kriminalität im Sicherheitsbericht des Landes Baden-Württemberg für 2019","16/7968","Datum: 07.04.2020","Art: Kleine Anfrage","Urheber: AfD",{"$f":"RIGHT(C1241, 10)","v":"07.04.2020"}]
["Cyberangriffe auf baden-württembergische Unternehmen","16/7847","Datum: 08.04.2020","Art: Kleine Anfrage","Urheber: CDU",{"$f":"RIGHT(C1242, 10)","v":"08.04.2020"}]
["Kriminalität im Wahlkreis Esslingen 2019 und Verstöße gegen die Corona-Verordnung","16/7974","Datum: 08.04.2020","Art: Kleine Anfrage","Urheber: CDU",{"$f":"RIGHT(C1243, 10)","v":"08.04.2020"}]
["Digitalisierung der Polizeiarbeit in Baden-Württemberg","16/7855","Datum: 09.04.2020","Art: Antrag","Urheber: FDP/DVP",{"$f":"RIGHT(C1244, 10)","v":"09.04.2020"}]
["Zur aktuellen und zukünftigen Rolle des Gemeindevollzugsdienstes als Teil der Sicherheits- und Ordnungsbehörden","16/7769","Datum: 14.04.2020","Art: Antrag","Urheber: FDP/DVP",{"$f":"RIGHT(C1245, 10)","v":"14.04.2020"}]
["Externes Weisungsrecht gegenüber den Staatsanwaltschaften","16/7982","Datum: 14.04.2020","Art: Antrag","Urheber: FDP/DVP",{"$f":"RIGHT(C1246, 10)","v":"14.04.2020"}]
["Gründungstreffen der mutmaßlich rechtsterroristischen „Gruppe S.“","16/7869","Datum: 15.04.2020","Art: Kleine Anfrage","Urheber: SPD",{"$f":"RIGHT(C1247, 10)","v":"15.04.2020"}]
["Entwicklung bei sachgrundlosen Befristungen in der Landesverwaltung in den Jahren 2018 und 2019","16/7787","Datum: 16.04.2020","Art: Antrag","Urheber: SPD",{"$f":"RIGHT(C1248, 10)","v":"16.04.2020"}]
["Entwicklung der häuslichen Gewalt, auch im Lichte der Corona-Kontaktverbote","16/7999","Datum: 20.04.2020","Art: Antrag","Urheber: FDP/DVP",{"$f":"RIGHT(C1249, 10)","v":"20.04.2020"}]
["Jährliche Unterrichtung des Landtags gemäß § 23 a Absatz 10 des Polizeigesetzes (PolG) über polizeiliche Maßnahmen mit Bezug zur Telekommunikation sowie gemäß § 23 b Absatz 14 PolG über Maßnahmen präventivpolizeilicher Telekommunikationsüberwachung im Berichtsjahr 2019","16/7998","Datum: 24.04.2020","Art: Alle","Urheber: LRG",{"$f":"RIGHT(C1250, 10)","v":"24.04.2020"}]
["Sicherheitslage in der Stuttgarter Stadtmitte","16/8040","Datum: 28.04.2020","Art: Kleine Anfrage","Urheber: FDP/DVP",{"$f":"RIGHT(C1251, 10)","v":"28.04.2020"}]
["Korruption und Disziplinarrecht","16/7851","Datum: 30.04.2020","Art: Kleine Anfrage","Urheber: Fraktionslos",{"$f":"RIGHT(C1252, 10)","v":"30.04.2020"}]
["Politisch motivierte Straftaten 2019 und im ersten Quartal 2020 in Baden-Württemberg","16/8055","Datum: 30.04.2020","Art: Kleine Anfrage","Urheber: AfD",{"$f":"RIGHT(C1253, 10)","v":"30.04.2020"}]
["Eigentumskriminalität in den Kreisen entlang der französischen Grenze und andere Auswirkungen der Grenzschließung zu Frankreich auf Baden-Württemberg","16/8069","Datum: 05.05.2020","Art: Kleine Anfrage","Urheber: AfD",{"$f":"RIGHT(C1254, 10)","v":"05.05.2020"}]
["Umsetzung des Bundesinvestitionsprogramms „Gemeinsam gegen Gewalt an Frauen“","16/8081","Datum: 07.05.2020","Art: Antrag","Urheber: FDP/DVP",{"$f":"RIGHT(C1255, 10)","v":"07.05.2020"}]
["Nachfrage zur Gesamtzahl der Abschiebungen und der Zielländer in der 15. und 16. Legislaturperiode sowie Nachfragen zu Drucksachen 16/7233 und 16/5728","16/8083","Datum: 07.05.2020","Art: Kleine Anfrage","Urheber: AfD",{"$f":"RIGHT(C1256, 10)","v":"07.05.2020"}]
["Entwicklungen der Straftaten im Umfeld von Kirchen 2018 und 2019","16/8085","Datum: 07.05.2020","Art: Kleine Anfrage","Urheber: AfD",{"$f":"RIGHT(C1257, 10)","v":"07.05.2020"}]
["Sicherheitssituation in Krankenhäusern","16/7903","Datum: 11.05.2020","Art: Antrag","Urheber: AfD",{"$f":"RIGHT(C1258, 10)","v":"11.05.2020"}]
["Zukunft der Polizeihochschule am Standort Wertheim","16/7872","Datum: 13.05.2020","Art: Antrag","Urheber: FDP/DVP",{"$f":"RIGHT(C1259, 10)","v":"13.05.2020"}]
["Waffenbesitz in Mannheim","16/7883","Datum: 13.05.2020","Art: Kleine Anfrage","Urheber: SPD",{"$f":"RIGHT(C1260, 10)","v":"13.05.2020"}]
["Neues System der Amokalarmierung für Schulen in Baden-Württemberg","16/7882","Datum: 15.05.2020","Art: Antrag","Urheber: SPD",{"$f":"RIGHT(C1261, 10)","v":"15.05.2020"}]
["Kein Waffenschein für Verfassungsfeinde","16/7881","Datum: 18.05.2020","Art: Antrag","Urheber: SPD",{"$f":"RIGHT(C1262, 10)","v":"18.05.2020"}]
["Polizeilicher Datenaustausch und polizeiliche E-Akte","16/7932","Datum: 19.05.2020","Art: Antrag","Urheber: FDP/DVP",{"$f":"RIGHT(C1263, 10)","v":"19.05.2020"}]
["Start- und Landegebühren der Polizeihubschrauberstaffel am Flughafen Stuttgart","16/7884","Datum: 20.05.2020","Art: Antrag","Urheber: SPD",{"$f":"RIGHT(C1264, 10)","v":"20.05.2020"}]
["Kapazitätserhöhung Landeserstaufnahmestelle (LEA) Karlsruhe","16/7945","Datum: 20.05.2020","Art: Kleine Anfrage","Urheber: AfD",{"$f":"RIGHT(C1265, 10)","v":"20.05.2020"}]
["Mobiles Arbeiten und Digitalisierung in der Landes-, Justiz- und Kommunalverwaltung","16/8148","Datum: 20.05.2020","Art: Große Anfrage","Urheber: CDU",{"$f":"RIGHT(C1266, 10)","v":"20.05.2020"}]
["Voraussetzungen für den offenen Vollzug und eine Lockerung des Vollzugs","16/8149","Datum: 20.05.2020","Art: Kleine Anfrage","Urheber: SPD",{"$f":"RIGHT(C1267, 10)","v":"20.05.2020"}]
["Linksextremistischer Terror mitten in Stuttgart – bleibt der politische Aufschrei aus, weil es Regierungskritiker traf?","16/8150","Datum: 20.05.2020","Art: Antrag","Urheber: AfD",{"$f":"RIGHT(C1268, 10)","v":"20.05.2020"}]
["Illegale Autorennen in Baden-Württemberg","16/8156","Datum: 20.05.2020","Art: Antrag","Urheber: SPD",{"$f":"RIGHT(C1269, 10)","v":"20.05.2020"}]
["IT-Kapazität für Home-Office in den Landesministerien und obersten Landesbehörden während der Corona-Krise","16/7952","Datum: 26.05.2020","Art: Antrag","Urheber: FDP/DVP",{"$f":"RIGHT(C1270, 10)","v":"26.05.2020"}]
["Umgang des Verfassungsschutzes mit der Partei „Die Linke“ in Baden-Württemberg","16/7955","Datum: 26.05.2020","Art: Antrag","Urheber: AfD",{"$f":"RIGHT(C1271, 10)","v":"26.05.2020"}]
["Beschlussempfehlung und Bericht des Ausschusses für Inneres, Digitalisierung und Migration zu der Mitteilung der Landesregierung vom 14. April 2020 – Drucksache 16/7998 Jährliche Unterrichtung des Landtags gemäß § 23 a Absatz 10 des Polizeigesetzes (PolG) über polizeiliche Maßnahmen mit Bezug zur Telekommunikation sowie gemäß § 23 b Absatz 14 PolG über Maßnahmen präventiv-polizeilicher Telekommunikationsüberwachung im Berichtsjahr 2019","16/8158","Datum: 28.05.2020","Art: Beschlussempfehlung","Urheber: Ausschüsse",{"$f":"RIGHT(C1272, 10)","v":"28.05.2020"}]
["Auswirkungen des Landesantidiskriminierungsgesetzes des Landes Berlin auf den Polizeivollzug von Baden-Württemberg","16/8190","Datum: 28.05.2020","Art: Kleine Anfrage","Urheber: CDU",{"$f":"RIGHT(C1273, 10)","v":"28.05.2020"}]
["Versuchtes Tötungsdelikt auf dem Cannstatter Wasen","16/8192","Datum: 29.05.2020","Art: Antrag","Urheber: AfD",{"$f":"RIGHT(C1274, 10)","v":"29.05.2020"}]
["Vorkommnisse am Rande einer Demonstration am 16. Mai 2020 auf dem Cannstatter Wasen","16/8193","Datum: 29.05.2020","Art: Kleine Anfrage","Urheber: AfD",{"$f":"RIGHT(C1275, 10)","v":"29.05.2020"}]
["Entwicklung der Straftaten in Weinstadt/Rems-Murr-Kreis","16/7967","Datum: 02.06.2020","Art: Kleine Anfrage","Urheber: AfD",{"$f":"RIGHT(C1276, 10)","v":"02.06.2020"}]
["Angaben zur politisch motivierten Kriminalität im Sicherheitsbericht des Landes Baden-Württemberg für 2019","16/7968","Datum: 02.06.2020","Art: Kleine Anfrage","Urheber: AfD",{"$f":"RIGHT(C1277, 10)","v":"02.06.2020"}]
["Vorgaben an Landes- und Ortspolizeibehörden für den Umgang mit mutmaßlichen Verstößen gegen die Corona-Verordnung","16/8207","Datum: 03.06.2020","Art: Antrag","Urheber: FDP/DVP",{"$f":"RIGHT(C1278, 10)","v":"03.06.2020"}]
["Auswirkungen des geplanten Berliner Antidiskriminierungsgesetzes auf Bedienstete des Landes Baden-Württemberg","16/8208","Datum: 03.06.2020","Art: Antrag","Urheber: FDP/DVP",{"$f":"RIGHT(C1279, 10)","v":"03.06.2020"}]
["Kriminalität im Wahlkreis Esslingen 2019 und Verstöße gegen die Corona-Verordnung","16/7974","Datum: 05.06.2020","Art: Kleine Anfrage","Urheber: CDU",{"$f":"RIGHT(C1280, 10)","v":"05.06.2020"}]
["Externes Weisungsrecht gegenüber den Staatsanwaltschaften","16/7982","Datum: 05.06.2020","Art: Antrag","Urheber: FDP/DVP",{"$f":"RIGHT(C1281, 10)","v":"05.06.2020"}]
["Gewalt gegen Ärzte und Arztpersonal","16/7984","Datum: 09.06.2020","Art: Kleine Anfrage","Urheber: AfD",{"$f":"RIGHT(C1282, 10)","v":"09.06.2020"}]
["Beschlussempfehlung und Bericht des Ausschusses für Inneres, Digitalisierung und Migration zu der Mitteilung der Landesregierung vom 14. April 2020 – Drucksache 16/7998 Jährliche Unterrichtung des Landtags gemäß § 23 a Absatz 10 des Polizeigesetzes (PolG) über polizeiliche Maßnahmen mit Bezug zur Telekommunikation sowie gemäß § 23 b Absatz 14 PolG über Maßnahmen präventiv-polizeilicher Telekommunikationsüberwachung im Berichtsjahr 2019","16/8158","Datum: 10.06.2020","Art: Beschlussempfehlung","Urheber: Ausschüsse",{"$f":"RIGHT(C1283, 10)","v":"10.06.2020"}]
["Erstürmung des Krankenhauses in Ludwigsburg durch Angehörige eines irakischen Familienclans","16/8032","Datum: 18.06.2020","Art: Antrag","Urheber: AfD",{"$f":"RIGHT(C1284, 10)","v":"18.06.2020"}]
["Umsetzung des Bundesinvestitionsprogramms „Gemeinsam gegen Gewalt an Frauen“","16/8081","Datum: 19.06.2020","Art: Antrag","Urheber: FDP/DVP",{"$f":"RIGHT(C1285, 10)","v":"19.06.2020"}]
["Situation der Polizei im Polizeipräsidiumsbezirk Heilbronn","16/8287","Datum: 19.06.2020","Art: Kleine Anfrage","Urheber: FDP/DVP",{"$f":"RIGHT(C1286, 10)","v":"19.06.2020"}]
["Sicherheitslage in der Stuttgarter Stadtmitte","16/8040","Datum: 22.06.2020","Art: Kleine Anfrage","Urheber: FDP/DVP",{"$f":"RIGHT(C1287, 10)","v":"22.06.2020"}]
["Ausschreitungen von Linksextremisten gegen den Neujahrsempfang des AfD-Kreisverbands Reutlingen im Spitalhof am 21. Februar 2020 – welche Konsequenzen zieht die Landesregierung?","16/8042","Datum: 22.06.2020","Art: Antrag","Urheber: AfD",{"$f":"RIGHT(C1288, 10)","v":"22.06.2020"}]
["Home-Office in der Landesverwaltung","16/8310","Datum: 23.06.2020","Art: Antrag","Urheber: SPD",{"$f":"RIGHT(C1289, 10)","v":"23.06.2020"}]
["Beschlussempfehlung und Bericht des Ständigen Ausschusses zu dem Schreiben des Bundesverfassungsgerichts vom 15. April 2020, Az.: 1 BvR 2771/18 Verfassungsbeschwerde gegen § 23 b Absatz 2 des Polizeigesetzes über den Einsatz von sogenannten Staatstrojanern","16/8256","Datum: 24.06.2020","Art: Beschlussempfehlung","Urheber: Ausschüsse",{"$f":"RIGHT(C1290, 10)","v":"24.06.2020"}]
["Gewerkschaften und Antifa Hand in Hand?","16/8052","Datum: 25.06.2020","Art: Antrag","Urheber: AfD",{"$f":"RIGHT(C1291, 10)","v":"25.06.2020"}]
["Dem Antisemitismus durch eine verstärkte Auseinandersetzung mit der Shoa und dem Judentum in den Schulen vorbeugen","16/8057","Datum: 25.06.2020","Art: Antrag","Urheber: FDP/DVP",{"$f":"RIGHT(C1292, 10)","v":"25.06.2020"}]
["Fragen zum Verfassungsschutzbericht Baden-Württemberg 2019","16/8327","Datum: 25.06.2020","Art: Antrag","Urheber: AfD",{"$f":"RIGHT(C1293, 10)","v":"25.06.2020"}]
["Nothing else matters? – Duldung von Linksextremismus und Anarchie unter dem Deckmantel von Black lives matter (BLM)?","16/8328","Datum: 25.06.2020","Art: Antrag","Urheber: AfD",{"$f":"RIGHT(C1294, 10)","v":"25.06.2020"}]
["Terrornacht in Stuttgart am 20./21. Juni 2020","16/8329","Datum: 25.06.2020","Art: Antrag","Urheber: AfD",{"$f":"RIGHT(C1295, 10)","v":"25.06.2020"}]
["Unternahm Innenminister Strobl alles Erforderliche, um die Krawallnacht zu verhindern?","16/8333","Datum: 25.06.2020","Art: Antrag","Urheber: FDP/DVP",{"$f":"RIGHT(C1296, 10)","v":"25.06.2020"}]
["Teilzeitbeschäftigung, mobiles Arbeiten und Job-Sharing von Führungskräften in Unternehmen mit Beteiligung des Landes Baden-Württemberg","16/8336","Datum: 26.06.2020","Art: Antrag","Urheber: CDU",{"$f":"RIGHT(C1297, 10)","v":"26.06.2020"}]
["Nach versuchtem Mord in Bad Cannstatt – Terroristische Antifa-Organisationen endlich verbieten!","16/8340","Datum: 27.06.2020","Art: Antrag","Urheber: AfD",{"$f":"RIGHT(C1298, 10)","v":"27.06.2020"}]
["Vorkommnisse am Rande einer Demonstration am 16. Mai 2020 auf dem Cannstatter Wasen","16/8193","Datum: 30.06.2020","Art: Kleine Anfrage","Urheber: AfD",{"$f":"RIGHT(C1299, 10)","v":"30.06.2020"}]
["Jährliche Unterrichtung des Landtags gemäß Artikel 2 Absatz 6 des Gesetzes zu dem Vertrag des Landes Baden-Württemberg mit dem Verband Deutscher Sinti und Roma, Landesverband Baden-Württemberg e. V. (VDSR-BW)","16/8260","Datum: 30.06.2020","Art: Alle","Urheber: LRG",{"$f":"RIGHT(C1300, 10)","v":"30.06.2020"}]
["Entwicklungen der Straftaten im Umfeld von Kirchen 2018 und 2019","16/8085","Datum: 01.07.2020","Art: Kleine Anfrage","Urheber: AfD",{"$f":"RIGHT(C1301, 10)","v":"01.07.2020"}]
["Versuchtes Tötungsdelikt auf dem Cannstatter Wasen","16/8192","Datum: 01.07.2020","Art: Antrag","Urheber: AfD",{"$f":"RIGHT(C1302, 10)","v":"01.07.2020"}]
["Trickbetrug und Telefonterror im Enzkreis","16/8367","Datum: 02.07.2020","Art: Kleine Anfrage","Urheber: FDP/DVP",{"$f":"RIGHT(C1303, 10)","v":"02.07.2020"}]
["Linksextreme Beteiligung an der Stuttgarter Krawallnacht und Entwicklungen in den Folgewochen","16/8371","Datum: 02.07.2020","Art: Antrag","Urheber: FDP/DVP",{"$f":"RIGHT(C1304, 10)","v":"02.07.2020"}]
["Politisch motivierte Straftaten 2019 und im ersten Quartal 2020 in Baden-Württemberg","16/8055","Datum: 03.07.2020","Art: Kleine Anfrage","Urheber: AfD",{"$f":"RIGHT(C1305, 10)","v":"03.07.2020"}]
["Auswirkungen des Landesantidiskriminierungsgesetzes des Landes Berlin auf den Polizeivollzug von Baden-Württemberg","16/8190","Datum: 03.07.2020","Art: Kleine Anfrage","Urheber: CDU",{"$f":"RIGHT(C1306, 10)","v":"03.07.2020"}]
["Möglichkeiten und Grenzen des offenen Vollzugs","16/8131","Datum: 07.07.2020","Art: Antrag","Urheber: FDP/DVP",{"$f":"RIGHT(C1307, 10)","v":"07.07.2020"}]
["Bericht der Landesregierung zu einem Beschluss des Landtags; hier: Jahresbericht zur Telekommunikationsüberwachung 2019 (Untersuchungsausschuss „Praxis der Telefonüberwachung“)","16/8352","Datum: 07.07.2020","Art: Alle","Urheber: LRG",{"$f":"RIGHT(C1308, 10)","v":"07.07.2020"}]
["Razzia in der „linksextremen Szene“ in Baden-Württemberg am 2. Juli 2020","16/8434","Datum: 07.07.2020","Art: Antrag","Urheber: AfD",{"$f":"RIGHT(C1309, 10)","v":"07.07.2020"}]
["Vorgaben an Landes- und Ortspolizeibehörden für den Umgang mit mutmaßlichen Verstößen gegen die Corona-Verordnung","16/8207","Datum: 08.07.2020","Art: Antrag","Urheber: FDP/DVP",{"$f":"RIGHT(C1310, 10)","v":"08.07.2020"}]
["Ignorieren die Landesregierung und das Landesamt für Verfassungsschutz öffentlich zugängliche Informationen zur direkten Zusammenarbeit zwischen Gewerk-chaften und der Antifa?","16/8375","Datum: 09.07.2020","Art: Antrag","Urheber: AfD",{"$f":"RIGHT(C1311, 10)","v":"09.07.2020"}]
["Zwischenergebnisse des Pilotprojekts zur „intelligenten Videoüberwachung“ in Mannheim","16/8128","Datum: 10.07.2020","Art: Kleine Anfrage","Urheber: SPD",{"$f":"RIGHT(C1312, 10)","v":"10.07.2020"}]
["Umsetzungsstand beim JobBike BW","16/8147","Datum: 10.07.2020","Art: Kleine Anfrage","Urheber: CDU",{"$f":"RIGHT(C1313, 10)","v":"10.07.2020"}]
["Voraussetzungen für den offenen Vollzug und eine Lockerung des Vollzugs","16/8149","Datum: 10.07.2020","Art: Kleine Anfrage","Urheber: SPD",{"$f":"RIGHT(C1314, 10)","v":"10.07.2020"}]
["Einsetzung und Auftrag des Untersuchungsausschusses „Aufarbeitung des Mordanschlags in Stuttgart-Bad Cannstatt am 16. Mai 2020“","16/8368","Datum: 10.07.2020","Art: Antrag","Urheber: AfD",{"$f":"RIGHT(C1315, 10)","v":"10.07.2020"}]
["Streckenbezogene Motorrad-Fahrverbote und Motorrad-Kontrollen im Enzkreis","16/8226","Datum: 13.07.2020","Art: Kleine Anfrage","Urheber: FDP/DVP",{"$f":"RIGHT(C1316, 10)","v":"13.07.2020"}]
["Ausbau der Frauen- und Kinderschutzhäuser in Baden-Württemberg","16/8463","Datum: 13.07.2020","Art: Antrag","Urheber: CDU",{"$f":"RIGHT(C1317, 10)","v":"13.07.2020"}]
["Beschlussempfehlung und Bericht des Ausschusses für Finanzen zu der Mitteilung der Landesregierung vom 4. Juni 2020 – Drucksache 16/8213 Bericht der Landesregierung zu einem Beschluss des Landtags; hier: Gesetz zur Umsetzung der Polizeistrukturreform (Polizeistrukturreformgesetz – PolRG)","16/8439","Datum: 15.07.2020","Art: Beschlussempfehlung","Urheber: Ausschüsse",{"$f":"RIGHT(C1318, 10)","v":"15.07.2020"}]
["Linksextremistischer Terror mitten in Stuttgart – bleibt der politische Aufschrei aus, weil es Regierungskritiker traf?","16/8150","Datum: 16.07.2020","Art: Antrag","Urheber: AfD",{"$f":"RIGHT(C1319, 10)","v":"16.07.2020"}]
["Illegale Autorennen in Baden-Württemberg","16/8156","Datum: 16.07.2020","Art: Antrag","Urheber: SPD",{"$f":"RIGHT(C1320, 10)","v":"16.07.2020"}]
["Maßnahmen gegen Diskriminierung bei der Polizei in Baden-Württemberg","16/8247","Datum: 16.07.2020","Art: Kleine Anfrage","Urheber: CDU",{"$f":"RIGHT(C1321, 10)","v":"16.07.2020"}]
["Beschlussempfehlung und Bericht des Ständigen Ausschusses zu der Mitteilung der Landesregierung vom 15. Juni 2020 – Drucksache 16/8260 Jährliche Unterrichtung des Landtags gemäß Artikel 2 Absatz 6 des Gesetzes zu dem Vertrag des Landes Baden-Württemberg mit dem Verband Deutscher Sinti und Roma, Landesverband Baden-Württemberg e. V. (VDSR-BW)","16/8472","Datum: 17.07.2020","Art: Beschlussempfehlung","Urheber: Ausschüsse",{"$f":"RIGHT(C1322, 10)","v":"17.07.2020"}]
["Rechtsextremistische Musikveranstaltungen","16/8511","Datum: 17.07.2020","Art: Antrag","Urheber: GRÜNE",{"$f":"RIGHT(C1323, 10)","v":"17.07.2020"}]
["Beschlussempfehlung und Bericht des Ständigen Ausschusses zu a) der Mitteilung des Landesbeauftragten für den Datenschutz und die Informationsfreiheit Baden-Württemberg vom 16. Januar 2020 – Drucksache 16/7777 35. Datenschutz-Tätigkeitsbericht des Landesbeauftragten für den Datenschutz und die Informationsfreiheit Baden-Württemberg für das Jahr 2019 b) der Mitteilung des Landesbeauftragten für den Datenschutz und die Informationsfreiheit Baden-Württemberg vom 15. Februar 2020 – Drucksache 16/7778 2. Informationsfreiheits-Tätigkeitsbericht des Landesbeauftragten für den Datenschutz und die Informationsfreiheit Baden-Württemberg für die Jahre 2018/2019","16/8243","Datum: 20.07.2020","Art: Beschlussempfehlung","Urheber: Ausschüsse",{"$f":"RIGHT(C1324, 10)","v":"20.07.2020"}]
["„NSU 2.0.“ in Baden-Württemberg","16/8538","Datum: 23.07.2020","Art: Kleine Anfrage","Urheber: FDP/DVP",{"$f":"RIGHT(C1325, 10)","v":"23.07.2020"}]
["Salafisten im Fokus – ein Querschnitt der Szene Baden-Württembergs","16/8541","Datum: 23.07.2020","Art: Kleine Anfrage","Urheber: AfD",{"$f":"RIGHT(C1326, 10)","v":"23.07.2020"}]
["Linksextreme Angriffe auf Polizeibeamte und linksextreme Strukturen und deren Ausbreitung","16/8262","Datum: 24.07.2020","Art: Kleine Anfrage","Urheber: AfD",{"$f":"RIGHT(C1327, 10)","v":"24.07.2020"}]
["Personelle Verstärkung beim Polizeipräsidium Heilbronn 2020 und allgemeine Fragen zur aktuellen Situation der Polizei","16/8266","Datum: 24.07.2020","Art: Kleine Anfrage","Urheber: AfD",{"$f":"RIGHT(C1328, 10)","v":"24.07.2020"}]
["Änderung des Landesbeamtengesetzes zur Verbesserung des Schutzes von Polizeianwärterinnen und -anwärtern","16/8559","Datum: 24.07.2020","Art: Kleine Anfrage","Urheber: SPD",{"$f":"RIGHT(C1329, 10)","v":"24.07.2020"}]
["Entwicklungen von Todesfällen in Gewahrsamszellen","16/8561","Datum: 27.07.2020","Art: Kleine Anfrage","Urheber: FDP/DVP",{"$f":"RIGHT(C1330, 10)","v":"27.07.2020"}]
["Verkehrssicherheit im Landkreis Freudenstadt","16/8563","Datum: 27.07.2020","Art: Kleine Anfrage","Urheber: FDP/DVP",{"$f":"RIGHT(C1331, 10)","v":"27.07.2020"}]
["Gewalttaten und Beleidigungen gegenüber Rettungskräften und Feuerwehrleuten","16/8573","Datum: 28.07.2020","Art: Antrag","Urheber: CDU",{"$f":"RIGHT(C1332, 10)","v":"28.07.2020"}]
["Ermittlungen in Baden-Württemberg im Zusammenhang mit Drohschreiben mit dem Absender „NSU 2.0“","16/8578","Datum: 28.07.2020","Art: Kleine Anfrage","Urheber: SPD",{"$f":"RIGHT(C1333, 10)","v":"28.07.2020"}]
["Situation der Polizei im Polizeipräsidiumsbezirk Heilbronn","16/8287","Datum: 29.07.2020","Art: Kleine Anfrage","Urheber: FDP/DVP",{"$f":"RIGHT(C1334, 10)","v":"29.07.2020"}]
["Gesetz zur Umsetzung der Richtlinie (EU) 2016/680 für die Polizei in Baden-Württemberg und zur Änderung weiterer polizeirechtlicher Vorschriften","16/8484","Datum: 29.07.2020","Art: Gesetzentwurf","Urheber: LRG",{"$f":"RIGHT(C1335, 10)","v":"29.07.2020"}]
["Gesetz zur Änderung des Landesbesoldungsgesetzes Baden-Württemberg und anderer Rechtsvorschriften","16/8487","Datum: 29.07.2020","Art: Gesetzentwurf","Urheber: LRG",{"$f":"RIGHT(C1336, 10)","v":"29.07.2020"}]
["Konsequenzen aus der Rechtsprechung für die Beihilfeverschlechterungen aus dem Haushaltsbegleitgesetz 2013/2014","16/8334","Datum: 30.07.2020","Art: Antrag","Urheber: CDU",{"$f":"RIGHT(C1337, 10)","v":"30.07.2020"}]
["Nach versuchtem Mord in Bad Cannstatt – Terroristische Antifa-Organisationen endlich verbieten!","16/8340","Datum: 31.07.2020","Art: Antrag","Urheber: AfD",{"$f":"RIGHT(C1338, 10)","v":"31.07.2020"}]
["Sachbeschädigung durch Graffiti durch Fans des VfB Stuttgart","16/8588","Datum: 31.07.2020","Art: Kleine Anfrage","Urheber: SPD",{"$f":"RIGHT(C1339, 10)","v":"31.07.2020"}]
["Home-Office in der Landesverwaltung","16/8310","Datum: 03.08.2020","Art: Antrag","Urheber: SPD",{"$f":"RIGHT(C1340, 10)","v":"03.08.2020"}]
["Fragen zum Verfassungsschutzbericht Baden-Württemberg 2019","16/8327","Datum: 05.08.2020","Art: Antrag","Urheber: AfD",{"$f":"RIGHT(C1341, 10)","v":"05.08.2020"}]
["Terrornacht in Stuttgart am 20./21. Juni 2020","16/8329","Datum: 05.08.2020","Art: Antrag","Urheber: AfD",{"$f":"RIGHT(C1342, 10)","v":"05.08.2020"}]
["Straftaten in Mannheim","16/8331","Datum: 05.08.2020","Art: Kleine Anfrage","Urheber: AfD",{"$f":"RIGHT(C1343, 10)","v":"05.08.2020"}]
["Strukturen von Clan-Kriminalität in Baden-Württemberg und Villingen-Schwenningen","16/8608","Datum: 05.08.2020","Art: Kleine Anfrage","Urheber: CDU",{"$f":"RIGHT(C1344, 10)","v":"05.08.2020"}]
["Nothing else matters? – Duldung von Linksextremismus und Anarchie unter dem Deckmantel von Black lives matter (BLM)?","16/8328","Datum: 06.08.2020","Art: Antrag","Urheber: AfD",{"$f":"RIGHT(C1345, 10)","v":"06.08.2020"}]
["Unternahm Innenminister Strobl alles Erforderliche, um die Krawallnacht zu verhindern?","16/8333","Datum: 06.08.2020","Art: Antrag","Urheber: FDP/DVP",{"$f":"RIGHT(C1346, 10)","v":"06.08.2020"}]
["Razzia in der „linksextremen Szene“ in Baden-Württemberg am 2. Juli 2020","16/8434","Datum: 06.08.2020","Art: Antrag","Urheber: AfD",{"$f":"RIGHT(C1347, 10)","v":"06.08.2020"}]
["Stand der baden-württembergischen Verfahren wegen Hassposts gegen Walter Lübcke","16/8615","Datum: 06.08.2020","Art: Kleine Anfrage","Urheber: FDP/DVP",{"$f":"RIGHT(C1348, 10)","v":"06.08.2020"}]
["Nachfragen zu Drucksache 16/7999 und häuslicher Gewalt im Land","16/8616","Datum: 06.08.2020","Art: Antrag","Urheber: FDP/DVP",{"$f":"RIGHT(C1349, 10)","v":"06.08.2020"}]
["Langfristige Personalplanung bei der Landespolizei","16/8617","Datum: 06.08.2020","Art: Antrag","Urheber: FDP/DVP",{"$f":"RIGHT(C1350, 10)","v":"06.08.2020"}]
["Aktivitäten der Hisbollah in Baden-Württemberg","16/8618","Datum: 06.08.2020","Art: Kleine Anfrage","Urheber: FDP/DVP",{"$f":"RIGHT(C1351, 10)","v":"06.08.2020"}]
["Rechtsstellung von Polizeianwärterinnen und Polizeianwärtern","16/8620","Datum: 07.08.2020","Art: Kleine Anfrage","Urheber: FDP/DVP",{"$f":"RIGHT(C1352, 10)","v":"07.08.2020"}]
["Einlasskontrollen und Selbstjustiz durch Kriminelle und Clanmitglieder auch vor Gerichten im Südwesten?","16/8627","Datum: 09.08.2020","Art: Antrag","Urheber: AfD",{"$f":"RIGHT(C1353, 10)","v":"09.08.2020"}]
["Beschäftigung eines linksextremen Erziehers in einer Kita der evangelischen Kirche in Stuttgart","16/8628","Datum: 09.08.2020","Art: Antrag","Urheber: AfD",{"$f":"RIGHT(C1354, 10)","v":"09.08.2020"}]
["Bereiten Linksextreme Anschläge auf Polizisten vor und Nachfragen zur Drucksache 16/8327","16/8634","Datum: 10.08.2020","Art: Kleine Anfrage","Urheber: AfD",{"$f":"RIGHT(C1355, 10)","v":"10.08.2020"}]
["Trickbetrug und Telefonterror im Enzkreis","16/8367","Datum: 11.08.2020","Art: Kleine Anfrage","Urheber: FDP/DVP",{"$f":"RIGHT(C1356, 10)","v":"11.08.2020"}]
["Verkehrsunfälle mit Fahrrädern, E-Bikes und Pedelecs im Landkreis Ludwigsburg","16/8385","Datum: 11.08.2020","Art: Kleine Anfrage","Urheber: CDU",{"$f":"RIGHT(C1357, 10)","v":"11.08.2020"}]
["Reformbedarf des Insolvenzrechts im Kontext von Covid-19","16/8640","Datum: 11.08.2020","Art: Antrag","Urheber: CDU",{"$f":"RIGHT(C1358, 10)","v":"11.08.2020"}]
["Schutz von Einsatzkräften der Feuerwehr und des Rettungsdienstes vor Gewalt","16/8641","Datum: 11.08.2020","Art: Antrag","Urheber: GRÜNE",{"$f":"RIGHT(C1359, 10)","v":"11.08.2020"}]
["Abfrage personenbezogener Daten","16/8642","Datum: 11.08.2020","Art: Kleine Anfrage","Urheber: GRÜNE",{"$f":"RIGHT(C1360, 10)","v":"11.08.2020"}]
["Kompetenzzentrum gegen Extremismus (konex) – weitere Nachfrage","16/8649","Datum: 12.08.2020","Art: Antrag","Urheber: AfD",{"$f":"RIGHT(C1361, 10)","v":"12.08.2020"}]
["Linksextreme Beteiligung an der Stuttgarter Krawallnacht und Entwicklungen in den Folgewochen","16/8371","Datum: 13.08.2020","Art: Antrag","Urheber: FDP/DVP",{"$f":"RIGHT(C1362, 10)","v":"13.08.2020"}]
["IT-Sicherheitsvorfälle in Baden-Württemberg","16/8662","Datum: 17.08.2020","Art: Antrag","Urheber: FDP/DVP",{"$f":"RIGHT(C1363, 10)","v":"17.08.2020"}]
["Ausbau der Frauen- und Kinderschutzhäuser in Baden-Württemberg","16/8463","Datum: 19.08.2020","Art: Antrag","Urheber: CDU",{"$f":"RIGHT(C1364, 10)","v":"19.08.2020"}]
["Mobiles Arbeiten und Digitalisierung in der Landes-, Justiz- und Kommunalverwaltung","16/8148","Datum: 20.08.2020","Art: Große Anfrage","Urheber: CDU",{"$f":"RIGHT(C1365, 10)","v":"20.08.2020"}]
["Sachkostenbudgets der Polizeidienststellen","16/8691","Datum: 21.08.2020","Art: Antrag","Urheber: SPD",{"$f":"RIGHT(C1366, 10)","v":"21.08.2020"}]
["Angriffe auf Zugbegleiterinnen und Zugbegleiter","16/8702","Datum: 24.08.2020","Art: Antrag","Urheber: SPD",{"$f":"RIGHT(C1367, 10)","v":"24.08.2020"}]
["Unruhen und Plünderungen in der Stuttgarter Innenstadt in der Nacht vom 20. auf den 21. Juni 2020 – finanzielle und andere Folgen","16/8343","Datum: 25.08.2020","Art: Kleine Anfrage","Urheber: AfD",{"$f":"RIGHT(C1368, 10)","v":"25.08.2020"}]
["Rechtsextremistische Musikveranstaltungen","16/8511","Datum: 27.08.2020","Art: Antrag","Urheber: GRÜNE",{"$f":"RIGHT(C1369, 10)","v":"27.08.2020"}]
["Aktivitäten der Sicherheitsbeiräte in Stuttgart","16/8517","Datum: 31.08.2020","Art: Kleine Anfrage","Urheber: FDP/DVP",{"$f":"RIGHT(C1370, 10)","v":"31.08.2020"}]
["Salafisten im Fokus – ein Querschnitt der Szene Baden-Württembergs","16/8541","Datum: 02.09.2020","Art: Kleine Anfrage","Urheber: AfD",{"$f":"RIGHT(C1371, 10)","v":"02.09.2020"}]
["„Identitäre Bewegung“, Reichsbürger, Selbstverwalter sowie andere rechtsextreme Organisationen","16/8745","Datum: 03.09.2020","Art: Antrag","Urheber: GRÜNE",{"$f":"RIGHT(C1372, 10)","v":"03.09.2020"}]
["„NSU 2.0.“ in Baden-Württemberg","16/8538","Datum: 04.09.2020","Art: Kleine Anfrage","Urheber: FDP/DVP",{"$f":"RIGHT(C1373, 10)","v":"04.09.2020"}]
["Änderung des Landesbeamtengesetzes zur Verbesserung des Schutzes von Polizeianwärterinnen und -anwärtern","16/8559","Datum: 07.09.2020","Art: Kleine Anfrage","Urheber: SPD",{"$f":"RIGHT(C1374, 10)","v":"07.09.2020"}]
["Entwicklungen von Todesfällen in Gewahrsamszellen","16/8561","Datum: 07.09.2020","Art: Kleine Anfrage","Urheber: FDP/DVP",{"$f":"RIGHT(C1375, 10)","v":"07.09.2020"}]
["Vorkommnisse im Zuge der Demonstrationen am 29. August 2020 in Berlin und Bezüge zu Gruppen und Personen aus Baden-Württemberg","16/8730","Datum: 08.09.2020","Art: Kleine Anfrage","Urheber: SPD",{"$f":"RIGHT(C1376, 10)","v":"08.09.2020"}]
["Ermittlung der Staatsangehörigkeit von Angehörigen der Tatverdächtigen der Krawalle in Stuttgart","16/8762","Datum: 08.09.2020","Art: Antrag","Urheber: GRÜNE",{"$f":"RIGHT(C1377, 10)","v":"08.09.2020"}]
["Gewalttaten und Beleidigungen gegenüber Rettungskräften und Feuerwehrleuten","16/8573","Datum: 09.09.2020","Art: Antrag","Urheber: CDU",{"$f":"RIGHT(C1378, 10)","v":"09.09.2020"}]
["Ermittlungen in Baden-Württemberg im Zusammenhang mit Drohschreiben mit dem Absender „NSU 2.0“","16/8578","Datum: 09.09.2020","Art: Kleine Anfrage","Urheber: SPD",{"$f":"RIGHT(C1379, 10)","v":"09.09.2020"}]
["Was unternimmt die Landesregierung zur Eindämmung der Aktivitäten der Hisbollah im Land?","16/8764","Datum: 09.09.2020","Art: Kleine Anfrage","Urheber: FDP/DVP",{"$f":"RIGHT(C1380, 10)","v":"09.09.2020"}]
["Bereiten Linksextreme Anschläge auf Polizisten vor und Nachfragen zur Drucksache 16/8327","16/8634","Datum: 10.09.2020","Art: Kleine Anfrage","Urheber: AfD",{"$f":"RIGHT(C1381, 10)","v":"10.09.2020"}]
["Schutz von Einsatzkräften der Feuerwehr und des Rettungsdienstes vor Gewalt","16/8641","Datum: 11.09.2020","Art: Antrag","Urheber: GRÜNE",{"$f":"RIGHT(C1382, 10)","v":"11.09.2020"}]
["Langfristige Personalplanung bei der Landespolizei","16/8617","Datum: 14.09.2020","Art: Antrag","Urheber: FDP/DVP",{"$f":"RIGHT(C1383, 10)","v":"14.09.2020"}]
["Stand der baden-württembergischen Verfahren wegen Hassposts gegen Walter Lübcke","16/8615","Datum: 15.09.2020","Art: Kleine Anfrage","Urheber: FDP/DVP",{"$f":"RIGHT(C1384, 10)","v":"15.09.2020"}]
["Mobile Jugendarbeit, psychosoziale Beratungsangebote, Drogen- und Gewaltpräventionsprogramme für Jugendliche und junge Erwachsene in Stuttgart","16/8359","Datum: 16.09.2020","Art: Kleine Anfrage","Urheber: FDP/DVP",{"$f":"RIGHT(C1385, 10)","v":"16.09.2020"}]
["Strukturen von Clankriminalität in Baden-Württemberg und Villingen-Schwenningen","16/8608","Datum: 16.09.2020","Art: Kleine Anfrage","Urheber: CDU",{"$f":"RIGHT(C1386, 10)","v":"16.09.2020"}]
["Aktivitäten der Hisbollah in Baden-Württemberg","16/8618","Datum: 17.09.2020","Art: Kleine Anfrage","Urheber: FDP/DVP",{"$f":"RIGHT(C1387, 10)","v":"17.09.2020"}]
["Rechtsstellung von Polizeianwärterinnen und Polizeianwärtern","16/8620","Datum: 17.09.2020","Art: Kleine Anfrage","Urheber: FDP/DVP",{"$f":"RIGHT(C1388, 10)","v":"17.09.2020"}]
["Reformbedarf des Insolvenzrechts im Kontext von Covid-19","16/8640","Datum: 17.09.2020","Art: Antrag","Urheber: CDU",{"$f":"RIGHT(C1389, 10)","v":"17.09.2020"}]
["Einlasskontrollen und Selbstjustiz durch Kriminelle und Clanmitglieder auch vor Gerichten im Südwesten?","16/8627","Datum: 21.09.2020","Art: Antrag","Urheber: AfD",{"$f":"RIGHT(C1390, 10)","v":"21.09.2020"}]
["Kompetenzzentrum gegen Extremismus (konex) – weitere Nachfrage","16/8649","Datum: 21.09.2020","Art: Antrag","Urheber: AfD",{"$f":"RIGHT(C1391, 10)","v":"21.09.2020"}]
["Dienstpostenbewertung bei der Polizei","16/10013","Datum: 09.04.2021","Art: Kleine Anfrage","Urheber: FDP/DVP"]
["Fragen zum Sicherheitsbericht 2020 und Meinungsumfragen","16/10014","Datum: 15.04.2021","Art: Kleine Anfrage","Urheber: AfD"]
["Vorfall mit einer Stichwaffe in Bretzfeld","16/10034","Datum: 26.04.2021","Art: Kleine Anfrage","Urheber: AfD"]
["Demonstrationszug von sogenannten „Klardenkern“ am 27. März 2021","16/10046","Datum: 30.03.2021","Art: Kleine Anfrage","Urheber: SPD"]
["Sammelabschiebungen nach Afghanistan","16/10048","Datum: 30.04.2021","Art: Kleine Anfrage","Urheber: SPD"]
["Drogentote in Baden-Württemberg und Drogen-Prävention zu Corona-/Lockdown-Zeiten","16/10067","Datum: 12.03.2021","Art: Kleine Anfrage","Urheber: AfD"]
["Jährliche Unterrichtung des Landtags gemäß § 23 a Absatz 10 des Polizeigesetzes Baden-Württemberg (PolG) alte Fassung (a. F.) über präventivpolizeiliche Maßnahmen mit Bezug zur Telekommunikation sowie gemäß § 23 b Absatz 14 PolG a. F. über Maßnahmen der präventivpolizeilichen Telekommunikationsüberwachung im Berichtsjahr 2020 einschließlich der Daten bis zum 16. Januar 2021","16/10068","Datum: 15.04.2021","Art: Alle","Urheber: LRG"]
["Demonstrationen gegen Corona-Maßnahmen am 3. April 2021 in Stuttgart","16/10080","Datum: 20.04.2021","Art: Antrag","Urheber: SPD"]
["Ausschreitungen in Stuttgart am 20./21. Juni 2020","16/8459","Datum: 01.10.2020","Art: Große Anfrage","Urheber: CDU"]
["Ausnutzung der Corona-Soforthilfen durch gezielt betrügerische Anträge","16/8644","Datum: 15.10.2020","Art: Antrag","Urheber: FDP/DVP"]
["Situation der Rechtsanwälte vor und während der Covid-19-Pandemie","16/8659","Datum: 30.09.2020","Art: Kleine Anfrage","Urheber: FDP/DVP"]
["Angriffe auf Zugbegleiterinnen und Zugbegleiter","16/8702","Datum: 30.09.2020","Art: Antrag","Urheber: SPD"]
["Antisemitische und antiisraelische Schmierereien","16/8704","Datum: 30.10.2020","Art: Kleine Anfrage","Urheber: FDP/DVP"]
["Rückerstattung von Buß- und Verwarnungsgeldern im Zuge der unanwendbaren Straßenverkehrsordnungs (StVO)-Novelle","16/8711","Datum: 04.11.2020","Art: Antrag","Urheber: FDP/DVP"]
["Vorkommnisse im Zuge der Demonstrationen am 29. August 2020 in Berlin und Bezüge zu Gruppen und Personen aus Baden-Württemberg","16/8730","Datum: 09.10.2020","Art: Kleine Anfrage","Urheber: SPD"]
["„Identitäre Bewegung“, Reichsbürger, Selbstverwalter sowie andere rechtsextreme Organisationen","16/8745","Datum: 20.10.2020","Art: Antrag","Urheber: GRÜNE"]
["Ermittlung der Staatsangehörigkeit von Angehörigen der Tatverdächtigen der Krawalle in Stuttgart","16/8762","Datum: 13.10.2020","Art: Antrag","Urheber: GRÜNE"]
["Was unternimmt die Landesregierung zur Eindämmung der Aktivitäten der Hisbollah im Land?","16/8764","Datum: 13.10.2020","Art: Kleine Anfrage","Urheber: FDP/DVP"]
["Ignorieren die Landesregierung und das Landesamt für Verfassungsschutz öffentliche Bekenntnisse und Sympathiebekundungen der Gewerkschaften zur Antifa?","16/8790","Datum: 21.10.2020","Art: Antrag","Urheber: AfD"]
["Messerangriff in Grünsfeld am 12. September 2020","16/8791","Datum: 20.10.2020","Art: Kleine Anfrage","Urheber: AfD"]
["„Lost Places“ in Baden-Württemberg","16/8796","Datum: 20.10.2020","Art: Kleine Anfrage","Urheber: SPD"]
["Beschlussempfehlung und Bericht des Ausschusses für Inneres, Digitalisierung und Migration zu der Mitteilung der Landesregierung vom 14. Juli 2020– Drucksache 16/8480Information über Staatsvertragsentwürfe; hier: Entwurf des Staatsvertrages zur Neuregulierung des Glücksspielwesens in Deutschland (Glücksspielstaats-vertrag 2021 – GlüStV 2021)","16/8809","Datum: 05.10.2020","Art: Beschlussempfehlung","Urheber: Ausschüsse"]
["Beschlussempfehlung und Bericht des Ausschusses für Inneres, Digitalisierung und Migration zu dem Gesetzentwurf der Landesregierung– Drucksache 16/8484Gesetz zur Umsetzung der Richtlinie (EU) 2016/680 für die Polizei in Baden-Württemberg und zur Änderung weiterer polizeirechtlicher Vorschriften","16/8811","Datum: 29.09.2020","Art: Beschlussempfehlung","Urheber: Ausschüsse"]
["Ermittlung der Staatsangehörigkeit von Angehörigen Strafverdächtiger","16/8817","Datum: 21.10.2020","Art: Antrag","Urheber: GRÜNE"]
["Beschlussempfehlung und Bericht des Ausschusses für Finanzen zu dem Gesetzentwurf der Landesregierung– Drucksache 16/8487Gesetz zur Änderung des Landesbesoldungsgesetzes Baden-Württemberg und anderer Rechtsvorschriften","16/8849","Datum: 05.10.2020","Art: Beschlussempfehlung","Urheber: Ausschüsse"]
["Gesetz über die Feststellung eines Zweiten Nachtrags zum Staatshaushaltsplan von Baden-Württemberg für die Haushaltsjahre 2020/21","16/8857","Datum: 01.10.2020","Art: Gesetzentwurf","Urheber: LRG"]
["„FCK AFD“ – Polizeidienststelle Freiburg mit Signalflagge von Linksextremisten im SWR","16/8871","Datum: 27.10.2020","Art: Antrag","Urheber: AfD"]
["Gesetz zur Umsetzung der Richtlinie (EU) 2016/680 für die Polizei in Baden-Württemberg und zur Änderung weiterer polizeirechtlicher Vorschriften","16/8886","Datum: 02.10.2020","Art: Gesetzesbeschluss","Urheber: LRG"]
["Zahl der Rechtsextremismus-Verdachtsfälle in den Sicherheitsbehörden des Landes","16/8887","Datum: 29.10.2020","Art: Kleine Anfrage","Urheber: FDP/DVP"]
["Änderungsanträge und Entschließungsantrag zu der Beschlussempfehlung des Ausschusses für Inneres, Digitalisierung und Migration – Drucksache 16/8811zu dem Gesetzentwurf der Landesregierung – Drucksache 16/8484 Gesetz zur Umsetzung der Richtlinie (EU) 2016/680 für die Polizei in Baden-Württemberg und zur Änderung weiterer polizeirechtlicher Vorschriften","16/8889","Datum: 06.10.2020","Art: Alle","Urheber: LRG"]
["Beschlussempfehlung und Bericht des Ausschusses für Finanzen zu dem Gesetzentwurf der Landesregierung– Drucksache 16/8857Gesetz über die Feststellung eines Zweiten Nachtrags zum Staatshaushaltsplan von Baden-Württemberg für die Haushaltsjahre 2020/21","16/8915","Datum: 06.10.2020","Art: Beschlussempfehlung","Urheber: Ausschüsse"]
["Kampagne Verkehrssicherheit „Vorsicht. Rücksicht. Umsicht“","16/8918","Datum: 30.09.2020","Art: Kleine Anfrage","Urheber: FDP/DVP"]
["Leistungsprämie und Umgang mit Mehr- oder Minderarbeit","16/8925","Datum: 12.11.2020","Art: Antrag","Urheber: SPD"]
["Tätigkeitsbericht der Bürgerbeauftragten des Landes Baden-Württemberg für das Jahr 2019","16/8930","Datum: 12.10.2020","Art: Alle","Urheber: LRG"]
["Terrornacht in Stuttgart am 20./21. Juni 2020 – Nachfragen aus aktuellem Anlass und Folgen für die Kriminalitätsstatistik","16/8931","Datum: 04.11.2020","Art: Antrag","Urheber: AfD"]
["Schutz der Richterinnen und Richter sowie Staatsanwältinnen und Staatsanwälte bei persönlichkeitsrechts- und ehrverletzenden öffentlichen Angriffen","16/8936","Datum: 01.10.2020","Art: Antrag","Urheber: SPD"]
["Nachfolgevorschrift für die am 30. September 2020 ausgelaufene Verwaltungsvorschrift zu einer ressortübergreifenden Konzeption zum Umgang mit besonders rückfallgefährdeten Sexualstraftätern (VwV KURS)","16/8944","Datum: 02.10.2020","Art: Antrag","Urheber: SPD"]
["Nachfolgevorschrift für die am 30. September 2020 ausgelaufene Verwaltungsvorschrift zu einer ressortübergreifenden Konzeption zum Umgang mit besonders rückfallgefährdeten Sexualstraftätern (VwV KURS)","16/8944","Datum: 17.11.2020","Art: Antrag","Urheber: SPD"]
["Linksextremistische Organisation RAZ/MIEZE","16/8964","Datum: 17.11.2020","Art: Antrag","Urheber: AfD"]
["Entwicklung der häuslichen Gewalt in Mannheim infolge der Maßnahmen zur Corona-Bekämpfung","16/8977","Datum: 20.11.2020","Art: Kleine Anfrage","Urheber: SPD"]
["Umsetzung des Prostituiertenschutzgesetzes in Baden-Württemberg","16/8980","Datum: 04.12.2020","Art: Antrag","Urheber: SPD"]
["Gesetz zur Änderung des Landesbesoldungsgesetzes Baden-Württemberg und anderer Rechtsvorschriften","16/8992","Datum: 15.10.2020","Art: Gesetzesbeschluss","Urheber: LRG"]
["Denkschrift 2020 zur Haushalts- und Wirtschaftsführung des Landes Baden-Württemberg; hier: Beitrag Nr. 8 – Stufenzuordnungen bei Einstellungen sowie Vorweggewährungen nach dem Tarifvertrag für den öffentlichen Dienst der Länder (TV-L)","16/9008","Datum: 13.11.2020","Art: Beschlussempfehlung","Urheber: Ausschüsse"]
["Beschlussempfehlung und Bericht des Ausschusses für Finanzen zu der Mitteilung des Rechnungshofs vom 16. Juli 2020 – Drucksache 16/8418 Denkschrift 2020 zur Haushalts- und Wirtschaftsführung des Landes Baden-Württemberg; hier: Beitrag Nr. 18 – Energieversorgung großer Polizeiliegenschaften","16/9018","Datum: 11.12.2020","Art: Beschlussempfehlung","Urheber: Ausschüsse"]
["Bericht der Landesregierung zu einem Beschluss des Landtags; hier: Denkschrift 2019 des Rechnungshofs zur Haushalts- und Wirtschaftsführung des Landes Baden-Württemberg – Beitrag Nr. 7: Bearbeitung von Dienstunfällen sowie die Verfolgung von Schadenersatzansprüchen des Landes durch das Landesamt für Besoldung und Versorgung","16/9068","Datum: 26.10.2020","Art: Alle","Urheber: LRG"]
["Polizeiausbildung unter Pandemiebedingungen","16/9074","Datum: 19.11.2020","Art: Kleine Anfrage","Urheber: SPD"]
["Beschlussempfehlung und Bericht des Ausschusses für Finanzen zu der Mitteilung der Landesregierung vom 18. September 2020 – Drucksache 16/8813 Bericht der Landesregierung zu einem Beschluss des Landtags; hier: Denkschrift 2015 des Rechnungshofs zur Haushalts- und Wirtschaftsführung des Landes Baden-Württemberg – Beitrag Nr. 7: Polizeikostenersatz bei kommerziellen Großveranstaltungen","16/9098","Datum: 05.11.2020","Art: Beschlussempfehlung","Urheber: Ausschüsse"]
["Vollzug von Jugendstrafe in Baden-Württemberg","16/9104","Datum: 18.02.2021","Art: Kleine Anfrage","Urheber: SPD"]
["Verhältnis Anzahl Justizvollzugsbeamtinnen und Justizvollzugsbeamte zu Strafgefangenen in Baden-Württemberg","16/9115","Datum: 24.11.2020","Art: Kleine Anfrage","Urheber: SPD"]
["Polizeikontrolle in Freiburg – Fall von Racial Profiling?","16/9137","Datum: 25.11.2020","Art: Antrag","Urheber: GRÜNE"]
["Jugendliche Intensivtäter in Baden-Württemberg","16/9150","Datum: 03.12.2020","Art: Kleine Anfrage","Urheber: AfD"]
["Hintergründe zu den mutmaßlichen Mitgliedern einer linksextremen Zelle","16/9173","Datum: 09.12.2020","Art: Kleine Anfrage","Urheber: FDP/DVP"]
["Beschlussempfehlung und Bericht des Ständigen Ausschusses zu der Mitteilung der Bürgerbeauftragten des Landes Baden-Württemberg vom 30. September 2020  – Drucksache 16/8930 Tätigkeitsbericht der Bürgerbeauftragten des Landes Baden-Württemberg für das Jahr 2019","16/9204","Datum: 16.12.2020","Art: Beschlussempfehlung","Urheber: Ausschüsse"]
["Aktionstag zur Bekämpfung gegen Hasskriminalität am 3. November 2020","16/9210","Datum: 10.12.2020","Art: Kleine Anfrage","Urheber: FDP/DVP"]
["Novellierung des Landesdisziplinargesetzes (LDG)","16/9231","Datum: 09.12.2020","Art: Kleine Anfrage","Urheber: SPD"]
["Die Entwicklung der Cyberwehr 2019/2020","16/9239","Datum: 10.12.2020","Art: Kleine Anfrage","Urheber: FDP/DVP"]
["Gesetz zur Anpassung landesrechtlicher Rechtsvorschriften an die Neufassung des Polizeigesetzes (Polizeigesetz-Anpassungsgesetz – PolGAnpG)","16/9241","Datum: 18.11.2020","Art: Gesetzentwurf","Urheber: LRG"]
["Coronabedingte Schutzmaßnahmen für Polizistinnen und Polizisten in Baden-Württemberg","16/9257","Datum: 11.12.2020","Art: Kleine Anfrage","Urheber: CDU"]
["Zusammenarbeit von städtischen und staatlichen Stellen in den Projekten „Haus des Jugendrechts“ in Baden-Württemberg","16/9258","Datum: 17.12.2020","Art: Kleine Anfrage","Urheber: AfD"]
["Verwendung von Fußfesseln in Baden-Württemberg","16/9264","Datum: 21.12.2020","Art: Kleine Anfrage","Urheber: FDP/DVP"]
["Verbindungen von Polizeibeamtinnen und -beamten aus Baden-Württemberg zu „Project Gecko“","16/9282","Datum: 23.12.2020","Art: Antrag","Urheber: SPD"]
["FFP2-Schutzmasken für die Landespolizei","16/9286","Datum: 16.12.2020","Art: Kleine Anfrage","Urheber: FDP/DVP"]
["Baulicher Zustand der Gebäude der Bereitschaftspolizeidirektion Bruchsal","16/9294","Datum: 16.12.2020","Art: Kleine Anfrage","Urheber: CDU"]
["Planungen der Cybersicherheitsagentur","16/9306","Datum: 04.01.2021","Art: Antrag","Urheber: FDP/DVP"]
["Nachfragen zum Sicherheitsbericht 2019","16/9314","Datum: 11.01.2021","Art: Kleine Anfrage","Urheber: AfD"]
["Demonstrationen in Ulm am 16. November 2020","16/9321","Datum: 08.01.2021","Art: Kleine Anfrage","Urheber: SPD"]
["Benennung von ausländischen Gewalttätern in Polizeipressemitteilungen","16/9338","Datum: 08.01.2021","Art: Kleine Anfrage","Urheber: Fraktionslos"]
["Hochrisiko-Islamisten","16/9368","Datum: 13.01.2021","Art: Antrag","Urheber: AfD"]
["Entwicklung der Selbstmordrate","16/9371","Datum: 13.01.2021","Art: Kleine Anfrage","Urheber: AfD"]
["Posttraumatische Belastungsstörung bei Mitarbeiterinnen und Mitarbeitern im Bereich der Behörden und Organisationen mit Sicherheitsaufgaben (BOS)","16/9382","Datum: 13.01.2021","Art: Antrag","Urheber: FDP/DVP"]
["Straftaten in Sinsheim","16/9390","Datum: 13.01.2021","Art: Kleine Anfrage","Urheber: AfD"]
["Datenmissbrauchsfälle in Behörden","16/9396","Datum: 15.01.2021","Art: Antrag","Urheber: FDP/DVP"]
["Ungeklärte Tötungsdelikte: „Cold Cases“-Ermittlungsgruppe","16/9433","Datum: 21.01.2021","Art: Antrag","Urheber: GRÜNE"]
["Islamistische Gefährder in Baden-Württemberg","16/9458","Datum: 21.01.2021","Art: Antrag","Urheber: FDP/DVP"]
["Autokorsos","16/9482","Datum: 28.01.2021","Art: Kleine Anfrage","Urheber: SPD"]
["Gesetz zum Glücksspielstaatsvertrag 2021","16/9487","Datum: 17.12.2020","Art: Gesetzentwurf","Urheber: LRG"]
["Gesetz zur Änderung des Landesglücksspielgesetzes","16/9488","Datum: 17.12.2020","Art: Gesetzentwurf","Urheber: LRG"]
["Gesetz zur Verbesserung der Cybersicherheit und Änderung anderer Vorschriften","16/9490","Datum: 07.01.2021","Art: Gesetzentwurf","Urheber: LRG"]
["Hackerangriff auf „SolarWinds“ und Auswirkungen auf Baden-Württemberg","16/9556","Datum: 02.02.2021","Art: Kleine Anfrage","Urheber: FDP/DVP"]
["„Querdenken-Bewegung“ in Baden-Württemberg","16/9565","Datum: 21.01.2021","Art: Antrag","Urheber: CDU"]
["Proteste gegen Corona-Auflagen","16/9568","Datum: 22.01.2021","Art: Antrag","Urheber: GRÜNE"]
["Bericht der Landesregierung zu einem Beschluss des Landtags; hier: Denkschrift 2018 des Rechnungshofs zur Haushalts- und Wirtschaftsführung des Landes Baden-Württemberg – Beitrag Nr. 6: Polizeiausbildung effizienter gestalten","16/9573","Datum: 18.01.2021","Art: Alle","Urheber: LRG"]
["Verweildauer in Landeserstaufnahmeeinrichtungen (LEA)","16/9582","Datum: 22.01.2021","Art: Antrag","Urheber: SPD"]
["Zugang zu psychotherapeutischen Leistungen für Beihilfeberechtigte","16/9590","Datum: 12.02.2021","Art: Antrag","Urheber: FDP/DVP"]
["Erweiterte Datennutzung nach dem Antiterrordateigesetz","16/9598","Datum: 04.02.2021","Art: Kleine Anfrage","Urheber: FDP/DVP"]
["Bericht der Landesregierung zu einem Beschluss des Landtags; hier: Denkschrift 2019 des Rechnungshofs zur Haushalts- und Wirtschaftsführung des Landes Baden-Württemberg – Beitrag Nr. 9: Polizeireiterstaffeln zusammenlegen","16/9607","Datum: 18.01.2021","Art: Alle","Urheber: LRG"]
["Jüngste Aktivitäten der italienischen Mafia in Heilbronn und Umland","16/9621","Datum: 08.02.2021","Art: Kleine Anfrage","Urheber: FDP/DVP"]
["Verteilung der offenen Haftbefehle","16/9622","Datum: 04.02.2021","Art: Antrag","Urheber: FDP/DVP"]
["Einsatz von Drohnen bei der Polizei","16/9626","Datum: 12.02.2021","Art: Kleine Anfrage","Urheber: AfD"]
["Ein Polizeieinsatz in Balingen am 21. Dezember 2020","16/9632","Datum: 12.02.2021","Art: Kleine Anfrage","Urheber: AfD"]
["Scheinehen in Baden-Württemberg zur Erlangung des Bleiberechts","16/9641","Datum: 12.02.2021","Art: Kleine Anfrage","Urheber: AfD"]
["echte der Bürger während eines Polizeieinsatzes","16/9646","Datum: 05.02.2021","Art: Kleine Anfrage","Urheber: Fraktionslos"]
["Weihnachtsamnestien und flüchtige Häftlinge","16/9673","Datum: 12.02.2021","Art: Kleine Anfrage","Urheber: AfD"]
["Personeller, sachlicher und baulicher Zustand der Gerichte, Fachgerichte, Staatsanwaltschaften und Justizvollzugsanstalten im Landgerichtsbezirk Ulm und in den Fachgerichtsbezirken Ulm","16/9685","Datum: 22.02.2021","Art: Kleine Anfrage","Urheber: GRÜNE"]
["Beschlussempfehlung und Bericht des Ausschusses für Inneres, Digitalisierung und Migration zu dem Gesetzentwurf der Landesregierung – Drucksache 16/9241 Gesetz zur Anpassung landesrechtlicher Rechtsvorschriften an die Neufassung des Polizeigesetzes (Polizeigesetz-Anpassungsgesetz – PolGAnpG)","16/9688","Datum: 27.01.2021","Art: Beschlussempfehlung","Urheber: Ausschüsse"]
["Die „Grauen Wölfe“/die „Ülkücü-Bewegung","16/9696","Datum: 22.02.2021","Art: Antrag","Urheber: FDP/DVP"]
["Gesetz zur Anpassung landesrechtlicher Rechtsvorschriften an die Neufassung des Polizeigesetzes (Polizeigesetz-Anpassungsgesetz – PolGAnpG)","16/9710","Datum: 29.01.2021","Art: Gesetzesbeschluss","Urheber: LRG"]
["Gesetz zum Glücksspielstaatsvertrag 2021","16/9720","Datum: 05.02.2021","Art: Gesetzesbeschluss","Urheber: LRG"]
["Gesetz zur Änderung des Landesglücksspielgesetzes","16/9721","Datum: 05.02.2021","Art: Gesetzesbeschluss","Urheber: LRG"]
["Gesetz zur Verbesserung der Cybersicherheit und Änderung anderer Vorschriften","16/9723","Datum: 05.02.2021","Art: Gesetzesbeschluss","Urheber: LRG"]
["Beschlussempfehlung und Bericht des Ausschusses für Inneres, Digitalisierung und Migration zu dem Gesetzentwurf der Landesregierung – Drucksache 16/9490 Gesetz zur Verbesserung der Cybersicherheit und Änderung anderer Vorschriften","16/9728","Datum: 02.02.2021","Art: Beschlussempfehlung","Urheber: Ausschüsse"]
["Beschlussempfehlung und Bericht des Ausschusses für Finanzen zu der Mitteilung der Landesregierung vom 17. Dezember 2020 – Drucksache 16/9573 Bericht der Landesregierung zu einem Beschluss des Landtags; hier: Denkschrift 2018 des Rechnungshofs zur Haushalts- und Wirtschaftsführung des Landes Baden-Württemberg – Beitrag Nr. 6: Polizeiausbildung effizienter gestalten","16/9767","Datum: 29.01.2021","Art: Beschlussempfehlung","Urheber: Ausschüsse"]
["Beschlussempfehlung und Bericht des Ausschusses für Finanzen zu der Mitteilung der Landesregierung vom 18. Dezember 2020 – Drucksache 16/9607 Bericht der Landesregierung zu einem Beschluss des Landtags; hier: Denkschrift 2019 des Rechnungshofs zur Haushalts- und Wirtschaftsführung des Landes Baden-Württemberg – Beitrag Nr. 9: Polizeireiterstaffeln zusammenlegen","16/9773","Datum: 29.01.2021","Art: Beschlussempfehlung","Urheber: Ausschüsse"]
["Gesetzesverstöße bei sogenannten „Coronaprotesten“ in Baden-Württemberg","16/9796","Datum: 19.02.2021","Art: Kleine Anfrage","Urheber: SPD"]
["Home-Office in der Landesverwaltung","16/9802","Datum: 03.03.2021","Art: Antrag","Urheber: SPD"]
["Alltagsdiskriminierung von „People of Color“ in Baden-Württemberg","16/9818","Datum: 19.02.2021","Art: Kleine Anfrage","Urheber: SPD"]
["Entwicklung der Tschetschenischen Organisierten Kriminalität in Baden-Württemberg","16/9825","Datum: 08.03.2021","Art: Antrag","Urheber: FDP/DVP"]
["Vollziehung der Ausreisepflicht in Baden-Württemberg","16/9826","Datum: 09.03.2021","Art: Antrag","Urheber: FDP/DVP"]
["Insolvenzverfahren und Aussetzung der Antragspflicht","16/9848","Datum: 10.03.2021","Art: Kleine Anfrage","Urheber: FDP/DVP"]
["36. Datenschutz-Tätigkeitsbericht des Landesbeauftragten für den Datenschutz und die Informationsfreiheit Baden-Württemberg für das Jahr 2020","16/9850","Datum: 17.02.2021","Art: Alle","Urheber: LRG"]
["Pakt für den Rechtsstaat","16/9857","Datum: 09.03.2021","Art: Kleine Anfrage","Urheber: SPD"]
["Gesetz zur Änderung des Landesglücksspielgesetzes","16/9877","Datum: 16.02.2021","Art: Antrag","Urheber: FDP/DVP"]
["Personalplanung beim Polizeivollzugsdienst","16/9880","Datum: 16.03.2021","Art: Antrag","Urheber: FDP/DVP"]
["Bericht zu einem Beschluss des Landtags;hier:Bericht und Beschlussempfehlung des Untersuchungsaus -schusses „Das Unterstützerumfeld des Nationalsozialisti-schen Untergrunds (NSU) in Baden-Württemberg und Fortsetzung der Aufarbeitung des Terroranschlags auf diePolizeibeamten M. K. und M. A. (Rechtsterrorismus/NSUBW II)“– Drucksache 16/5250","16/9887","Datum: 17.02.2021","Art: Alle","Urheber: LRG"]
["Besetzung der Personalstellen bei der Cybersicherheitsagentur","16/9888","Datum: 12.03.2021","Art: Kleine Anfrage","Urheber: SPD"]
["Organisationsstruktur und Geschäftspraktiken von „Querdenken711“","16/9893","Datum: 05.03.2021","Art: Kleine Anfrage","Urheber: SPD"]
["Rechtsextremistische Straftaten in Baden-Württemberg","16/9894","Datum: 12.03.2021","Art: Kleine Anfrage","Urheber: SPD"]
["Einsatz einer Schreckschuss-Pistole beim Überfall auf einen Betriebsrat in Bad Cannstatt – oder nicht?","16/9902","Datum: 09.03.2021","Art: Kleine Anfrage","Urheber: AfD"]
["E-Akte BW – Rollout und Umsetzungsstand","16/9904","Datum: 16.03.2021","Art: Antrag","Urheber: FDP/DVP"]
["Entwicklung der häuslichen Gewalt im Jahr 2020","16/9906","Datum: 15.03.2021","Art: Antrag","Urheber: FDP/DVP"]
["Rechtsextremistische Strukturen und Aktivitäten in Landkreis und Stadt Ulm","16/9915","Datum: 22.03.2021","Art: Kleine Anfrage","Urheber: GRÜNE"]
["Zeitpunkt der Vorstellung der Polizeilichen Kriminalstatistik (PKS) 2020","16/9919","Datum: 18.03.2021","Art: Kleine Anfrage","Urheber: FDP/DVP"]
["Aktivitäten der Gruppierung „Julefolk“","16/9928","Datum: 11.03.2021","Art: Kleine Anfrage","Urheber: GRÜNE"]
["Aktivitäten der Gruppierung „Nord Württemberg Sturm“ (bzw. „Junge Revolution“)","16/9929","Datum: 19.03.2021","Art: Kleine Anfrage","Urheber: GRÜNE"]
["Personeller, sachlicher und baulicher Zustand der Gerichte, Staatsanwaltschaften und Justizvollzugsanstalten","16/9937","Datum: 25.03.2021","Art: Antrag","Urheber: GRÜNE"]
["Entwicklung der Bewerberzahlen, Einstellungsvoraussetzungen und Neueinstellungen der Richterinnen und Richter sowie Staatsanwältinnen und Staatsanwälte","16/9950","Datum: 23.03.2021","Art: Kleine Anfrage","Urheber: SPD"]
["Umstände der Festnahme eines Elfjährigen in Singen","16/9977","Datum: 26.03.2021","Art: Kleine Anfrage","Urheber: FDP/DVP"]
["Angriffe auf Geflüchtete in den Jahren 2019 und 2020","16/9999","Datum: 12.04.2021","Art: Kleine Anfrage","Urheber: GRÜNE"]